{"text_format":"1","workbook":"xlsx","n_sheets":8,"sheets":["1. INFORMACION ACUMULADA","Observaciones y revisión BOGDAT","2. PAA","3. CONSOLIDADO","4. INSTRUCTIVO","Proposito_programa","Tipo","Eje_Pilar_Prop1"],"not_rendered":{"charts":0,"images":1,"macros":1,"external_links":0,"defined_names":14,"comments":1,"pivot_tables":0},"unopened":[],"bounds":{"document_bytes":16777216,"sheet_cells":100000,"rows_first":2000,"rows_last":500,"rows_between":2000,"halvings":0,"cell_chars":16384,"cell_head_chars":4096},"cells_cut":0,"cells_raw":0,"read":"whole","date_system":"1900"}

{"sheet":"1. INFORMACION ACUMULADA","index":0,"n_rows":316,"n_cols":42,"rows_kept":316,"cut":false,"hidden":false,"merged":[[9,35,9,37],[5,35,5,38],[7,35,7,37],[6,35,6,36],[8,35,8,37],[1,0,1,37],[2,0,2,37],[4,0,4,3],[4,8,4,10],[4,14,4,15],[4,22,4,37],[5,0,5,3],[5,8,5,10],[5,33,5,34],[6,0,6,3],[6,8,6,10],[6,33,6,34],[7,33,7,34],[8,0,8,3],[8,6,8,7],[8,10,9,15],[8,33,8,34],[9,0,9,3],[9,5,9,7],[9,33,9,34],[10,37,10,40],[11,2,11,3],[11,8,11,12],[11,15,11,20],[11,37,11,40],[10,0,10,20],[10,21,10,26],[10,27,10,32],[10,33,10,36]]}
[]
["VEEDURIA DISTRITAL - INFORMACIÓN GESTION CONTRACTUAL"]
["DEL 1 DE ENERO AL 31 DE DICIEMBRE DE 2021"]
[]
["1. Entidad",null,null,null,"Fondo de Desarrollo Local Barrios Unidos",null,null,"2. Sector"]
["3. Presupuesto Disponible Inversión Directa PREDIS (BOGDATA)",null,null,null,22394138000,null,null,"5. Presupuesto Disponible Funcionamiento PREDIS (BOGDATA)",2141000000,null,null,null,null,null,null,null,null,null,null,null,null,null,null,null,null,null,null,null,null,null,null,null,null,"9. Nombre de quien diligencia el formato",null,"Yessica Paola Beltran "]
["4. Presupuesto Comprometido de Inversión Directa según PREDIS (BOGDATA)",null,null,null,20847240668,null,null,"6. Presupuesto Comprometido Funcionamiento según PREDIS (BOGDATA)",1629775589,null,null,null,null,null,null,null,null,null,null,null,null,null,null,null,null,null,null,null,null,null,null,null,null,"Cargo",null,"Contratista"]
[null,null,null,null,null,null,null,null,null,null,null,null,null,null,null,null,null,null,null,null,null,null,null,null,null,null,null,null,null,null,null,null,null,"Dependencia",null,"Contratación"]
["7. Presupuesto Disponible Operación (Régimen Privado)",null,null,null,null,null,null,null,null,null,null,null,null,null,null,null,null,null,null,null,null,null,null,null,null,null,null,null,null,null,null,null,null,"Teléfono",null,3005272569]
["8. Presupuesto Comprometido Operación mediante contratos",null,null,null,null,null,null,null,null,null,null,null,null,null,null,null,null,null,null,null,null,null,null,null,null,null,null,null,null,null,null,null,null,"Correo Electrónico",null,"Yessica.beltran@gobiernobogota.gov.co"]
["1- INFORMACION GENERAL",null,null,null,null,null,null,null,null,null,null,null,null,null,null,null,null,null,null,null,null,"2- INFORMACION FINANCIERA",null,null,null,null,null,"3 - PLAZOS ",null,null,null,null,null,"4. CESION",null,null,null,"5. ESTADO",null,null,null,"6. %  Avance y/o cumplimiento"]
[1,2,3,null,4,5,6,7,8,null,null,null,null,9,10,11,null,null,null,null,null,12,13,14,15,16,17,18,19,20,21,22,23,24,25,26,27,28,null,null,null,29]
["Número Contrato","Año","Número de proceso contractual \nSECOP","Link proceso SECOP","Tipo de contrato ","Modalidad de Selección","Procedimiento o causal","Objeto","Afectación","Plan de Desarrollo Distrital","Número Programa","Equivalencia número de programa","Propósito","Número Proyecto","Número de proponentes","Número  de Identificación del contratista\n(Cédula o NIT sin puntos, comas ni caracteres especiales y sin digito de verificación)","Nombre del contratista\n  (según el caso: nombres y apellidos o Razón social y Tipo societario)","Naturaleza Jurídica","Número  de Identificación del integrante del Consorcio o U.T.\n(Cédula o NIT sin puntos, comas ni caracteres especiales y sin digito de verificación)","Nombre del Integrante del Consorcio o U.T. y Tipo societario\n (Según el caso: nombres y apellidos o razón social y tipo societario)","% Participación (indicar solo el numero del porcentaje, sin caracteres especiales)","Valor Inicial del contrato","Valor total reducciones \n(En valor negativo)","Número de adiciones","Valor total de adiciones ","Valor Final ","Giros (Valor en pesos)","Fecha de suscripción (DD/MM/AAAA)","Fecha de inicio (DD/MM/AAAA)","Fecha de terminación (DD/MM/AAAA)","Plazo en días","Número de prórrogas","Prorroga en días","Número  de Identificación del cesionario\n(NIT sin digito de verificación)","Nombre cesionario","Fecha cesión\n(DD/MM/AAAA)","Valor cesión","Celebrado o por iniciar","En Ejecución","Terminado","Liquidado","% Avance y/o Cumplimiento"]
[1,2021,"FDLBU-CD-001-2021","https://community.secop.gov.co/Public/Tendering/ContractNoticePhases/View?PPI=CO1.PPI.11953361&isFromPublicArea=True&isModal=False","Contratos de prestación de servicios profesionales y de apoyo a la gestión","Contratación directa","Prestación de servicios profesionales y de apoyo a la gestión, o para la ejecución de trabajos artísticos que sólo puedan encomendarse a determinadas personas naturales;","PRESTAR LOS SERVICIOS PROFESIONALES  ÁREA DE GESTIÓN PARA EL DESARROLLO LOCAL PARA EL APOYO A LA CONTRATACIÓN EN LAS DIFERENTES PLATAFORMAS Y REPORTES A DIFERENTES ORGANISMOS, SEGUIMIENTO A PROCESOS ADELANTADOS POR EL ÁREA.","Inversión","Un Nuevo Contrato Social y Ambiental para la Bogotá del Siglo XXI",57,{"$f":"IF(ISERROR(VLOOKUP(K14,Proposito_programa!$C$2:$E$59,2,FALSE)),\" \",VLOOKUP(K14,Proposito_programa!$C$2:$E$59,2,FALSE))","v":"Gestión pública local"},{"$f":"IF(ISERROR(VLOOKUP(K14,Proposito_programa!$C$2:$E$59,3,FALSE)),\" \",VLOOKUP(K14,Proposito_programa!$C$2:$E$59,3,FALSE))","v":"Propósito 5: Construir Bogotá - Región con gobierno abierto, transparente y ciudadanía consciente"},"133011605570000002143",null,52705855,"XIMENA LOMBANA RIAÑO","Persona Natural",null,null,null,47500000,null,1,6333333,{"$f":"+V14+W14+Y14","v":53833333},45916667,"2021-02-10","2021-02-11","2021-12-10",300,1,40,null,null,null,null,null,null,"X",null,0]
[2,2021,"FDLBU-CD-001-2022","https://community.secop.gov.co/Public/Tendering/ContractNoticePhases/View?PPI=CO1.PPI.11967321&isFromPublicArea=True&isModal=False","Contratos de prestación de servicios profesionales y de apoyo a la gestión","Contratación directa","Prestación de servicios profesionales y de apoyo a la gestión, o para la ejecución de trabajos artísticos que sólo puedan encomendarse a determinadas personas naturales;","PRESTAR LOS SERVICIOS PROFESIONALES PARA APOYAR AL AREA GESTION DEL DESARROLLO ADMINISTRATIVO Y FINANCIERO EN LOS ASUNTOS RELACIONADOS CON EL DESARROLLO DE LA GESTION CONTRACTUAL PARA LA ADQUISICION DE RECURSOS Y SERVICIOS","Inversión","Un Nuevo Contrato Social y Ambiental para la Bogotá del Siglo XXI",57,{"$f":"IF(ISERROR(VLOOKUP(K15,Proposito_programa!$C$2:$E$59,2,FALSE)),\" \",VLOOKUP(K15,Proposito_programa!$C$2:$E$59,2,FALSE))","v":"Gestión pública local"},{"$f":"IF(ISERROR(VLOOKUP(K15,Proposito_programa!$C$2:$E$59,3,FALSE)),\" \",VLOOKUP(K15,Proposito_programa!$C$2:$E$59,3,FALSE))","v":"Propósito 5: Construir Bogotá - Región con gobierno abierto, transparente y ciudadanía consciente"},"133011605570000002143",null,46381344,"DIANA CAROLINA LIZARAZO MACIAS","Persona Natural",null,null,null,51780000,null,1,6041000,57821000,51262200,"2021-02-12","2021-02-16","2021-12-15",300,1,35,null,"ANA MILENA CRUZ BELTRAN","2021-11-02",null,null,null,"X",null,{"$f":"IF(ISERROR(AA15/Z15),\"-\",(AA15/Z15))","v":0.88656716417910453}]
[3,2021,"FDLBU-CD-001-2023","https://community.secop.gov.co/Public/Tendering/ContractNoticePhases/View?PPI=CO1.PPI.12065350&isFromPublicArea=True&isModal=False","Contratos de prestación de servicios profesionales y de apoyo a la gestión","Contratación directa","Prestación de servicios profesionales y de apoyo a la gestión, o para la ejecución de trabajos artísticos que sólo puedan encomendarse a determinadas personas naturales;","PRESTAR SERVICIOS PROFESIONALES ESPECIALIZADOS DE ASESORÍA EN PLANEACIÓN EN EL ÁREA DE GESTIÓN DEL DESARROLLO PARA LIDERAR LA FORMULACIÓN, SEGUIMIENTO Y EVALUACIÓN DE POLÍTICAS, PLANES, PROGRAMAS Y PROYECTOS DE DESARROLLO LOCAL, PARA EL CUMPLIMIENTO DE LAS METAS DEL PLAN DE DESARROLLO LOCAL DE BARRIOS UNIDOS","Inversión","Un Nuevo Contrato Social y Ambiental para la Bogotá del Siglo XXI",57,{"$f":"IF(ISERROR(VLOOKUP(K16,Proposito_programa!$C$2:$E$59,2,FALSE)),\" \",VLOOKUP(K16,Proposito_programa!$C$2:$E$59,2,FALSE))","v":"Gestión pública local"},{"$f":"IF(ISERROR(VLOOKUP(K16,Proposito_programa!$C$2:$E$59,3,FALSE)),\" \",VLOOKUP(K16,Proposito_programa!$C$2:$E$59,3,FALSE))","v":"Propósito 5: Construir Bogotá - Región con gobierno abierto, transparente y ciudadanía consciente"},"133011605570000002143",null,1130611078,"PABLO ERNESTO ROMERO VEGA","Persona Natural",null,null,null,78050000,null,1,5983833,84033833,73627167,"2021-02-18","2021-02-18","2021-12-17",300,1,23,null,null,null,null,null,null,"X",null,0.87616099815416015]
[4,2021,"FDLBU-CD-001-2024","https://community.secop.gov.co/Public/Tendering/ContractNoticePhases/View?PPI=CO1.PPI.12075161&isFromPublicArea=True&isModal=False","Contratos de prestación de servicios profesionales y de apoyo a la gestión","Contratación directa","Prestación de servicios profesionales y de apoyo a la gestión, o para la ejecución de trabajos artísticos que sólo puedan encomendarse a determinadas personas naturales;","PRESTAR SUS SERVICIOS DE APOYO PARA APOYAR LA GESTIÓN DOCUMENTAL DE LA ALCALDÍA LOCAL EN LA IMPLEMENTACIÓN DE LOS PROCESOS DE CLASIFICACIÓN, ORDENACIÓN, SELECCIÓN NATURAL, FOLIACIÓN, IDENTIFICACIÓN, LEVANTAMIENTO DE INVENTARIOS, ALMACENAMIENTO Y APLICACIÓN DE PROTOCOLOS DE ELIMINACIÓN Y TRANSFERENCIAS.","Inversión","Un Nuevo Contrato Social y Ambiental para la Bogotá del Siglo XXI",57,{"$f":"IF(ISERROR(VLOOKUP(K17,Proposito_programa!$C$2:$E$59,2,FALSE)),\" \",VLOOKUP(K17,Proposito_programa!$C$2:$E$59,2,FALSE))","v":"Gestión pública local"},{"$f":"IF(ISERROR(VLOOKUP(K17,Proposito_programa!$C$2:$E$59,3,FALSE)),\" \",VLOOKUP(K17,Proposito_programa!$C$2:$E$59,3,FALSE))","v":"Propósito 5: Construir Bogotá - Región con gobierno abierto, transparente y ciudadanía consciente"},"133011605570000002143",null,80041124,"JOHN ALEJANDRO HERMOSO FORERO ","Persona Natural",null,null,null,22710000,null,null,null,22710000,21347400,"2021-02-18","2021-02-19","2021-12-18",300,null,null,null,null,null,null,null,null,"X",null,0.94]
[5,2021,"FDLBU-CD-001-2025","https://community.secop.gov.co/Public/Tendering/ContractNoticePhases/View?PPI=CO1.PPI.12092557&isFromPublicArea=True&isModal=False","Contratos de prestación de servicios profesionales y de apoyo a la gestión","Contratación directa","Prestación de servicios profesionales y de apoyo a la gestión, o para la ejecución de trabajos artísticos que sólo puedan encomendarse a determinadas personas naturales;","PRESTAR SUS SERVICIOS PROFESIONALES PARA APOYAR JURÍDICAMENTE LA EJECUCIÓN DE LAS ACCIONES REQUERIDAS PARA EL TRÁMITE E IMPULSO PROCESAL DE LAS ACTUACIONES CONTRAVENCIONALES Y/O QUERELLAS QUE CURSEN EN LAS INSPECCIONES DE LA POLICÍA DE LA LOCALIDAD","Inversión","Un Nuevo Contrato Social y Ambiental para la Bogotá del Siglo XXI",57,{"$f":"IF(ISERROR(VLOOKUP(K18,Proposito_programa!$C$2:$E$59,2,FALSE)),\" \",VLOOKUP(K18,Proposito_programa!$C$2:$E$59,2,FALSE))","v":"Gestión pública local"},{"$f":"IF(ISERROR(VLOOKUP(K18,Proposito_programa!$C$2:$E$59,3,FALSE)),\" \",VLOOKUP(K18,Proposito_programa!$C$2:$E$59,3,FALSE))","v":"Propósito 5: Construir Bogotá - Región con gobierno abierto, transparente y ciudadanía consciente"},"133011605570000002143",null,1019034361,"INGRI JOHANA GALINDO CASTILLO","Persona Natural",null,null,null,33257000,null,1,14253000,47510000,44659400,"2021-02-19","2021-02-19","2021-09-18",210,1,90,null,null,null,null,null,null,"X",null,0.94]
[6,2021,"FDLBU-CD-001-2026","https://community.secop.gov.co/Public/Tendering/ContractNoticePhases/View?PPI=CO1.PPI.12123685&isFromPublicArea=True&isModal=False","Contratos de prestación de servicios profesionales y de apoyo a la gestión","Contratación directa","Prestación de servicios profesionales y de apoyo a la gestión, o para la ejecución de trabajos artísticos que sólo puedan encomendarse a determinadas personas naturales;","PRESTAR SUS SERVICIOS DE APOYO PARA APOYAR LA GESTIÓN DOCUMENTAL DE LA ALCALDÍA LOCAL EN LA IMPLEMENTACIÓN DE LOS PROCESOS DE CLASIFICACIÓN, ORDENACIÓN, SELECCIÓN NATURAL, FOLIACIÓN, IDENTIFICACIÓN, LEVANTAMIENTO DE INVENTARIOS, ALMACENAMIENTO Y APLICACIÓN DE PROTOCOLOS DE ELIMINACIÓN Y TRANSFERENCIAS.","Inversión","Un Nuevo Contrato Social y Ambiental para la Bogotá del Siglo XXI",57,{"$f":"IF(ISERROR(VLOOKUP(K19,Proposito_programa!$C$2:$E$59,2,FALSE)),\" \",VLOOKUP(K19,Proposito_programa!$C$2:$E$59,2,FALSE))","v":"Gestión pública local"},{"$f":"IF(ISERROR(VLOOKUP(K19,Proposito_programa!$C$2:$E$59,3,FALSE)),\" \",VLOOKUP(K19,Proposito_programa!$C$2:$E$59,3,FALSE))","v":"Propósito 5: Construir Bogotá - Región con gobierno abierto, transparente y ciudadanía consciente"},"133011605570000002143",null,41778154,"LUZ MYRIAM PEÑA SANCHEZ","Persona Natural",null,null,null,22710000,null,1,2195300,24905300,21120300,"2021-02-22","2021-02-22","2021-12-21",300,1,29,null,null,null,null,null,null,"X",null,0.84802431610942253]
[7,2021,"FDLBU-CD-001-2027","https://community.secop.gov.co/Public/Tendering/ContractNoticePhases/View?PPI=CO1.PPI.12107287&isFromPublicArea=True&isModal=False","Contratos de prestación de servicios profesionales y de apoyo a la gestión","Contratación directa","Prestación de servicios profesionales y de apoyo a la gestión, o para la ejecución de trabajos artísticos que sólo puedan encomendarse a determinadas personas naturales;","PRESTAR LOS SERVICIOS PROFESIONALES PARA APOYAR AL AREA GESTION DEL DESARROLLO ADMINISTRATIVO Y FINANCIERO EN LOS ASUNTOS RELACIONADOS CON EL DESARROLLO DE LA GESTION CONTRACTUAL PARA LA ADQUISICION DE RECURSOS Y SERVICIOS","Inversión","Un Nuevo Contrato Social y Ambiental para la Bogotá del Siglo XXI",57,{"$f":"IF(ISERROR(VLOOKUP(K20,Proposito_programa!$C$2:$E$59,2,FALSE)),\" \",VLOOKUP(K20,Proposito_programa!$C$2:$E$59,2,FALSE))","v":"Gestión pública local"},{"$f":"IF(ISERROR(VLOOKUP(K20,Proposito_programa!$C$2:$E$59,3,FALSE)),\" \",VLOOKUP(K20,Proposito_programa!$C$2:$E$59,3,FALSE))","v":"Propósito 5: Construir Bogotá - Región con gobierno abierto, transparente y ciudadanía consciente"},"133011605570000002143",null,1140849472,"BEATRIZ ALICIA CASTRILLON SUMOZA","Persona Natural",null,null,null,51780000,null,1,4832800,56612800,47982800,"2021-02-22","2021-02-23","2021-12-22",300,1,28,null,null,null,null,null,null,"X",null,0.84756097560975607]
[8,2021,"FDLBU-CD-001-2028","https://community.secop.gov.co/Public/Tendering/ContractNoticePhases/View?PPI=CO1.PPI.12088032&isFromPublicArea=True&isModal=False","Contratos de prestación de servicios profesionales y de apoyo a la gestión","Contratación directa","Prestación de servicios profesionales y de apoyo a la gestión, o para la ejecución de trabajos artísticos que sólo puedan encomendarse a determinadas personas naturales;","PRESTAR SUS SERVICIOS PROFESIONALES PARA APOYAR JURÍDICAMENTE LA EJECUCIÓN DE LAS ACCIONES REQUERIDAS PARA EL TRÁMITE E IMPULSO PROCESAL DE LAS ACTUACIONES CONTRAVENCIONALES Y/O QUERELLAS QUE CURSEN EN LAS INSPECCIONES DE LA POLICÍA DE LA LOCALIDAD","Inversión","Un Nuevo Contrato Social y Ambiental para la Bogotá del Siglo XXI",57,{"$f":"IF(ISERROR(VLOOKUP(K21,Proposito_programa!$C$2:$E$59,2,FALSE)),\" \",VLOOKUP(K21,Proposito_programa!$C$2:$E$59,2,FALSE))","v":"Gestión pública local"},{"$f":"IF(ISERROR(VLOOKUP(K21,Proposito_programa!$C$2:$E$59,3,FALSE)),\" \",VLOOKUP(K21,Proposito_programa!$C$2:$E$59,3,FALSE))","v":"Propósito 5: Construir Bogotá - Región con gobierno abierto, transparente y ciudadanía consciente"},"133011605570000002143",null,37747954,"ENERIET DAZA ARIZA","Persona Natural",null,null,null,33257000,null,1,14253000,47510000,43867567,"2021-02-23","2021-02-24","2021-09-23",210,1,90,null,null,null,null,null,null,"X",null,0.92333334034940018]
[9,2021,"FDLBU-CD-001-2029","https://community.secop.gov.co/Public/Tendering/ContractNoticePhases/View?PPI=CO1.PPI.12098712&isFromPublicArea=True&isModal=False","Contratos de prestación de servicios profesionales y de apoyo a la gestión","Contratación directa","Prestación de servicios profesionales y de apoyo a la gestión, o para la ejecución de trabajos artísticos que sólo puedan encomendarse a determinadas personas naturales;","PRESTAR SUS SERVICIOS PROFESIONALES PARA APOYAR JURÍDICAMENTE LA EJECUCIÓN DE LAS ACCIONES REQUERIDAS PARA EL TRÁMITE E IMPULSO PROCESAL DE LAS ACTUACIONES CONTRAVENCIONALES Y/O QUERELLAS QUE CURSEN EN LAS INSPECCIONES DE LA POLICÍA DE LA LOCALIDAD","Inversión","Un Nuevo Contrato Social y Ambiental para la Bogotá del Siglo XXI",57,{"$f":"IF(ISERROR(VLOOKUP(K22,Proposito_programa!$C$2:$E$59,2,FALSE)),\" \",VLOOKUP(K22,Proposito_programa!$C$2:$E$59,2,FALSE))","v":"Gestión pública local"},{"$f":"IF(ISERROR(VLOOKUP(K22,Proposito_programa!$C$2:$E$59,3,FALSE)),\" \",VLOOKUP(K22,Proposito_programa!$C$2:$E$59,3,FALSE))","v":"Propósito 5: Construir Bogotá - Región con gobierno abierto, transparente y ciudadanía consciente"},"133011605570000002143",null,79276485,"ALEJANDRO CARRILLO RINCON","Persona Natural",null,null,null,33257000,null,1,13461167,46718167,43867567,"2021-02-23","2021-02-24","2021-09-23",210,1,85,null,null,null,null,null,null,"X",null,0.93898305128281256]
[10,2021,"FDLBU-CD-001-2030","https://community.secop.gov.co/Public/Tendering/ContractNoticePhases/View?PPI=CO1.PPI.12156478&isFromPublicArea=True&isModal=False","Contratos de prestación de servicios profesionales y de apoyo a la gestión","Contratación directa","Prestación de servicios profesionales y de apoyo a la gestión, o para la ejecución de trabajos artísticos que sólo puedan encomendarse a determinadas personas naturales;","PRESTAR SUS SERVICIOS PROFESIONALES PARA APOYAR JURÍDICAMENTE LA EJECUCIÓN DE LAS ACCIONES REQUERIDAS PARA EL TRÁMITE E IMPULSO PROCESAL DE LAS ACTUACIONES CONTRAVENCIONALES Y/O QUERELLAS QUE CURSEN EN LAS INSPECCIONES DE LA POLICÍA DE LA LOCALIDAD","Inversión","Un Nuevo Contrato Social y Ambiental para la Bogotá del Siglo XXI",57,{"$f":"IF(ISERROR(VLOOKUP(K23,Proposito_programa!$C$2:$E$59,2,FALSE)),\" \",VLOOKUP(K23,Proposito_programa!$C$2:$E$59,2,FALSE))","v":"Gestión pública local"},{"$f":"IF(ISERROR(VLOOKUP(K23,Proposito_programa!$C$2:$E$59,3,FALSE)),\" \",VLOOKUP(K23,Proposito_programa!$C$2:$E$59,3,FALSE))","v":"Propósito 5: Construir Bogotá - Región con gobierno abierto, transparente y ciudadanía consciente"},"133011605570000002143",null,1015420645,"JUAN CARLOS PANTANO SEGURA","Persona Natural",null,null,null,33257000,null,null,null,33257000,33257000,"2021-02-25","2021-03-01","2021-09-30",210,null,null,null,null,null,null,null,null,"X",null,1]
[11,2021,"FDLBU-CD-001-2031","https://community.secop.gov.co/Public/Tendering/ContractNoticePhases/View?PPI=CO1.PPI.12107103&isFromPublicArea=True&isModal=False","Contratos de prestación de servicios profesionales y de apoyo a la gestión","Contratación directa","Prestación de servicios profesionales y de apoyo a la gestión, o para la ejecución de trabajos artísticos que sólo puedan encomendarse a determinadas personas naturales;","PRESTAR LOS SERVICIOS PROFESIONALES ESPECIALIZADOS PARA APOYAR EL ÁREA DE GESTIÓN DEL DESARROLLO ADMINISTRATIVO Y FINANCIERO, EN LOS ASUNTOS RELACIONADOS CON EL DESARROLLO DE LA\nGESTIÓN CONTRACTUAL PARA LA ADQUISICIÓN DE RECURSOS Y SERVICIOS, ASÍ COMO DE LOS OTROS ASUNTOS JURÍDICOS REQUERIDOS EN EL DESARROLLO DE LA GESTIÓN DEL FONDO DE DESARROLLO LOCAL, DESCRITOS POR LA SECRETARÍA DISTRITAL Y DE GOBIERNO Y LAS NORMAS APLICABLES SOBRE LA MATERIA","Inversión","Un Nuevo Contrato Social y Ambiental para la Bogotá del Siglo XXI",57,{"$f":"IF(ISERROR(VLOOKUP(K24,Proposito_programa!$C$2:$E$59,2,FALSE)),\" \",VLOOKUP(K24,Proposito_programa!$C$2:$E$59,2,FALSE))","v":"Gestión pública local"},{"$f":"IF(ISERROR(VLOOKUP(K24,Proposito_programa!$C$2:$E$59,3,FALSE)),\" \",VLOOKUP(K24,Proposito_programa!$C$2:$E$59,3,FALSE))","v":"Propósito 5: Construir Bogotá - Región con gobierno abierto, transparente y ciudadanía consciente"},"133011605570000002143",null,1030582824,"JUAN FELIPE GALINDO NIÑO","Persona Natural",null,null,null,74000000,null,1,4933333,78933333,66106667,"2021-03-01","2021-03-01","2021-12-31",300,1,20,null,"ADRIANA LUCIA ROA VANEGAS","2021-09-03",null,null,null,"X",null,0.83750000775971289]
[12,2021,"FDLBU-CD-001-2032","https://community.secop.gov.co/Public/Tendering/ContractNoticePhases/View?PPI=CO1.PPI.12066200&isFromPublicArea=True&isModal=False","Contratos de prestación de servicios profesionales y de apoyo a la gestión","Contratación directa","Prestación de servicios profesionales y de apoyo a la gestión, o para la ejecución de trabajos artísticos que sólo puedan encomendarse a determinadas personas naturales;","PRESTAR SUS SERVICIOS PROFESIONALES PARA APOYAR TÉCNICAMENTE LAS DISTINTAS ETAPAS DE LOS PROCESOS DE COMPETENCIA DE LAS INSPECCIONES DE POLICÍA DE LA LOCALIDAD, SEGÚN REPARTO","Inversión","Un Nuevo Contrato Social y Ambiental para la Bogotá del Siglo XXI",57,{"$f":"IF(ISERROR(VLOOKUP(K25,Proposito_programa!$C$2:$E$59,2,FALSE)),\" \",VLOOKUP(K25,Proposito_programa!$C$2:$E$59,2,FALSE))","v":"Gestión pública local"},{"$f":"IF(ISERROR(VLOOKUP(K25,Proposito_programa!$C$2:$E$59,3,FALSE)),\" \",VLOOKUP(K25,Proposito_programa!$C$2:$E$59,3,FALSE))","v":"Propósito 5: Construir Bogotá - Región con gobierno abierto, transparente y ciudadanía consciente"},"133011605570000002143",null,1013598280,"TATIANA GOMEZ NISPERUZA","Persona Natural",null,null,null,34972000,null,null,null,34972000,34972000,"2021-02-26","2021-03-02","2021-10-01",210,null,null,null,null,null,null,null,null,"X",null,1]
[13,2021,"FDLBU-CD-001-2033","https://community.secop.gov.co/Public/Tendering/ContractNoticePhases/View?PPI=CO1.PPI.12186771&isFromPublicArea=True&isModal=False \n","Contratos de prestación de servicios profesionales y de apoyo a la gestión","Contratación directa","Prestación de servicios profesionales y de apoyo a la gestión, o para la ejecución de trabajos artísticos que sólo puedan encomendarse a determinadas personas naturales;","PRESTAR SERVICIOS DE APOYO ADMINISTRATIVA Y ASISTENCIALMENTE A LAS INSPECCIONES DE POLICÍA DE LA LOCALIDAD","Inversión","Un Nuevo Contrato Social y Ambiental para la Bogotá del Siglo XXI",57,{"$f":"IF(ISERROR(VLOOKUP(K26,Proposito_programa!$C$2:$E$59,2,FALSE)),\" \",VLOOKUP(K26,Proposito_programa!$C$2:$E$59,2,FALSE))","v":"Gestión pública local"},{"$f":"IF(ISERROR(VLOOKUP(K26,Proposito_programa!$C$2:$E$59,3,FALSE)),\" \",VLOOKUP(K26,Proposito_programa!$C$2:$E$59,3,FALSE))","v":"Propósito 5: Construir Bogotá - Región con gobierno abierto, transparente y ciudadanía consciente"},"133011605570000002143",null,52350012,"LUISA ALEJANDRA PEREZ PALACIO","Persona Natural",null,null,null,15897000,null,null,null,15897000,15897000,"2021-03-05","2021-03-05","2021-10-04",210,null,null,null,null,null,null,null,null,"X",null,1]
[14,2021,"FDLBU-CD-001-2034","https://community.secop.gov.co/Public/Tendering/ContractNoticePhases/View?PPI=CO1.PPI.12199555&isFromPublicArea=True&isModal=False","Contratos de prestación de servicios profesionales y de apoyo a la gestión","Contratación directa","Prestación de servicios profesionales y de apoyo a la gestión, o para la ejecución de trabajos artísticos que sólo puedan encomendarse a determinadas personas naturales;","PRESTAR LOS SERVICIOS PROFESIONALES AL FONDO DE DESARROLLO LOCAL/ALCALDIA LOCAL DE BARRIOS UNIDOS PARA LA ASESORÍA, REVISIÓN, SEGUIMIENTO Y CUMPLIMIENTO DE LAS NORMAS QUE REGULAN LOS CONTRATOS SUSCRITOS POR ESTE, EN EL DESARROLLO DE LAS DIFERENTES ETAPAS PRECONTRACTUAL, CONTRACTUAL Y POSCONTRACTUAL","Inversión","Un Nuevo Contrato Social y Ambiental para la Bogotá del Siglo XXI",57,{"$f":"IF(ISERROR(VLOOKUP(K27,Proposito_programa!$C$2:$E$59,2,FALSE)),\" \",VLOOKUP(K27,Proposito_programa!$C$2:$E$59,2,FALSE))","v":"Gestión pública local"},{"$f":"IF(ISERROR(VLOOKUP(K27,Proposito_programa!$C$2:$E$59,3,FALSE)),\" \",VLOOKUP(K27,Proposito_programa!$C$2:$E$59,3,FALSE))","v":"Propósito 5: Construir Bogotá - Región con gobierno abierto, transparente y ciudadanía consciente"},"133011605570000002143",null,52517812,"ADRIANA MONTEALEGRE RIAÑO","Persona Natural",null,null,null,81670000,-51724333,null,null,29945667,29945667,"2021-03-01","2021-03-01","2021-12-31",300,null,null,null,null,null,null,null,null,"X",null,1]
[15,2021,"FDLBU-CD-001-2035","https://community.secop.gov.co/Public/Tendering/ContractNoticePhases/View?PPI=CO1.PPI.12220908&isFromPublicArea=True&isModal=False","Contratos de prestación de servicios profesionales y de apoyo a la gestión","Contratación directa","Prestación de servicios profesionales y de apoyo a la gestión, o para la ejecución de trabajos artísticos que sólo puedan encomendarse a determinadas personas naturales;","PRESTAR LOS SERVICIOS PROFESIONALES PARA APOYAR AL AREA GESTION DEL DESARROLLO ADMINISTRATIVO Y FINANCIERO EN LOS ASUNTOS RELACIONADOS CON EL DESARROLLO DE LA GESTION CONTRACTUAL PARA LA ADQUISICION DE RECURSOS Y SERVICIOS","Inversión","Un Nuevo Contrato Social y Ambiental para la Bogotá del Siglo XXI",57,{"$f":"IF(ISERROR(VLOOKUP(K28,Proposito_programa!$C$2:$E$59,2,FALSE)),\" \",VLOOKUP(K28,Proposito_programa!$C$2:$E$59,2,FALSE))","v":"Gestión pública local"},{"$f":"IF(ISERROR(VLOOKUP(K28,Proposito_programa!$C$2:$E$59,3,FALSE)),\" \",VLOOKUP(K28,Proposito_programa!$C$2:$E$59,3,FALSE))","v":"Propósito 5: Construir Bogotá - Región con gobierno abierto, transparente y ciudadanía consciente"},"133011605570000002143",null,48600807,"JANETTE ALEXANDRA LUNA VELA","Persona Natural",null,null,null,51780000,null,1,3452000,55232000,46602000,"2021-03-01","2021-03-01","2021-12-31",300,1,20,null,null,null,null,null,null,"X",null,0.84375]
[16,2021,"FDLBU-CD-001-2036","https://community.secop.gov.co/Public/Tendering/ContractNoticePhases/View?PPI=CO1.PPI.12156494&isFromPublicArea=True&isModal=False\n","Contratos de prestación de servicios profesionales y de apoyo a la gestión","Contratación directa","Prestación de servicios profesionales y de apoyo a la gestión, o para la ejecución de trabajos artísticos que sólo puedan encomendarse a determinadas personas naturales;","PRESTAR SUS SERVICIOS PROFESIONALES PARA APOYAR JURÍDICAMENTE LA EJECUCIÓN DE LAS ACCIONES REQUERIDAS PARA EL TRÁMITE E IMPULSO PROCESAL DE LAS ACTUACIONES CONTRAVENCIONALES Y/O QUERELLAS QUE CURSEN EN LAS INSPECCIONES DE LA POLICÍA DE LA LOCALIDAD","Inversión","Un Nuevo Contrato Social y Ambiental para la Bogotá del Siglo XXI",57,{"$f":"IF(ISERROR(VLOOKUP(K29,Proposito_programa!$C$2:$E$59,2,FALSE)),\" \",VLOOKUP(K29,Proposito_programa!$C$2:$E$59,2,FALSE))","v":"Gestión pública local"},{"$f":"IF(ISERROR(VLOOKUP(K29,Proposito_programa!$C$2:$E$59,3,FALSE)),\" \",VLOOKUP(K29,Proposito_programa!$C$2:$E$59,3,FALSE))","v":"Propósito 5: Construir Bogotá - Región con gobierno abierto, transparente y ciudadanía consciente"},"133011605570000002143",null,80900825,"EDGAR ANDRES GIRALDO BRICEÑO","Persona Natural",null,null,null,33257000,null,null,null,33257000,33257000,"2021-03-08","2021-03-08","2021-10-07",210,null,null,null,null,null,null,null,null,"X",null,1]
[17,2021,"FDLBU-CD-001-2037","https://community.secop.gov.co/Public/Tendering/ContractNoticePhases/View?PPI=CO1.PPI.12091808&isFromPublicArea=True&isModal=False","Contratos de prestación de servicios profesionales y de apoyo a la gestión","Contratación directa","Prestación de servicios profesionales y de apoyo a la gestión, o para la ejecución de trabajos artísticos que sólo puedan encomendarse a determinadas personas naturales;","PRESTAR SUS SERVICIOS PROFESIONALES PARA LA IMPLENTACIÓN DE LAS ACCIONES Y LINEAMIENTOS TÉCNICOS SURTIDOS DEL PROGRAMA\nDE GESTIÓN DOCUEMNTAL Y DEMÁS INSTRUMENTOS TÉCNICOS ARCHIVÍSTICOS.","Inversión","Un Nuevo Contrato Social y Ambiental para la Bogotá del Siglo XXI",57,{"$f":"IF(ISERROR(VLOOKUP(K30,Proposito_programa!$C$2:$E$59,2,FALSE)),\" \",VLOOKUP(K30,Proposito_programa!$C$2:$E$59,2,FALSE))","v":"Gestión pública local"},{"$f":"IF(ISERROR(VLOOKUP(K30,Proposito_programa!$C$2:$E$59,3,FALSE)),\" \",VLOOKUP(K30,Proposito_programa!$C$2:$E$59,3,FALSE))","v":"Propósito 5: Construir Bogotá - Región con gobierno abierto, transparente y ciudadanía consciente"},"133011605570000002143",null,52897368,"MONICA MAIÍA NAVARRETE CRUZ ","Persona Natural",null,null,null,54050000,null,null,null,54050000,48284667,"2021-03-02","2021-03-03","2021-12-31",300,1,2,null,null,null,null,null,null,"X",null,0.89333333950046256]
[18,2021,"FDLBU-CD-001-2038","https://community.secop.gov.co/Public/Tendering/ContractNoticePhases/View?PPI=CO1.PPI.12092946&isFromPublicArea=True&isModal=False","Contratos de prestación de servicios profesionales y de apoyo a la gestión","Contratación directa","Prestación de servicios profesionales y de apoyo a la gestión, o para la ejecución de trabajos artísticos que sólo puedan encomendarse a determinadas personas naturales;","PRESTAR SERVICIOS PROFESIONALES ESPECIALIZADOS DE ASESORÍA EN PLANEACIÓN EN EL ÁREA DE GESTIÓN DEL DESARROLLO PARA LIDERAR LA FORMULACIÓN, SEGUIMIENTO Y EVALUACIÓN DE POLÍTICAS, PLANES, PROGRAMAS Y PROYECTOS DE DESARROLLO LOCAL, PARA EL CUMPLIMIENTO DE LAS METAS DEL PLAN DE DESARROLLO LOCAL DE BARRIOS UNIDOS","Inversión","Un Nuevo Contrato Social y Ambiental para la Bogotá del Siglo XXI",57,{"$f":"IF(ISERROR(VLOOKUP(K31,Proposito_programa!$C$2:$E$59,2,FALSE)),\" \",VLOOKUP(K31,Proposito_programa!$C$2:$E$59,2,FALSE))","v":"Gestión pública local"},{"$f":"IF(ISERROR(VLOOKUP(K31,Proposito_programa!$C$2:$E$59,3,FALSE)),\" \",VLOOKUP(K31,Proposito_programa!$C$2:$E$59,3,FALSE))","v":"Propósito 5: Construir Bogotá - Región con gobierno abierto, transparente y ciudadanía consciente"},"133011605570000002143",null,1032474926,"MATEO ANDRES SANCHEZ ORTEGA ","Persona Natural",null,null,null,78050000,null,1,1821167,79871167,69464500,"2021-03-02","2021-03-04","2021-12-31",300,1,10,null,null,null,null,null,null,"X",null,0.86970683676125582]
[19,2021,"FDLBU-CD-001-2039","https://community.secop.gov.co/Public/Tendering/ContractNoticePhases/View?PPI=CO1.PPI.12187083&isFromPublicArea=True&isModal=False","Contratos de prestación de servicios profesionales y de apoyo a la gestión","Contratación directa","Prestación de servicios profesionales y de apoyo a la gestión, o para la ejecución de trabajos artísticos que sólo puedan encomendarse a determinadas personas naturales;","PRESTAR LOS SERVICIOS PROFESIONALES MEDIANTE LOS CUALES SE CONSTRIBUYA A LA REVISIÓN, SEGUIMIENTO Y PROYECCIÓN DE RESPUESTA DE LOS INFORMES SOLICITADOS POR LOS ENTES DE CONTROL, ENTIDADES Y CIUDADANÍA EN GENERAL RELATIVOS A LA GESTIÓN DE LA ALCALDIA LOCAL DE BARRIOS UNIDOS DE ACUERDO A SUS COMPETENCIAS MISIONALES","Inversión","Un Nuevo Contrato Social y Ambiental para la Bogotá del Siglo XXI",57,{"$f":"IF(ISERROR(VLOOKUP(K32,Proposito_programa!$C$2:$E$59,2,FALSE)),\" \",VLOOKUP(K32,Proposito_programa!$C$2:$E$59,2,FALSE))","v":"Gestión pública local"},{"$f":"IF(ISERROR(VLOOKUP(K32,Proposito_programa!$C$2:$E$59,3,FALSE)),\" \",VLOOKUP(K32,Proposito_programa!$C$2:$E$59,3,FALSE))","v":"Propósito 5: Construir Bogotá - Región con gobierno abierto, transparente y ciudadanía consciente"},"133011605570000002143",null,1022379389,"LINA MARIA ROJAS GOMEZ","Persona Natural",null,null,null,45420000,null,null,null,45420000,40423800,"2021-03-02","2021-03-04","2021-12-31",300,1,3,null,null,null,null,null,null,"X",null,0.89]
[20,2021,"FDLBU-CD-001-2040","https://community.secop.gov.co/Public/Tendering/ContractNoticePhases/View?PPI=CO1.PPI.12204795&isFromPublicArea=True&isModal=False\n","Contratos de prestación de servicios profesionales y de apoyo a la gestión","Contratación directa","Prestación de servicios profesionales y de apoyo a la gestión, o para la ejecución de trabajos artísticos que sólo puedan encomendarse a determinadas personas naturales;","PRESTAR SERVICIOS PROFESIONALES EN EL APOYO TÉCNICO A LOS RESPONSABLES E INTEGRANTES DE LOS PROCESOS EN LA IMPLEMENTACIÓN DE HERRAMIENTAS DE GESTIÓN, SIGUIENDO LOS LINEAMIENTOS METODOLÓGICOS ESTABLEDICOS POR LA OFICINA ASESORA DE PLANEACIÓN DE LA SECRETARIA DISTRITAL DE GOBIERNO","Inversión","Un Nuevo Contrato Social y Ambiental para la Bogotá del Siglo XXI",57,{"$f":"IF(ISERROR(VLOOKUP(K33,Proposito_programa!$C$2:$E$59,2,FALSE)),\" \",VLOOKUP(K33,Proposito_programa!$C$2:$E$59,2,FALSE))","v":"Gestión pública local"},{"$f":"IF(ISERROR(VLOOKUP(K33,Proposito_programa!$C$2:$E$59,3,FALSE)),\" \",VLOOKUP(K33,Proposito_programa!$C$2:$E$59,3,FALSE))","v":"Propósito 5: Construir Bogotá - Región con gobierno abierto, transparente y ciudadanía consciente"},"133011605570000002143",null,52422505,"NAYIBE RODRIGUEZ MARTINEZ ","Persona Natural",null,null,null,61770000,null,null,null,61770000,55181200,"2021-03-01","2021-03-03","2021-12-31",300,1,2,null,null,null,null,null,null,"X",null,0.89333333333333331]
[21,2021,"FDLBU-CD-001-2041","https://community.secop.gov.co/Public/Tendering/ContractNoticePhases/View?PPI=CO1.PPI.12206224&isFromPublicArea=True&isModal=False\n","Contratos de prestación de servicios profesionales y de apoyo a la gestión","Contratación directa","Prestación de servicios profesionales y de apoyo a la gestión, o para la ejecución de trabajos artísticos que sólo puedan encomendarse a determinadas personas naturales;","PRESTAR SERVICIOS DE APOYO PROFESIONAL, CON CONOCIMIENTO EN NORMAS INTERNACIONALES DE INFORMACIÓN FINANCIERA, PARA ADELANTAR LAS ACTIVIDADES QUE DEN CUMPLIMIENTO A PROCEDIMIENTOS, ADMINISTRATIVOS Y CONTABLES APLICABLES EN EL MARCO NORMATIVO CONTABLE","Inversión","Un Nuevo Contrato Social y Ambiental para la Bogotá del Siglo XXI",57,{"$f":"IF(ISERROR(VLOOKUP(K34,Proposito_programa!$C$2:$E$59,2,FALSE)),\" \",VLOOKUP(K34,Proposito_programa!$C$2:$E$59,2,FALSE))","v":"Gestión pública local"},{"$f":"IF(ISERROR(VLOOKUP(K34,Proposito_programa!$C$2:$E$59,3,FALSE)),\" \",VLOOKUP(K34,Proposito_programa!$C$2:$E$59,3,FALSE))","v":"Propósito 5: Construir Bogotá - Región con gobierno abierto, transparente y ciudadanía consciente"},"133011605570000002143",null,1010190370,"MAROLYM YISELH BERNAL TORO","Persona Natural",null,null,null,47500000,null,null,null,47500000,42275000,"2021-03-01","2021-03-04","2021-12-31",300,1,3,null,null,null,null,null,null,"X",null,0.89]
[22,2021,"FDLBU-CD-001-2042","https://community.secop.gov.co/Public/Tendering/ContractNoticePhases/View?PPI=CO1.PPI.12097715&isFromPublicArea=True&isModal=False","Contratos de prestación de servicios profesionales y de apoyo a la gestión","Contratación directa","Prestación de servicios profesionales y de apoyo a la gestión, o para la ejecución de trabajos artísticos que sólo puedan encomendarse a determinadas personas naturales;","PRESTAR LOS SERVICIOS PROFESIONALES PARA APOYAR AL ÁREA DE GESTIÓN DEL DESARROLLO ADMINISTRATIVO Y FINANCIERO, EN LOS ASUNTOS RELACIONADOS CON EL DESARROLLO DE LA GESTIÓN CONTRACTUAL PARA LA ADQUISICIÓN DE RECURSOS Y SERVICIOS","Inversión","Un Nuevo Contrato Social y Ambiental para la Bogotá del Siglo XXI",57,{"$f":"IF(ISERROR(VLOOKUP(K35,Proposito_programa!$C$2:$E$59,2,FALSE)),\" \",VLOOKUP(K35,Proposito_programa!$C$2:$E$59,2,FALSE))","v":"Gestión pública local"},{"$f":"IF(ISERROR(VLOOKUP(K35,Proposito_programa!$C$2:$E$59,3,FALSE)),\" \",VLOOKUP(K35,Proposito_programa!$C$2:$E$59,3,FALSE))","v":"Propósito 5: Construir Bogotá - Región con gobierno abierto, transparente y ciudadanía consciente"},"133011605570000002143",null,49729512,"MERY MARIA ROMERO MESTRE ","Persona Natural",null,null,null,81670000,null,1,1905633,83575633,72958533,"2021-03-01","2021-03-03","2021-12-31",300,1,9,null,null,null,null,null,null,"X",null,0.8729641688744374]
[23,2021,"FDLBU-CD-001-2043","https://community.secop.gov.co/Public/Tendering/ContractNoticePhases/View?PPI=CO1.PPI.12255216&isFromPublicArea=True&isModal=False","Contratos de prestación de servicios profesionales y de apoyo a la gestión","Contratación directa","Prestación de servicios profesionales y de apoyo a la gestión, o para la ejecución de trabajos artísticos que sólo puedan encomendarse a determinadas personas naturales;","PRESTAR SUS SERVICIOS PROFESIONALES PARA APOYAR JURÍDICAMENTE LA EJECUCIÓN DE LAS ACCIONES REQUERIDAS PARA LA DEPURACIÓN DE LAS ACTUACIONES ADMINISTRATIVAS QUE CURSAN EN LA ALCALDÍA LOCAL","Inversión","Un Nuevo Contrato Social y Ambiental para la Bogotá del Siglo XXI",57,{"$f":"IF(ISERROR(VLOOKUP(K36,Proposito_programa!$C$2:$E$59,2,FALSE)),\" \",VLOOKUP(K36,Proposito_programa!$C$2:$E$59,2,FALSE))","v":"Gestión pública local"},{"$f":"IF(ISERROR(VLOOKUP(K36,Proposito_programa!$C$2:$E$59,3,FALSE)),\" \",VLOOKUP(K36,Proposito_programa!$C$2:$E$59,3,FALSE))","v":"Propósito 5: Construir Bogotá - Región con gobierno abierto, transparente y ciudadanía consciente"},"133011605570000002143",null,53159645,"DIANA PAOLA GONZALEZ MURILLO ","Persona Natural",null,null,null,38008000,null,null,null,38008000,37691267,"2021-03-01","2021-03-03","2021-11-02",240,null,null,null,null,null,null,null,null,"X",null,0.99166667543675013]
[24,2021,"FDLBU-CD-001-2044","https://community.secop.gov.co/Public/Tendering/ContractNoticePhases/View?PPI=CO1.PPI.12251510&isFromPublicArea=True&isModal=False","Contratos de prestación de servicios profesionales y de apoyo a la gestión","Contratación directa","Prestación de servicios profesionales y de apoyo a la gestión, o para la ejecución de trabajos artísticos que sólo puedan encomendarse a determinadas personas naturales;","PRESTAR SERVICIOS DE APOYO AL ÁREA DE GESTIÓN DEL DESARROLLO ADMINISTRATIVA Y FINANCIERA EN LAS LABORES QUE REQUIERA LA JUNTA ADMINISTRADORA LOCAL DE BARRIOS UNIDOS COMO GRABACIONES DE SESIONES, TRANSCRIPCIÓN DE ACTAS Y ATENCIÓN A LA CIUDADANÍA","Inversión","Un Nuevo Contrato Social y Ambiental para la Bogotá del Siglo XXI",57,{"$f":"IF(ISERROR(VLOOKUP(K37,Proposito_programa!$C$2:$E$59,2,FALSE)),\" \",VLOOKUP(K37,Proposito_programa!$C$2:$E$59,2,FALSE))","v":"Gestión pública local"},{"$f":"IF(ISERROR(VLOOKUP(K37,Proposito_programa!$C$2:$E$59,3,FALSE)),\" \",VLOOKUP(K37,Proposito_programa!$C$2:$E$59,3,FALSE))","v":"Propósito 5: Construir Bogotá - Región con gobierno abierto, transparente y ciudadanía consciente"},"133011605570000002143",null,1026250874,"LINA MARIA PAEZ BOGOYA ","Persona Natural",null,null,null,22710000,null,1,1135500,23845500,20439000,"2021-03-01","2021-03-01","2021-12-31",300,1,15,null,null,null,null,null,null,"X",null,0.8571428571428571]
[25,2021,"FDLBU-CD-001-2045","https://community.secop.gov.co/Public/Tendering/ContractNoticePhases/View?PPI=CO1.PPI.12187041&isFromPublicArea=True&isModal=False\n","Contratos de prestación de servicios profesionales y de apoyo a la gestión","Contratación directa","Prestación de servicios profesionales y de apoyo a la gestión, o para la ejecución de trabajos artísticos que sólo puedan encomendarse a determinadas personas naturales;","PRESTAR LOS SERVICIOS PROFESIONALES PARA APOYAR AL ÁREA GESTIÓN DEL DESARROLLO ADMINISTRATIVO Y FINANCIERO EN LOS ASUNTOS RELATIVOS A LA PLANEACIÓN LOCAL, ASÍ COMO EL APOYO A LA SUPERVISIÓN DE CONTRATOS SUSCRITOS POR LA ALCALDÍA LOCAL DE BARRIOS UNIDOS","Inversión","Un Nuevo Contrato Social y Ambiental para la Bogotá del Siglo XXI",57,{"$f":"IF(ISERROR(VLOOKUP(K38,Proposito_programa!$C$2:$E$59,2,FALSE)),\" \",VLOOKUP(K38,Proposito_programa!$C$2:$E$59,2,FALSE))","v":"Gestión pública local"},{"$f":"IF(ISERROR(VLOOKUP(K38,Proposito_programa!$C$2:$E$59,3,FALSE)),\" \",VLOOKUP(K38,Proposito_programa!$C$2:$E$59,3,FALSE))","v":"Propósito 5: Construir Bogotá - Región con gobierno abierto, transparente y ciudadanía consciente"},"133011605570000002143",null,1030548937,"SINDY YINETH ZAPATA MURILLO","Persona Natural",null,null,null,58140000,null,1,1356600,59496600,51744600,"2021-03-02","2021-03-04","2021-12-31",300,1,10,null,null,null,null,null,null,"X",null,0.86970684039087953]
[26,2021,"FDLBU-CD-001-2046","https://community.secop.gov.co/Public/Tendering/ContractNoticePhases/View?PPI=CO1.PPI.12262941&isFromPublicArea=True&isModal=False","Contratos de prestación de servicios profesionales y de apoyo a la gestión","Contratación directa","Prestación de servicios profesionales y de apoyo a la gestión, o para la ejecución de trabajos artísticos que sólo puedan encomendarse a determinadas personas naturales;","PRESTAR LOS SERVICIOS PROFESIONALES A LA ALCALDÍA LOCAL DE BARRIOS UNIDOS EN LA ADMINISTRACIÓN DE LA RED DE VOZ Y DATOS, EN LA ACTUALIZACIÓN Y SOPORTE CON LAS TECNOLOGÍAS Y SISTEMAS DE INFORMACIÓN, ASÍ COMO EL APOYO A LA SUPERVISIÓN DE LOS CONTRATOS QUE TIENEN RELACIÓN CON SOPORTES TECNOLÓGICOS Y TEMAS RELACIONADOS","Inversión","Un Nuevo Contrato Social y Ambiental para la Bogotá del Siglo XXI",57,{"$f":"IF(ISERROR(VLOOKUP(K39,Proposito_programa!$C$2:$E$59,2,FALSE)),\" \",VLOOKUP(K39,Proposito_programa!$C$2:$E$59,2,FALSE))","v":"Gestión pública local"},{"$f":"IF(ISERROR(VLOOKUP(K39,Proposito_programa!$C$2:$E$59,3,FALSE)),\" \",VLOOKUP(K39,Proposito_programa!$C$2:$E$59,3,FALSE))","v":"Propósito 5: Construir Bogotá - Región con gobierno abierto, transparente y ciudadanía consciente"},"133011605570000002143",null,79953222,"ANDRES ORLANDO BRICEÑO ","Persona Natural",null,null,null,61770000,null,1,1853100,63623100,55387100,"2021-03-02","2021-03-02","2021-12-31",300,1,10,null,null,null,null,null,null,"X",null,0.87055016181229772]
[27,2021,"FDLBU-CD-001-2047","https://community.secop.gov.co/Public/Tendering/ContractNoticePhases/View?PPI=CO1.PPI.12096669&isFromPublicArea=True&isModal=False","Contratos de prestación de servicios profesionales y de apoyo a la gestión","Contratación directa","Prestación de servicios profesionales y de apoyo a la gestión, o para la ejecución de trabajos artísticos que sólo puedan encomendarse a determinadas personas naturales;","PRESTAR LOS SERVICIOS DE APOYO A LA GESTIÓN EN LA CONDUCCIÓN DE LOS VEHÍCULOS A CARGO DE EL FONDO DE DESARROLLO LOCAL DE BARRIOS UNIDOS, ASÍ COMO APOYAR LA GESTIÓN ADMINISTRATIVA QUE DESIGNE EL SUPERVISOR.","Inversión","Un Nuevo Contrato Social y Ambiental para la Bogotá del Siglo XXI",57,{"$f":"IF(ISERROR(VLOOKUP(K40,Proposito_programa!$C$2:$E$59,2,FALSE)),\" \",VLOOKUP(K40,Proposito_programa!$C$2:$E$59,2,FALSE))","v":"Gestión pública local"},{"$f":"IF(ISERROR(VLOOKUP(K40,Proposito_programa!$C$2:$E$59,3,FALSE)),\" \",VLOOKUP(K40,Proposito_programa!$C$2:$E$59,3,FALSE))","v":"Propósito 5: Construir Bogotá - Región con gobierno abierto, transparente y ciudadanía consciente"},"133011605570000002143",null,79879901,"JHONATAN ANDRÉS RUEDA TORRES","Persona Natural",null,null,null,24070000,null,null,null,24070000,21422300,"2021-03-02","2021-03-04","2021-12-31",300,1,3,null,null,null,null,null,null,"X",null,0.89]
[28,2021,"FDLBU-CD-001-2048","https://community.secop.gov.co/Public/Tendering/ContractNoticePhases/View?PPI=CO1.PPI.12268215&isFromPublicArea=True&isModal=False\n","Contratos de prestación de servicios profesionales y de apoyo a la gestión","Contratación directa","Prestación de servicios profesionales y de apoyo a la gestión, o para la ejecución de trabajos artísticos que sólo puedan encomendarse a determinadas personas naturales;","PRESTAR LOS SERVICIOS PROFESIONALES PARA APOYAR AL ÁREA GESTIÓN DEL DESARROLLO ADMINISTRATIVO Y FINANCIERO EN LOS ASUNTOS RELACIONADOS CON EL DESARROLLO DE LA GESTIÓN CONTRACTUAL PARA LA ADQUISICIÓN DE RECURSOS Y SERVICIOS","Inversión","Un Nuevo Contrato Social y Ambiental para la Bogotá del Siglo XXI",57,{"$f":"IF(ISERROR(VLOOKUP(K41,Proposito_programa!$C$2:$E$59,2,FALSE)),\" \",VLOOKUP(K41,Proposito_programa!$C$2:$E$59,2,FALSE))","v":"Gestión pública local"},{"$f":"IF(ISERROR(VLOOKUP(K41,Proposito_programa!$C$2:$E$59,3,FALSE)),\" \",VLOOKUP(K41,Proposito_programa!$C$2:$E$59,3,FALSE))","v":"Propósito 5: Construir Bogotá - Región con gobierno abierto, transparente y ciudadanía consciente"},"133011605570000002143",null,1026270891,"CHRISTIAN CAMILO SUAREZ RAMIREZ","Persona Natural",null,null,null,15534000,null,null,null,15534000,15361400,"2021-03-02","2021-03-02","2021-06-01",90,null,null,null,null,null,null,null,null,"X",null,0.98888888888888893]
[29,2021,"FDLBU-CD-001-2049","https://community.secop.gov.co/Public/Tendering/ContractNoticePhases/View?PPI=CO1.PPI.12250822&isFromPublicArea=True&isModal=False","Contratos de prestación de servicios profesionales y de apoyo a la gestión","Contratación directa","Prestación de servicios profesionales y de apoyo a la gestión, o para la ejecución de trabajos artísticos que sólo puedan encomendarse a determinadas personas naturales;","PRESTAR SERVICIOS DE APOYO AL ÁREA DE\nGESTIÓN DEL DESARROLLO ADMINISTRATIVA Y FINANCIERA EN LAS LABORES QUE REQUIERA LA\nJUNTA ADMINISTRADORA LOCAL DE BARRIOS UNIDOS COMO GRABACIONES DE SESIONES,\nTRANSCRIPCIÓN DE ACTAS Y ATENCIÓN A LA CIUDADANÍA","Inversión","Un Nuevo Contrato Social y Ambiental para la Bogotá del Siglo XXI",57,{"$f":"IF(ISERROR(VLOOKUP(K42,Proposito_programa!$C$2:$E$59,2,FALSE)),\" \",VLOOKUP(K42,Proposito_programa!$C$2:$E$59,2,FALSE))","v":"Gestión pública local"},{"$f":"IF(ISERROR(VLOOKUP(K42,Proposito_programa!$C$2:$E$59,3,FALSE)),\" \",VLOOKUP(K42,Proposito_programa!$C$2:$E$59,3,FALSE))","v":"Propósito 5: Construir Bogotá - Región con gobierno abierto, transparente y ciudadanía consciente"},"133011605570000002143",null,1235538229,"SAHY MAYGLETH TORRES CORAL ","Persona Natural",null,null,null,22710000,null,1,757000,23467000,20211900,"2021-03-04","2021-03-04","2021-12-31",300,1,13,null,null,null,null,null,null,"X",null,0.8612903225806452]
[30,2021,"FDLBU-CD-001-2050","https://community.secop.gov.co/Public/Tendering/ContractNoticePhases/View?PPI=CO1.PPI.12194865&isFromPublicArea=True&isModal=False","Contratos de prestación de servicios profesionales y de apoyo a la gestión","Contratación directa","Prestación de servicios profesionales y de apoyo a la gestión, o para la ejecución de trabajos artísticos que sólo puedan encomendarse a determinadas personas naturales;","PRESTAR SERVICIOS PROFESIONALES PARA APOYAR LA GESTIÓN DEL RIESGO QUE PROMUEVA LAS ACCIONES REQUERIDAS PARA LA PREVENCIÓN Y ATENCIÓN DE EMERGENCIAS O EVENTOS GENERADOS POR LA MATERIALIZACIÓN DE LOS RIESGOS Y RESPONDA DE MANERA OPERATIVA E INMEDIATA ANTE LA OCURRENCIA DE SITUACIONES ADVERSAS EN TEMAS DE EMERGENCIAS EN LA LOCALIDAD PARA EL LOGRO DE LAS METAS DE PLAN DE DESARROLLO LOCAL VIGENTE","Inversión","Un Nuevo Contrato Social y Ambiental para la Bogotá del Siglo XXI",30,{"$f":"IF(ISERROR(VLOOKUP(K43,Proposito_programa!$C$2:$E$59,2,FALSE)),\" \",VLOOKUP(K43,Proposito_programa!$C$2:$E$59,2,FALSE))","v":"Eficiencia en la atención de emergencias"},{"$f":"IF(ISERROR(VLOOKUP(K43,Proposito_programa!$C$2:$E$59,3,FALSE)),\" \",VLOOKUP(K43,Proposito_programa!$C$2:$E$59,3,FALSE))","v":"Propósito 2 : Cambiar Nuestros Hábitos de Vida para Reverdecer a Bogotá y Adaptarnos y Mitigar la Crisis Climática"},"133011602300000002103",null,79881960,"FROILAN OSWALDO MARTINEZ CORREA","Persona Natural",null,null,null,47380000,null,null,null,47380000,42010267,"2021-03-04","2021-03-05","2021-12-31",300,1,4,null,null,null,null,null,null,"X",null,0.88666667370198393]
[31,2021,"FDLBU-CD-001-2051","https://community.secop.gov.co/Public/Tendering/ContractNoticePhases/View?PPI=CO1.PPI.12091842&isFromPublicArea=True&isModal=False\n","Contratos de prestación de servicios profesionales y de apoyo a la gestión","Contratación directa","Prestación de servicios profesionales y de apoyo a la gestión, o para la ejecución de trabajos artísticos que sólo puedan encomendarse a determinadas personas naturales;","PRESTAR SERVICIOS PROFESIONALES PARA APOYAR AL EQUIPO DE PRENSA Y COMUNICACIONES DE LA ALCALDÍA LOCAL MEDIANTE EL REGISTRO, LA EDICIÓN Y LA PRESENTACIÓN DE FOTOGRAFÍAS DE LOS ACONTECIMIENTOS, HECHOS Y EVENTOS DE LA ALCALDÍA LOCAL EN LOS MEDIOS DE COMUNICACIÓN, ESCRITOS, DIGITALES Y AUDIOVISUALES","Inversión","Un Nuevo Contrato Social y Ambiental para la Bogotá del Siglo XXI",57,{"$f":"IF(ISERROR(VLOOKUP(K44,Proposito_programa!$C$2:$E$59,2,FALSE)),\" \",VLOOKUP(K44,Proposito_programa!$C$2:$E$59,2,FALSE))","v":"Gestión pública local"},{"$f":"IF(ISERROR(VLOOKUP(K44,Proposito_programa!$C$2:$E$59,3,FALSE)),\" \",VLOOKUP(K44,Proposito_programa!$C$2:$E$59,3,FALSE))","v":"Propósito 5: Construir Bogotá - Región con gobierno abierto, transparente y ciudadanía consciente"},"133011605570000002143",null,80063016,"NELSON EMIR CICUAMIA SUAREZ","Persona Natural",null,null,null,51780000,null,null,null,51780000,43840400,"2021-03-03","2021-03-17","2021-12-31",300,1,16,null,null,null,null,null,null,"X",null,0.84666666666666668]
[32,2021,"FDLBU-CD-001-2052","https://community.secop.gov.co/Public/Tendering/ContractNoticePhases/View?PPI=CO1.PPI.12255298&isFromPublicArea=True&isModal=False","Contratos de prestación de servicios profesionales y de apoyo a la gestión","Contratación directa","Prestación de servicios profesionales y de apoyo a la gestión, o para la ejecución de trabajos artísticos que sólo puedan encomendarse a determinadas personas naturales;","PRESTAR SUS SERVICIOS PROFESIONALES\nPARA APOYAR JURÍDICAMENTE LA EJECUCIÓN DE LAS ACCIONES REQUERIDAS PARA LA\nDEPURACIÓN DE LAS ACTUACIONES ADMINISTRATIVAS QUE CURSAN EN LA ALCALDÍA LOCAL","Inversión","Un Nuevo Contrato Social y Ambiental para la Bogotá del Siglo XXI",57,{"$f":"IF(ISERROR(VLOOKUP(K45,Proposito_programa!$C$2:$E$59,2,FALSE)),\" \",VLOOKUP(K45,Proposito_programa!$C$2:$E$59,2,FALSE))","v":"Gestión pública local"},{"$f":"IF(ISERROR(VLOOKUP(K45,Proposito_programa!$C$2:$E$59,3,FALSE)),\" \",VLOOKUP(K45,Proposito_programa!$C$2:$E$59,3,FALSE))","v":"Propósito 5: Construir Bogotá - Región con gobierno abierto, transparente y ciudadanía consciente"},"133011605570000002143",null,80740127,"EDWIN JAVIER CIFUENTES VILLAMIZAR ","Persona Natural",null,null,null,38008000,null,1,8393433,46401433,41650433,"2021-03-04","2021-03-08","2021-11-07",240,1,53,null,null,null,null,null,null,"X",null,0.89761092076617544]
[33,2021,"FDLBU-CD-001-2053","https://community.secop.gov.co/Public/Tendering/ContractNoticePhases/View?PPI=CO1.PPI.12159478&isFromPublicArea=True&isModal=False","Contratos de prestación de servicios profesionales y de apoyo a la gestión","Contratación directa","Prestación de servicios profesionales y de apoyo a la gestión, o para la ejecución de trabajos artísticos que sólo puedan encomendarse a determinadas personas naturales;","PRESTAR LOS SERVICIOS ESPECIALIZADOS PARA APOYAR AL ALCALDE LOCAL EN LA FORMULACIÓN, SEGUIMIENTO  E IMPLEMENTACIÓN DE LA ESTRATEGIA LOCAL  PARA LA TERMINACIÓN JURÍDICA DE LAS ACTUACIONES ADMINISTRATIVAS QUE CURSAN EN LA ALCALDÍA LOCAL DE BARRIOS UNIDOS.","Inversión","Un Nuevo Contrato Social y Ambiental para la Bogotá del Siglo XXI",57,{"$f":"IF(ISERROR(VLOOKUP(K46,Proposito_programa!$C$2:$E$59,2,FALSE)),\" \",VLOOKUP(K46,Proposito_programa!$C$2:$E$59,2,FALSE))","v":"Gestión pública local"},{"$f":"IF(ISERROR(VLOOKUP(K46,Proposito_programa!$C$2:$E$59,3,FALSE)),\" \",VLOOKUP(K46,Proposito_programa!$C$2:$E$59,3,FALSE))","v":"Propósito 5: Construir Bogotá - Región con gobierno abierto, transparente y ciudadanía consciente"},"133011605570000002143",null,1032379593,"LEONARDO MOYA GUAJE","Persona Natural",null,null,null,78000000,null,null,null,78000000,69420000,"2021-03-04","2021-03-04","2021-12-31",300,1,3,null,null,null,null,null,null,"X",null,0.89]
[34,2021,"FDLBU-CD-001-2054","https://community.secop.gov.co/Public/Tendering/ContractNoticePhases/View?PPI=CO1.PPI.12230662&isFromPublicArea=True&isModal=False","Contratos de prestación de servicios profesionales y de apoyo a la gestión","Contratación directa","Prestación de servicios profesionales y de apoyo a la gestión, o para la ejecución de trabajos artísticos que sólo puedan encomendarse a determinadas personas naturales;","PRESTAR SUS SERVICIOS PROFESIONALES PARA APOYAR TÉCNICAMENTE LAS DISTINTAS ETAPAS DE LOS PROCESOS DE COMPETENCIA DE LA ALCALDÍA LOCAL PARA LA DEPURACIÓN DE ACTUACIONES ADMINISTRATIVAS","Inversión","Un Nuevo Contrato Social y Ambiental para la Bogotá del Siglo XXI",57,{"$f":"IF(ISERROR(VLOOKUP(K47,Proposito_programa!$C$2:$E$59,2,FALSE)),\" \",VLOOKUP(K47,Proposito_programa!$C$2:$E$59,2,FALSE))","v":"Gestión pública local"},{"$f":"IF(ISERROR(VLOOKUP(K47,Proposito_programa!$C$2:$E$59,3,FALSE)),\" \",VLOOKUP(K47,Proposito_programa!$C$2:$E$59,3,FALSE))","v":"Propósito 5: Construir Bogotá - Región con gobierno abierto, transparente y ciudadanía consciente"},"133011605570000002143",null,52421810,"YHAMILA SALINAS RUANO","Persona Natural",null,null,null,39976000,null,1,8161767,48137767,43140767,"2021-03-12","2021-03-12","2021-11-11",240,1,49,null,null,null,null,null,null,"X",null,0.89619377234511111]
[35,2021,"FDLBU-CD-001-2055","https://community.secop.gov.co/Public/Tendering/ContractNoticePhases/View?PPI=CO1.PPI.12097054&isFromPublicArea=True&isModal=False","Contratos de prestación de servicios profesionales y de apoyo a la gestión","Contratación directa","Prestación de servicios profesionales y de apoyo a la gestión, o para la ejecución de trabajos artísticos que sólo puedan encomendarse a determinadas personas naturales;","PRESTAR LOS SERVICIOS DE APOYO A LA GESTIÓN EN LA CONDUCCIÓN DE LOS VEHÍCULOS A CARGO DE EL FONDO DE DESARROLLO LOCAL DE BARRIOS UNIDOS, ASÍ COMO APOYAR LA GESTIÓN ADMINISTRATIVA QUE DESIGNE EL SUPERVISOR.","Inversión","Un Nuevo Contrato Social y Ambiental para la Bogotá del Siglo XXI",57,{"$f":"IF(ISERROR(VLOOKUP(K48,Proposito_programa!$C$2:$E$59,2,FALSE)),\" \",VLOOKUP(K48,Proposito_programa!$C$2:$E$59,2,FALSE))","v":"Gestión pública local"},{"$f":"IF(ISERROR(VLOOKUP(K48,Proposito_programa!$C$2:$E$59,3,FALSE)),\" \",VLOOKUP(K48,Proposito_programa!$C$2:$E$59,3,FALSE))","v":"Propósito 5: Construir Bogotá - Región con gobierno abierto, transparente y ciudadanía consciente"},"133011605570000002143",null,1015432913,"WILMER ORLANDO VIRVIESCAS ALARCON","Persona Natural",null,null,null,24070000,null,null,null,24070000,21422300,"2021-03-04","2021-03-04","2021-12-31",300,1,3,null,null,null,null,null,null,"X",null,0.89]
[36,2021,"FDLBU-CD-001-2056","https://community.secop.gov.co/Public/Tendering/ContractNoticePhases/View?PPI=CO1.PPI.12078189&isFromPublicArea=True&isModal=False","Contratos de prestación de servicios profesionales y de apoyo a la gestión","Contratación directa","Prestación de servicios profesionales y de apoyo a la gestión, o para la ejecución de trabajos artísticos que sólo puedan encomendarse a determinadas personas naturales;","APOYAR LA GESTIÓN DOCUMENTAL DE LA ALCADÍA LOCAL PARA LA IMPLEMENTACIÓN DEL PROCESO DE VERIFICACIÓN, SOPORTE Y ACOMPAÑAMIENTO, EN EL DESARROLLO DE LAS ACTIVIDADES PROPIAS DE LOS PROCESOS Y ACTUACIONES ADMINISTRATIVAS EXISTENTES  ","Inversión","Un Nuevo Contrato Social y Ambiental para la Bogotá del Siglo XXI",57,{"$f":"IF(ISERROR(VLOOKUP(K49,Proposito_programa!$C$2:$E$59,2,FALSE)),\" \",VLOOKUP(K49,Proposito_programa!$C$2:$E$59,2,FALSE))","v":"Gestión pública local"},{"$f":"IF(ISERROR(VLOOKUP(K49,Proposito_programa!$C$2:$E$59,3,FALSE)),\" \",VLOOKUP(K49,Proposito_programa!$C$2:$E$59,3,FALSE))","v":"Propósito 5: Construir Bogotá - Región con gobierno abierto, transparente y ciudadanía consciente"},"133011605570000002143",null,80872094,"DIEGO ARMANDO CORONEL AVENDAÑO","Persona Natural",null,null,null,33610000,null,null,null,33610000,29464767,"2021-03-04","2021-03-08","2021-12-31",300,1,7,null,null,null,null,null,null,"X",null,0.87666667658434994]
[37,2021,"FDLBU-CD-001-2057","https://community.secop.gov.co/Public/Tendering/ContractNoticePhases/View?PPI=CO1.PPI.12212618&isFromPublicArea=True&isModal=False","Contratos de prestación de servicios profesionales y de apoyo a la gestión","Contratación directa","Prestación de servicios profesionales y de apoyo a la gestión, o para la ejecución de trabajos artísticos que sólo puedan encomendarse a determinadas personas naturales;","PRESTAR SERVICIOS PROFESIONALES PARA APOYAR AL EQUIPO DE PRENSA Y COMUNICACIONES DE LA ALCALDÍA LOCAL MEDIANTE EL REGISTRO, LA EDICIÓN Y LA PRESENTACIÓN DE VIDEOS DE LOS ACONTECIMIENTOS, HECHOS Y EVENTOS DE LA ALCALDÍA LOCAL EN LOS MEDIOS DE COMUNICACIÓN, ESCRITOS, DIGITALES Y AUDIOVISUALES","Inversión","Un Nuevo Contrato Social y Ambiental para la Bogotá del Siglo XXI",57,{"$f":"IF(ISERROR(VLOOKUP(K50,Proposito_programa!$C$2:$E$59,2,FALSE)),\" \",VLOOKUP(K50,Proposito_programa!$C$2:$E$59,2,FALSE))","v":"Gestión pública local"},{"$f":"IF(ISERROR(VLOOKUP(K50,Proposito_programa!$C$2:$E$59,3,FALSE)),\" \",VLOOKUP(K50,Proposito_programa!$C$2:$E$59,3,FALSE))","v":"Propósito 5: Construir Bogotá - Región con gobierno abierto, transparente y ciudadanía consciente"},"133011605570000002143",null,1018489170,"LAURA ALEJANDRA MORENO ALVAREZ","Persona Natural",null,null,null,43700000,null,null,null,43700000,37727667,"2021-03-11","2021-03-12","2021-12-31",300,1,11,null,null,null,null,null,null,"X",null,0.86333334096109837]
[38,2021,"FDLBU-CD-001-2058","https://community.secop.gov.co/Public/Tendering/ContractNoticePhases/View?PPI=CO1.PPI.12096803&isFromPublicArea=True&isModal=False","Contratos de prestación de servicios profesionales y de apoyo a la gestión","Contratación directa","Prestación de servicios profesionales y de apoyo a la gestión, o para la ejecución de trabajos artísticos que sólo puedan encomendarse a determinadas personas naturales;","PRESTAR SUS SERVICIOS DE APOYO PARA APOYAR LA GESTIÓN DOCUMENTAL DE LA ALCALDÍA LOCAL EN LA IMPLEMENTACIÓN DE LOS PROCESOS DE CLASIFICACIÓN, ORDENACIÓN, SELECCIÓN NATURAL, FOLIACIÓN, IDENTIFICACIÓN, LEVANTAMIENTO DE INVENTARIOS, ALMACENAMIENTO Y APLICACIÓN DE PROTOCOLOS DE ELIMINACIÓN Y TRANSFERENCIAS.","Inversión","Un Nuevo Contrato Social y Ambiental para la Bogotá del Siglo XXI",57,{"$f":"IF(ISERROR(VLOOKUP(K51,Proposito_programa!$C$2:$E$59,2,FALSE)),\" \",VLOOKUP(K51,Proposito_programa!$C$2:$E$59,2,FALSE))","v":"Gestión pública local"},{"$f":"IF(ISERROR(VLOOKUP(K51,Proposito_programa!$C$2:$E$59,3,FALSE)),\" \",VLOOKUP(K51,Proposito_programa!$C$2:$E$59,3,FALSE))","v":"Propósito 5: Construir Bogotá - Región con gobierno abierto, transparente y ciudadanía consciente"},"133011605570000002143",null,19346335,"PEDRO JESUS SANCHEZ MOLINA ","Persona Natural",null,null,null,22710000,null,null,null,22710000,20211900,"2021-03-04","2021-03-04","2021-12-31",300,1,3,null,null,null,null,null,null,"X",null,0.89]
[39,2021,"FDLBU-CD-001-2059","https://community.secop.gov.co/Public/Tendering/ContractNoticePhases/View?PPI=CO1.PPI.12097729&isFromPublicArea=True&isModal=False","Contratos de prestación de servicios profesionales y de apoyo a la gestión","Contratación directa","Prestación de servicios profesionales y de apoyo a la gestión, o para la ejecución de trabajos artísticos que sólo puedan encomendarse a determinadas personas naturales;","PRESTAR APOYO ADMINISTRATIVO Y OPERATIVO AL ÁREA DEL ALMACÉN DE LA ALCALDÍA LOCAL DE BARRIOS UNIDOS, EN LOS PROCESOS DE CUIDADO, PROTECCIÓN, ALMACENAMIENTO, TRASLADO Y ENTREGA DE BIENES DEL FONDO DE DESARROLLO LOCAL DE ACUERDO A LOS PROCESOS Y PROCEDIMIENTOS ESTABLECIDOS","Inversión","Un Nuevo Contrato Social y Ambiental para la Bogotá del Siglo XXI",57,{"$f":"IF(ISERROR(VLOOKUP(K52,Proposito_programa!$C$2:$E$59,2,FALSE)),\" \",VLOOKUP(K52,Proposito_programa!$C$2:$E$59,2,FALSE))","v":"Gestión pública local"},{"$f":"IF(ISERROR(VLOOKUP(K52,Proposito_programa!$C$2:$E$59,3,FALSE)),\" \",VLOOKUP(K52,Proposito_programa!$C$2:$E$59,3,FALSE))","v":"Propósito 5: Construir Bogotá - Región con gobierno abierto, transparente y ciudadanía consciente"},"133011605570000002143",null,1024549811,"RUBEN ALBEIRO PALENCIA RIVEROS","Persona Natural",null,null,null,20890000,null,null,null,20890000,18243933,"2021-03-05","2021-03-09","2021-12-31",300,1,8,null,null,null,null,null,null,"X",null,0.87333331737673525]
[40,2021,"FDLBU-CD-001-2060","https://community.secop.gov.co/Public/Tendering/ContractNoticePhases/View?PPI=CO1.PPI.12294624&isFromPublicArea=True&isModal=False","Contratos de prestación de servicios profesionales y de apoyo a la gestión","Contratación directa","Prestación de servicios profesionales y de apoyo a la gestión, o para la ejecución de trabajos artísticos que sólo puedan encomendarse a determinadas personas naturales;","“PRESTAR SERVICIOS DE APOYO EN LAS LABORES CONTABLES DEL FONDO DE DESARROLLO LOCAL DE BARRIOS UNIDOS, EN LOS TRAMITES, MANEJO CONTABLE Y DE ARCHIVO EN FORMA PERMANENTE EN EL DESARROLLO DEL PROCESO DE CONSOLIDACIÓN DE INFORMACIÓN DEL SISTEMA CONTABLE Y FINANCIERO","Inversión","Un Nuevo Contrato Social y Ambiental para la Bogotá del Siglo XXI",57,{"$f":"IF(ISERROR(VLOOKUP(K53,Proposito_programa!$C$2:$E$59,2,FALSE)),\" \",VLOOKUP(K53,Proposito_programa!$C$2:$E$59,2,FALSE))","v":"Gestión pública local"},{"$f":"IF(ISERROR(VLOOKUP(K53,Proposito_programa!$C$2:$E$59,3,FALSE)),\" \",VLOOKUP(K53,Proposito_programa!$C$2:$E$59,3,FALSE))","v":"Propósito 5: Construir Bogotá - Región con gobierno abierto, transparente y ciudadanía consciente"},"133011605570000002143",null,1100959714,"CINTYA ALEXANDRA GOMEZ PARRA","Persona Natural",null,null,null,33610000,null,1,784233,34394233,29912900,"2021-03-04","2021-03-04","2021-12-31",300,1,10,null,null,null,null,null,null,"X",null,0.86970684881968441]
[41,2021,"FDLBU-CD-001-2061","https://community.secop.gov.co/Public/Tendering/ContractNoticePhases/View?PPI=CO1.PPI.12165310&isFromPublicArea=True&isModal=False","Contratos de prestación de servicios profesionales y de apoyo a la gestión","Contratación directa","Prestación de servicios profesionales y de apoyo a la gestión, o para la ejecución de trabajos artísticos que sólo puedan encomendarse a determinadas personas naturales;","PRESTAR SERVICIOS PROFESIONALES PARA APOYAR AL EQUIPO DE PRENSA Y COMUNICACIONES DE LA ALCALDÍA LOCAL EN LA REALIZACIÓN DE PRODUCTOS Y PIEZAS DIGITALES, IMPRESAS Y PUBLICITARIAS DE GRAN FORMATO Y DE ANIMACIÓN GRÁFICA","Inversión","Un Nuevo Contrato Social y Ambiental para la Bogotá del Siglo XXI",57,{"$f":"IF(ISERROR(VLOOKUP(K54,Proposito_programa!$C$2:$E$59,2,FALSE)),\" \",VLOOKUP(K54,Proposito_programa!$C$2:$E$59,2,FALSE))","v":"Gestión pública local"},{"$f":"IF(ISERROR(VLOOKUP(K54,Proposito_programa!$C$2:$E$59,3,FALSE)),\" \",VLOOKUP(K54,Proposito_programa!$C$2:$E$59,3,FALSE))","v":"Propósito 5: Construir Bogotá - Región con gobierno abierto, transparente y ciudadanía consciente"},"133011605570000002143",null,80040627,"ALEX DIDIER CARMAGO","Persona Natural",null,null,null,47500000,null,null,null,47500000,42116667,"2021-03-04","2021-03-05","2021-12-31",300,1,4,null,"MARIA ALEJANDRA BURBANO VENABIDEZ","2021-04-16",null,null,null,"X",null,0.88666667368421048]
[42,2021,"FDLBU-CD-001-2062","https://community.secop.gov.co/Public/Tendering/ContractNoticePhases/View?PPI=CO1.PPI.12223962&isFromPublicArea=True&isModal=False","Contratos de prestación de servicios profesionales y de apoyo a la gestión","Contratación directa","Prestación de servicios profesionales y de apoyo a la gestión, o para la ejecución de trabajos artísticos que sólo puedan encomendarse a determinadas personas naturales;","PRESTAR LOS SERVICIOS PROFESIONALES PARA APOYAR AL ÁREA GESTIÓN DEL DESARROLLO ADMINISTRATIVO Y FINANCIERO EN LOS ASUNTOS RELATIVOS A LA PLANEACIÓN LOCAL, ASÍ COMO EL APOYO A LA SUPERVISIÓN DE CONTRATOS SUSCRITOS POR LA ALCALDÍA LOCAL DE BARRIOS UNIDOS","Inversión","Un Nuevo Contrato Social y Ambiental para la Bogotá del Siglo XXI",57,{"$f":"IF(ISERROR(VLOOKUP(K55,Proposito_programa!$C$2:$E$59,2,FALSE)),\" \",VLOOKUP(K55,Proposito_programa!$C$2:$E$59,2,FALSE))","v":"Gestión pública local"},{"$f":"IF(ISERROR(VLOOKUP(K55,Proposito_programa!$C$2:$E$59,3,FALSE)),\" \",VLOOKUP(K55,Proposito_programa!$C$2:$E$59,3,FALSE))","v":"Propósito 5: Construir Bogotá - Región con gobierno abierto, transparente y ciudadanía consciente"},"133011605570000002143",null,1032452329,"DANIEL FELIPE LOPEZ VELASQUEZ","Persona Natural",null,null,null,51780000,-23473600,null,null,28306400,28306400,"2021-03-15","2021-03-17","2021-12-31",300,null,null,null,null,null,null,null,null,"X",null,1]
[43,2021,"FDLBU-CD-001-2063","https://community.secop.gov.co/Public/Tendering/ContractNoticePhases/View?PPI=CO1.PPI.12299045&isFromPublicArea=True&isModal=False","Contratos de prestación de servicios profesionales y de apoyo a la gestión","Contratación directa","Prestación de servicios profesionales y de apoyo a la gestión, o para la ejecución de trabajos artísticos que sólo puedan encomendarse a determinadas personas naturales;","PRESTAR SERVICIOS DE APOYO EN EL ÁREA DE GESTIÓN DEL DESARROLLO EN LA FORMULACIÓN, SEGUIMIENTO Y EVALUACIÓN DE POLÍTICAS, PLANES, PROGRAMAS Y PROYECTOS DE DESARROLLO LOCAL, PARA EL CUMPLIMIENTO DE LAS METAS DEL PLAN DE DESARROLLO LOCAL DE BARRIOS UNIDOS.","Inversión","Un Nuevo Contrato Social y Ambiental para la Bogotá del Siglo XXI",57,{"$f":"IF(ISERROR(VLOOKUP(K56,Proposito_programa!$C$2:$E$59,2,FALSE)),\" \",VLOOKUP(K56,Proposito_programa!$C$2:$E$59,2,FALSE))","v":"Gestión pública local"},{"$f":"IF(ISERROR(VLOOKUP(K56,Proposito_programa!$C$2:$E$59,3,FALSE)),\" \",VLOOKUP(K56,Proposito_programa!$C$2:$E$59,3,FALSE))","v":"Propósito 5: Construir Bogotá - Región con gobierno abierto, transparente y ciudadanía consciente"},"133011605570000002143",null,1088007967,"LAURA VANESSA REINA BEDOYA","Persona Natural",null,null,null,39880000,null,1,797600,40677600,35360267,"2021-03-04","2021-03-05","2021-12-31",300,1,10,null,null,null,null,null,null,"X",null,0.86928105394615218]
[44,2021,"FDLBU-CD-001-2064","https://community.secop.gov.co/Public/Tendering/ContractNoticePhases/View?PPI=CO1.PPI.12280673&isFromPublicArea=True&isModal=False","Contratos de prestación de servicios profesionales y de apoyo a la gestión","Contratación directa","Prestación de servicios profesionales y de apoyo a la gestión, o para la ejecución de trabajos artísticos que sólo puedan encomendarse a determinadas personas naturales;","PRESTAR LOS SERVICIOS PROFESIONALES PARA APOYAR AL ÁREA DE GESTIÓN DEL DESARROLLO ADMINISTRATIVO Y FINANCIERO, EN LOS ASUNTOS RELACIONADOS CON EL DESARROLLO DE LA GESTIÓN CONTRACTUAL PARA LA ADQUISICIÓN DE RECURSOS Y SERVICIOS","Inversión","Un Nuevo Contrato Social y Ambiental para la Bogotá del Siglo XXI",57,{"$f":"IF(ISERROR(VLOOKUP(K57,Proposito_programa!$C$2:$E$59,2,FALSE)),\" \",VLOOKUP(K57,Proposito_programa!$C$2:$E$59,2,FALSE))","v":"Gestión pública local"},{"$f":"IF(ISERROR(VLOOKUP(K57,Proposito_programa!$C$2:$E$59,3,FALSE)),\" \",VLOOKUP(K57,Proposito_programa!$C$2:$E$59,3,FALSE))","v":"Propósito 5: Construir Bogotá - Región con gobierno abierto, transparente y ciudadanía consciente"},"133011605570000002143",null,79235519,"GUSTAVO HERNAN JIMENEZ SANDOVAL","Persona Natural",null,null,null,43700000,null,1,2330666,46030666,38747333,"2021-03-04","2021-03-05","2021-12-31",300,1,20,null,"LUISA FERNANDA VELASCO LIZARAZO","2021-12-01",null,null,null,"X",null,0.84177215684865392]
[45,2021,"FDLBU-CD-001-2065","https://community.secop.gov.co/Public/Tendering/ContractNoticePhases/View?PPI=CO1.PPI.12312251&isFromPublicArea=True&isModal=False","Contratos de prestación de servicios profesionales y de apoyo a la gestión","Contratación directa","Prestación de servicios profesionales y de apoyo a la gestión, o para la ejecución de trabajos artísticos que sólo puedan encomendarse a determinadas personas naturales;","PRESTAR SERVICIOS PROFESIONALES PARA COORDINAR, LIDERAR Y ASESORAR LOS PLANES Y ESTRATEGIAS DE COMUNICACIÓN INTERNA Y \nEXTERNA PARA LA DIVULGACIÓN DE LOS PROGRAMAS, PROYECTOS Y ACTIVIDADES DE LA ALCALDÍA LOCAL","Inversión","Un Nuevo Contrato Social y Ambiental para la Bogotá del Siglo XXI",57,{"$f":"IF(ISERROR(VLOOKUP(K58,Proposito_programa!$C$2:$E$59,2,FALSE)),\" \",VLOOKUP(K58,Proposito_programa!$C$2:$E$59,2,FALSE))","v":"Gestión pública local"},{"$f":"IF(ISERROR(VLOOKUP(K58,Proposito_programa!$C$2:$E$59,3,FALSE)),\" \",VLOOKUP(K58,Proposito_programa!$C$2:$E$59,3,FALSE))","v":"Propósito 5: Construir Bogotá - Región con gobierno abierto, transparente y ciudadanía consciente"},"133011605570000002143",null,52860493,"YULIETH PAOLA GOMEZ LEMA ","Persona Natural",null,null,null,61770000,null,null,null,61770000,54563500,"2021-03-04","2021-03-06","2021-12-31",300,1,5,null,null,null,null,null,null,"X",null,0.8833333333333333]
[46,2021,"FDLBU-CD-001-2066","https://community.secop.gov.co/Public/Tendering/ContractNoticePhases/View?PPI=CO1.PPI.12224833&isFromPublicArea=True&isModal=False","Contratos de prestación de servicios profesionales y de apoyo a la gestión","Contratación directa","Prestación de servicios profesionales y de apoyo a la gestión, o para la ejecución de trabajos artísticos que sólo puedan encomendarse a determinadas personas naturales;","PRESTAR LOS SERVICIOS DE APOYO A LA GESTIÓN EN LA CONDUCCIÓN DE LOS VEHÍCULOS A CARGO DE EL FONDO DE DESARROLLO LOCAL DE BARRIOS UNIDOS, ASÍ COMO APOYAR LA GESTIÓN ADMINISTRATIVA QUE DESIGNE EL SUPERVISOR.","Inversión","Un Nuevo Contrato Social y Ambiental para la Bogotá del Siglo XXI",57,{"$f":"IF(ISERROR(VLOOKUP(K59,Proposito_programa!$C$2:$E$59,2,FALSE)),\" \",VLOOKUP(K59,Proposito_programa!$C$2:$E$59,2,FALSE))","v":"Gestión pública local"},{"$f":"IF(ISERROR(VLOOKUP(K59,Proposito_programa!$C$2:$E$59,3,FALSE)),\" \",VLOOKUP(K59,Proposito_programa!$C$2:$E$59,3,FALSE))","v":"Propósito 5: Construir Bogotá - Región con gobierno abierto, transparente y ciudadanía consciente"},"133011605570000002143",null,7321025,"WILLINGTON ORTIZ ALARCON","Persona Natural",null,null,null,39880000,null,1,797600,40677600,35360267,"2021-03-04","2021-03-05","2021-12-31",300,1,10,null,null,null,null,null,null,"X",null,0.86928105394615218]
[47,2021,"FDLBU-CD-001-2067","https://community.secop.gov.co/Public/Tendering/ContractNoticePhases/View?PPI=CO1.PPI.12205571&isFromPublicArea=True&isModal=False \n","Contratos de prestación de servicios profesionales y de apoyo a la gestión","Contratación directa","Prestación de servicios profesionales y de apoyo a la gestión, o para la ejecución de trabajos artísticos que sólo puedan encomendarse a determinadas personas naturales;","PRESTAR SERVICIOS PROFESIONALES PARA APOYAR AL EQUIPO DE PRENSA Y COMUNICACIONES DE LA ALCALDÍA LOCAL EN LA REALIZACIÓN\nY PUBLICACIÓN DE CONTENIDOS DE REDES SOCIALES Y CANALES DE DIVULGACIÓN DIGITAL (SITIO WEB) DE LA ALCALDÍA LOCAL.","Inversión","Un Nuevo Contrato Social y Ambiental para la Bogotá del Siglo XXI",57,{"$f":"IF(ISERROR(VLOOKUP(K60,Proposito_programa!$C$2:$E$59,2,FALSE)),\" \",VLOOKUP(K60,Proposito_programa!$C$2:$E$59,2,FALSE))","v":"Gestión pública local"},{"$f":"IF(ISERROR(VLOOKUP(K60,Proposito_programa!$C$2:$E$59,3,FALSE)),\" \",VLOOKUP(K60,Proposito_programa!$C$2:$E$59,3,FALSE))","v":"Propósito 5: Construir Bogotá - Región con gobierno abierto, transparente y ciudadanía consciente"},"133011605570000002143",null,1015423465,"DIANA CAROLINA DIAZ MUNEVAR","Persona Natural",null,null,null,51780000,null,null,null,51780000,45221200,"2021-03-08","2021-03-09","2021-12-31",300,1,8,null,null,null,null,null,null,"X",null,0.87333333333333329]
[48,2021,"FDLBU-CD-001-2068","https://community.secop.gov.co/Public/Tendering/ContractNoticePhases/View?PPI=CO1.PPI.12206271&isFromPublicArea=True&isModal=False","Contratos de prestación de servicios profesionales y de apoyo a la gestión","Contratación directa","Prestación de servicios profesionales y de apoyo a la gestión, o para la ejecución de trabajos artísticos que sólo puedan encomendarse a determinadas personas naturales;","PRESTAR SERVICIOS PROFESIONALES PARA APOYAR AL ÁREA GESTIÓN DEL DESARROLLO ADMINISTRATIVO Y FINANCIERO EN LOS ASUNTOS RELATIVOS A LA PLANEACIÓN LOCAL: LIDERAR Y GARANTIZAR LA IMPLEMENTACIÓN Y SEGUIMIENTO DE LOS PROCESOS, PROYECTOS Y PROCEDIMIENTOS DE CONTRATOS SUSCRITOS POR LA ALCALDÍA LOCAL DE BARRIOS UNIDOS DIRIGIDOS AL CUMPLIMIENTO DE LAS META DE ACUERDOS EN COMUNIDAD PARA LA VIGENCIA 2021","Inversión","Un Nuevo Contrato Social y Ambiental para la Bogotá del Siglo XXI",45,{"$f":"IF(ISERROR(VLOOKUP(K61,Proposito_programa!$C$2:$E$59,2,FALSE)),\" \",VLOOKUP(K61,Proposito_programa!$C$2:$E$59,2,FALSE))","v":"Espacio público más seguro y construido colectivamente"},{"$f":"IF(ISERROR(VLOOKUP(K61,Proposito_programa!$C$2:$E$59,3,FALSE)),\" \",VLOOKUP(K61,Proposito_programa!$C$2:$E$59,3,FALSE))","v":"Propósito 3: Inspirar confianza y legitimidad para vivir sin miedo y ser epicentro de cultura ciudadana, paz y reconciliación"},"133011603450000002038",null,1018454325,"LILIANA MARITZA ROA BAQUERO ","Persona Natural",null,null,null,49970000,null,null,null,49970000,43140767,"2021-03-11","2021-03-12","2021-12-31",300,1,11,null,null,null,null,null,null,"X",null,0.86333334000400241]
[49,2021,"FDLBU-CD-001-2069","https://community.secop.gov.co/Public/Tendering/ContractNoticePhases/View?PPI=CO1.PPI.12285330&isFromPublicArea=True&isModal=False","Contratos de prestación de servicios profesionales y de apoyo a la gestión","Contratación directa","Prestación de servicios profesionales y de apoyo a la gestión, o para la ejecución de trabajos artísticos que sólo puedan encomendarse a determinadas personas naturales;","PRESTAR SERVICIOS PROFESIONALES DE APOYO A LA LABOR DE PRESUPUESTO DEL FONDO DE DESARROLLO LOCAL EN EL REGISTRO, ANALISIS Y GESTIÓN DE OBLIGACIONES POR PAGAR Y OTROS ASUNTOS QUE EN MATERIA DE PRESUPUESTO LOCAL LE SEAN DESIGNADOS.","Inversión","Un Nuevo Contrato Social y Ambiental para la Bogotá del Siglo XXI",57,{"$f":"IF(ISERROR(VLOOKUP(K62,Proposito_programa!$C$2:$E$59,2,FALSE)),\" \",VLOOKUP(K62,Proposito_programa!$C$2:$E$59,2,FALSE))","v":"Gestión pública local"},{"$f":"IF(ISERROR(VLOOKUP(K62,Proposito_programa!$C$2:$E$59,3,FALSE)),\" \",VLOOKUP(K62,Proposito_programa!$C$2:$E$59,3,FALSE))","v":"Propósito 5: Construir Bogotá - Región con gobierno abierto, transparente y ciudadanía consciente"},"133011605570000002143",null,7320162,"JOSE RAUL PINILLA CHILLON","Persona Natural",null,null,null,47500000,null,null,null,47500000,41641667,"2021-03-05","2021-03-08","2021-12-31",300,1,7,null,null,null,null,null,null,"X",null,0.87666667368421047]
[50,2021,"FDLBU-CD-001-2070","https://community.secop.gov.co/Public/Tendering/ContractNoticePhases/View?PPI=CO1.PPI.12285424&isFromPublicArea=True&isModal=False","Contratos de prestación de servicios profesionales y de apoyo a la gestión","Contratación directa","Prestación de servicios profesionales y de apoyo a la gestión, o para la ejecución de trabajos artísticos que sólo puedan encomendarse a determinadas personas naturales;","PRESTAR LOS SERVICIOS PROFESIONALES PARA EL APOYO A LA GESTION DE LOS SISTEMAS EN EL SEGUIMIENTO Y SOPORTE A LA INFRAESTRUCTURA TECNOLOGICA DE LA ALCALDIA LOCAL DE BARRIOS UNIDOS","Inversión","Un Nuevo Contrato Social y Ambiental para la Bogotá del Siglo XXI",57,{"$f":"IF(ISERROR(VLOOKUP(K63,Proposito_programa!$C$2:$E$59,2,FALSE)),\" \",VLOOKUP(K63,Proposito_programa!$C$2:$E$59,2,FALSE))","v":"Gestión pública local"},{"$f":"IF(ISERROR(VLOOKUP(K63,Proposito_programa!$C$2:$E$59,3,FALSE)),\" \",VLOOKUP(K63,Proposito_programa!$C$2:$E$59,3,FALSE))","v":"Propósito 5: Construir Bogotá - Región con gobierno abierto, transparente y ciudadanía consciente"},"133011605570000002143",null,1030557277,"DANNY JOEL CUBILLOS VELASQUEZ","Persona Natural",null,null,null,43700000,null,null,null,43700000,38310333,"2021-03-05","2021-03-08","2021-12-31",300,1,7,null,null,null,null,null,null,"X",null,0.87666665903890162]
[51,2021,"FDLBU-CD-001-2071","https://community.secop.gov.co/Public/Tendering/ContractNoticePhases/View?PPI=CO1.PPI.12085587&isFromPublicArea=True&isModal=False","Contratos de prestación de servicios profesionales y de apoyo a la gestión","Contratación directa","Prestación de servicios profesionales y de apoyo a la gestión, o para la ejecución de trabajos artísticos que sólo puedan encomendarse a determinadas personas naturales;","PRESTAR SERVICIOS DE APOYO ADMINISTRATIVA Y ASISTENCIALMENTE A LAS INSPECCIONES DE POLICÍA DE LA LOCALIDAD","Inversión","Un Nuevo Contrato Social y Ambiental para la Bogotá del Siglo XXI",57,{"$f":"IF(ISERROR(VLOOKUP(K64,Proposito_programa!$C$2:$E$59,2,FALSE)),\" \",VLOOKUP(K64,Proposito_programa!$C$2:$E$59,2,FALSE))","v":"Gestión pública local"},{"$f":"IF(ISERROR(VLOOKUP(K64,Proposito_programa!$C$2:$E$59,3,FALSE)),\" \",VLOOKUP(K64,Proposito_programa!$C$2:$E$59,3,FALSE))","v":"Propósito 5: Construir Bogotá - Región con gobierno abierto, transparente y ciudadanía consciente"},"133011605570000002143",null,1110453482,"ADRIANA FENID CASTIBLANCO ","Persona Natural",null,null,null,15897000,null,null,null,15897000,15897000,"2021-03-09","2021-03-11","2021-10-10",210,null,null,null,null,null,null,null,null,"X",null,1]
[52,2021,"FDLBU-CD-001-2072","https://community.secop.gov.co/Public/Tendering/ContractNoticePhases/View?PPI=CO1.PPI.12085621&isFromPublicArea=True&isModal=False","Contratos de prestación de servicios profesionales y de apoyo a la gestión","Contratación directa","Prestación de servicios profesionales y de apoyo a la gestión, o para la ejecución de trabajos artísticos que sólo puedan encomendarse a determinadas personas naturales;","PRESTAR SERVICIOS DE APOYO ADMINISTRATIVA Y ASISTENCIALMENTE A LAS INSPECCIONES DE POLICÍA DE LA LOCALIDAD","Inversión","Un Nuevo Contrato Social y Ambiental para la Bogotá del Siglo XXI",57,{"$f":"IF(ISERROR(VLOOKUP(K65,Proposito_programa!$C$2:$E$59,2,FALSE)),\" \",VLOOKUP(K65,Proposito_programa!$C$2:$E$59,2,FALSE))","v":"Gestión pública local"},{"$f":"IF(ISERROR(VLOOKUP(K65,Proposito_programa!$C$2:$E$59,3,FALSE)),\" \",VLOOKUP(K65,Proposito_programa!$C$2:$E$59,3,FALSE))","v":"Propósito 5: Construir Bogotá - Región con gobierno abierto, transparente y ciudadanía consciente"},"133011605570000002143",null,30204485,"CARMEN HOLANDA SOTOMONTE","Persona Natural",null,null,null,15897000,null,null,null,15897000,15897000,"2021-03-09","2021-03-11","2021-10-10",210,null,null,null,null,null,null,null,null,"X",null,1]
[53,2021,"FDLBU-CD-001-2073","https://community.secop.gov.co/Public/Tendering/ContractNoticePhases/View?PPI=CO1.PPI.12351435&isFromPublicArea=True&isModal=False","Contratos de prestación de servicios profesionales y de apoyo a la gestión","Contratación directa","Prestación de servicios profesionales y de apoyo a la gestión, o para la ejecución de trabajos artísticos que sólo puedan encomendarse a determinadas personas naturales;","PRESTAR SUS SERVICIOS PROFESIONALES PARA APOYAR JURÍDICAMENTE LA \nEJECUCIÓN DE LAS ACCIONES REQUERIDAS PARA LA DEPURACIÓN DE LAS \nACTUACIONES ADMINISTRATIVAS QUE CURSAN EN LA ALCALDÍA LOCAL","Inversión","Un Nuevo Contrato Social y Ambiental para la Bogotá del Siglo XXI",57,{"$f":"IF(ISERROR(VLOOKUP(K66,Proposito_programa!$C$2:$E$59,2,FALSE)),\" \",VLOOKUP(K66,Proposito_programa!$C$2:$E$59,2,FALSE))","v":"Gestión pública local"},{"$f":"IF(ISERROR(VLOOKUP(K66,Proposito_programa!$C$2:$E$59,3,FALSE)),\" \",VLOOKUP(K66,Proposito_programa!$C$2:$E$59,3,FALSE))","v":"Propósito 5: Construir Bogotá - Región con gobierno abierto, transparente y ciudadanía consciente"},"133011605570000002143",null,1094247295,"JOHN EMMANUEL GOMEZ PORTILLA ","Persona Natural",null,null,null,33257000,null,null,null,33257000,31673333,"2021-03-09","2021-03-11","2021-10-10",210,null,null,null,null,null,null,null,null,"X",null,0.95238094235799986]
[54,2021,"FDLBU-CD-001-2074","https://community.secop.gov.co/Public/Tendering/ContractNoticePhases/View?PPI=CO1.PPI.12131916&isFromPublicArea=True&isModal=False","Contratos de prestación de servicios profesionales y de apoyo a la gestión","Contratación directa","Prestación de servicios profesionales y de apoyo a la gestión, o para la ejecución de trabajos artísticos que sólo puedan encomendarse a determinadas personas naturales;","PRESTAR SUS SERVICIOS PROFESIONALES PARA APOYAR JURÍDICAMENTE LA EJECUCIÓN DE LAS ACCIONES REQUERIDAS PARA EL TRÁMITE E IMPULSO PROCESAL DE LAS ACTUACIONES CONTRAVENCIONALES Y/O QUERELLAS QUE CURSEN EN LAS INSPECCIONES DE LA POLICÍA DE LA LOCALIDAD","Inversión","Un Nuevo Contrato Social y Ambiental para la Bogotá del Siglo XXI",57,{"$f":"IF(ISERROR(VLOOKUP(K67,Proposito_programa!$C$2:$E$59,2,FALSE)),\" \",VLOOKUP(K67,Proposito_programa!$C$2:$E$59,2,FALSE))","v":"Gestión pública local"},{"$f":"IF(ISERROR(VLOOKUP(K67,Proposito_programa!$C$2:$E$59,3,FALSE)),\" \",VLOOKUP(K67,Proposito_programa!$C$2:$E$59,3,FALSE))","v":"Propósito 5: Construir Bogotá - Región con gobierno abierto, transparente y ciudadanía consciente"},"133011605570000002143",null,1014217624,"JUAN DAVID ARIZA HERRERA","Persona Natural",null,null,null,33257000,null,null,null,33257000,33257000,"2021-03-09","2021-03-10","2021-10-09",210,null,null,null,null,null,null,null,null,"X",null,1]
[55,2021,"FDLBU-CD-001-2075","https://community.secop.gov.co/Public/Tendering/ContractNoticePhases/View?PPI=CO1.PPI.12353710&isFromPublicArea=True&isModal=False","Contratos de prestación de servicios profesionales y de apoyo a la gestión","Contratación directa","Prestación de servicios profesionales y de apoyo a la gestión, o para la ejecución de trabajos artísticos que sólo puedan encomendarse a determinadas personas naturales;","PRESTAR SERVICIOS PROFESIONALES PARA APOYAR AL ÁREA GESTIÓN DEL DESARROLLO ADMINISTRATIVO Y FINANCIERO EN LOS ASUNTOS RELATIVOS A LA PLANEACIÓN LOCAL: GARANTIZAR LA IMPLEMENTACIÓN Y SEGUIMIENTO DE LOS PROCESOS, PROYECTOS Y PROCEDIMIENTOS DE CONTRATOS SUSCRITOS POR LA ALCALDÍA LOCAL DE BARRIOS UNIDOS DIRIGIDOS AL CUMPLIMIENTO DE LAS METAS DE LA LÍNEA DE INVERSIONES AMBIENTALES SOSTENIBLES","Inversión","Un Nuevo Contrato Social y Ambiental para la Bogotá del Siglo XXI",34,{"$f":"IF(ISERROR(VLOOKUP(K68,Proposito_programa!$C$2:$E$59,2,FALSE)),\" \",VLOOKUP(K68,Proposito_programa!$C$2:$E$59,2,FALSE))","v":"Bogotá protectora de los animales"},{"$f":"IF(ISERROR(VLOOKUP(K68,Proposito_programa!$C$2:$E$59,3,FALSE)),\" \",VLOOKUP(K68,Proposito_programa!$C$2:$E$59,3,FALSE))","v":"Propósito 2 : Cambiar Nuestros Hábitos de Vida para Reverdecer a Bogotá y Adaptarnos y Mitigar la Crisis Climática"},"133011602340000002008",null,23495250,"MYRIAM OBANDO MARIN ","Persona Natural",null,null,null,43700000,null,1,1311000,45011000,37727667,"2021-03-10","2021-03-12","2021-12-31",300,1,20,null,null,null,null,null,null,"X",null,0.83818770967096934]
[56,2021,"FDLBU-CD-001-2076","https://community.secop.gov.co/Public/Tendering/ContractNoticePhases/View?PPI=CO1.PPI.12131350&isFromPublicArea=True&isModal=False","Contratos de prestación de servicios profesionales y de apoyo a la gestión","Contratación directa","Prestación de servicios profesionales y de apoyo a la gestión, o para la ejecución de trabajos artísticos que sólo puedan encomendarse a determinadas personas naturales;","PRESTAR SUS SERVICIOS PROFESIONALES PARA APOYAR JURÍDICAMENTE LA EJECUCIÓN DE LAS ACCIONES REQUERIDAS PARA EL TRÁMITE E IMPULSO PROCESAL DE LAS ACTUACIONES CONTRAVENCIONALES Y/O QUERELLAS QUE CURSEN EN LAS INSPECCIONES DE LA POLICÍA DE LA LOCALIDAD","Inversión","Un Nuevo Contrato Social y Ambiental para la Bogotá del Siglo XXI",57,{"$f":"IF(ISERROR(VLOOKUP(K69,Proposito_programa!$C$2:$E$59,2,FALSE)),\" \",VLOOKUP(K69,Proposito_programa!$C$2:$E$59,2,FALSE))","v":"Gestión pública local"},{"$f":"IF(ISERROR(VLOOKUP(K69,Proposito_programa!$C$2:$E$59,3,FALSE)),\" \",VLOOKUP(K69,Proposito_programa!$C$2:$E$59,3,FALSE))","v":"Propósito 5: Construir Bogotá - Región con gobierno abierto, transparente y ciudadanía consciente"},"133011605570000002143",null,51994040,"CONSUELO CHAVARRO PULIDO","Persona Natural",null,null,null,33257000,null,null,null,33257000,33257000,"2021-03-15","2021-03-15","2021-10-14",210,null,null,null,null,null,null,null,null,"X",null,1]
[57,2021,"FDLBU-CD-001-2077","https://community.secop.gov.co/Public/Tendering/ContractNoticePhases/View?PPI=CO1.PPI.12269784&isFromPublicArea=True&isModal=False","Contratos de prestación de servicios profesionales y de apoyo a la gestión","Contratación directa","Prestación de servicios profesionales y de apoyo a la gestión, o para la ejecución de trabajos artísticos que sólo puedan encomendarse a determinadas personas naturales;","PRESTAR SUS SERVICIOS PROFESIONALES PARA APOYAR TÉCNICAMENTE LAS DISTINTAS ETAPAS DE LOS PROCESOS DE COMPETENCIA DE LA ALCALDÍA LOCAL PARA LA DEPURACIÓN DE ACTUACIONES ADMINISTRATIVAS","Inversión","Un Nuevo Contrato Social y Ambiental para la Bogotá del Siglo XXI",57,{"$f":"IF(ISERROR(VLOOKUP(K70,Proposito_programa!$C$2:$E$59,2,FALSE)),\" \",VLOOKUP(K70,Proposito_programa!$C$2:$E$59,2,FALSE))","v":"Gestión pública local"},{"$f":"IF(ISERROR(VLOOKUP(K70,Proposito_programa!$C$2:$E$59,3,FALSE)),\" \",VLOOKUP(K70,Proposito_programa!$C$2:$E$59,3,FALSE))","v":"Propósito 5: Construir Bogotá - Región con gobierno abierto, transparente y ciudadanía consciente"},"133011605570000002143",null,1015447044,"PAULA CAMILA GUTIERREZ BEJARANO","Persona Natural",null,null,null,39976000,null,1,7328933,47304933,42307933,"2021-03-16","2021-03-17","2021-11-16",240,1,44,null,null,null,null,null,null,"X",null,0.89436619643875193]
[58,2021,"FDLBU-CD-001-2078","https://community.secop.gov.co/Public/Tendering/ContractNoticePhases/View?PPI=CO1.PPI.12385892&isFromPublicArea=True&isModal=False","Contratos de prestación de servicios profesionales y de apoyo a la gestión","Contratación directa","Prestación de servicios profesionales y de apoyo a la gestión, o para la ejecución de trabajos artísticos que sólo puedan encomendarse a determinadas personas naturales;","PRESTAR SERVICIOS PROFESIONALES EN EL ÁREA DE GESTIÓN DEL DESARROLLO, PARA LA EJECUCIÓN Y SEGUIMIENTO DE LOS DIFERENTES PROYECTOS DE INVERSIÓN Y CONTRATOS DE INFRAESTRUCTURA, DE LA LOCALIDAD DE BARRIOS UNIDOS","Inversión","Un Nuevo Contrato Social y Ambiental para la Bogotá del Siglo XXI",49,{"$f":"IF(ISERROR(VLOOKUP(K71,Proposito_programa!$C$2:$E$59,2,FALSE)),\" \",VLOOKUP(K71,Proposito_programa!$C$2:$E$59,2,FALSE))","v":"Movilidad segura, sostenible y accesible"},{"$f":"IF(ISERROR(VLOOKUP(K71,Proposito_programa!$C$2:$E$59,3,FALSE)),\" \",VLOOKUP(K71,Proposito_programa!$C$2:$E$59,3,FALSE))","v":"Propósito 4: Hacer de Bogotá Región un modelo de movilidad multimodal, incluyente y sostenible"},"133011604490000002022",null,1015424383,"NATHALIA DEL PILAR CAMARGO CASALLAS ","Persona Natural",null,null,null,43700000,null,null,null,43700000,37873333,"2021-03-11","2021-03-11","2021-12-31",300,1,10,null,null,null,null,null,null,"X",null,0.86666665903890161]
[59,2021,"FDLBU-CD-001-2079","https://community.secop.gov.co/Public/Tendering/ContractNoticePhases/View?PPI=CO1.PPI.12397452&isFromPublicArea=True&isModal=False","Contratos de prestación de servicios profesionales y de apoyo a la gestión","Contratación directa","Prestación de servicios profesionales y de apoyo a la gestión, o para la ejecución de trabajos artísticos que sólo puedan encomendarse a determinadas personas naturales;","PRESTAR SUS SERVICIOS PROFESIONALES PARA APOYAR TÉCNICAMENTE LAS DISTINTAS ETAPAS DE LOS PROCESOS DE COMPETENCIA DE LAS INSPECCIONES DE POLICÍA DE LA LOCALIDAD, SEGÚN REPARTO","Inversión","Un Nuevo Contrato Social y Ambiental para la Bogotá del Siglo XXI",57,{"$f":"IF(ISERROR(VLOOKUP(K72,Proposito_programa!$C$2:$E$59,2,FALSE)),\" \",VLOOKUP(K72,Proposito_programa!$C$2:$E$59,2,FALSE))","v":"Gestión pública local"},{"$f":"IF(ISERROR(VLOOKUP(K72,Proposito_programa!$C$2:$E$59,3,FALSE)),\" \",VLOOKUP(K72,Proposito_programa!$C$2:$E$59,3,FALSE))","v":"Propósito 5: Construir Bogotá - Región con gobierno abierto, transparente y ciudadanía consciente"},"133011605570000002143",null,79041777,"GUILLERMO FORERO APONTE","Persona Natural",null,null,null,34979000,null,null,null,34979000,34979000,"2021-03-29","2021-04-12","2021-11-11",210,null,null,null,null,null,null,null,null,"X",null,1]
[60,2021,"FDLBU-CD-001-2080","https://community.secop.gov.co/Public/Tendering/ContractNoticePhases/View?PPI=CO1.PPI.12316255&isFromPublicArea=True&isModal=False","Contratos de prestación de servicios profesionales y de apoyo a la gestión","Contratación directa","Prestación de servicios profesionales y de apoyo a la gestión, o para la ejecución de trabajos artísticos que sólo puedan encomendarse a determinadas personas naturales;","PRESTAR SUS SERVICIOS PROFESIONALES PARA APOYAR JURÍDICAMENTE LA EJECUCIÓN DE LAS ACCIONES REQUERIDAS PARA LA DEPURACIÓN DE LAS ACTUACIONES  ADMINISTRATIVAS QUE CURSAN EN LA ALCALDÍA LOCAL ","Inversión","Un Nuevo Contrato Social y Ambiental para la Bogotá del Siglo XXI",57,{"$f":"IF(ISERROR(VLOOKUP(K73,Proposito_programa!$C$2:$E$59,2,FALSE)),\" \",VLOOKUP(K73,Proposito_programa!$C$2:$E$59,2,FALSE))","v":"Gestión pública local"},{"$f":"IF(ISERROR(VLOOKUP(K73,Proposito_programa!$C$2:$E$59,3,FALSE)),\" \",VLOOKUP(K73,Proposito_programa!$C$2:$E$59,3,FALSE))","v":"Propósito 5: Construir Bogotá - Región con gobierno abierto, transparente y ciudadanía consciente"},"133011605570000002143",null,1000269976,"KAREN LORENA MARIN CALDERON","Persona Natural",null,null,null,37200000,null,null,null,37200000,37200000,"2021-03-15","2021-03-15","2021-09-14",180,null,null,null,null,null,null,null,null,"X",null,1]
[61,2021,"FDLBU-CD-001-2081","https://community.secop.gov.co/Public/Tendering/ContractNoticePhases/View?PPI=CO1.PPI.12097753&isFromPublicArea=True&isModal=False","Contratos de prestación de servicios profesionales y de apoyo a la gestión","Contratación directa","Prestación de servicios profesionales y de apoyo a la gestión, o para la ejecución de trabajos artísticos que sólo puedan encomendarse a determinadas personas naturales;","PRESTAR SERVICIOS DE APOYO ADMINISTRATIVA Y ASISTENCIALMENTE A LAS INSPECCIONES DE POLICÍA DE LA LOCALIDAD","Inversión","Un Nuevo Contrato Social y Ambiental para la Bogotá del Siglo XXI",57,{"$f":"IF(ISERROR(VLOOKUP(K74,Proposito_programa!$C$2:$E$59,2,FALSE)),\" \",VLOOKUP(K74,Proposito_programa!$C$2:$E$59,2,FALSE))","v":"Gestión pública local"},{"$f":"IF(ISERROR(VLOOKUP(K74,Proposito_programa!$C$2:$E$59,3,FALSE)),\" \",VLOOKUP(K74,Proposito_programa!$C$2:$E$59,3,FALSE))","v":"Propósito 5: Construir Bogotá - Región con gobierno abierto, transparente y ciudadanía consciente"},"133011605570000002143",null,1033782585,"NATALY ALEXANDRA RAMIREZ RODRIGUEZ","Persona Natural",null,null,null,15897000,null,null,null,15897000,15897000,"2021-03-24","2021-03-25","2021-10-24",210,null,null,null,null,null,null,null,null,"X",null,1]
[62,2021,"FDLBU-CD-001-2082","https://community.secop.gov.co/Public/Tendering/ContractNoticePhases/View?PPI=CO1.PPI.12086932&isFromPublicArea=True&isModal=False","Contratos de prestación de servicios profesionales y de apoyo a la gestión","Contratación directa","Prestación de servicios profesionales y de apoyo a la gestión, o para la ejecución de trabajos artísticos que sólo puedan encomendarse a determinadas personas naturales;","PRESTAR SERVICIOS DE APOYO ADMINISTRATIVA Y ASISTENCIALMENTE A LAS INSPECCIONES DE POLICÍA DE LA LOCALIDAD","Inversión","Un Nuevo Contrato Social y Ambiental para la Bogotá del Siglo XXI",57,{"$f":"IF(ISERROR(VLOOKUP(K75,Proposito_programa!$C$2:$E$59,2,FALSE)),\" \",VLOOKUP(K75,Proposito_programa!$C$2:$E$59,2,FALSE))","v":"Gestión pública local"},{"$f":"IF(ISERROR(VLOOKUP(K75,Proposito_programa!$C$2:$E$59,3,FALSE)),\" \",VLOOKUP(K75,Proposito_programa!$C$2:$E$59,3,FALSE))","v":"Propósito 5: Construir Bogotá - Región con gobierno abierto, transparente y ciudadanía consciente"},"133011605570000002143",null,79826818,"GIOVANNI SANCHEZ SABOGAL","Persona Natural",null,null,null,15897000,null,null,null,15897000,15897000,"2021-03-24","2021-03-24","2021-10-23",210,null,null,null,null,null,null,null,null,"X",null,1]
[63,2021,"FDLBU-CD-001-2083","https://community.secop.gov.co/Public/Tendering/ContractNoticePhases/View?PPI=CO1.PPI.12408901&isFromPublicArea=True&isModal=False","Contratos de prestación de servicios profesionales y de apoyo a la gestión","Contratación directa","Prestación de servicios profesionales y de apoyo a la gestión, o para la ejecución de trabajos artísticos que sólo puedan encomendarse a determinadas personas naturales;","PRESTAR SERVICIOS PROFESIONALES EN EL\nÁREA DE GESTIÓN DEL DESARROLLO, PARA LA EJECUCIÓN Y SEGUIMIENTO DE LOS\nDIFERENTES PROYECTOS DE INVERSIÓN Y CONTRATOS DE INFRAESTRUCTURA, DE LA\nLOCALIDAD DE BARRIOS UNIDOS","Inversión","Un Nuevo Contrato Social y Ambiental para la Bogotá del Siglo XXI",49,{"$f":"IF(ISERROR(VLOOKUP(K76,Proposito_programa!$C$2:$E$59,2,FALSE)),\" \",VLOOKUP(K76,Proposito_programa!$C$2:$E$59,2,FALSE))","v":"Movilidad segura, sostenible y accesible"},{"$f":"IF(ISERROR(VLOOKUP(K76,Proposito_programa!$C$2:$E$59,3,FALSE)),\" \",VLOOKUP(K76,Proposito_programa!$C$2:$E$59,3,FALSE))","v":"Propósito 4: Hacer de Bogotá Región un modelo de movilidad multimodal, incluyente y sostenible"},"133011604490000002022",null,1018472177,"PAOLA ANDREA LEON TORRES","Persona Natural",null,null,null,47500000,null,null,null,47500000,40533333,"2021-03-12","2021-03-15","2021-12-31",300,1,14,null,null,null,null,null,null,"X",null,0.85333332631578951]
[64,2021,"FDLBU-CD-001-2084","https://community.secop.gov.co/Public/Tendering/ContractNoticePhases/View?PPI=CO1.PPI.12131377&isFromPublicArea=True&isModal=False","Contratos de prestación de servicios profesionales y de apoyo a la gestión","Contratación directa","Prestación de servicios profesionales y de apoyo a la gestión, o para la ejecución de trabajos artísticos que sólo puedan encomendarse a determinadas personas naturales;","PRESTAR SERVICIOS DE APOYO ADMINISTRATIVA Y ASISTENCIALMENTE A LAS INSPECCIONES DE POLICÍA DE LA LOCALIDAD","Inversión","Un Nuevo Contrato Social y Ambiental para la Bogotá del Siglo XXI",57,{"$f":"IF(ISERROR(VLOOKUP(K77,Proposito_programa!$C$2:$E$59,2,FALSE)),\" \",VLOOKUP(K77,Proposito_programa!$C$2:$E$59,2,FALSE))","v":"Gestión pública local"},{"$f":"IF(ISERROR(VLOOKUP(K77,Proposito_programa!$C$2:$E$59,3,FALSE)),\" \",VLOOKUP(K77,Proposito_programa!$C$2:$E$59,3,FALSE))","v":"Propósito 5: Construir Bogotá - Región con gobierno abierto, transparente y ciudadanía consciente"},"133011605570000002143",null,1015427264,"PAULA LORENA LEGUIZAMON","Persona Natural",null,null,null,15897000,null,null,null,15897000,15897000,"2021-03-16","2021-03-18","2021-10-17",210,null,null,null,null,null,null,null,null,"X",null,1]
[65,2021,"FDLBU-CD-001-2085","https://community.secop.gov.co/Public/Tendering/ContractNoticePhases/View?PPI=CO1.PPI.12369357&isFromPublicArea=True&isModal=False","Contratos de prestación de servicios profesionales y de apoyo a la gestión","Contratación directa","Prestación de servicios profesionales y de apoyo a la gestión, o para la ejecución de trabajos artísticos que sólo puedan encomendarse a determinadas personas naturales;","PRESTAR SERVICIOS DE APOYO EN LAS ACTIVIDADES DEL PROYECTO DE INVERSIÓN YULIANA SAMBONI Y EN LAS ACTIVIDADES DE ARTICULACIÓN, ASISTENCIA Y ACOMPAÑAMIENTO DE LOS DEMÁS PROCESOS DE PLANEACIÓN\nLOCAL EN LA PROMOCIÓN DE LA PARTICIPACIÓN DE LAS MUJERES Y DE LA EQUIDAD DE GÉNERO PARA MATERIALIZAR EN LA LOCALIDAD LAS ESTRATEGIAS DE TERRITORIALIZACIÓN Y TRANSVERSALIZACIÓN DE LA POLÍTICA PUBLICA DE MUJERES Y EQUIDAD DE GÉNERO, PPMYEG.","Inversión","Un Nuevo Contrato Social y Ambiental para la Bogotá del Siglo XXI",40,{"$f":"IF(ISERROR(VLOOKUP(K78,Proposito_programa!$C$2:$E$59,2,FALSE)),\" \",VLOOKUP(K78,Proposito_programa!$C$2:$E$59,2,FALSE))","v":"Más mujeres viven una vida libre de violencias, se sienten seguras y acceden con confianza al sistema de justicia"},{"$f":"IF(ISERROR(VLOOKUP(K78,Proposito_programa!$C$2:$E$59,3,FALSE)),\" \",VLOOKUP(K78,Proposito_programa!$C$2:$E$59,3,FALSE))","v":"Propósito 3: Inspirar confianza y legitimidad para vivir sin miedo y ser epicentro de cultura ciudadana, paz y reconciliación"},"133011603400000002057",null,1018445475,"KAREN RODRIGUEZ SOSA ","Persona Natural",null,null,null,18168000,null,1,2649500,20817500,19303500,"2021-03-15","2021-03-16","2021-11-15",240,1,35,null,null,null,null,null,null,"X",null,0.92727272727272725]
[66,2021,"FDLBU-CD-001-2086","https://community.secop.gov.co/Public/Tendering/ContractNoticePhases/View?PPI=CO1.PPI.12389588&isFromPublicArea=True&isModal=False","Contratos de prestación de servicios profesionales y de apoyo a la gestión","Contratación directa","Prestación de servicios profesionales y de apoyo a la gestión, o para la ejecución de trabajos artísticos que sólo puedan encomendarse a determinadas personas naturales;","PRESTAR SERVICIOS DE APOYO EN LAS\nACTIVIDADES DEL PROYECTO DE INVERSIÓN YULIANA SAMBONI Y EN LAS ACTIVIDADES DE\nARTICULACIÓN, ASISTENCIA Y ACOMPAÑAMIENTO DE LOS DEMÁS PROCESOS DE PLANEACIÓN\nLOCAL EN LA PROMOCIÓN DE LA PARTICIPACIÓN DE LAS MUJERES Y DE LA EQUIDAD DE\nGÉNERO PARA MATERIALIZAR EN LA LOCALIDAD LAS ESTRATEGIAS DE TERRITORIALIZACIÓN Y\nTRANSVERSALIZACIÓN DE LA POLÍTICA PUBLICA DE MUJERES Y EQUIDAD DE GÉNERO, PPMYEG.","Inversión","Un Nuevo Contrato Social y Ambiental para la Bogotá del Siglo XXI",40,{"$f":"IF(ISERROR(VLOOKUP(K79,Proposito_programa!$C$2:$E$59,2,FALSE)),\" \",VLOOKUP(K79,Proposito_programa!$C$2:$E$59,2,FALSE))","v":"Más mujeres viven una vida libre de violencias, se sienten seguras y acceden con confianza al sistema de justicia"},{"$f":"IF(ISERROR(VLOOKUP(K79,Proposito_programa!$C$2:$E$59,3,FALSE)),\" \",VLOOKUP(K79,Proposito_programa!$C$2:$E$59,3,FALSE))","v":"Propósito 3: Inspirar confianza y legitimidad para vivir sin miedo y ser epicentro de cultura ciudadana, paz y reconciliación"},"133011603400000002057",null,1094910132,"LUZ ADRIANA HERNANDEZ MARIN","Persona Natural",null,null,null,18168000,null,1,2725200,20893200,19379200,"2021-03-15","2021-03-15","2021-11-14",240,1,36,null,null,null,null,null,null,"X",null,0.92753623188405798]
[67,2021,"FDLBU-CD-001-2087","https://community.secop.gov.co/Public/Tendering/ContractNoticePhases/View?PPI=CO1.PPI.12411749&isFromPublicArea=True&isModal=False","Contratos de prestación de servicios profesionales y de apoyo a la gestión","Contratación directa","Prestación de servicios profesionales y de apoyo a la gestión, o para la ejecución de trabajos artísticos que sólo puedan encomendarse a determinadas personas naturales;","PRESTAR SERVICIOS DE APOYO EN LAS ACTIVIDADES \nDE SEGURIDAD, PROMOCIÓN DE LA CONVIVENCIA Y DE ATENCIÓN DE \nMOVILIZACIONES Y AGLOMERACIONES EN EL TERRITORIO.","Inversión","Un Nuevo Contrato Social y Ambiental para la Bogotá del Siglo XXI",43,{"$f":"IF(ISERROR(VLOOKUP(K80,Proposito_programa!$C$2:$E$59,2,FALSE)),\" \",VLOOKUP(K80,Proposito_programa!$C$2:$E$59,2,FALSE))","v":"Cultura ciudadana para la confianza, la convivencia y la participación desde la vida cotidiana"},{"$f":"IF(ISERROR(VLOOKUP(K80,Proposito_programa!$C$2:$E$59,3,FALSE)),\" \",VLOOKUP(K80,Proposito_programa!$C$2:$E$59,3,FALSE))","v":"Propósito 3: Inspirar confianza y legitimidad para vivir sin miedo y ser epicentro de cultura ciudadana, paz y reconciliación"},"133011603430000002149",null,79577831,"JOSE ENRIQUE MENDOZA GALINDO","Persona Natural",null,null,null,11355000,null,null,null,11355000,11355000,"2021-03-15","2021-03-16","2021-08-15",150,null,null,null,null,null,null,null,null,"X",null,1]
[68,2021,"FDLBU-CD-001-2088","https://community.secop.gov.co/Public/Tendering/ContractNoticePhases/View?PPI=CO1.PPI.12448272&isFromPublicArea=True&isModal=False","Contratos de prestación de servicios profesionales y de apoyo a la gestión","Contratación directa","Prestación de servicios profesionales y de apoyo a la gestión, o para la ejecución de trabajos artísticos que sólo puedan encomendarse a determinadas personas naturales;","PRESTAR SERVICIOS DE APOYO A LA GESTIÓN DEL DESARROLLO EN LAS LABORES DE PLANEACIÓN EN LAS ACTIVIDADES CONCERNIENTES AL PROYECTO IMPULSEMOS ECONOMÍA LOCAL.","Inversión","Un Nuevo Contrato Social y Ambiental para la Bogotá del Siglo XXI",6,{"$f":"IF(ISERROR(VLOOKUP(K81,Proposito_programa!$C$2:$E$59,2,FALSE)),\" \",VLOOKUP(K81,Proposito_programa!$C$2:$E$59,2,FALSE))","v":"Sistema Distrital de Cuidado"},{"$f":"IF(ISERROR(VLOOKUP(K81,Proposito_programa!$C$2:$E$59,3,FALSE)),\" \",VLOOKUP(K81,Proposito_programa!$C$2:$E$59,3,FALSE))","v":"Propósito 1: Hacer un nuevo contrato social para incrementar la inclusión social, productiva y política"},"133011601060000002135",null,1020737893,"JENNY ANDREA HERNANDEZ MURCIA","Persona Natural",null,null,null,18168000,null,1,2649500,20817500,19152100,"2021-03-18","2021-03-18","2021-11-17",240,1,35,null,null,null,null,null,null,"X",null,0.92]
[69,2021,"FDLBU-CD-001-2089","https://community.secop.gov.co/Public/Tendering/ContractNoticePhases/View?PPI=CO1.PPI.12390157&isFromPublicArea=True&isModal=False","Contratos de prestación de servicios profesionales y de apoyo a la gestión","Contratación directa","Prestación de servicios profesionales y de apoyo a la gestión, o para la ejecución de trabajos artísticos que sólo puedan encomendarse a determinadas personas naturales;","PRESTAR SERVICIOS DE APOYO EN LAS\nACTIVIDADES DEL PROYECTO DE INVERSIÓN YULIANA SAMBONI Y EN LAS ACTIVIDADES DE\nARTICULACIÓN, ASISTENCIA Y ACOMPAÑAMIENTO DE LOS DEMÁS PROCESOS DE PLANEACIÓN\nLOCAL EN LA PROMOCIÓN DE LA PARTICIPACIÓN DE LAS MUJERES Y DE LA EQUIDAD DE\nGÉNERO PARA MATERIALIZAR EN LA LOCALIDAD LAS ESTRATEGIAS DE TERRITORIALIZACIÓN Y\nTRANSVERSALIZACIÓN DE LA POLÍTICA PUBLICA DE MUJERES Y EQUIDAD DE GÉNERO","Inversión","Un Nuevo Contrato Social y Ambiental para la Bogotá del Siglo XXI",40,{"$f":"IF(ISERROR(VLOOKUP(K82,Proposito_programa!$C$2:$E$59,2,FALSE)),\" \",VLOOKUP(K82,Proposito_programa!$C$2:$E$59,2,FALSE))","v":"Más mujeres viven una vida libre de violencias, se sienten seguras y acceden con confianza al sistema de justicia"},{"$f":"IF(ISERROR(VLOOKUP(K82,Proposito_programa!$C$2:$E$59,3,FALSE)),\" \",VLOOKUP(K82,Proposito_programa!$C$2:$E$59,3,FALSE))","v":"Propósito 3: Inspirar confianza y legitimidad para vivir sin miedo y ser epicentro de cultura ciudadana, paz y reconciliación"},"133011603400000002057",null,1032459423,"MARÍA PAULA PARDO VARGAS","Persona Natural",null,null,null,18168000,null,1,2573800,20741800,19303500,"2021-03-15","2021-03-16","2021-11-15",240,1,34,null,null,null,null,null,null,"X",null,0.93065693430656937]
[70,2021,"FDLBU-CD-001-2090","https://community.secop.gov.co/Public/Tendering/ContractNoticePhases/View?PPI=CO1.PPI.12406806&isFromPublicArea=True&isModal=False","Contratos de prestación de servicios profesionales y de apoyo a la gestión","Contratación directa","Prestación de servicios profesionales y de apoyo a la gestión, o para la ejecución de trabajos artísticos que sólo puedan encomendarse a determinadas personas naturales;","PRESTAR SUS SERVICIOS PROFESIONALES PARA APOYAR JURÍDICAMENTE LA EJECUCIÓN DE LAS ACCIONES REQUERIDAS PARA LA DEPURACIÓN DE LAS ACTUACIONES ADMINISTRATIVAS QUE CURSAN EN LA ALCALDÍA LOCAL","Inversión","Un Nuevo Contrato Social y Ambiental para la Bogotá del Siglo XXI",57,{"$f":"IF(ISERROR(VLOOKUP(K83,Proposito_programa!$C$2:$E$59,2,FALSE)),\" \",VLOOKUP(K83,Proposito_programa!$C$2:$E$59,2,FALSE))","v":"Gestión pública local"},{"$f":"IF(ISERROR(VLOOKUP(K83,Proposito_programa!$C$2:$E$59,3,FALSE)),\" \",VLOOKUP(K83,Proposito_programa!$C$2:$E$59,3,FALSE))","v":"Propósito 5: Construir Bogotá - Región con gobierno abierto, transparente y ciudadanía consciente"},"133011605570000002143",null,80126559,"HERNAN DAVID OVALLE BRICEÑO","Persona Natural",null,null,null,33257000,null,null,null,{"$f":"+V83+W83+Y83","v":33257000},33257000,"2021-03-15","2021-03-17","2021-10-17",210,null,null,null,null,null,null,null,null,"X",null,{"$f":"IF(ISERROR(AA83/Z83),\"-\",(AA83/Z83))","v":1}]
[71,2021,"FDLBU-CD-001-2091","https://community.secop.gov.co/Public/Tendering/ContractNoticePhases/View?PPI=CO1.PPI.12357864&isFromPublicArea=True&isModal=False","Contratos de prestación de servicios profesionales y de apoyo a la gestión","Contratación directa","Prestación de servicios profesionales y de apoyo a la gestión, o para la ejecución de trabajos artísticos que sólo puedan encomendarse a determinadas personas naturales;","PRESTAR LOS SERVICIOS PROFESIONALES PARA APOYAR AL ÁREA GESTIÓN DEL DESARROLLO ADMINISTRATIVO Y FINANCIERO EN LOS ASUNTOS RELATIVOS A LA PLANEACIÓN LOCAL, ASÍ COMO EL APOYO A LA SUPERVISIÓN DE CONTRATOS SUSCRITOS POR LA ALCALDÍA LOCAL DE BARRIOS UNIDOS","Inversión","Un Nuevo Contrato Social y Ambiental para la Bogotá del Siglo XXI",57,{"$f":"IF(ISERROR(VLOOKUP(K84,Proposito_programa!$C$2:$E$59,2,FALSE)),\" \",VLOOKUP(K84,Proposito_programa!$C$2:$E$59,2,FALSE))","v":"Gestión pública local"},{"$f":"IF(ISERROR(VLOOKUP(K84,Proposito_programa!$C$2:$E$59,3,FALSE)),\" \",VLOOKUP(K84,Proposito_programa!$C$2:$E$59,3,FALSE))","v":"Propósito 5: Construir Bogotá - Región con gobierno abierto, transparente y ciudadanía consciente"},"133011605570000002143",null,74380410,"OSMAR FABIAN MORALES NOVOA","Persona Natural",null,null,null,51780000,null,null,null,51780000,41769200,"2021-03-24","2021-03-29","2021-12-31",300,1,20,null,null,null,null,null,null,"X",null,0.80666666666666664]
[72,2021,"FDLBU-CD-001-2092","https://community.secop.gov.co/Public/Tendering/ContractNoticePhases/View?PPI=CO1.PPI.11990700&isFromPublicArea=True&isModal=False","Contratos de prestación de servicios profesionales y de apoyo a la gestión","Contratación directa","Prestación de servicios profesionales y de apoyo a la gestión, o para la ejecución de trabajos artísticos que sólo puedan encomendarse a determinadas personas naturales;","PRESTAR LOS SERVICIOS DE APOYO A LA GESTIÓN EN LA CONDUCCIÓN DE LOS VEHÍCULOS A CARGO DE EL FONDO DE DESARROLLO LOCAL DE BARRIOS UNIDOS, ASÍ COMO APOYAR LA GESTIÓN ADMINISTRATIVA QUE DESIGNE EL SUPERVISOR.","Inversión","Un Nuevo Contrato Social y Ambiental para la Bogotá del Siglo XXI",57,{"$f":"IF(ISERROR(VLOOKUP(K85,Proposito_programa!$C$2:$E$59,2,FALSE)),\" \",VLOOKUP(K85,Proposito_programa!$C$2:$E$59,2,FALSE))","v":"Gestión pública local"},{"$f":"IF(ISERROR(VLOOKUP(K85,Proposito_programa!$C$2:$E$59,3,FALSE)),\" \",VLOOKUP(K85,Proposito_programa!$C$2:$E$59,3,FALSE))","v":"Propósito 5: Construir Bogotá - Región con gobierno abierto, transparente y ciudadanía consciente"},"133011605570000002143",null,19484273,"HUMBERTO VILLAMIL ACEVEDO","Persona Natural",null,null,null,24070000,null,null,null,24070000,18935067,"2021-03-25","2021-04-05","2021-12-31",300,null,null,null,null,null,null,null,null,"X",null,0.78666668051516409]
[73,2021,"FDLBU-CD-001-2093","https://community.secop.gov.co/Public/Tendering/ContractNoticePhases/View?PPI=CO1.PPI.12402242&isFromPublicArea=True&isModal=False","Contratos de prestación de servicios profesionales y de apoyo a la gestión","Contratación directa","Prestación de servicios profesionales y de apoyo a la gestión, o para la ejecución de trabajos artísticos que sólo puedan encomendarse a determinadas personas naturales;","PRESTAR SUS SERVICIOS PROFESIONALES PARA APOYAR JURÍDICAMENTE LA EJECUCIÓN DE LAS ACCIONES REQUERIDAS PARA LA DEPURACIÓN DE LAS ACTUACIONES ADMINISTRATIVAS QUE CURSAN EN LA ALCALDÍA LOCAL","Inversión","Un Nuevo Contrato Social y Ambiental para la Bogotá del Siglo XXI",57,{"$f":"IF(ISERROR(VLOOKUP(K86,Proposito_programa!$C$2:$E$59,2,FALSE)),\" \",VLOOKUP(K86,Proposito_programa!$C$2:$E$59,2,FALSE))","v":"Gestión pública local"},{"$f":"IF(ISERROR(VLOOKUP(K86,Proposito_programa!$C$2:$E$59,3,FALSE)),\" \",VLOOKUP(K86,Proposito_programa!$C$2:$E$59,3,FALSE))","v":"Propósito 5: Construir Bogotá - Región con gobierno abierto, transparente y ciudadanía consciente"},"133011605570000002143",null,52731958,"MERLY JOHANNA GARCIA LOPEZ","Persona Natural",null,null,null,33257000,null,null,null,33257000,33257000,"2021-03-19","2021-03-19","2021-10-18",210,null,null,null,null,null,null,null,null,"X",null,1]
[74,2021,"FDLBU-CD-001-2094","https://community.secop.gov.co/Public/Tendering/ContractNoticePhases/View?PPI=CO1.PPI.12412164&isFromPublicArea=True&isModal=False","Contratos de prestación de servicios profesionales y de apoyo a la gestión","Contratación directa","Prestación de servicios profesionales y de apoyo a la gestión, o para la ejecución de trabajos artísticos que sólo puedan encomendarse a determinadas personas naturales;","PRESTAR SERVICIOS DE APOYO EN LAS  ACTIVIDADES DE EGURIDAD, PROMOCIÓN DE LA CONVIVENCIA Y DE ATENCIÓN DE \nMOVILIZACIONES Y AGLOMERACIONES EN EL TERRITORIO","Inversión","Un Nuevo Contrato Social y Ambiental para la Bogotá del Siglo XXI",43,{"$f":"IF(ISERROR(VLOOKUP(K87,Proposito_programa!$C$2:$E$59,2,FALSE)),\" \",VLOOKUP(K87,Proposito_programa!$C$2:$E$59,2,FALSE))","v":"Cultura ciudadana para la confianza, la convivencia y la participación desde la vida cotidiana"},{"$f":"IF(ISERROR(VLOOKUP(K87,Proposito_programa!$C$2:$E$59,3,FALSE)),\" \",VLOOKUP(K87,Proposito_programa!$C$2:$E$59,3,FALSE))","v":"Propósito 3: Inspirar confianza y legitimidad para vivir sin miedo y ser epicentro de cultura ciudadana, paz y reconciliación"},"133011603430000002149",null,1015413136,"RAUL ALEJANDRO PARDO MORALES","Persona Natural",null,null,null,13626000,null,null,null,13626000,13626000,"2021-03-16","2021-03-16","2021-09-15",180,null,null,null,null,null,null,null,null,"X",null,1]
[75,2021,"FDLBU-CD-001-2095","https://community.secop.gov.co/Public/Tendering/ContractNoticePhases/View?PPI=CO1.PPI.12411795&isFromPublicArea=True&isModal=False","Contratos de prestación de servicios profesionales y de apoyo a la gestión","Contratación directa","Prestación de servicios profesionales y de apoyo a la gestión, o para la ejecución de trabajos artísticos que sólo puedan encomendarse a determinadas personas naturales;","PRESTAR SERVICIOS DE APOYO EN LAS  ACTIVIDADES DE EGURIDAD, PROMOCIÓN DE LA CONVIVENCIA Y DE ATENCIÓN DE \nMOVILIZACIONES Y AGLOMERACIONES EN EL TERRITORIO","Inversión","Un Nuevo Contrato Social y Ambiental para la Bogotá del Siglo XXI",43,{"$f":"IF(ISERROR(VLOOKUP(K88,Proposito_programa!$C$2:$E$59,2,FALSE)),\" \",VLOOKUP(K88,Proposito_programa!$C$2:$E$59,2,FALSE))","v":"Cultura ciudadana para la confianza, la convivencia y la participación desde la vida cotidiana"},{"$f":"IF(ISERROR(VLOOKUP(K88,Proposito_programa!$C$2:$E$59,3,FALSE)),\" \",VLOOKUP(K88,Proposito_programa!$C$2:$E$59,3,FALSE))","v":"Propósito 3: Inspirar confianza y legitimidad para vivir sin miedo y ser epicentro de cultura ciudadana, paz y reconciliación"},"133011603430000002149",null,79523967,"JORGE OSWALDO SOLER RINCON ","Persona Natural",null,null,null,11355000,null,null,null,11355000,11355000,"2021-03-18","2021-03-23","2021-08-22",150,null,null,null,null,null,null,null,null,"X",null,1]
[76,2021,"FDLBU-CD-001-2096","https://community.secop.gov.co/Public/Tendering/ContractNoticePhases/View?PPI=CO1.PPI.12421314&isFromPublicArea=True&isModal=False","Contratos de prestación de servicios profesionales y de apoyo a la gestión","Contratación directa","Prestación de servicios profesionales y de apoyo a la gestión, o para la ejecución de trabajos artísticos que sólo puedan encomendarse a determinadas personas naturales;","PRESTAR SERVICIOS PROFESIONALES EN EL ÁREA DE GESTIÓN DEL DESARROLLO, PARA LA EJECUCIÓN Y SEGUIMIENTO DE LOS DIFERENTES PROYECTOS DE INVERSIÓN Y CONTRATOS  DE INFRAESTRUCTURA, DE LA LOCALIDAD DE BARRIOS UNIDOS","Inversión","Un Nuevo Contrato Social y Ambiental para la Bogotá del Siglo XXI",49,{"$f":"IF(ISERROR(VLOOKUP(K89,Proposito_programa!$C$2:$E$59,2,FALSE)),\" \",VLOOKUP(K89,Proposito_programa!$C$2:$E$59,2,FALSE))","v":"Movilidad segura, sostenible y accesible"},{"$f":"IF(ISERROR(VLOOKUP(K89,Proposito_programa!$C$2:$E$59,3,FALSE)),\" \",VLOOKUP(K89,Proposito_programa!$C$2:$E$59,3,FALSE))","v":"Propósito 4: Hacer de Bogotá Región un modelo de movilidad multimodal, incluyente y sostenible"},"133011604490000002022",null,1094576712,"NEIL ANDRES LLAIN TORRADO","Persona Natural",null,null,null,43700000,null,null,null,43700000,36708000,"2021-03-18","2021-03-19","2021-12-31",300,1,18,null,"JUAN CARLOS CRUZ HERNANDEZ","2021-07-23",null,null,null,"X",null,0.84]
[77,2021,"FDLBU-CD-001-2097","https://community.secop.gov.co/Public/Tendering/ContractNoticePhases/View?PPI=CO1.PPI.12402422&isFromPublicArea=True&isModal=False","Contratos de prestación de servicios profesionales y de apoyo a la gestión","Contratación directa","Prestación de servicios profesionales y de apoyo a la gestión, o para la ejecución de trabajos artísticos que sólo puedan encomendarse a determinadas personas naturales;","PRESTAR LOS SERVICIOS PROFESIONALES PARA LIDERAR LA FORMULACIÓN, GESTIÓN, SEGUIMIENTO Y SUPERVISIÓN DEL PROYECTO DE INVERSIÓN YULIANA SAMBONI Y COORDINAR LA ARTICULACIÓN, ASISTENCIA Y ACOMPAÑAMIENTO DE LOS PROCESOS DE PLANEACIÓN LOCAL EN LA PROMOCIÓN DE LA PARTICIPACIÓN DE LAS MUJERES Y DE LA EQUIDAD DE GÉNERO PARA MATERIALIZAR EN LA LOCALIDAD LAS ESTRATEGIAS DE TERRITORIALIZACIÓN Y TRANSVERSALIZACIÓN DE LA POLÍTICA PUBLICA DE MUJERES Y EQUIDAD DE GÉNERO, PPMYEG.","Inversión","Un Nuevo Contrato Social y Ambiental para la Bogotá del Siglo XXI",40,{"$f":"IF(ISERROR(VLOOKUP(K90,Proposito_programa!$C$2:$E$59,2,FALSE)),\" \",VLOOKUP(K90,Proposito_programa!$C$2:$E$59,2,FALSE))","v":"Más mujeres viven una vida libre de violencias, se sienten seguras y acceden con confianza al sistema de justicia"},{"$f":"IF(ISERROR(VLOOKUP(K90,Proposito_programa!$C$2:$E$59,3,FALSE)),\" \",VLOOKUP(K90,Proposito_programa!$C$2:$E$59,3,FALSE))","v":"Propósito 3: Inspirar confianza y legitimidad para vivir sin miedo y ser epicentro de cultura ciudadana, paz y reconciliación"},"133011603400000002057",null,1085336829,"MARIA PAULA VALLEJO ARTEAGA","Persona Natural",null,null,null,43700000,null,null,null,43700000,36125333,"2021-03-19","2021-03-23","2021-12-31",300,1,22,null,null,null,null,null,null,"X",null,0.82666665903890157]
[78,2021,"FDLBU-CD-001-2098","https://community.secop.gov.co/Public/Tendering/ContractNoticePhases/View?PPI=CO1.PPI.12463094&isFromPublicArea=True&isModal=False","Contratos de prestación de servicios profesionales y de apoyo a la gestión","Contratación directa","Prestación de servicios profesionales y de apoyo a la gestión, o para la ejecución de trabajos artísticos que sólo puedan encomendarse a determinadas personas naturales;","PRESTAR SERVICIOS DE APOYO A LA GESTIÓN DEL DESARROLLO EN LAS LABORES DE PLANEACIÓN REFERENTES A LA REACTIVACIÓN DE LA ECONOMÍA LOCAL","Inversión","Un Nuevo Contrato Social y Ambiental para la Bogotá del Siglo XXI",6,{"$f":"IF(ISERROR(VLOOKUP(K91,Proposito_programa!$C$2:$E$59,2,FALSE)),\" \",VLOOKUP(K91,Proposito_programa!$C$2:$E$59,2,FALSE))","v":"Sistema Distrital de Cuidado"},{"$f":"IF(ISERROR(VLOOKUP(K91,Proposito_programa!$C$2:$E$59,3,FALSE)),\" \",VLOOKUP(K91,Proposito_programa!$C$2:$E$59,3,FALSE))","v":"Propósito 1: Hacer un nuevo contrato social para incrementar la inclusión social, productiva y política"},"133011601060000002135",null,80100885,"LUIS ENRIQUE CASTAÑEDA LOZANO","Persona Natural",null,null,null,12719000,null,null,null,12719000,5996100,"2021-03-18","2021-03-23","2021-10-22",210,null,null,null,"BRIGIT PAOLA CARDENAS SOTO","2021-07-14",null,null,null,"X",null,0.47142857142857142]
[79,2021,"FDLBU-CD-001-2099","https://community.secop.gov.co/Public/Tendering/ContractNoticePhases/View?PPI=CO1.PPI.12377765&isFromPublicArea=True&isModal=False","Contratos de prestación de servicios profesionales y de apoyo a la gestión","Contratación directa","Prestación de servicios profesionales y de apoyo a la gestión, o para la ejecución de trabajos artísticos que sólo puedan encomendarse a determinadas personas naturales;","PRESTAR SUS SERVICIOSDE APOYO PARA APOYAR LA GESTIÓN DOCUMENTAL DE LA ALCALDÍA LOCAL EN LA IMPLEMENTACIÓN DE LOS PROCESOS DE CLASIFICACIÓN, ORDENACIÓN, SELECCIÓN NATURAL, FOLIACIÓN, IDENTIFICACIÓN, LEVANTAMIENTO DE INVENTARIOS, ALMACENAMIENTO Y APLICACIÓN DE PROTOCOLOS DE ELIMINACIÓN Y TRANSFERENCIAS","Inversión","Un Nuevo Contrato Social y Ambiental para la Bogotá del Siglo XXI",57,{"$f":"IF(ISERROR(VLOOKUP(K92,Proposito_programa!$C$2:$E$59,2,FALSE)),\" \",VLOOKUP(K92,Proposito_programa!$C$2:$E$59,2,FALSE))","v":"Gestión pública local"},{"$f":"IF(ISERROR(VLOOKUP(K92,Proposito_programa!$C$2:$E$59,3,FALSE)),\" \",VLOOKUP(K92,Proposito_programa!$C$2:$E$59,3,FALSE))","v":"Propósito 5: Construir Bogotá - Región con gobierno abierto, transparente y ciudadanía consciente"},"133011605570000002143",null,80246449,"DIEGO ANDRES SORA CORTES","Persona Natural",null,null,null,22710000,null,null,null,22710000,19076400,"2021-03-17","2021-03-19","2021-12-31",300,1,18,null,null,null,null,null,null,"X",null,0.84]
[80,2021,"FDLBU-CD-001-2100","https://community.secop.gov.co/Public/Tendering/ContractNoticePhases/View?PPI=CO1.PPI.12412147&isFromPublicArea=True&isModal=False","Contratos de prestación de servicios profesionales y de apoyo a la gestión","Contratación directa","Prestación de servicios profesionales y de apoyo a la gestión, o para la ejecución de trabajos artísticos que sólo puedan encomendarse a determinadas personas naturales;","PRESTAR SERVICIOS DE APOYO EN LAS  ACTIVIDADES DE EGURIDAD, PROMOCIÓN DE LA CONVIVENCIA Y DE ATENCIÓN DE \nMOVILIZACIONES Y AGLOMERACIONES EN EL TERRITORIO","Inversión","Un Nuevo Contrato Social y Ambiental para la Bogotá del Siglo XXI",43,{"$f":"IF(ISERROR(VLOOKUP(K93,Proposito_programa!$C$2:$E$59,2,FALSE)),\" \",VLOOKUP(K93,Proposito_programa!$C$2:$E$59,2,FALSE))","v":"Cultura ciudadana para la confianza, la convivencia y la participación desde la vida cotidiana"},{"$f":"IF(ISERROR(VLOOKUP(K93,Proposito_programa!$C$2:$E$59,3,FALSE)),\" \",VLOOKUP(K93,Proposito_programa!$C$2:$E$59,3,FALSE))","v":"Propósito 3: Inspirar confianza y legitimidad para vivir sin miedo y ser epicentro de cultura ciudadana, paz y reconciliación"},"133011603430000002149",null,79331423,"ELIAS CUBILLOS PARDO","Persona Natural",null,null,null,13626000,null,null,null,13626000,13626000,"2021-03-17","2021-03-19","2021-09-18",180,null,null,null,null,null,null,null,null,"X",null,1]
[81,2021,"FDLBU-CD-001-2101","https://community.secop.gov.co/Public/Tendering/ContractNoticePhases/View?PPI=CO1.PPI.12494874&isFromPublicArea=True&isModal=False","Contratos de prestación de servicios profesionales y de apoyo a la gestión","Contratación directa","Prestación de servicios profesionales y de apoyo a la gestión, o para la ejecución de trabajos artísticos que sólo puedan encomendarse a determinadas personas naturales;","APOYAR AL ALCALDE LOCAL EN LA GESTIÓN DE LOS ASUNTOS RELACIONADOS CON SEGURIDAD CIUDADANA, CONVIVENCIA Y PREVENCIÓN DE CONFLICTIVIDADES, VIOLENCIAS Y DELITOS EN LA LOCALIDAD, DE CONFORMIDAD CON EL MARCO NORMATIVO APLICABLE EN LA MATERIA","Inversión","Un Nuevo Contrato Social y Ambiental para la Bogotá del Siglo XXI",43,{"$f":"IF(ISERROR(VLOOKUP(K94,Proposito_programa!$C$2:$E$59,2,FALSE)),\" \",VLOOKUP(K94,Proposito_programa!$C$2:$E$59,2,FALSE))","v":"Cultura ciudadana para la confianza, la convivencia y la participación desde la vida cotidiana"},{"$f":"IF(ISERROR(VLOOKUP(K94,Proposito_programa!$C$2:$E$59,3,FALSE)),\" \",VLOOKUP(K94,Proposito_programa!$C$2:$E$59,3,FALSE))","v":"Propósito 3: Inspirar confianza y legitimidad para vivir sin miedo y ser epicentro de cultura ciudadana, paz y reconciliación"},"133011603430000002149",null,79556340,"LUIS BASILIO GUTIERREZ SAENZ","Persona Natural",null,null,null,64638000,null,null,null,64638000,57153600,"2021-03-18","2021-03-19","2021-12-31",285,1,3,null,null,null,null,null,null,"X",null,0.88421052631578945]
[82,2021,"FDLBU-CD-001-2102","https://community.secop.gov.co/Public/Tendering/ContractNoticePhases/View?PPI=CO1.PPI.12491706&isFromPublicArea=True&isModal=False\n","Contratos de prestación de servicios profesionales y de apoyo a la gestión","Contratación directa","Prestación de servicios profesionales y de apoyo a la gestión, o para la ejecución de trabajos artísticos que sólo puedan encomendarse a determinadas personas naturales;","PRESTAR SUS SERVICIOS PROFESIONALES PARA APOYAR JURÍDICAMENTE LA EJECUCIÓN DE LAS ACCIONES REQUERIDAS PARA LA DEPURACIÓN DE LAS ACTUACIONES ADMINISTRATIVAS QUE CURSAN EN LA ALCALDÍA LOCAL","Inversión","Un Nuevo Contrato Social y Ambiental para la Bogotá del Siglo XXI",57,{"$f":"IF(ISERROR(VLOOKUP(K95,Proposito_programa!$C$2:$E$59,2,FALSE)),\" \",VLOOKUP(K95,Proposito_programa!$C$2:$E$59,2,FALSE))","v":"Gestión pública local"},{"$f":"IF(ISERROR(VLOOKUP(K95,Proposito_programa!$C$2:$E$59,3,FALSE)),\" \",VLOOKUP(K95,Proposito_programa!$C$2:$E$59,3,FALSE))","v":"Propósito 5: Construir Bogotá - Región con gobierno abierto, transparente y ciudadanía consciente"},"133011605570000002143",null,35195802,"ADRIANA LILIANA CARDENAS VILLALOBOS","Persona Natural",null,null,null,33257000,null,null,null,33257000,33257000,"2021-03-18","2021-03-19","2021-10-18",210,null,null,null,null,null,null,null,null,"X",null,1]
[83,2021,"FDLBU-CD-001-2103","https://community.secop.gov.co/Public/Tendering/ContractNoticePhases/View?PPI=CO1.PPI.12464985&isFromPublicArea=True&isModal=False","Contratos de prestación de servicios profesionales y de apoyo a la gestión","Contratación directa","Prestación de servicios profesionales y de apoyo a la gestión, o para la ejecución de trabajos artísticos que sólo puedan encomendarse a determinadas personas naturales;","PRESTAR SERVICIOS PROFESIONALES\nESPECIALIZADOS DE ASESORÍA JURÍDICA Y ADMINISTRATIVA A LA ALCALDÍA LOCAL DE BARRIOS\nUNIDOS, EN LA REVISIÓN Y SEGUIMIENTO DE LOS DOCUMENTOS EMITIDOS POR LAS ÁREAS DE\nGESTIÓN DEL DESARROLLO LOCAL Y POLICIVO, BRINDANDO ADICIONALMENTE LOS ANÁLISIS Y\nRECOMENDACIONES A QUE HAYA LUGAR","Inversión","Un Nuevo Contrato Social y Ambiental para la Bogotá del Siglo XXI",57,{"$f":"IF(ISERROR(VLOOKUP(K96,Proposito_programa!$C$2:$E$59,2,FALSE)),\" \",VLOOKUP(K96,Proposito_programa!$C$2:$E$59,2,FALSE))","v":"Gestión pública local"},{"$f":"IF(ISERROR(VLOOKUP(K96,Proposito_programa!$C$2:$E$59,3,FALSE)),\" \",VLOOKUP(K96,Proposito_programa!$C$2:$E$59,3,FALSE))","v":"Propósito 5: Construir Bogotá - Región con gobierno abierto, transparente y ciudadanía consciente"},"133011605570000002143",null,52429376,"ANGELICA MARIA RICO SANCHEZ","Persona Natural",null,null,null,74100000,null,null,null,74100000,65520000,"2021-03-18","2021-03-19","2021-12-31",285,1,3,null,null,null,null,null,null,"X",null,0.88421052631578945]
[84,2021,"FDLBU-CD-001-2104","\nhttps://community.secop.gov.co/Public/Tendering/ContractNoticePhases/View?PPI=CO1.PPI.12396834&isFromPublicArea=True&isModal=False","Contratos de prestación de servicios profesionales y de apoyo a la gestión","Contratación directa","Prestación de servicios profesionales y de apoyo a la gestión, o para la ejecución de trabajos artísticos que sólo puedan encomendarse a determinadas personas naturales;","PRESTAR SERVICIOS PROFESIONALES PARA APOYAR AL ÁREA GESTIÓN DEL DESARROLLO ADMINISTRATIVO Y FINANCIERO EN LOS ASUNTOS RELATIVOS A LA PLANEACIÓN LOCAL:  COORDINAR Y GARANTIZAR LA IMPLEMENTACIÓN Y SEGUIMIENTO DE LOS PROCESOS, PROYECTOS Y PROCEDIMIENTOS DE CONTRATOS SUSCRITOS POR LA ALCALDÍA LOCAL DE BARRIOS  UNIDOS DIRIGIDOS AL CUMPLIMIENTO DE LAS META DE PREVENCIÓN DEL EMBARAZO ADOLESCENTE NO DESEADO ","Inversión","Un Nuevo Contrato Social y Ambiental para la Bogotá del Siglo XXI",8,{"$f":"IF(ISERROR(VLOOKUP(K97,Proposito_programa!$C$2:$E$59,2,FALSE)),\" \",VLOOKUP(K97,Proposito_programa!$C$2:$E$59,2,FALSE))","v":"Prevención y atención de maternidad temprana"},{"$f":"IF(ISERROR(VLOOKUP(K97,Proposito_programa!$C$2:$E$59,3,FALSE)),\" \",VLOOKUP(K97,Proposito_programa!$C$2:$E$59,3,FALSE))","v":"Propósito 1: Hacer un nuevo contrato social para incrementar la inclusión social, productiva y política"},"133011601080000002151",null,52271959,"PAOLA COLINA DIAZ","Persona Natural",null,null,null,39330000,null,1,3350333,42680333,36125333,"2021-03-18","2021-03-23","2021-12-22",270,1,23,null,null,null,null,null,null,"X",null,0.84641638105307193]
[86,2021,"FDLBU-CD-001-2105","https://community.secop.gov.co/Public/Tendering/ContractNoticePhases/View?PPI=CO1.PPI.12378330&isFromPublicArea=True&isModal=False","Contratos de prestación de servicios profesionales y de apoyo a la gestión","Contratación directa","Prestación de servicios profesionales y de apoyo a la gestión, o para la ejecución de trabajos artísticos que sólo puedan encomendarse a determinadas personas naturales;","PRESTAR SUS SERVICIOS PROFESIONALES PARA APOYAR TÉCNICAMENTE LAS DISTINTAS ETAPAS DE LOS PROCESOS DE COMPETENCIA DE LAS INSPECCIONES DE POLICÍA DE LA LOCALIDAD, SEGÚN REPARTO","Inversión","Un Nuevo Contrato Social y Ambiental para la Bogotá del Siglo XXI",57,{"$f":"IF(ISERROR(VLOOKUP(K98,Proposito_programa!$C$2:$E$59,2,FALSE)),\" \",VLOOKUP(K98,Proposito_programa!$C$2:$E$59,2,FALSE))","v":"Gestión pública local"},{"$f":"IF(ISERROR(VLOOKUP(K98,Proposito_programa!$C$2:$E$59,3,FALSE)),\" \",VLOOKUP(K98,Proposito_programa!$C$2:$E$59,3,FALSE))","v":"Propósito 5: Construir Bogotá - Región con gobierno abierto, transparente y ciudadanía consciente"},"133011605570000002143",null,8694817,"JAIRO ENRIQUE GOMEZ BALLESTAS","Persona Natural",null,null,null,29982000,null,1,14991000,44973000,41141967,"2021-03-23","2021-03-24","2021-09-23",180,1,90,null,null,null,null,null,null,"X",null,0.91481482222666932]
[87,2021,"FDLBU-CD-001-2106","https://community.secop.gov.co/Public/Tendering/ContractNoticePhases/View?PPI=CO1.PPI.12373206&isFromPublicArea=True&isModal=False","Contratos de prestación de servicios profesionales y de apoyo a la gestión","Contratación directa","Prestación de servicios profesionales y de apoyo a la gestión, o para la ejecución de trabajos artísticos que sólo puedan encomendarse a determinadas personas naturales;","PRESTAR SUS SERVICIOS PROFESIONALES PARA APOYAR TÉCNICAMENTE LAS DISTINTAS ETAPAS DE LOS PROCESOS DE COMPETENCIA DE LAS INSPECCIONES DE POLICÍA DE LA LOCALIDAD, SEGÚN REPARTO","Inversión","Un Nuevo Contrato Social y Ambiental para la Bogotá del Siglo XXI",57,{"$f":"IF(ISERROR(VLOOKUP(K99,Proposito_programa!$C$2:$E$59,2,FALSE)),\" \",VLOOKUP(K99,Proposito_programa!$C$2:$E$59,2,FALSE))","v":"Gestión pública local"},{"$f":"IF(ISERROR(VLOOKUP(K99,Proposito_programa!$C$2:$E$59,3,FALSE)),\" \",VLOOKUP(K99,Proposito_programa!$C$2:$E$59,3,FALSE))","v":"Propósito 5: Construir Bogotá - Región con gobierno abierto, transparente y ciudadanía consciente"},"133011605570000002143",null,19274869,"HIPOLITO ACOSTA FORERO ","Persona Natural",null,null,null,34979000,null,null,null,34979000,34979000,"2021-03-19","2021-03-23","2021-10-22",210,null,null,null,null,null,null,null,null,"X",null,1]
[88,2021,"FDLBU-CD-001-2107","https://community.secop.gov.co/Public/Tendering/ContractNoticePhases/View?PPI=CO1.PPI.12090078&isFromPublicArea=True&isModal=False","Contratos de prestación de servicios profesionales y de apoyo a la gestión","Contratación directa","Prestación de servicios profesionales y de apoyo a la gestión, o para la ejecución de trabajos artísticos que sólo puedan encomendarse a determinadas personas naturales;","PRESTAR SERVICIOS DE APOYO A LA GESTIÓN DOCUMENTAL DE LA ALCALDÍA LOCAL, ACOMPAÑANDO AL EQUIPO JURÍDICO DE DEPURACIÓN EN LAS LABORES OPERATIVAS QUE GENERA EL PROCESO DE IMPULSO DE LAS\nACTUACIONES ADMINISTRATIVAS EXISTENTES EN LA ALCALDÍA LOCAL DE BARRIOS UNIDOS","Inversión","Un Nuevo Contrato Social y Ambiental para la Bogotá del Siglo XXI",57,{"$f":"IF(ISERROR(VLOOKUP(K100,Proposito_programa!$C$2:$E$59,2,FALSE)),\" \",VLOOKUP(K100,Proposito_programa!$C$2:$E$59,2,FALSE))","v":"Gestión pública local"},{"$f":"IF(ISERROR(VLOOKUP(K100,Proposito_programa!$C$2:$E$59,3,FALSE)),\" \",VLOOKUP(K100,Proposito_programa!$C$2:$E$59,3,FALSE))","v":"Propósito 5: Construir Bogotá - Región con gobierno abierto, transparente y ciudadanía consciente"},"133011605570000002143",null,1022953015,"ELIANA GRISEL CADENA CANO","Persona Natural",null,null,null,15897000,null,null,null,15897000,15897000,"2021-03-26","2021-03-30","2021-10-29",210,null,null,null,null,null,null,null,null,"X",null,1]
[89,2021,"FDLBU-CD-001-2108","https://community.secop.gov.co/Public/Tendering/ContractNoticePhases/View?PPI=CO1.PPI.12463356&isFromPublicArea=True&isModal=False","Contratos de prestación de servicios profesionales y de apoyo a la gestión","Contratación directa","Prestación de servicios profesionales y de apoyo a la gestión, o para la ejecución de trabajos artísticos que sólo puedan encomendarse a determinadas personas naturales;","PRESTAR SERVICIOS DE APOYO A LA GESTIÓN \nDEL DESARROLLO EN LA LABOR DE PLANEACIÓN, EN LAS ACTIVIDADES \nENMARCADAS EN EL CUMPLIMIENTO DE LA META DE ACUERDOS EN COMUNIDAD \nPARA LA VIGENCIA 2021","Inversión","Un Nuevo Contrato Social y Ambiental para la Bogotá del Siglo XXI",45,{"$f":"IF(ISERROR(VLOOKUP(K101,Proposito_programa!$C$2:$E$59,2,FALSE)),\" \",VLOOKUP(K101,Proposito_programa!$C$2:$E$59,2,FALSE))","v":"Espacio público más seguro y construido colectivamente"},{"$f":"IF(ISERROR(VLOOKUP(K101,Proposito_programa!$C$2:$E$59,3,FALSE)),\" \",VLOOKUP(K101,Proposito_programa!$C$2:$E$59,3,FALSE))","v":"Propósito 3: Inspirar confianza y legitimidad para vivir sin miedo y ser epicentro de cultura ciudadana, paz y reconciliación"},"133011603450000002038",null,1000455167,"LAURA DANIELA BARRETO MOLINA","Persona Natural",null,null,null,12719000,null,1,3936833,16655833,15262800,"2021-03-18","2021-03-19","2021-12-23",210,1,65,null,null,null,null,null,null,"X",null,0.91636365470282999]
[90,2021,"FDLBU-CD-001-2109","https://community.secop.gov.co/Public/Tendering/ContractNoticePhases/View?PPI=CO1.PPI.12463394&isFromPublicArea=True&isModal=False","Contratos de prestación de servicios profesionales y de apoyo a la gestión","Contratación directa","Prestación de servicios profesionales y de apoyo a la gestión, o para la ejecución de trabajos artísticos que sólo puedan encomendarse a determinadas personas naturales;","PRESTAR SERVICIOS DE APOYO A LA GESTIÓN \nDEL DESARROLLO EN LA LABOR DE PLANEACIÓN, EN LAS ACTIVIDADES \nENMARCADAS EN EL CUMPLIMIENTO DE LA META DE ACUERDOS EN COMUNIDAD \nPARA LA VIGENCIA 2021","Inversión","Un Nuevo Contrato Social y Ambiental para la Bogotá del Siglo XXI",45,{"$f":"IF(ISERROR(VLOOKUP(K102,Proposito_programa!$C$2:$E$59,2,FALSE)),\" \",VLOOKUP(K102,Proposito_programa!$C$2:$E$59,2,FALSE))","v":"Espacio público más seguro y construido colectivamente"},{"$f":"IF(ISERROR(VLOOKUP(K102,Proposito_programa!$C$2:$E$59,3,FALSE)),\" \",VLOOKUP(K102,Proposito_programa!$C$2:$E$59,3,FALSE))","v":"Propósito 3: Inspirar confianza y legitimidad para vivir sin miedo y ser epicentro de cultura ciudadana, paz y reconciliación"},"133011603450000002038",null,1030595694,"FABIAN AUGUSTO LEIVA CHAPARRO","Persona Natural",null,null,null,12719000,null,1,4360800,17079800,15262800,"2021-03-19","2021-03-19","2021-12-30",210,1,72,null,null,null,null,null,null,"X",null,0.8936170212765957]
[92,2021,"FDLBU-CD-001-2110","https://community.secop.gov.co/Public/Tendering/ContractNoticePhases/View?PPI=CO1.PPI.12463665&isFromPublicArea=True&isModal=False","Contratos de prestación de servicios profesionales y de apoyo a la gestión","Contratación directa","Prestación de servicios profesionales y de apoyo a la gestión, o para la ejecución de trabajos artísticos que sólo puedan encomendarse a determinadas personas naturales;","PRESTAR SERVICIOS DE APOYO EN LAS\nACTIVIDADES DE SEGURIDAD, PROMOCIÓN DE LA CONVIVENCIA Y DE ATENCIÓN DE\nMOVILIZACIONES Y AGLOMERACIONES EN EL TERRITORIO","Inversión","Un Nuevo Contrato Social y Ambiental para la Bogotá del Siglo XXI",43,{"$f":"IF(ISERROR(VLOOKUP(K103,Proposito_programa!$C$2:$E$59,2,FALSE)),\" \",VLOOKUP(K103,Proposito_programa!$C$2:$E$59,2,FALSE))","v":"Cultura ciudadana para la confianza, la convivencia y la participación desde la vida cotidiana"},{"$f":"IF(ISERROR(VLOOKUP(K103,Proposito_programa!$C$2:$E$59,3,FALSE)),\" \",VLOOKUP(K103,Proposito_programa!$C$2:$E$59,3,FALSE))","v":"Propósito 3: Inspirar confianza y legitimidad para vivir sin miedo y ser epicentro de cultura ciudadana, paz y reconciliación"},"133011603430000002149",null,1023865895,"KAREN DAYANA RAMIREZ ORTEGÓN","Persona Natural",null,null,null,11355000,null,null,null,11355000,11355000,"2021-03-23","2021-03-23","2021-08-22",150,null,null,null,null,null,null,null,null,"X",null,1]
[93,2021,"FDLBU-CD-001-2111","https://community.secop.gov.co/Public/Tendering/ContractNoticePhases/View?PPI=CO1.PPI.12312562&isFromPublicArea=True&isModal=False","Contratos de prestación de servicios profesionales y de apoyo a la gestión","Contratación directa","Prestación de servicios profesionales y de apoyo a la gestión, o para la ejecución de trabajos artísticos que sólo puedan encomendarse a determinadas personas naturales;","PRESTAR SERVICIOS DE APOYO A LA DE GESTIÓN DEL DESARROLLO EN LAS LABORES DE PLANEACIÓN, CON EL FIN DE LOGRAR EL CUMPLIMIENTO DE LA META DE ACUERDOS EN COMUNIDAD PARA LA VIGENCIA 2021","Inversión","Un Nuevo Contrato Social y Ambiental para la Bogotá del Siglo XXI",45,{"$f":"IF(ISERROR(VLOOKUP(K104,Proposito_programa!$C$2:$E$59,2,FALSE)),\" \",VLOOKUP(K104,Proposito_programa!$C$2:$E$59,2,FALSE))","v":"Espacio público más seguro y construido colectivamente"},{"$f":"IF(ISERROR(VLOOKUP(K104,Proposito_programa!$C$2:$E$59,3,FALSE)),\" \",VLOOKUP(K104,Proposito_programa!$C$2:$E$59,3,FALSE))","v":"Propósito 3: Inspirar confianza y legitimidad para vivir sin miedo y ser epicentro de cultura ciudadana, paz y reconciliación"},"133011603450000002038",null,1014213720,"CAROLINA REALPE MARTINEZ ","Persona Natural",null,null,null,30880000,null,null,null,30880000,24909867,"2021-03-26","2021-03-29","2021-12-31",300,1,13,null,null,null,null,null,null,"X",null,0.80666667746113985]
[94,2021,"FDLBU-CD-001-2112","https://community.secop.gov.co/Public/Tendering/ContractNoticePhases/View?PPI=CO1.PPI.12462673&isFromPublicArea=True&isModal=False","Contratos de prestación de servicios profesionales y de apoyo a la gestión","Contratación directa","Prestación de servicios profesionales y de apoyo a la gestión, o para la ejecución de trabajos artísticos que sólo puedan encomendarse a determinadas personas naturales;","PRESTAR SERVICIOS PROFESIONALES PARA APOYAR AL ÁREA GESTIÓN DEL DESARROLLO ADMINISTRATIVO Y FINANCIERO EN LOS ASUNTOS RELATIVOS A LA PLANEACIÓN LOCAL: LIDERAR Y GARANTIZAR LA IMPLEMENTACIÓN Y SEGUIMIENTO DE LOS PROCESOS, PROYECTOS Y PROCEDIMIENTOS DE CONTRATOS SUSCRITOS POR LA ALCALDÍA LOCAL DE BARRIOS UNIDOS DIRIGIDOS AL CUMPLIMIENTO DE LAS METAS DE IMPULSEMOS ECONOMÍA LOCAL","Inversión","Un Nuevo Contrato Social y Ambiental para la Bogotá del Siglo XXI",6,{"$f":"IF(ISERROR(VLOOKUP(K105,Proposito_programa!$C$2:$E$59,2,FALSE)),\" \",VLOOKUP(K105,Proposito_programa!$C$2:$E$59,2,FALSE))","v":"Sistema Distrital de Cuidado"},{"$f":"IF(ISERROR(VLOOKUP(K105,Proposito_programa!$C$2:$E$59,3,FALSE)),\" \",VLOOKUP(K105,Proposito_programa!$C$2:$E$59,3,FALSE))","v":"Propósito 1: Hacer un nuevo contrato social para incrementar la inclusión social, productiva y política"},"133011601060000002135",null,7183376,"DIEGO ANDRES REYES RAMIREZ","Persona Natural",null,null,null,49970000,null,null,null,49970000,41141967,"2021-03-24","2021-03-25","2021-12-31",300,1,15,null,null,null,null,null,null,"X",null,0.82333334000400238]
[95,2021,"FDLBU-CD-001-2113","https://community.secop.gov.co/Public/Tendering/ContractNoticePhases/View?PPI=CO1.PPI.12531960&isFromPublicArea=True&isModal=False","Contratos de prestación de servicios profesionales y de apoyo a la gestión","Contratación directa","Prestación de servicios profesionales y de apoyo a la gestión, o para la ejecución de trabajos artísticos que sólo puedan encomendarse a determinadas personas naturales;","PRESTAR SERVICIOS DE APOYO A LA GESTIÓN DEL DESARROLLO EN LABORES DE PLANEACIÓN EN LAS ACTIVIDADES RELATIVAS A LOS\nPROYECTOS AMBIENTALES DE LA VIGENCIA 2021 DE LA LÍNEA DE INVERSIONES AMBIENTALES SOSTENIBLES.","Inversión","Un Nuevo Contrato Social y Ambiental para la Bogotá del Siglo XXI",38,{"$f":"IF(ISERROR(VLOOKUP(K106,Proposito_programa!$C$2:$E$59,2,FALSE)),\" \",VLOOKUP(K106,Proposito_programa!$C$2:$E$59,2,FALSE))","v":"Ecoeficiencia, reciclaje, manejo de residuos e inclusión de la población recicladora"},{"$f":"IF(ISERROR(VLOOKUP(K106,Proposito_programa!$C$2:$E$59,3,FALSE)),\" \",VLOOKUP(K106,Proposito_programa!$C$2:$E$59,3,FALSE))","v":"Propósito 2 : Cambiar Nuestros Hábitos de Vida para Reverdecer a Bogotá y Adaptarnos y Mitigar la Crisis Climática"},"133011602380000002082",null,1014270393,"KAREN LIZETH TORRES ECHEVERRY","Persona Natural",null,null,null,14536000,null,1,2119833,16655833,14838833,"2021-03-23","2021-03-26","2021-11-25",240,1,35,null,null,null,null,null,null,"X",null,0.89090908872585362]
[96,2021,"FDLBU-CD-001-2114","https://community.secop.gov.co/Public/Tendering/ContractNoticePhases/View?PPI=CO1.PPI.12562934&isFromPublicArea=True&isModal=False","Contratos de prestación de servicios profesionales y de apoyo a la gestión","Contratación directa","Prestación de servicios profesionales y de apoyo a la gestión, o para la ejecución de trabajos artísticos que sólo puedan encomendarse a determinadas personas naturales;","PRESTAR SERVICIOS DE APOYO A LA GESTIÓN DEL DESARROLLO EN LAS LABORES DE PLANEACIÓN REFERENTES A LA REACTIVACIÓN DE LA ECONOMÍA LOCAL","Inversión","Un Nuevo Contrato Social y Ambiental para la Bogotá del Siglo XXI",6,{"$f":"IF(ISERROR(VLOOKUP(K107,Proposito_programa!$C$2:$E$59,2,FALSE)),\" \",VLOOKUP(K107,Proposito_programa!$C$2:$E$59,2,FALSE))","v":"Sistema Distrital de Cuidado"},{"$f":"IF(ISERROR(VLOOKUP(K107,Proposito_programa!$C$2:$E$59,3,FALSE)),\" \",VLOOKUP(K107,Proposito_programa!$C$2:$E$59,3,FALSE))","v":"Propósito 1: Hacer un nuevo contrato social para incrementar la inclusión social, productiva y política"},"133011601060000002135",null,1049624831,"JULIAN HERNANDO CAMACHO LOPEZ","Persona Natural",null,null,null,12719000,null,1,3331167,16050167,14959967,"2021-03-24","2021-03-24","2021-10-23",210,1,55,null,null,null,null,null,null,"X",null,0.93207547310878447]
[97,2021,"FDLBU-CD-001-2115","https://community.secop.gov.co/Public/Tendering/ContractNoticePhases/View?PPI=CO1.PPI.12496876&isFromPublicArea=True&isModal=False","Contratos de prestación de servicios profesionales y de apoyo a la gestión","Contratación directa","Prestación de servicios profesionales y de apoyo a la gestión, o para la ejecución de trabajos artísticos que sólo puedan encomendarse a determinadas personas naturales;","PRESTAR SERVICIOS PROFESIONALES PARA APOYAR AL ÁREA GESTIÓN DEL DESARROLLO ADMINISTRATIVO Y FINANCIERO EN LOS ASUNTOS RELATIVOS A LA PLANEACIÓN LOCAL: COORDINAR Y GARANTIZAR LA IMPLEMENTACIÓN Y SEGUIMIENTO DE LOS PROCESOS, PROYECTOS Y PROCEDIMIENTOS DE CONTRATOS SUSCRITOS POR LA ALCALDÍA LOCAL DE BARRIOS UNIDOS DIRIGIDOS AL CUMPLIMIENTO DE LAS META DE ACUERDOS EN COMUNIDAD PARA LA VIGENCIA 2021","Inversión","Un Nuevo Contrato Social y Ambiental para la Bogotá del Siglo XXI",45,{"$f":"IF(ISERROR(VLOOKUP(K108,Proposito_programa!$C$2:$E$59,2,FALSE)),\" \",VLOOKUP(K108,Proposito_programa!$C$2:$E$59,2,FALSE))","v":"Espacio público más seguro y construido colectivamente"},{"$f":"IF(ISERROR(VLOOKUP(K108,Proposito_programa!$C$2:$E$59,3,FALSE)),\" \",VLOOKUP(K108,Proposito_programa!$C$2:$E$59,3,FALSE))","v":"Propósito 3: Inspirar confianza y legitimidad para vivir sin miedo y ser epicentro de cultura ciudadana, paz y reconciliación"},"133011603450000002038",null,53081665,"LUZ ADRIANA MUÑOZ MUÑOZ","Persona Natural",null,null,null,55593000,null,1,4529800,60122800,50857300,"2021-03-23","2021-03-24","2021-12-23",270,1,22,null,null,null,null,null,null,"X",null,0.84589041095890416]
[98,2021,"FDLBU-CD-001-2116","https://community.secop.gov.co/Public/Tendering/ContractNoticePhases/View?PPI=CO1.PPI.12519096&isFromPublicArea=True&isModal=False","Contratos de prestación de servicios profesionales y de apoyo a la gestión","Contratación directa","Prestación de servicios profesionales y de apoyo a la gestión, o para la ejecución de trabajos artísticos que sólo puedan encomendarse a determinadas personas naturales;","PRESTAR SERVICIOS DE APOYO A LA GESTIÓN \nDEL DESARROLLO EN LAS LABORES DE PLANEACIÓN EN LAS ACTIVIDADES \nCONCERNIENTES AL PROYECTO IMPULSEMOS ECONOMÍA LOCAL","Inversión","Un Nuevo Contrato Social y Ambiental para la Bogotá del Siglo XXI",6,{"$f":"IF(ISERROR(VLOOKUP(K109,Proposito_programa!$C$2:$E$59,2,FALSE)),\" \",VLOOKUP(K109,Proposito_programa!$C$2:$E$59,2,FALSE))","v":"Sistema Distrital de Cuidado"},{"$f":"IF(ISERROR(VLOOKUP(K109,Proposito_programa!$C$2:$E$59,3,FALSE)),\" \",VLOOKUP(K109,Proposito_programa!$C$2:$E$59,3,FALSE))","v":"Propósito 1: Hacer un nuevo contrato social para incrementar la inclusión social, productiva y política"},"133011601060000002135",null,79884107,"ANDRES CAMILO CARDENAS BRAVO","Persona Natural",null,null,null,18168000,null,1,2649500,20817500,18622200,"2021-03-23","2021-03-25","2021-11-24",240,1,35,null,null,null,null,null,null,"X",null,0.89454545454545453]
[99,2021,"FDLBU-CD-001-2117","https://community.secop.gov.co/Public/Tendering/ContractNoticePhases/View?PPI=CO1.PPI.12549740&isFromPublicArea=True&isModal=False","Contratos de prestación de servicios profesionales y de apoyo a la gestión","Contratación directa","Prestación de servicios profesionales y de apoyo a la gestión, o para la ejecución de trabajos artísticos que sólo puedan encomendarse a determinadas personas naturales;","PRESTAR SERVICIOS DE APOYO A LA GESTIÓN DEL DESARROLLO EN LAS LABORES DE PLANEACIÓN REFERENTES A LA REACTIVACIÓN DE LA ECONOMÍA LOCAL","Inversión","Un Nuevo Contrato Social y Ambiental para la Bogotá del Siglo XXI",6,{"$f":"IF(ISERROR(VLOOKUP(K110,Proposito_programa!$C$2:$E$59,2,FALSE)),\" \",VLOOKUP(K110,Proposito_programa!$C$2:$E$59,2,FALSE))","v":"Sistema Distrital de Cuidado"},{"$f":"IF(ISERROR(VLOOKUP(K110,Proposito_programa!$C$2:$E$59,3,FALSE)),\" \",VLOOKUP(K110,Proposito_programa!$C$2:$E$59,3,FALSE))","v":"Propósito 1: Hacer un nuevo contrato social para incrementar la inclusión social, productiva y política"},"133011601060000002135",null,1030613887,"JOHN EDISON QUINTANA CASTRO","Persona Natural",null,null,null,12719000,null,null,null,12719000,2362100,"2021-04-17","2021-04-22","2021-11-21",210,null,null,null,"HARRY ANTONIO LIZARAZO ","2021-10-08",null,null,null,"X",null,0.18571428571428572]
[100,2021,"FDLBU-CD-001-2118","https://community.secop.gov.co/Public/Tendering/ContractNoticePhases/View?PPI=CO1.PPI.12589451&isFromPublicArea=True&isModal=False","Contratos de prestación de servicios profesionales y de apoyo a la gestión","Contratación directa","Prestación de servicios profesionales y de apoyo a la gestión, o para la ejecución de trabajos artísticos que sólo puedan encomendarse a determinadas personas naturales;","PRESTAR SERVICIOS DE APOYO A LA GESTIÓN \nDEL DESARROLLO EN LA LABOR DE PLANEACIÓN, EN LAS ACTIVIDADES \nENMARCADAS EN EL CUMPLIMIENTO DE LA META DE ACUERDOS EN COMUNIDAD \nPARA LA VIGENCIA 2021","Inversión","Un Nuevo Contrato Social y Ambiental para la Bogotá del Siglo XXI",45,{"$f":"IF(ISERROR(VLOOKUP(K111,Proposito_programa!$C$2:$E$59,2,FALSE)),\" \",VLOOKUP(K111,Proposito_programa!$C$2:$E$59,2,FALSE))","v":"Espacio público más seguro y construido colectivamente"},{"$f":"IF(ISERROR(VLOOKUP(K111,Proposito_programa!$C$2:$E$59,3,FALSE)),\" \",VLOOKUP(K111,Proposito_programa!$C$2:$E$59,3,FALSE))","v":"Propósito 3: Inspirar confianza y legitimidad para vivir sin miedo y ser epicentro de cultura ciudadana, paz y reconciliación"},"133011603450000002038",null,53036424,"INGRID PAOLA PEDRAZA CARVAJAL","Persona Natural",null,null,null,12719000,null,null,null,12719000,12719000,"2021-03-26","2021-03-29","2021-10-28",210,null,null,null,"LUIS ALFONSO DIAZ MARTIN ","2021-05-14",null,null,null,"X",null,1]
[101,2021,"FDLBU-CD-001-2119","https://community.secop.gov.co/Public/Tendering/ContractNoticePhases/View?PPI=CO1.PPI.12570418&isFromPublicArea=True&isModal=False","Contratos de prestación de servicios profesionales y de apoyo a la gestión","Contratación directa","Prestación de servicios profesionales y de apoyo a la gestión, o para la ejecución de trabajos artísticos que sólo puedan encomendarse a determinadas personas naturales;","PRESTAR SERVICIOS DE APOYO A LA GESTIÓN \nDEL DESARROLLO EN LA LABOR DE PLANEACIÓN, EN LAS ACTIVIDADES \nENMARCADAS EN EL CUMPLIMIENTO DE LA META DE ACUERDOS EN COMUNIDAD \nPARA LA VIGENCIA 2021","Inversión","Un Nuevo Contrato Social y Ambiental para la Bogotá del Siglo XXI",45,{"$f":"IF(ISERROR(VLOOKUP(K112,Proposito_programa!$C$2:$E$59,2,FALSE)),\" \",VLOOKUP(K112,Proposito_programa!$C$2:$E$59,2,FALSE))","v":"Espacio público más seguro y construido colectivamente"},{"$f":"IF(ISERROR(VLOOKUP(K112,Proposito_programa!$C$2:$E$59,3,FALSE)),\" \",VLOOKUP(K112,Proposito_programa!$C$2:$E$59,3,FALSE))","v":"Propósito 3: Inspirar confianza y legitimidad para vivir sin miedo y ser epicentro de cultura ciudadana, paz y reconciliación"},"133011603450000002038",null,79750452,"JORGE SAMUEL RAMOS RAMIREZ","Persona Natural",null,null,null,12719000,null,1,3512867,16231867,14596567,"2021-03-26","2021-03-30","2021-12-26",210,1,58,null,null,null,null,null,null,"X",null,0.8992537334121824]
[102,2021,"FDLBU-CD-001-2120","https://community.secop.gov.co/Public/Tendering/ContractNoticePhases/View?PPI=CO1.PPI.12518489&isFromPublicArea=True&isModal=False","Contratos de prestación de servicios profesionales y de apoyo a la gestión","Contratación directa","Prestación de servicios profesionales y de apoyo a la gestión, o para la ejecución de trabajos artísticos que sólo puedan encomendarse a determinadas personas naturales;","PRESTAR SERVICIOS DE APOYO A LA GESTIÓN \nDEL DESARROLLO EN LAS LABORES DE PLANEACIÓN RELATIVAS A LOS PROYECTOS \nAMBIENTALES DE LA VIGENCIA 2021 DE LA LÍNEA DE INVERSIONES AMBIENTALES \nSOSTENIBLES","Inversión","Un Nuevo Contrato Social y Ambiental para la Bogotá del Siglo XXI",38,{"$f":"IF(ISERROR(VLOOKUP(K113,Proposito_programa!$C$2:$E$59,2,FALSE)),\" \",VLOOKUP(K113,Proposito_programa!$C$2:$E$59,2,FALSE))","v":"Ecoeficiencia, reciclaje, manejo de residuos e inclusión de la población recicladora"},{"$f":"IF(ISERROR(VLOOKUP(K113,Proposito_programa!$C$2:$E$59,3,FALSE)),\" \",VLOOKUP(K113,Proposito_programa!$C$2:$E$59,3,FALSE))","v":"Propósito 2 : Cambiar Nuestros Hábitos de Vida para Reverdecer a Bogotá y Adaptarnos y Mitigar la Crisis Climática"},"133011602380000002082",null,1012406051,"ANGIE MILENA FLOREZ MARTINEZ","Persona Natural",null,null,null,18168000,null,1,2422400,20590400,18319400,"2021-03-26","2021-03-29","2021-11-28",240,1,32,null,null,null,null,null,null,"X",null,0.88970588235294112]
[103,2021,"FDLBU-CD-001-2121","https://community.secop.gov.co/Public/Tendering/ContractNoticePhases/View?PPI=CO1.PPI.12569343&isFromPublicArea=True&isModal=False","Contratos de prestación de servicios profesionales y de apoyo a la gestión","Contratación directa","Prestación de servicios profesionales y de apoyo a la gestión, o para la ejecución de trabajos artísticos que sólo puedan encomendarse a determinadas personas naturales;","PRESTAR SERVICIOS DE APOYO A LA GESTIÓN \nDEL DESARROLLO EN EL ÁREA DE PLANEACIÓN EN LAS ACTIVIDADES ENMARCADAS \nEN EL CUMPLIMIENTO DE LA META DE ACUERDOS EN COMUNIDAD PARA LA \nVIGENCIA 2021","Inversión","Un Nuevo Contrato Social y Ambiental para la Bogotá del Siglo XXI",45,{"$f":"IF(ISERROR(VLOOKUP(K114,Proposito_programa!$C$2:$E$59,2,FALSE)),\" \",VLOOKUP(K114,Proposito_programa!$C$2:$E$59,2,FALSE))","v":"Espacio público más seguro y construido colectivamente"},{"$f":"IF(ISERROR(VLOOKUP(K114,Proposito_programa!$C$2:$E$59,3,FALSE)),\" \",VLOOKUP(K114,Proposito_programa!$C$2:$E$59,3,FALSE))","v":"Propósito 3: Inspirar confianza y legitimidad para vivir sin miedo y ser epicentro de cultura ciudadana, paz y reconciliación"},"133011603450000002038",null,53099827,"DIANA  MARCELA   LEMOS  NAVARRO ","Persona Natural",null,null,null,18168000,null,1,1968200,20136200,18319400,"2021-03-26","2021-03-29","2021-11-28",240,1,26,null,null,null,null,null,null,"X",null,0.90977443609022557]
[105,2021,"FDLBU-CD-001-2122","https://community.secop.gov.co/Public/Tendering/ContractNoticePhases/View?PPI=CO1.PPI.12600397&isFromPublicArea=True&isModal=False","Contratos de prestación de servicios profesionales y de apoyo a la gestión","Contratación directa","Prestación de servicios profesionales y de apoyo a la gestión, o para la ejecución de trabajos artísticos que sólo puedan encomendarse a determinadas personas naturales;","PRESTAR SERVICIOS DE APOYO A LA DE GESTIÓN DEL DESARROLLO EN LAS LABORES DE PLANEACIÓN, CON EL FIN DE LOGRAR EL CUMPLIMIENTO DE LA META DE IMPULSEMOS ECONOMÍA LOCAL PARA LA VIGENCIA 2021","Inversión","Un Nuevo Contrato Social y Ambiental para la Bogotá del Siglo XXI",6,{"$f":"IF(ISERROR(VLOOKUP(K115,Proposito_programa!$C$2:$E$59,2,FALSE)),\" \",VLOOKUP(K115,Proposito_programa!$C$2:$E$59,2,FALSE))","v":"Sistema Distrital de Cuidado"},{"$f":"IF(ISERROR(VLOOKUP(K115,Proposito_programa!$C$2:$E$59,3,FALSE)),\" \",VLOOKUP(K115,Proposito_programa!$C$2:$E$59,3,FALSE))","v":"Propósito 1: Hacer un nuevo contrato social para incrementar la inclusión social, productiva y política"},"133011601060000002135",null,1015416631,"MONICA LORENA FIERRO NAVARRETE","Persona Natural",null,null,null,27792000,null,null,null,27792000,24909867,"2021-03-26","2021-03-29","2021-12-28",270,null,null,null,null,null,null,null,null,"X",null,0.89629630829015539]
[107,2021,"FDLBU-CD-001-2123","https://community.secop.gov.co/Public/Tendering/ContractNoticePhases/View?PPI=CO1.PPI.12518400&isFromPublicArea=True&isModal=False","Contratos de prestación de servicios profesionales y de apoyo a la gestión","Contratación directa","Prestación de servicios profesionales y de apoyo a la gestión, o para la ejecución de trabajos artísticos que sólo puedan encomendarse a determinadas personas naturales;","PRESTAR SERVICIOS PROFESIONALES PARA APOYAR AL ÁREA GESTIÓN DEL DESARROLLO ADMINISTRATIVO Y FINANCIERO EN LOS ASUNTOS RELATIVOS A LA PLANEACIÓN LOCAL: COORDINAR Y GARANTIZAR LA IMPLEMENTACIÓN Y SEGUIMIENTO DE LOS PROCESOS, PROYECTOS Y PROCEDIMIENTOS DE CONTRATOS SUSCRITOS POR LA ALCALDÍA LOCAL DE BARRIOS UNIDOS DIRIGIDOS AL CUMPLIMIENTO DE LAS METAS DE PROYECTOS INTEGRALES DE EDUCACIÓN Y DOTACIÓN DE CASA DE LA JUVENTUD","Inversión","Un Nuevo Contrato Social y Ambiental para la Bogotá del Siglo XXI",12,{"$f":"IF(ISERROR(VLOOKUP(K116,Proposito_programa!$C$2:$E$59,2,FALSE)),\" \",VLOOKUP(K116,Proposito_programa!$C$2:$E$59,2,FALSE))","v":"Educación inicial: Bases sólidas para la vida."},{"$f":"IF(ISERROR(VLOOKUP(K116,Proposito_programa!$C$2:$E$59,3,FALSE)),\" \",VLOOKUP(K116,Proposito_programa!$C$2:$E$59,3,FALSE))","v":"Propósito 1: Hacer un nuevo contrato social para incrementar la inclusión social, productiva y política"},"133011601120000002026",null,1030633303,"LAURA ALEJANDRA NARANJO MORENO","Persona Natural",null,null,null,41515000,null,null,null,41515000,34960000,"2021-03-30","2021-03-31","2021-12-31",285,1,15,null,null,null,null,null,null,"X",null,0.84210526315789469]
[108,2021,"FDLBU-CD-001-2124","https://community.secop.gov.co/Public/Tendering/ContractNoticePhases/View?PPI=CO1.PPI.12644600&isFromPublicArea=True&isModal=False","Contratos de prestación de servicios profesionales y de apoyo a la gestión","Contratación directa","Prestación de servicios profesionales y de apoyo a la gestión, o para la ejecución de trabajos artísticos que sólo puedan encomendarse a determinadas personas naturales;","PRESTAR SERVICIOS DE APOYO A LA GESTIÓN DEL DESARROLLO EN EL ÁREA DE PLANEACIÓN EN LAS ACTIVIDADES ENMARCADAS EN EL CUMPLIMIENTO DE LA META DE ACUERDOS EN COMUNIDAD PARA LA VIGENCIA 2021","Inversión","Un Nuevo Contrato Social y Ambiental para la Bogotá del Siglo XXI",45,{"$f":"IF(ISERROR(VLOOKUP(K117,Proposito_programa!$C$2:$E$59,2,FALSE)),\" \",VLOOKUP(K117,Proposito_programa!$C$2:$E$59,2,FALSE))","v":"Espacio público más seguro y construido colectivamente"},{"$f":"IF(ISERROR(VLOOKUP(K117,Proposito_programa!$C$2:$E$59,3,FALSE)),\" \",VLOOKUP(K117,Proposito_programa!$C$2:$E$59,3,FALSE))","v":"Propósito 3: Inspirar confianza y legitimidad para vivir sin miedo y ser epicentro de cultura ciudadana, paz y reconciliación"},"133011603450000002038",null,1016070013,"INGRID MARITZA MORENO AGREDO","Persona Natural",null,null,null,18168000,null,null,null,18168000,11052200,"2021-03-30","2021-04-09","2021-12-08",240,1,45,null,"NILSON FARID GUTIEEREZ","2021-04-12",null,null,null,"X",null,0.60833333333333328]
[109,2021,"FDLBU-CD-001-2125","https://community.secop.gov.co/Public/Tendering/ContractNoticePhases/View?PPI=CO1.PPI.12646986&isFromPublicArea=True&isModal=False","Contratos de prestación de servicios profesionales y de apoyo a la gestión","Contratación directa","Prestación de servicios profesionales y de apoyo a la gestión, o para la ejecución de trabajos artísticos que sólo puedan encomendarse a determinadas personas naturales;","PRESTAR SERVICIOS DE APOYO A LA GESTIÓN\nDEL DESARROLLO EN EL ÁREA DE PLANEACIÓN EN LAS ACTIVIDADES ENMARCADAS EN EL\nCUMPLIMIENTO DE LA META DE ACUERDOS EN COMUNIDAD PARA LA VIGENCIA 2021","Inversión","Un Nuevo Contrato Social y Ambiental para la Bogotá del Siglo XXI",45,{"$f":"IF(ISERROR(VLOOKUP(K118,Proposito_programa!$C$2:$E$59,2,FALSE)),\" \",VLOOKUP(K118,Proposito_programa!$C$2:$E$59,2,FALSE))","v":"Espacio público más seguro y construido colectivamente"},{"$f":"IF(ISERROR(VLOOKUP(K118,Proposito_programa!$C$2:$E$59,3,FALSE)),\" \",VLOOKUP(K118,Proposito_programa!$C$2:$E$59,3,FALSE))","v":"Propósito 3: Inspirar confianza y legitimidad para vivir sin miedo y ser epicentro de cultura ciudadana, paz y reconciliación"},"133011603450000002038",null,79983036,"JHON ALEXANDER SUAREZ SALGUERO","Persona Natural",null,null,null,18168000,null,1,1968200,20136200,17865200,"2021-03-31","2021-04-05","2021-12-04",240,1,26,null,null,null,null,null,null,"X",null,0.88721804511278191]
[110,2021,"FDLBU-CD-001-2126","https://community.secop.gov.co/Public/Tendering/ContractNoticePhases/View?PPI=CO1.PPI.12652874&isFromPublicArea=True&isModal=False","Contratos de prestación de servicios profesionales y de apoyo a la gestión","Contratación directa","Prestación de servicios profesionales y de apoyo a la gestión, o para la ejecución de trabajos artísticos que sólo puedan encomendarse a determinadas personas naturales;","PRESTAR SERVICIOS PROFESIONALES PARA APOYAR AL ÁREA \nGESTIÓN DEL DESARROLLO ADMINISTRATIVO Y FINANCIERO EN LOS ASUNTOS \nRELATIVOS A LA PLANEACIÓN LOCAL: COORDINAR Y GARANTIZAR LA \nIMPLEMENTACIÓN Y SEGUIMIENTO DE LOS PROCESOS, PROYECTOS Y \nPROCEDIMIENTOS DE CONTRATOS SUSCRITOS POR LA ALCALDÍA LOCAL DE BARRIOS \nUNIDOS DIRIGIDOS AL CUMPLIMIENTO DE LAS METAS DE DEPORTE, RECREACIÓN Y \nCULTURA PARA EL DESARROLLO SOCIAL","Inversión","Un Nuevo Contrato Social y Ambiental para la Bogotá del Siglo XXI",21,{"$f":"IF(ISERROR(VLOOKUP(K119,Proposito_programa!$C$2:$E$59,2,FALSE)),\" \",VLOOKUP(K119,Proposito_programa!$C$2:$E$59,2,FALSE))","v":"Creación y vida cotidiana: Apropiación ciudadana del arte, la cultura y el patrimonio, para la democracia cultural"},{"$f":"IF(ISERROR(VLOOKUP(K119,Proposito_programa!$C$2:$E$59,3,FALSE)),\" \",VLOOKUP(K119,Proposito_programa!$C$2:$E$59,3,FALSE))","v":"Propósito 1: Hacer un nuevo contrato social para incrementar la inclusión social, productiva y política"},"133011601210000002012",null,79881374,"ELKIN ANDRES MARTINEZ SALGADO ","Persona Natural",null,null,null,45900000,null,1,2550000,48450000,40800000,"2021-03-30","2021-03-31","2021-12-30",270,1,15,null,null,null,null,null,null,"X",null,0.84210526315789469]
[111,2021,"FDLBU-CD-001-2127","https://community.secop.gov.co/Public/Tendering/ContractNoticePhases/View?PPI=CO1.PPI.12580950&isFromPublicArea=True&isModal=False","Contratos de prestación de servicios profesionales y de apoyo a la gestión","Contratación directa","Prestación de servicios profesionales y de apoyo a la gestión, o para la ejecución de trabajos artísticos que sólo puedan encomendarse a determinadas personas naturales;","PRESTAR SERVICIOS DE APOYO A LA GESTIÓN DEL DESARROLLO EN LAS LABORES DE PLANEACIÓN REFERENTES A LA REACTIVACIÓN DE LA ECONOMÍA LOCAL","Inversión","Un Nuevo Contrato Social y Ambiental para la Bogotá del Siglo XXI",6,{"$f":"IF(ISERROR(VLOOKUP(K120,Proposito_programa!$C$2:$E$59,2,FALSE)),\" \",VLOOKUP(K120,Proposito_programa!$C$2:$E$59,2,FALSE))","v":"Sistema Distrital de Cuidado"},{"$f":"IF(ISERROR(VLOOKUP(K120,Proposito_programa!$C$2:$E$59,3,FALSE)),\" \",VLOOKUP(K120,Proposito_programa!$C$2:$E$59,3,FALSE))","v":"Propósito 1: Hacer un nuevo contrato social para incrementar la inclusión social, productiva y política"},"133011601060000002135",null,1030648943,"KARLA ANDREA TARAZONA RAMIREZ","Persona Natural",null,null,null,12719000,null,1,2725500,15444500,13627500,"2021-03-31","2021-04-16","2021-11-15",210,1,45,null,"CARLOS ANDRES VALLEJO","2021-04-16",null,null,null,"X",null,0.88235294117647056]
[112,2021,"FDLBU-CD-001-2128","https://community.secop.gov.co/Public/Tendering/ContractNoticePhases/View?PPI=CO1.PPI.12658736&isFromPublicArea=True&isModal=False","Contratos de prestación de servicios profesionales y de apoyo a la gestión","Contratación directa","Prestación de servicios profesionales y de apoyo a la gestión, o para la ejecución de trabajos artísticos que sólo puedan encomendarse a determinadas personas naturales;","PRESTAR SERVICIOS PROFESIONALES EN EL ÁREA DE GESTIÓN DEL.DESARROLLO EN LA TERRITORIALIZACIÓN DE LA INVERSIÓN Y EL MANEJO DE LOS SISTEMAS DE INFORMACIÓN GEORREFERENCIALES","Inversión","Un Nuevo Contrato Social y Ambiental para la Bogotá del Siglo XXI",49,{"$f":"IF(ISERROR(VLOOKUP(K121,Proposito_programa!$C$2:$E$59,2,FALSE)),\" \",VLOOKUP(K121,Proposito_programa!$C$2:$E$59,2,FALSE))","v":"Movilidad segura, sostenible y accesible"},{"$f":"IF(ISERROR(VLOOKUP(K121,Proposito_programa!$C$2:$E$59,3,FALSE)),\" \",VLOOKUP(K121,Proposito_programa!$C$2:$E$59,3,FALSE))","v":"Propósito 4: Hacer de Bogotá Región un modelo de movilidad multimodal, incluyente y sostenible"},"133011604490000002022",null,79535548,"PABLO GIOVANNY PARRA PINEDA","Persona Natural",null,null,null,58140000,null,null,null,58140000,43798800,"2021-04-14","2021-04-15","2021-12-31",300,1,14,null,null,null,null,null,null,"X",null,0.7533333333333333]
[113,2021,"FDLBU-CD-001-2129","https://community.secop.gov.co/Public/Tendering/ContractNoticePhases/View?PPI=CO1.PPI.12549848&isFromPublicArea=True&isModal=False","Contratos de prestación de servicios profesionales y de apoyo a la gestión","Contratación directa","Prestación de servicios profesionales y de apoyo a la gestión, o para la ejecución de trabajos artísticos que sólo puedan encomendarse a determinadas personas naturales;","PRESTAR SERVICIOS DE APOYO A LA GESTIÓN DEL DESARROLLO EN LAS LABORES DE PLANEACIÓN REFERENTES A LA REACTIVACIÓN DE LA ECONOMÍA LOCAL","Inversión","Un Nuevo Contrato Social y Ambiental para la Bogotá del Siglo XXI",6,{"$f":"IF(ISERROR(VLOOKUP(K122,Proposito_programa!$C$2:$E$59,2,FALSE)),\" \",VLOOKUP(K122,Proposito_programa!$C$2:$E$59,2,FALSE))","v":"Sistema Distrital de Cuidado"},{"$f":"IF(ISERROR(VLOOKUP(K122,Proposito_programa!$C$2:$E$59,3,FALSE)),\" \",VLOOKUP(K122,Proposito_programa!$C$2:$E$59,3,FALSE))","v":"Propósito 1: Hacer un nuevo contrato social para incrementar la inclusión social, productiva y política"},"133011601060000002135",null,1101687331,"PABLO LEONARDO TORRES SARMIENTO","Persona Natural",null,null,null,12719000,null,null,null,12719000,12355599.999999998,"2021-03-31","2021-05-07","2021-12-06",210,null,null,null,null,null,null,null,null,"X",null,0.97142857142857131]
[114,2021,"FDLBU-CD-001-2130","https://community.secop.gov.co/Public/Tendering/ContractNoticePhases/View?PPI=CO1.PPI.12838922&isFromPublicArea=True&isModal=False","Contratos de prestación de servicios profesionales y de apoyo a la gestión","Contratación directa","Prestación de servicios profesionales y de apoyo a la gestión, o para la ejecución de trabajos artísticos que sólo puedan encomendarse a determinadas personas naturales;","PRESTAR SERVICIOS DE APOYO A LA GESTIÓN DEL DESARROLLO EN EL ÁREA DE PLANEACIÓN EN LAS ACTIVIDADES ENMARCADAS EN EL CUMPLIMIENTO DE LA META DE ACUERDOS EN COMUNIDAD PARA LA VIGENCIA\n2021","Inversión","Un Nuevo Contrato Social y Ambiental para la Bogotá del Siglo XXI",45,{"$f":"IF(ISERROR(VLOOKUP(K123,Proposito_programa!$C$2:$E$59,2,FALSE)),\" \",VLOOKUP(K123,Proposito_programa!$C$2:$E$59,2,FALSE))","v":"Espacio público más seguro y construido colectivamente"},{"$f":"IF(ISERROR(VLOOKUP(K123,Proposito_programa!$C$2:$E$59,3,FALSE)),\" \",VLOOKUP(K123,Proposito_programa!$C$2:$E$59,3,FALSE))","v":"Propósito 3: Inspirar confianza y legitimidad para vivir sin miedo y ser epicentro de cultura ciudadana, paz y reconciliación"},"133011603450000002038",null,1015439630,"OSCAR EDUARDO NIVIA SEGURA ","Persona Natural",null,null,null,18168000,null,1,529900,18697900,16729700,"2021-04-15","2021-04-20","2021-12-19",240,1,7,null,null,null,null,null,null,"X",null,0.89473684210526316]
[115,2021,"FDLBU-CD-001-2131","https://community.secop.gov.co/Public/Tendering/ContractNoticePhases/View?PPI=CO1.PPI.12562831&isFromPublicArea=True&isModal=False","Contratos de prestación de servicios profesionales y de apoyo a la gestión","Contratación directa","Prestación de servicios profesionales y de apoyo a la gestión, o para la ejecución de trabajos artísticos que sólo puedan encomendarse a determinadas personas naturales;","PRESTAR SERVICIOS PROFESIONALES PARA APOYAR AL ÁREA GESTIÓN DEL DESARROLLO ADMINISTRATIVO Y FINANCIERO EN LOS ASUNTOS RELATIVOS A LA PLANEACIÓN LOCAL: COORDINAR Y GARANTIZAR LA IMPLEMENTACIÓN Y SEGUIMIENTO DE LOS PROCESOS, PROYECTOS Y PROCEDIMIENTOS DE CONTRATOS SUSCRITOS POR LA ALCALDÍA LOCAL DE BARRIOS UNIDOS DIRIGIDOS AL CUMPLIMIENTO DE LAS META DE PARTICIPACIÓN DÍALOGOS PARA CRECER Y PARTICIPAR","Inversión","Un Nuevo Contrato Social y Ambiental para la Bogotá del Siglo XXI",55,{"$f":"IF(ISERROR(VLOOKUP(K124,Proposito_programa!$C$2:$E$59,2,FALSE)),\" \",VLOOKUP(K124,Proposito_programa!$C$2:$E$59,2,FALSE))","v":"Fortalecimiento de cultura ciudadana y su institucionalidad"},{"$f":"IF(ISERROR(VLOOKUP(K124,Proposito_programa!$C$2:$E$59,3,FALSE)),\" \",VLOOKUP(K124,Proposito_programa!$C$2:$E$59,3,FALSE))","v":"Propósito 5: Construir Bogotá - Región con gobierno abierto, transparente y ciudadanía consciente"},"133011605550000002141",null,1030602538,"ANGIE PAOLA TORRES SERRATO","Persona Natural",null,null,null,51347500,null,null,null,51347500,41978833,"2021-04-08","2021-04-08","2021-12-31",285,1,20,null,null,null,null,null,null,"X",null,0.81754385315740785]
[116,2021,"FDLBU-CD-001-2132","https://community.secop.gov.co/Public/Tendering/ContractNoticePhases/View?PPI=CO1.PPI.12653922&isFromPublicArea=True&isModal=False","Contratos de prestación de servicios profesionales y de apoyo a la gestión","Contratación directa","Prestación de servicios profesionales y de apoyo a la gestión, o para la ejecución de trabajos artísticos que sólo puedan encomendarse a determinadas personas naturales;","PRESTAR SERVICIOS DE APOYO A LA DE\nGESTIÓN DEL DESARROLLO EN LAS LABORES DE PLANEACIÓN, CON EL FIN DE LOGRAR EL\nCUMPLIMIENTO DE LA META DE ACUERDOS EN COMUNIDAD PARA LA VIGENCIA 2021","Inversión","Un Nuevo Contrato Social y Ambiental para la Bogotá del Siglo XXI",45,{"$f":"IF(ISERROR(VLOOKUP(K125,Proposito_programa!$C$2:$E$59,2,FALSE)),\" \",VLOOKUP(K125,Proposito_programa!$C$2:$E$59,2,FALSE))","v":"Espacio público más seguro y construido colectivamente"},{"$f":"IF(ISERROR(VLOOKUP(K125,Proposito_programa!$C$2:$E$59,3,FALSE)),\" \",VLOOKUP(K125,Proposito_programa!$C$2:$E$59,3,FALSE))","v":"Propósito 3: Inspirar confianza y legitimidad para vivir sin miedo y ser epicentro de cultura ciudadana, paz y reconciliación"},"133011603450000002038",null,1214719426,"LUISA FERNANDA ARBOLEDA GOMEZ","Persona Natural",null,null,null,27792000,null,null,null,27792000,23880533,"2021-04-08","2021-04-09","2021-12-31",270,1,8,null,null,null,null,null,null,"X",null,0.85925924726540015]
[117,2021,"FDLBU-CD-001-2133","https://community.secop.gov.co/Public/Tendering/ContractNoticePhases/View?PPI=CO1.PPI.12663931&isFromPublicArea=True&isModal=False","Contratos de prestación de servicios profesionales y de apoyo a la gestión","Contratación directa","Prestación de servicios profesionales y de apoyo a la gestión, o para la ejecución de trabajos artísticos que sólo puedan encomendarse a determinadas personas naturales;","PRESTAR SERVICIOS DE APOYO A LA GESTIÓN\nDEL DESARROLLO EN LAS LABORES DE PLANEACIÓN EN LAS ACTIVIDADES RELATIVAS A LA\nPREVENCIÓN DEL EMBARAZO ADOLESCENTE NO DESEADO","Inversión","Un Nuevo Contrato Social y Ambiental para la Bogotá del Siglo XXI",8,{"$f":"IF(ISERROR(VLOOKUP(K126,Proposito_programa!$C$2:$E$59,2,FALSE)),\" \",VLOOKUP(K126,Proposito_programa!$C$2:$E$59,2,FALSE))","v":"Prevención y atención de maternidad temprana"},{"$f":"IF(ISERROR(VLOOKUP(K126,Proposito_programa!$C$2:$E$59,3,FALSE)),\" \",VLOOKUP(K126,Proposito_programa!$C$2:$E$59,3,FALSE))","v":"Propósito 1: Hacer un nuevo contrato social para incrementar la inclusión social, productiva y política"},"133011601080000002151",null,79872459,"LEONARDO GARCIA VANEGAS ","Persona Natural",null,null,null,12719000,null,1,2967767,15686767,13869767,"2021-04-08","2021-04-12","2021-11-11",210,1,49,null,null,null,null,null,null,"X",null,0.88416988663119689]
[118,2021,"FDLBU-CD-001-2134","https://community.secop.gov.co/Public/Tendering/ContractNoticePhases/View?PPI=CO1.PPI.12645945&isFromPublicArea=True&isModal=False","Contratos de prestación de servicios profesionales y de apoyo a la gestión","Contratación directa","Prestación de servicios profesionales y de apoyo a la gestión, o para la ejecución de trabajos artísticos que sólo puedan encomendarse a determinadas personas naturales;","PRESTAR SERVICIOS DE APOYO A LA GESTIÓN DEL DESARROLLO EN EL ÁREA DE PLANEACIÓN EN LAS ACTIVIDADES ENMARCADAS EN EL CUMPLIMIENTO DE LA META DE ACUERDOS EN COMUNIDAD PARA LA VIGENCIA 2021","Inversión","Un Nuevo Contrato Social y Ambiental para la Bogotá del Siglo XXI",45,{"$f":"IF(ISERROR(VLOOKUP(K127,Proposito_programa!$C$2:$E$59,2,FALSE)),\" \",VLOOKUP(K127,Proposito_programa!$C$2:$E$59,2,FALSE))","v":"Espacio público más seguro y construido colectivamente"},{"$f":"IF(ISERROR(VLOOKUP(K127,Proposito_programa!$C$2:$E$59,3,FALSE)),\" \",VLOOKUP(K127,Proposito_programa!$C$2:$E$59,3,FALSE))","v":"Propósito 3: Inspirar confianza y legitimidad para vivir sin miedo y ser epicentro de cultura ciudadana, paz y reconciliación"},"133011603450000002038",null,1114089564,"ALEXANDER ANGEL BOCANEGRA ","Persona Natural",null,null,null,18168000,null,1,1211200,19379200,17108200,"2021-04-13","2021-04-15","2021-12-14",240,1,30,null,null,null,null,null,null,"X",null,0.8828125]
[119,2021,"FDLBU-CD-001-2135","https://community.secop.gov.co/Public/Tendering/ContractNoticePhases/View?PPI=CO1.PPI.12604922&isFromPublicArea=True&isModal=False","Contratos de prestación de servicios profesionales y de apoyo a la gestión","Contratación directa","Prestación de servicios profesionales y de apoyo a la gestión, o para la ejecución de trabajos artísticos que sólo puedan encomendarse a determinadas personas naturales;","PRESTAR SERVICIOS PROFESIONALES PARA APOYAR AL ÁREA GESTIÓN DEL DESARROLLO ADMINISTRATIVO Y FINANCIERO EN LOS ASUNTOS RELATIVOS A LA PLANEACIÓN LOCAL: COORDINAR Y GARANTIZAR LA IMPLEMENTACIÓN Y SEGUIMIENTO DE LOS PROCESOS, PROYECTOS Y PROCEDIMIENTOS DE CONTRATOS SUSCRITOS POR LA ALCALDÍA LOCAL DE BARRIOS UNIDOS DIRIGIDOS AL CUMPLIMIENTO DE LAS METAS DEL SISTEMA LOCAL DE CUIDADO","Inversión","Un Nuevo Contrato Social y Ambiental para la Bogotá del Siglo XXI",6,{"$f":"IF(ISERROR(VLOOKUP(K128,Proposito_programa!$C$2:$E$59,2,FALSE)),\" \",VLOOKUP(K128,Proposito_programa!$C$2:$E$59,2,FALSE))","v":"Sistema Distrital de Cuidado"},{"$f":"IF(ISERROR(VLOOKUP(K128,Proposito_programa!$C$2:$E$59,3,FALSE)),\" \",VLOOKUP(K128,Proposito_programa!$C$2:$E$59,3,FALSE))","v":"Propósito 1: Hacer un nuevo contrato social para incrementar la inclusión social, productiva y política"},"133011601060000002062",null,1030537421,"MARITZA MILENA PEREZ  CESPEDES","Persona Natural",null,null,null,48450000,null,null,null,48450000,39440000,"2021-04-08","2021-04-09","2021-12-31",285,1,20,null,null,null,null,null,null,"X",null,0.81403508771929822]
[120,2021,"FDLBU-CD-001-2136","https://community.secop.gov.co/Public/Tendering/ContractNoticePhases/View?PPI=CO1.PPI.12306352&isFromPublicArea=True&isModal=False","Contratos de prestación de servicios profesionales y de apoyo a la gestión","Contratación directa","Prestación de servicios profesionales y de apoyo a la gestión, o para la ejecución de trabajos artísticos que sólo puedan encomendarse a determinadas personas naturales;","PRESTAR SUS SERVICIOS PROFESIONALES PARA APOYAR JURÍDICAMENTE LA EJECUCIÓN DE LAS ACCIONES REQUERIDAS PARA LA DEPURACIÓN DE LAS ACTUACIONES ADMINISTRATIVAS QUE CURSAN EN LA ALCALDÍA LOCAL","Inversión","Un Nuevo Contrato Social y Ambiental para la Bogotá del Siglo XXI",57,{"$f":"IF(ISERROR(VLOOKUP(K129,Proposito_programa!$C$2:$E$59,2,FALSE)),\" \",VLOOKUP(K129,Proposito_programa!$C$2:$E$59,2,FALSE))","v":"Gestión pública local"},{"$f":"IF(ISERROR(VLOOKUP(K129,Proposito_programa!$C$2:$E$59,3,FALSE)),\" \",VLOOKUP(K129,Proposito_programa!$C$2:$E$59,3,FALSE))","v":"Propósito 5: Construir Bogotá - Región con gobierno abierto, transparente y ciudadanía consciente"},"133011605570000002143",null,1073515262,"DANIEL FERNANDO ESLAVA RIOS","Persona Natural",null,null,null,33257000,null,1,7918333,41175333,36265967,"2021-04-12","2021-04-12","2021-11-11",210,1,50,null,null,null,null,null,null,"X",null,0.88076924599492612]
[121,2021,"FDLBU-CD-001-2137","https://community.secop.gov.co/Public/Tendering/ContractNoticePhases/View?PPI=CO1.PPI.12726082&isFromPublicArea=True&isModal=False\n","Contratos de prestación de servicios profesionales y de apoyo a la gestión","Contratación directa","Prestación de servicios profesionales y de apoyo a la gestión, o para la ejecución de trabajos artísticos que sólo puedan encomendarse a determinadas personas naturales;","PRESTAR SERVICIOS PROFESIONALES PARA APOYAR AL ÁREA GESTIÓN DEL DESARROLLO ADMINISTRATIVO Y FINANCIERO EN LOS ASUNTOS RELATIVOS A LA PLANEACIÓN LOCAL: COORDINAR Y GARANTIZAR LA IMPLEMENTACIÓN Y SEGUIMIENTO DE LOS PROCESOS, PROYECTOS Y PROCEDIMIENTOS DE CONTRATOS SUSCRITOS POR LA ALCALDÍA LOCAL DE BARRIOS UNIDOS DIRIGIDOS AL CUMPLIMIENTO DE LAS META DE BARRIOS UNIDOS TERRITORIO DE PAZ","Inversión","Un Nuevo Contrato Social y Ambiental para la Bogotá del Siglo XXI",39,{"$f":"IF(ISERROR(VLOOKUP(K130,Proposito_programa!$C$2:$E$59,2,FALSE)),\" \",VLOOKUP(K130,Proposito_programa!$C$2:$E$59,2,FALSE))","v":"Bogotá territorio de paz y atención integral a las víctimas del conflicto armado"},{"$f":"IF(ISERROR(VLOOKUP(K130,Proposito_programa!$C$2:$E$59,3,FALSE)),\" \",VLOOKUP(K130,Proposito_programa!$C$2:$E$59,3,FALSE))","v":"Propósito 3: Inspirar confianza y legitimidad para vivir sin miedo y ser epicentro de cultura ciudadana, paz y reconciliación"},"133011603390000002030",null,19297125,"JULIO CESAR GALAN GONZALEZ","Persona Natural",null,null,null,44973000,null,null,null,44973000,38143767,"2021-04-08","2021-04-12","2021-12-31",270,1,11,null,null,null,null,null,null,"X",null,0.84814815556000267]
[122,2021,"FDLBU-CD-001-2138","https://community.secop.gov.co/Public/Tendering/ContractNoticePhases/View?PPI=CO1.PPI.12848010&isFromPublicArea=True&isModal=False","Contratos de prestación de servicios profesionales y de apoyo a la gestión","Contratación directa","Prestación de servicios profesionales y de apoyo a la gestión, o para la ejecución de trabajos artísticos que sólo puedan encomendarse a determinadas personas naturales;","PRESTAR LOS SERVICIOS DE APOYO AL AREA GESTION DEL DESARROLLO ADMINISTRATIVO Y FINANCIERO EN LOS ASUNTOS RELACIONADOS CON EL DESARROLLO DE LA GESTION CONTRACTUAL PARA LA ADQUISICION DE RECURSOS Y SERVICIOS","Inversión","Un Nuevo Contrato Social y Ambiental para la Bogotá del Siglo XXI",57,{"$f":"IF(ISERROR(VLOOKUP(K131,Proposito_programa!$C$2:$E$59,2,FALSE)),\" \",VLOOKUP(K131,Proposito_programa!$C$2:$E$59,2,FALSE))","v":"Gestión pública local"},{"$f":"IF(ISERROR(VLOOKUP(K131,Proposito_programa!$C$2:$E$59,3,FALSE)),\" \",VLOOKUP(K131,Proposito_programa!$C$2:$E$59,3,FALSE))","v":"Propósito 5: Construir Bogotá - Región con gobierno abierto, transparente y ciudadanía consciente"},"133011605570000002143",null,1030653986,"LUIS MIGUEL GALINDO NIÑO","Persona Natural",null,null,null,26888000,null,1,3809133,30697133,25095467,"2021-04-16","2021-04-17","2021-12-16",240,1,34,null,null,null,null,null,null,"X",null,0.81751826791120852]
[123,2021,"FDLBU-CD-001-2139","https://community.secop.gov.co/Public/Tendering/ContractNoticePhases/View?PPI=CO1.PPI.12601429&isFromPublicArea=True&isModal=False","Contratos de prestación de servicios profesionales y de apoyo a la gestión","Contratación directa","Prestación de servicios profesionales y de apoyo a la gestión, o para la ejecución de trabajos artísticos que sólo puedan encomendarse a determinadas personas naturales;","PRESTAR SERVICIOS DE APOYO A LA GESTIÓN DEL DESARROLLO EN LAS LABORES DE PLANEACIÓN EN LAS ACTIVIDADES RELATIVAS A LA PREVENCIÓN DEL EMBARAZO ADOLESCENTE NO DESEADO","Inversión","Un Nuevo Contrato Social y Ambiental para la Bogotá del Siglo XXI",8,{"$f":"IF(ISERROR(VLOOKUP(K132,Proposito_programa!$C$2:$E$59,2,FALSE)),\" \",VLOOKUP(K132,Proposito_programa!$C$2:$E$59,2,FALSE))","v":"Prevención y atención de maternidad temprana"},{"$f":"IF(ISERROR(VLOOKUP(K132,Proposito_programa!$C$2:$E$59,3,FALSE)),\" \",VLOOKUP(K132,Proposito_programa!$C$2:$E$59,3,FALSE))","v":"Propósito 1: Hacer un nuevo contrato social para incrementar la inclusión social, productiva y política"},"133011601080000002151",null,80763598,"JOSE LUIS BLANCO AVENDAÑO","Persona Natural",null,null,null,12719000,null,1,2301533,15020533,13203533,"2021-04-14","2021-04-23","2021-11-22",210,1,38,null,"TATIANA NIYIRID MORENO QUINTERO","2021-07-16",null,null,null,"X",null,0.87903225538001883]
[124,2021,"FDLBU-CD-001-2140","https://community.secop.gov.co/Public/Tendering/ContractNoticePhases/View?PPI=CO1.PPI.12606666&isFromPublicArea=True&isModal=False","Contratos de prestación de servicios profesionales y de apoyo a la gestión","Contratación directa","Prestación de servicios profesionales y de apoyo a la gestión, o para la ejecución de trabajos artísticos que sólo puedan encomendarse a determinadas personas naturales;","PRESTAR SERVICIOS DE APOYO A LA GESTIÓN DEL DESARROLLO EN LAS LABORES DE PLANEACIÓN EN LAS ACTIVIDADES RELATIVAS A LA PREVENCIÓN DEL EMBARAZO ADOLESCENTE NO DESEADO","Inversión","Un Nuevo Contrato Social y Ambiental para la Bogotá del Siglo XXI",8,{"$f":"IF(ISERROR(VLOOKUP(K133,Proposito_programa!$C$2:$E$59,2,FALSE)),\" \",VLOOKUP(K133,Proposito_programa!$C$2:$E$59,2,FALSE))","v":"Prevención y atención de maternidad temprana"},{"$f":"IF(ISERROR(VLOOKUP(K133,Proposito_programa!$C$2:$E$59,3,FALSE)),\" \",VLOOKUP(K133,Proposito_programa!$C$2:$E$59,3,FALSE))","v":"Propósito 1: Hacer un nuevo contrato social para incrementar la inclusión social, productiva y política"},"133011601080000002151",null,1010026196,"BRCHELL BRILLAOC CARRILLO REMON","Persona Natural",null,null,null,12719000,null,1,2301533,15020533,13203533,"2021-04-12","2021-04-23","2021-11-22",210,1,38,null,null,null,null,null,null,"X",null,0.87903225538001883]
[125,2021,"FDLBU-CD-001-2141","\nhttps://community.secop.gov.co/Public/Tendering/ContractNoticePhases/View?PPI=CO1.PPI.12615610&isFromPublicArea=True&isModal=False\n","Contratos de prestación de servicios profesionales y de apoyo a la gestión","Contratación directa","Prestación de servicios profesionales y de apoyo a la gestión, o para la ejecución de trabajos artísticos que sólo puedan encomendarse a determinadas personas naturales;","PRESTAR SERVICIOS DE APOYO A LA GESTIÓN DEL DESARROLLO EN LAS LABORES DE PLANEACIÓN EN LAS ACTIVIDADES RELATIVAS A LA PREVENCIÓN DEL EMBARAZO ADOLESCENTE NO DESEADO","Inversión","Un Nuevo Contrato Social y Ambiental para la Bogotá del Siglo XXI",8,{"$f":"IF(ISERROR(VLOOKUP(K134,Proposito_programa!$C$2:$E$59,2,FALSE)),\" \",VLOOKUP(K134,Proposito_programa!$C$2:$E$59,2,FALSE))","v":"Prevención y atención de maternidad temprana"},{"$f":"IF(ISERROR(VLOOKUP(K134,Proposito_programa!$C$2:$E$59,3,FALSE)),\" \",VLOOKUP(K134,Proposito_programa!$C$2:$E$59,3,FALSE))","v":"Propósito 1: Hacer un nuevo contrato social para incrementar la inclusión social, productiva y política"},"133011601080000002151",null,1007699107,"ANDRÉS EDUARDO CRUZ GONZALEZ","Persona Natural",null,null,null,12719000,null,1,2483233,15202233,13445800,"2021-04-13","2021-04-19","2021-11-18",210,1,41,null,null,null,null,null,null,"X",null,0.88446217078767309]
[127,2021,"FDLBU-CD-001-2142","ttps://community.secop.gov.co/Public/Tendering/ContractNoticePhases/View?PPI=CO1.PPI.12720518&isFromPublicArea=True&isModal=False","Contratos de prestación de servicios profesionales y de apoyo a la gestión","Contratación directa","Prestación de servicios profesionales y de apoyo a la gestión, o para la ejecución de trabajos artísticos que sólo puedan encomendarse a determinadas personas naturales;","PRESTAR SERVICIOS DE  APOYO A LA GESTIÓN DEL DESARROLLO EN EL ÁREA DE PLANEACIÓN EN LAS ACTIVIDADES ENMARCADAS EN EL CUMPLIMIENTO DE LA META DE ACUERDOS EN COMUNIDAD PARA LA VIGENCIA 2021","Inversión","Un Nuevo Contrato Social y Ambiental para la Bogotá del Siglo XXI",45,{"$f":"IF(ISERROR(VLOOKUP(K135,Proposito_programa!$C$2:$E$59,2,FALSE)),\" \",VLOOKUP(K135,Proposito_programa!$C$2:$E$59,2,FALSE))","v":"Espacio público más seguro y construido colectivamente"},{"$f":"IF(ISERROR(VLOOKUP(K135,Proposito_programa!$C$2:$E$59,3,FALSE)),\" \",VLOOKUP(K135,Proposito_programa!$C$2:$E$59,3,FALSE))","v":"Propósito 3: Inspirar confianza y legitimidad para vivir sin miedo y ser epicentro de cultura ciudadana, paz y reconciliación"},"133011603450000002038",null,52813945,"DIANA MARIA GARZON GALINDO","Persona Natural",null,null,null,18168000,null,null,null,18168000,16729700,"2021-04-13","2021-04-20","2021-12-19",240,null,null,null,null,null,null,null,null,"X",null,0.92083333333333328]
[128,2021,"FDLBU-CD-001-2143","https://community.secop.gov.co/Public/Tendering/ContractNoticePhases/View?PPI=CO1.PPI.12720519&isFromPublicArea=True&isModal=False","Contratos de prestación de servicios profesionales y de apoyo a la gestión","Contratación directa","Prestación de servicios profesionales y de apoyo a la gestión, o para la ejecución de trabajos artísticos que sólo puedan encomendarse a determinadas personas naturales;","PRESTAR SERVICIOS DE  APOYO A LA GESTIÓN DEL DESARROLLO EN EL ÁREA DE PLANEACIÓN EN LAS ACTIVIDADES ENMARCADAS EN EL CUMPLIMIENTO DE LA META DE ACUERDOS EN COMUNIDAD PARA LA VIGENCIA 2021","Inversión","Un Nuevo Contrato Social y Ambiental para la Bogotá del Siglo XXI",45,{"$f":"IF(ISERROR(VLOOKUP(K136,Proposito_programa!$C$2:$E$59,2,FALSE)),\" \",VLOOKUP(K136,Proposito_programa!$C$2:$E$59,2,FALSE))","v":"Espacio público más seguro y construido colectivamente"},{"$f":"IF(ISERROR(VLOOKUP(K136,Proposito_programa!$C$2:$E$59,3,FALSE)),\" \",VLOOKUP(K136,Proposito_programa!$C$2:$E$59,3,FALSE))","v":"Propósito 3: Inspirar confianza y legitimidad para vivir sin miedo y ser epicentro de cultura ciudadana, paz y reconciliación"},"133011603450000002038",null,1024581788,"YULITZA KATHERINE VELASQUEZ JARAMILLO","Persona Natural",null,null,null,18168000,null,1,605600,18773600,16805400,"2021-04-13","2021-04-19","2021-12-18",240,1,8,null,null,null,null,null,null,"X",null,0.89516129032258063]
[129,2021,"FDLBU-CD-001-2144","https://community.secop.gov.co/Public/Tendering/ContractNoticePhases/View?PPI=CO1.PPI.12679005&isFromPublicArea=True&isModal=False","Contratos de prestación de servicios profesionales y de apoyo a la gestión","Contratación directa","Prestación de servicios profesionales y de apoyo a la gestión, o para la ejecución de trabajos artísticos que sólo puedan encomendarse a determinadas personas naturales;","PRESTAR SERVICIOS PROFESIONALES PARA APOYAR AL ÁREA GESTIÓN DEL DESARROLLO ADMINISTRATIVO Y FINANCIERO EN LOS ASUNTOS RELATIVOS A LA PLANEACIÓN LOCAL: GARANTIZAR LA IMPLEMENTACIÓN OPERATIVA DE LAS METAS DEL PLAN DE DESARROLLO LOCAL VIGENTE EN LO RELATIVO A DEPORTE, RECREACIÓN Y CULTURA","Inversión","Un Nuevo Contrato Social y Ambiental para la Bogotá del Siglo XXI",21,{"$f":"IF(ISERROR(VLOOKUP(K137,Proposito_programa!$C$2:$E$59,2,FALSE)),\" \",VLOOKUP(K137,Proposito_programa!$C$2:$E$59,2,FALSE))","v":"Creación y vida cotidiana: Apropiación ciudadana del arte, la cultura y el patrimonio, para la democracia cultural"},{"$f":"IF(ISERROR(VLOOKUP(K137,Proposito_programa!$C$2:$E$59,3,FALSE)),\" \",VLOOKUP(K137,Proposito_programa!$C$2:$E$59,3,FALSE))","v":"Propósito 1: Hacer un nuevo contrato social para incrementar la inclusión social, productiva y política"},"133011601210000002012",null,79659577,"RICHARD PEREZ MORENO","Persona Natural",null,null,null,39330000,null,null,null,39330000,33066333,"2021-04-12","2021-04-14","2021-12-31",270,1,13,null,null,null,null,null,null,"X",null,0.84074073226544621]
[130,2021,"FDLBU-CD-001-2145","https://community.secop.gov.co/Public/Tendering/ContractNoticePhases/View?PPI=CO1.PPI.12756109&isFromPublicArea=True&isModal=False","Contratos de prestación de servicios profesionales y de apoyo a la gestión","Contratación directa","Prestación de servicios profesionales y de apoyo a la gestión, o para la ejecución de trabajos artísticos que sólo puedan encomendarse a determinadas personas naturales;","PRESTAR SERVICIOS PROFESIONALES PARA APOYAR AL ÁREA GESTIÓN DEL DESARROLLO ADMINISTRATIVO Y FINANCIERO EN LOS ASUNTOS RELATIVOS A LA PLANEACIÓN LOCAL: COORDINAR Y GARANTIZAR LA IMPLEMENTACIÓN Y SEGUIMIENTO DE LOS PROCESOS, PROYECTOS Y PROCEDIMIENTOS DE CONTRATOS SUSCRITOS POR LA ALCALDÍA LOCAL DE BARRIOS UNIDOS DIRIGIDOS AL CUMPLIMIENTO DE LA META DE EMPRENDIMIENTO CULTURAL","Inversión","Un Nuevo Contrato Social y Ambiental para la Bogotá del Siglo XXI",24,{"$f":"IF(ISERROR(VLOOKUP(K138,Proposito_programa!$C$2:$E$59,2,FALSE)),\" \",VLOOKUP(K138,Proposito_programa!$C$2:$E$59,2,FALSE))","v":"Bogotá región emprendedora e innovadora"},{"$f":"IF(ISERROR(VLOOKUP(K138,Proposito_programa!$C$2:$E$59,3,FALSE)),\" \",VLOOKUP(K138,Proposito_programa!$C$2:$E$59,3,FALSE))","v":"Propósito 1: Hacer un nuevo contrato social para incrementar la inclusión social, productiva y política"},"133011601240000002017",null,45444369,"ROSMERY TORRES SAENZ ","Persona Natural",null,null,null,39330000,null,null,null,39330000,33357667,"2021-04-08","2021-04-12","2021-12-31",270,null,null,null,null,null,null,null,null,"X",null,0.84814815662344267]
[131,2021,"FDLBU-CD-001-2146","https://community.secop.gov.co/Public/Tendering/ContractNoticePhases/View?PPI=CO1.PPI.12756003&isFromPublicArea=True&isModal=False","Contratos de prestación de servicios profesionales y de apoyo a la gestión","Contratación directa","Prestación de servicios profesionales y de apoyo a la gestión, o para la ejecución de trabajos artísticos que sólo puedan encomendarse a determinadas personas naturales;","PRESTAR SERVICIOS PROFESIONALES PARA APOYAR AL ÁREA GESTIÓN DEL DESARROLLO ADMINISTRATIVO Y FINANCIERO EN LOS ASUNTOS RELATIVOS A LA PLANEACIÓN LOCAL: GARANTIZAR LA IMPLEMENTACIÓN Y SEGUIMIENTO DE LOS PROCESOS, PROYECTOS Y PROCEDIMIENTOS DE CONTRATOS SUSCRITOS POR LA ALCALDÍA LOCAL DE BARRIOS UNIDOS DIRIGIDOS AL CUMPLIMIENTO DE LA META DE CICLOINFRAESTRUCTURA Y LOS PROCESOS EN CURSO RELATIVOS A OBRAS PÚBLICAS DE MALLA VIAL Y ESPACIO PÚBLICO","Inversión","Un Nuevo Contrato Social y Ambiental para la Bogotá del Siglo XXI",49,{"$f":"IF(ISERROR(VLOOKUP(K139,Proposito_programa!$C$2:$E$59,2,FALSE)),\" \",VLOOKUP(K139,Proposito_programa!$C$2:$E$59,2,FALSE))","v":"Movilidad segura, sostenible y accesible"},{"$f":"IF(ISERROR(VLOOKUP(K139,Proposito_programa!$C$2:$E$59,3,FALSE)),\" \",VLOOKUP(K139,Proposito_programa!$C$2:$E$59,3,FALSE))","v":"Propósito 4: Hacer de Bogotá Región un modelo de movilidad multimodal, incluyente y sostenible"},"133011604490000002022",null,19438435,"JOSELIN AGUILERA ARDILA","Persona Natural",null,null,null,54900000,null,null,null,54900000,33753333,"2021-04-13","2021-04-15","2021-12-31",270,null,null,null,null,null,null,null,null,"X",null,0.61481480874316941]
[132,2021,"FDLBU-CD-001-2147","https://community.secop.gov.co/Public/Tendering/ContractNoticePhases/View?PPI=CO1.PPI.12088823&isFromPublicArea=True&isModal=False","Contratos de prestación de servicios profesionales y de apoyo a la gestión","Contratación directa","Prestación de servicios profesionales y de apoyo a la gestión, o para la ejecución de trabajos artísticos que sólo puedan encomendarse a determinadas personas naturales;","PRESTAR SERVICIOS DE APOYO ADMINISTRATIVA Y ASISTENCIALMENTE A LAS INSPECCIONES DE POLICÍA DE LA LOCALIDAD","Inversión","Un Nuevo Contrato Social y Ambiental para la Bogotá del Siglo XXI",57,{"$f":"IF(ISERROR(VLOOKUP(K140,Proposito_programa!$C$2:$E$59,2,FALSE)),\" \",VLOOKUP(K140,Proposito_programa!$C$2:$E$59,2,FALSE))","v":"Gestión pública local"},{"$f":"IF(ISERROR(VLOOKUP(K140,Proposito_programa!$C$2:$E$59,3,FALSE)),\" \",VLOOKUP(K140,Proposito_programa!$C$2:$E$59,3,FALSE))","v":"Propósito 5: Construir Bogotá - Región con gobierno abierto, transparente y ciudadanía consciente"},"133011605570000002143",null,52347772,"JOHANNA PATRICIA GUEVARA MACIAS","Persona Natural",null,null,null,15897000,null,1,3709300,19606300,17335300,"2021-04-12","2021-04-12","2021-11-11",210,1,49,null,null,null,null,null,null,"X",null,0.88416988416988418]
[133,2021,"FDLBU-CD-001-2148","https://community.secop.gov.co/Public/Tendering/ContractNoticePhases/View?PPI=CO1.PPI.12682962&isFromPublicArea=True&isModal=False","Contratos de prestación de servicios profesionales y de apoyo a la gestión","Contratación directa","Prestación de servicios profesionales y de apoyo a la gestión, o para la ejecución de trabajos artísticos que sólo puedan encomendarse a determinadas personas naturales;","PRESTAR SUS SERVICIOS PROFESIONALES PARA APOYAR JURÍDICAMENTE LA EJECUCIÓN DE LAS ACCIONES REQUERIDAS PARA EL TRÁMITE E IMPULSO PROCESAL DE LAS ACTUACIONES CONTRAVENCIONALES Y/O QUERELLAS QUE CURSEN EN LAS INSPECCIONES DE LA POLICÍA DE LA LOCALIDAD","Inversión","Un Nuevo Contrato Social y Ambiental para la Bogotá del Siglo XXI",57,{"$f":"IF(ISERROR(VLOOKUP(K141,Proposito_programa!$C$2:$E$59,2,FALSE)),\" \",VLOOKUP(K141,Proposito_programa!$C$2:$E$59,2,FALSE))","v":"Gestión pública local"},{"$f":"IF(ISERROR(VLOOKUP(K141,Proposito_programa!$C$2:$E$59,3,FALSE)),\" \",VLOOKUP(K141,Proposito_programa!$C$2:$E$59,3,FALSE))","v":"Propósito 5: Construir Bogotá - Región con gobierno abierto, transparente y ciudadanía consciente"},"133011605570000002143",null,93121368,"JOSE VICENTE BRIÑEZ","Persona Natural",null,null,null,33257000,null,null,null,33257000,33257000,"2021-04-08","2021-04-09","2021-11-08",210,null,null,null,null,null,null,null,null,"X",null,1]
[134,2021,"FDLBU-CD-001-2149","https://community.secop.gov.co/Public/Tendering/ContractNoticePhases/View?PPI=CO1.PPI.12757239&isFromPublicArea=True&isModal=False","Contratos de prestación de servicios profesionales y de apoyo a la gestión","Contratación directa","Prestación de servicios profesionales y de apoyo a la gestión, o para la ejecución de trabajos artísticos que sólo puedan encomendarse a determinadas personas naturales;","PRESTAR SERVICIOS DE APOYO A LA GESTIÓN\nDEL DESARROLLO EN LAS LABORES DE PLANEACIÓN PARA LAS ACTIVIDADES DEL PROCESO DE\nPARTICIPACIÓN","Inversión","Un Nuevo Contrato Social y Ambiental para la Bogotá del Siglo XXI",55,{"$f":"IF(ISERROR(VLOOKUP(K142,Proposito_programa!$C$2:$E$59,2,FALSE)),\" \",VLOOKUP(K142,Proposito_programa!$C$2:$E$59,2,FALSE))","v":"Fortalecimiento de cultura ciudadana y su institucionalidad"},{"$f":"IF(ISERROR(VLOOKUP(K142,Proposito_programa!$C$2:$E$59,3,FALSE)),\" \",VLOOKUP(K142,Proposito_programa!$C$2:$E$59,3,FALSE))","v":"Propósito 5: Construir Bogotá - Región con gobierno abierto, transparente y ciudadanía consciente"},"133011605550000002141",null,1015456276,"TATIANA BRIÑEZ TORO","Persona Natural",null,null,null,14536000,null,1,1817000,16353000,13748633,"2021-04-12","2021-04-14","2021-12-13",240,1,30,null,null,null,null,null,null,"X",null,0.840740720357121]
[135,2021,"FDLBU-CD-001-2150","https://community.secop.gov.co/Public/Tendering/ContractNoticePhases/View?PPI=CO1.PPI.12756062&isFromPublicArea=True&isModal=False","Contratos de prestación de servicios profesionales y de apoyo a la gestión","Contratación directa","Prestación de servicios profesionales y de apoyo a la gestión, o para la ejecución de trabajos artísticos que sólo puedan encomendarse a determinadas personas naturales;","PRESTAR SERVICIOS DE APOYO A LA GESTIÓN DEL DESARROLLO EN LAS LABORES DE PLANEACIÓN RELATIVAS A LOS PROYECTOS AMBIENTALES DE LA VIGENCIA 2021 DE LA LÍNEA DE INVERSIONES AMBIENTALES SOSTENIBLES","Inversión","Un Nuevo Contrato Social y Ambiental para la Bogotá del Siglo XXI",24,{"$f":"IF(ISERROR(VLOOKUP(K143,Proposito_programa!$C$2:$E$59,2,FALSE)),\" \",VLOOKUP(K143,Proposito_programa!$C$2:$E$59,2,FALSE))","v":"Bogotá región emprendedora e innovadora"},{"$f":"IF(ISERROR(VLOOKUP(K143,Proposito_programa!$C$2:$E$59,3,FALSE)),\" \",VLOOKUP(K143,Proposito_programa!$C$2:$E$59,3,FALSE))","v":"Propósito 1: Hacer un nuevo contrato social para incrementar la inclusión social, productiva y política"},"133011601240000002073",null,80811218,"FABIAN ARTURO ORTIZ WILCHEZ ","Persona Natural",null,null,null,15897000,null,1,3633600,19530600,17259600,"2021-04-09","2021-04-13","2021-11-12",210,1,48,null,null,null,null,null,null,"X",null,0.88372093023255816]
[136,2021,"FDLBU-CD-001-2151","https://community.secop.gov.co/Public/Tendering/ContractNoticePhases/View?PPI=CO1.PPI.12776736&isFromPublicArea=True&isModal=False","Contratos de prestación de servicios profesionales y de apoyo a la gestión","Contratación directa","Prestación de servicios profesionales y de apoyo a la gestión, o para la ejecución de trabajos artísticos que sólo puedan encomendarse a determinadas personas naturales;","PRESTAR SERVICIOS DE APOYO TÉCNICO A LA DE GESTIÓN DEL DESARROLLO EN LABORES DE PLANEACIÓN, CON EL FIN DE LOGRAR EL CUMPLIMIENTO DE LAS METAS DEL PLAN DE DESARROLLO LOCAL DE LA VIGENCIA RELATIVAS AL SISTEMA LOCAL DE CUIDADO","Inversión","Un Nuevo Contrato Social y Ambiental para la Bogotá del Siglo XXI",6,{"$f":"IF(ISERROR(VLOOKUP(K144,Proposito_programa!$C$2:$E$59,2,FALSE)),\" \",VLOOKUP(K144,Proposito_programa!$C$2:$E$59,2,FALSE))","v":"Sistema Distrital de Cuidado"},{"$f":"IF(ISERROR(VLOOKUP(K144,Proposito_programa!$C$2:$E$59,3,FALSE)),\" \",VLOOKUP(K144,Proposito_programa!$C$2:$E$59,3,FALSE))","v":"Propósito 1: Hacer un nuevo contrato social para incrementar la inclusión social, productiva y política"},"133011601060000002062",null,1012327165,"CRISTIAN EDUARDO CHAVEZ SUAREZ","Persona Natural",null,null,null,27792000,null,null,null,27792000,23365867,"2021-04-12","2021-04-14","2021-12-31",270,1,13,null,null,null,null,null,null,"X",null,0.84074075273459992]
[137,2021,"FDLBU-CD-001-2152","\nhttps://community.secop.gov.co/Public/Tendering/ContractNoticePhases/View?PPI=CO1.PPI.12747194&isFromPublicArea=True&isModal=False","Contratos de prestación de servicios profesionales y de apoyo a la gestión","Contratación directa","Prestación de servicios profesionales y de apoyo a la gestión, o para la ejecución de trabajos artísticos que sólo puedan encomendarse a determinadas personas naturales;","PRESTAR SERVICIOS DE APOYO A LA GESTIÓN DEL DESARROLLO EN LABORES DE PLANEACIÓN EN LAS ACTIVIDADES RELATIVAS AL SISTEMA LOCAL DE CUIDADO","Inversión","Un Nuevo Contrato Social y Ambiental para la Bogotá del Siglo XXI",6,{"$f":"IF(ISERROR(VLOOKUP(K145,Proposito_programa!$C$2:$E$59,2,FALSE)),\" \",VLOOKUP(K145,Proposito_programa!$C$2:$E$59,2,FALSE))","v":"Sistema Distrital de Cuidado"},{"$f":"IF(ISERROR(VLOOKUP(K145,Proposito_programa!$C$2:$E$59,3,FALSE)),\" \",VLOOKUP(K145,Proposito_programa!$C$2:$E$59,3,FALSE))","v":"Propósito 1: Hacer un nuevo contrato social para incrementar la inclusión social, productiva y política"},"133011601060000002062",null,1015446736,"SANDY JINETH ROJAS HUERTAS","Persona Natural",null,null,null,18168000,null,1,1135500,19303500,17032500,"2021-04-12","2021-04-16","2021-12-15",240,1,15,null,null,null,null,null,null,"X",null,0.88235294117647056]
[138,2021,"FDLBU-CD-001-2153","https://community.secop.gov.co/Public/Tendering/ContractNoticePhases/View?PPI=CO1.PPI.12819665&isFromPublicArea=True&isModal=False","Contratos de prestación de servicios profesionales y de apoyo a la gestión","Contratación directa","Prestación de servicios profesionales y de apoyo a la gestión, o para la ejecución de trabajos artísticos que sólo puedan encomendarse a determinadas personas naturales;","PRESTAR SERVICIOS DE APOYO A LA DE GESTIÓN DEL DESARROLLO EN LAS LABORES DE PLANEACIÓN, CON EL FIN DE LOGRAR EL CUMPLIMIENTO DE LA META DE ACUERDOS EN COMUNIDAD PARA LA VIGENCIA 2021","Inversión","Un Nuevo Contrato Social y Ambiental para la Bogotá del Siglo XXI",45,{"$f":"IF(ISERROR(VLOOKUP(K146,Proposito_programa!$C$2:$E$59,2,FALSE)),\" \",VLOOKUP(K146,Proposito_programa!$C$2:$E$59,2,FALSE))","v":"Espacio público más seguro y construido colectivamente"},{"$f":"IF(ISERROR(VLOOKUP(K146,Proposito_programa!$C$2:$E$59,3,FALSE)),\" \",VLOOKUP(K146,Proposito_programa!$C$2:$E$59,3,FALSE))","v":"Propósito 3: Inspirar confianza y legitimidad para vivir sin miedo y ser epicentro de cultura ciudadana, paz y reconciliación"},"133011603450000002038",null,1016070013,"INGRID MARITZA MORENO AGREDO","Persona Natural",null,null,null,27792000,null,null,null,27792000,23365867,"2021-04-14","2021-04-14","2021-12-31",270,1,13,null,null,null,null,null,null,"X",null,0.84074075273459992]
[139,2021,"FDLBU-CD-001-2154","https://community.secop.gov.co/Public/Tendering/ContractNoticePhases/View?PPI=CO1.PPI.12753677&isFromPublicArea=True&isModal=False","Contratos de prestación de servicios profesionales y de apoyo a la gestión","Contratación directa","Prestación de servicios profesionales y de apoyo a la gestión, o para la ejecución de trabajos artísticos que sólo puedan encomendarse a determinadas personas naturales;","PRESTAR SERVICIOS DE\nAPOYO A LA GESTIÓN DEL DESARROLLO EN LABORES DE PLANEACIÓN EN LAS ACTIVIDADES\nRELATIVAS A LOS PROYECTOS AMBIENTALES DE LA VIGENCIA 2021 DE LA LÍNEA DE INVERSIONES\nAMBIENTALES SOSTENIBLES","Inversión","Un Nuevo Contrato Social y Ambiental para la Bogotá del Siglo XXI",38,{"$f":"IF(ISERROR(VLOOKUP(K147,Proposito_programa!$C$2:$E$59,2,FALSE)),\" \",VLOOKUP(K147,Proposito_programa!$C$2:$E$59,2,FALSE))","v":"Ecoeficiencia, reciclaje, manejo de residuos e inclusión de la población recicladora"},{"$f":"IF(ISERROR(VLOOKUP(K147,Proposito_programa!$C$2:$E$59,3,FALSE)),\" \",VLOOKUP(K147,Proposito_programa!$C$2:$E$59,3,FALSE))","v":"Propósito 2 : Cambiar Nuestros Hábitos de Vida para Reverdecer a Bogotá y Adaptarnos y Mitigar la Crisis Climática"},"133011602380000002082",null,1007375369,"SEBASTIAN FELIPE ALVARADO ESPAÑOL","Persona Natural",null,null,null,14536000,null,null,null,{"$f":"+V147+W147+Y147","v":14536000},13627500,"2021-04-14","2021-04-16","2021-12-15",240,null,null,null,null,null,null,null,null,"X",null,{"$f":"IF(ISERROR(AA147/Z147),\"-\",(AA147/Z147))","v":0.9375}]
[140,2021,"FDLBU-CD-001-2155","https://community.secop.gov.co/Public/Tendering/ContractNoticePhases/View?PPI=CO1.PPI.12776780&isFromPublicArea=True&isModal=False\n","Contratos de prestación de servicios profesionales y de apoyo a la gestión","Contratación directa","Prestación de servicios profesionales y de apoyo a la gestión, o para la ejecución de trabajos artísticos que sólo puedan encomendarse a determinadas personas naturales;","PRESTAR SERVICIOS PROFESIONALES PARA APOYAR EL CUBRIMIENTO DE LAS ACTIVIDADES, CRONOGRAMAS Y AGENDA DE LA ALCALDÍA LOCAL A NIVEL INTERNO Y EXTERNO, ASÍ COMO LA GENERACIÓN DE CONTENIDOS PERIODÍSTICOS","Inversión","Un Nuevo Contrato Social y Ambiental para la Bogotá del Siglo XXI",57,{"$f":"IF(ISERROR(VLOOKUP(K148,Proposito_programa!$C$2:$E$59,2,FALSE)),\" \",VLOOKUP(K148,Proposito_programa!$C$2:$E$59,2,FALSE))","v":"Gestión pública local"},{"$f":"IF(ISERROR(VLOOKUP(K148,Proposito_programa!$C$2:$E$59,3,FALSE)),\" \",VLOOKUP(K148,Proposito_programa!$C$2:$E$59,3,FALSE))","v":"Propósito 5: Construir Bogotá - Región con gobierno abierto, transparente y ciudadanía consciente"},"133011605570000002143",null,1014206538,"ASTRID LORENA VERA VALERO","Persona Natural",null,null,null,42474500,null,null,null,42474500,37644067,"2021-04-14","2021-04-15","2021-12-31",255,null,null,null,null,null,null,null,null,"X",null,0.88627451765176757]
[141,2021,"FDLBU-CD-001-2156","https://community.secop.gov.co/Public/Tendering/ContractNoticePhases/View?PPI=CO1.PPI.12358694&isFromPublicArea=True&isModal=False","Contratos de prestación de servicios profesionales y de apoyo a la gestión","Contratación directa","Prestación de servicios profesionales y de apoyo a la gestión, o para la ejecución de trabajos artísticos que sólo puedan encomendarse a determinadas personas naturales;","PRESTAR LOS SERVICIOS PROFESIONALES PARA APOYAR AL ÁREA DE GESTIÓN DEL DESARROLLO ADMINISTRATIVO Y FINANCIERO, EN LOS ASUNTOS RELACIONADOS CON EL DESARROLLO DE LA GESTIÓN CONTRACTUAL PARA LA ADQUISICIÓN DE RECURSOS Y SERVICIOS","Inversión","Un Nuevo Contrato Social y Ambiental para la Bogotá del Siglo XXI",57,{"$f":"IF(ISERROR(VLOOKUP(K149,Proposito_programa!$C$2:$E$59,2,FALSE)),\" \",VLOOKUP(K149,Proposito_programa!$C$2:$E$59,2,FALSE))","v":"Gestión pública local"},{"$f":"IF(ISERROR(VLOOKUP(K149,Proposito_programa!$C$2:$E$59,3,FALSE)),\" \",VLOOKUP(K149,Proposito_programa!$C$2:$E$59,3,FALSE))","v":"Propósito 5: Construir Bogotá - Región con gobierno abierto, transparente y ciudadanía consciente"},"133011605570000002143",null,1020793103,"LAURA MAYERLY GOMEZ PARRA","Persona Natural",null,null,null,39330000,null,1,291333,39621333,32338000,"2021-04-15","2021-04-19","2021-12-31",270,1,20,null,null,null,null,null,null,"X",null,0.81617647745470856]
[142,2021,"FDLBU-CD-001-2157","https://community.secop.gov.co/Public/Tendering/ContractNoticePhases/View?PPI=CO1.PPI.12840418&isFromPublicArea=True&isModal=False","Contratos de prestación de servicios profesionales y de apoyo a la gestión","Contratación directa","Prestación de servicios profesionales y de apoyo a la gestión, o para la ejecución de trabajos artísticos que sólo puedan encomendarse a determinadas personas naturales;","PRESTAR SERVICIOS DE APOYO A LA GESTIÓN DEL DESARROLLO EN LABORES DE PLANEACIÓN, EN LAS ACTIVIDADES DE PEDAGOGÍA DEL CÓDIGO NACIONAL DE SEGURIDAD Y CONVIVENCIA, PROMOCIÓN DE LA CONVIVENCIA Y DE ATENCIÓN DE MOVILIZACIONES Y AGLOMERACIONES EN EL TERRITORIO","Inversión","Un Nuevo Contrato Social y Ambiental para la Bogotá del Siglo XXI",48,{"$f":"IF(ISERROR(VLOOKUP(K150,Proposito_programa!$C$2:$E$59,2,FALSE)),\" \",VLOOKUP(K150,Proposito_programa!$C$2:$E$59,2,FALSE))","v":"Plataforma institucional para la seguridad y justicia"},{"$f":"IF(ISERROR(VLOOKUP(K150,Proposito_programa!$C$2:$E$59,3,FALSE)),\" \",VLOOKUP(K150,Proposito_programa!$C$2:$E$59,3,FALSE))","v":"Propósito 3: Inspirar confianza y legitimidad para vivir sin miedo y ser epicentro de cultura ciudadana, paz y reconciliación"},"133011603480000002153",null,79843350,"OCTAVIO TARAZONA HERNÁNDEZ","Persona Natural",null,null,null,27795000,null,null,null,27795000,24525000,"2021-04-14","2021-04-16","2021-12-31",255,null,null,null,null,null,null,null,null,"X",null,0.88235294117647056]
[143,2021,"FDLBU-CD-001-2158","https://community.secop.gov.co/Public/Tendering/ContractNoticePhases/View?PPI=CO1.PPI.12802738&isFromPublicArea=True&isModal=False","Contratos de prestación de servicios profesionales y de apoyo a la gestión","Contratación directa","Prestación de servicios profesionales y de apoyo a la gestión, o para la ejecución de trabajos artísticos que sólo puedan encomendarse a determinadas personas naturales;","PRESTAR SERVICIOS DE APOYO A LA GESTIÓN DEL DESARROLLO EN LAS LABORES DE PLANEACIÓN EN LAS ACTIVIDADES RELATIVAS A LA PREVENCIÓN DEL EMBARAZO ADOLESCENTE NO DESEADO","Inversión","Un Nuevo Contrato Social y Ambiental para la Bogotá del Siglo XXI",38,{"$f":"IF(ISERROR(VLOOKUP(K151,Proposito_programa!$C$2:$E$59,2,FALSE)),\" \",VLOOKUP(K151,Proposito_programa!$C$2:$E$59,2,FALSE))","v":"Ecoeficiencia, reciclaje, manejo de residuos e inclusión de la población recicladora"},{"$f":"IF(ISERROR(VLOOKUP(K151,Proposito_programa!$C$2:$E$59,3,FALSE)),\" \",VLOOKUP(K151,Proposito_programa!$C$2:$E$59,3,FALSE))","v":"Propósito 2 : Cambiar Nuestros Hábitos de Vida para Reverdecer a Bogotá y Adaptarnos y Mitigar la Crisis Climática"},"133011602380000002082",null,80035265,"BERNARDO HERNANDEZ BELTRAN","Persona Natural",null,null,null,18168000,null,null,null,18168000,16578300,"2021-04-15","2021-04-22","2021-12-21",240,null,null,null,null,null,null,null,null,"X",null,0.91249999999999998]
[144,2021,"FDLBU-CD-001-2159","https://community.secop.gov.co/Public/Tendering/ContractNoticePhases/View?PPI=CO1.PPI.12581748&isFromPublicArea=True&isModal=False","Contratos de prestación de servicios profesionales y de apoyo a la gestión","Contratación directa","Prestación de servicios profesionales y de apoyo a la gestión, o para la ejecución de trabajos artísticos que sólo puedan encomendarse a determinadas personas naturales;","PRESTAR SERVICIOS DE APOYO A LA GESTIÓN DEL DESARROLLO EN LAS LABORES DE PLANEACIÓN, CON EL FIN DE LOGRAR EL CUMPLIMIENTO DE LAS METAS DEL PROYECTO DIÁLOGOS PARA CRECER Y PARTICIPAR","Inversión","Un Nuevo Contrato Social y Ambiental para la Bogotá del Siglo XXI",57,{"$f":"IF(ISERROR(VLOOKUP(K152,Proposito_programa!$C$2:$E$59,2,FALSE)),\" \",VLOOKUP(K152,Proposito_programa!$C$2:$E$59,2,FALSE))","v":"Gestión pública local"},{"$f":"IF(ISERROR(VLOOKUP(K152,Proposito_programa!$C$2:$E$59,3,FALSE)),\" \",VLOOKUP(K152,Proposito_programa!$C$2:$E$59,3,FALSE))","v":"Propósito 5: Construir Bogotá - Región con gobierno abierto, transparente y ciudadanía consciente"},"133011605570000002143",null,79374388,"MANUEL RICARDO MORENO PEÑUELA","Persona Natural",null,null,null,33898000,null,null,null,33898000,29245333,"2021-04-15","2021-04-21","2021-12-31",255,1,5,null,null,null,null,null,null,"X",null,0.86274508820579388]
[145,2021,"FDLBU-CD-001-2160","https://community.secop.gov.co/Public/Tendering/ContractNoticePhases/View?PPI=CO1.PPI.12669365&isFromPublicArea=True&isModal=False ","Contratos de prestación de servicios profesionales y de apoyo a la gestión","Contratación directa","Prestación de servicios profesionales y de apoyo a la gestión, o para la ejecución de trabajos artísticos que sólo puedan encomendarse a determinadas personas naturales;","PRESTAR LOS SERVICIOS PROFESIONALES PARA LA OPERACIÓN, PRESTACIÓN, SEGUIMIENTO Y CUMPLIMIENTO DE LOS PROCEDIMIENTOS ADMINISTRATIVOS, OPERATIVOS Y PROGRAMÁTICOS DEL SERVICIO APOYO ECONÓMICO TIPO C, QUE CONTRIBUYAN A LA GARANTÍA DE LOS DERECHOS DE LA POBLACIÓN MAYOR EN EL MARCO DE LA POLÍTICA PÚBLICA SOCIAL PARA EL ENVEJECIMIENTO Y LA VEJEZ EN EL DISTRITO CAPITAL A CARGO DE LA ALCALDÍA LOCAL","Inversión","Un Nuevo Contrato Social y Ambiental para la Bogotá del Siglo XXI",1,{"$f":"IF(ISERROR(VLOOKUP(K153,Proposito_programa!$C$2:$E$59,2,FALSE)),\" \",VLOOKUP(K153,Proposito_programa!$C$2:$E$59,2,FALSE))","v":"Subsidios y transferencias para la equidad"},{"$f":"IF(ISERROR(VLOOKUP(K153,Proposito_programa!$C$2:$E$59,3,FALSE)),\" \",VLOOKUP(K153,Proposito_programa!$C$2:$E$59,3,FALSE))","v":"Propósito 1: Hacer un nuevo contrato social para incrementar la inclusión social, productiva y política"},"133011601010000002144",null,1015457130,"DANIELA PEÑA GOMEZ","Persona Natural",null,null,null,43700000,null,null,null,43700000,31027000,"2021-04-15","2021-04-28","2021-12-31",300,1,20,null,null,null,null,null,null,"X",null,0.71]
[146,2021,"FDLBU-CD-001-2161","https://community.secop.gov.co/Public/Tendering/ContractNoticePhases/View?PPI=CO1.PPI.12747339&isFromPublicArea=True&isModal=False\n","Contratos de prestación de servicios profesionales y de apoyo a la gestión","Contratación directa","Prestación de servicios profesionales y de apoyo a la gestión, o para la ejecución de trabajos artísticos que sólo puedan encomendarse a determinadas personas naturales;","PRESTAR SERVICIOS PROFESIONALES PARA APOYAR AL ÁREA GESTIÓN DEL DESARROLLO ADMINISTRATIVO Y FINANCIERO EN LOS ASUNTOS RELATIVOS A LA PLANEACIÓN LOCAL: GARANTIZAR LA IMPLEMENTACIÓN Y SEGUIMIENTO DE LOS PROCESOS, PROYECTOS Y PROCEDIMIENTOS DE CONTRATOS SUSCRITOS POR LA ALCALDÍA LOCAL DE BARRIOS UNIDOS DIRIGIDOS AL CUMPLIMIENTO DE LA META DE BUEN TRATO","Inversión","Un Nuevo Contrato Social y Ambiental para la Bogotá del Siglo XXI",6,{"$f":"IF(ISERROR(VLOOKUP(K154,Proposito_programa!$C$2:$E$59,2,FALSE)),\" \",VLOOKUP(K154,Proposito_programa!$C$2:$E$59,2,FALSE))","v":"Sistema Distrital de Cuidado"},{"$f":"IF(ISERROR(VLOOKUP(K154,Proposito_programa!$C$2:$E$59,3,FALSE)),\" \",VLOOKUP(K154,Proposito_programa!$C$2:$E$59,3,FALSE))","v":"Propósito 1: Hacer un nuevo contrato social para incrementar la inclusión social, productiva y política"},"133011601060000002053",null,30507754,"CAROLINA CALDERON HENAO","Persona Natural",null,null,null,39330000,null,null,null,39330000,32338000,"2021-04-19","2021-04-19","2021-12-31",270,1,18,null,null,null,null,null,null,"X",null,0.82222222222222219]
[147,2021,"FDLBU-CD-001-2162","https://community.secop.gov.co/Public/Tendering/ContractNoticePhases/View?PPI=CO1.PPI.12747143&isFromPublicArea=True&isModal=False","Contratos de prestación de servicios profesionales y de apoyo a la gestión","Contratación directa","Prestación de servicios profesionales y de apoyo a la gestión, o para la ejecución de trabajos artísticos que sólo puedan encomendarse a determinadas personas naturales;","PRESTAR SERVICIOS PROFESIONALES PARA  APOYAR AL ÁREA GESTIÓN DEL DESARROLLO ADMINISTRATIVO Y FINANCIERO EN LOS ASUNTOS RELATIVOS A LA PLANEACIÓN LOCAL: GARANTIZAR EL CUMPLIMIENTO DE LA META INTERVENIR\nUNA SEDE CULTURAL CON DOTACIÓN Y/O ADECUACIÓN DEL PROYECTO CULTURA PARA EL DESARROLLO SOCIAL EN EL MARCO DE LA INICIATIVA PRIORIZADA DE PRESUPUESTOS PARTICIPATIVOS.","Inversión","Un Nuevo Contrato Social y Ambiental para la Bogotá del Siglo XXI",21,{"$f":"IF(ISERROR(VLOOKUP(K155,Proposito_programa!$C$2:$E$59,2,FALSE)),\" \",VLOOKUP(K155,Proposito_programa!$C$2:$E$59,2,FALSE))","v":"Creación y vida cotidiana: Apropiación ciudadana del arte, la cultura y el patrimonio, para la democracia cultural"},{"$f":"IF(ISERROR(VLOOKUP(K155,Proposito_programa!$C$2:$E$59,3,FALSE)),\" \",VLOOKUP(K155,Proposito_programa!$C$2:$E$59,3,FALSE))","v":"Propósito 1: Hacer un nuevo contrato social para incrementar la inclusión social, productiva y política"},"133011601210000002012",null,1018457722,"JHOJAN GONZALO PAREDES","Persona Natural",null,null,null,39330000,null,null,null,39330000,32338000,"2021-04-16","2021-04-19","2021-12-31",270,1,18,null,null,null,null,null,null,"X",null,0.82222222222222219]
[148,2021,"FDLBU-CD-001-2163","https://community.secop.gov.co/Public/Tendering/ContractNoticePhases/View?PPI=CO1.PPI.12756091&isFromPublicArea=True&isModal=False","Contratos de prestación de servicios profesionales y de apoyo a la gestión","Contratación directa","Prestación de servicios profesionales y de apoyo a la gestión, o para la ejecución de trabajos artísticos que sólo puedan encomendarse a determinadas personas naturales;","PRESTAR SERVICIOS PROFESIONALES PARA APOYAR AL ÁREA GESTIÓN DEL DESARROLLO ADMINISTRATIVO Y FINANCIERO EN LOS ASUNTOS  RELATIVOS A LA PLANEACIÓN LOCAL: GARANTIZAR LA IMPLEMENTACIÓN Y SEGUIMIENTO DE  LOS PROCESOS, PROYECTOS Y PROCEDIMIENTOS DE CONTRATOS SUSCRITOS POR LA \nALCALDÍA LOCAL DE BARRIOS UNIDOS DIRIGIDOS AL CUMPLIMIENTO DE LAS METAS DE DE  BARRIOS UNIDOS TERRITORIO DE PAZ ","Inversión","Un Nuevo Contrato Social y Ambiental para la Bogotá del Siglo XXI",39,{"$f":"IF(ISERROR(VLOOKUP(K156,Proposito_programa!$C$2:$E$59,2,FALSE)),\" \",VLOOKUP(K156,Proposito_programa!$C$2:$E$59,2,FALSE))","v":"Bogotá territorio de paz y atención integral a las víctimas del conflicto armado"},{"$f":"IF(ISERROR(VLOOKUP(K156,Proposito_programa!$C$2:$E$59,3,FALSE)),\" \",VLOOKUP(K156,Proposito_programa!$C$2:$E$59,3,FALSE))","v":"Propósito 3: Inspirar confianza y legitimidad para vivir sin miedo y ser epicentro de cultura ciudadana, paz y reconciliación"},"133011603390000002030",null,79955443,"ALEXANDER AGUSTIN MOJICA CANCELADO","Persona Natural",null,null,null,39330000,null,null,null,39330000,32192333,"2021-04-16","2021-04-20","2021-12-31",270,1,19,null,null,null,null,null,null,"X",null,0.81851851004322396]
[149,2021,"FDLBU-CD-001-2164","https://community.secop.gov.co/Public/Tendering/ContractNoticePhases/View?PPI=CO1.PPI.12877489&isFromPublicArea=True&isModal=False","Contratos de prestación de servicios profesionales y de apoyo a la gestión","Contratación directa","Prestación de servicios profesionales y de apoyo a la gestión, o para la ejecución de trabajos artísticos que sólo puedan encomendarse a determinadas personas naturales;","PRESTAR SERVICIOS DE APOYO A LA GESTIÓN DEL DESARROLLO EN LAS LABORES DE PLANEACIÓN REFERENTES A LA REACTIVACIÓN DE LA ECONOMÍA LOCAL","Inversión","Un Nuevo Contrato Social y Ambiental para la Bogotá del Siglo XXI",6,{"$f":"IF(ISERROR(VLOOKUP(K157,Proposito_programa!$C$2:$E$59,2,FALSE)),\" \",VLOOKUP(K157,Proposito_programa!$C$2:$E$59,2,FALSE))","v":"Sistema Distrital de Cuidado"},{"$f":"IF(ISERROR(VLOOKUP(K157,Proposito_programa!$C$2:$E$59,3,FALSE)),\" \",VLOOKUP(K157,Proposito_programa!$C$2:$E$59,3,FALSE))","v":"Propósito 1: Hacer un nuevo contrato social para incrementar la inclusión social, productiva y política"},"133011601060000002135",null,64574720,"MARTHA BEATRIZ BUELVAS PADILLA","Persona Natural",null,null,null,12719000,null,1,1453600,14172600,12416167,"2021-04-16","2021-05-06","2021-12-05",210,1,24,null,null,null,null,null,null,"X",null,0.87606839958793725]
[150,2021,"FDLBU-CD-001-2165","https://community.secop.gov.co/Public/Tendering/ContractNoticePhases/View?PPI=CO1.PPI.12797261&isFromPublicArea=True&isModal=False","Contratos de prestación de servicios profesionales y de apoyo a la gestión","Contratación directa","Prestación de servicios profesionales y de apoyo a la gestión, o para la ejecución de trabajos artísticos que sólo puedan encomendarse a determinadas personas naturales;","PRESTAR SERVICIOS DE APOYO A LA GESTIÓN\nDEL DESARROLLO EN LAS LABORES DE PLANEACIÓN EN LAS ACTIVIDADES RELATIVAS A LA\nPREVENCIÓN DEL EMBARAZO ADOLESCENTE NO DESEADO ","Inversión","Un Nuevo Contrato Social y Ambiental para la Bogotá del Siglo XXI",39,{"$f":"IF(ISERROR(VLOOKUP(K158,Proposito_programa!$C$2:$E$59,2,FALSE)),\" \",VLOOKUP(K158,Proposito_programa!$C$2:$E$59,2,FALSE))","v":"Bogotá territorio de paz y atención integral a las víctimas del conflicto armado"},{"$f":"IF(ISERROR(VLOOKUP(K158,Proposito_programa!$C$2:$E$59,3,FALSE)),\" \",VLOOKUP(K158,Proposito_programa!$C$2:$E$59,3,FALSE))","v":"Propósito 3: Inspirar confianza y legitimidad para vivir sin miedo y ser epicentro de cultura ciudadana, paz y reconciliación"},"133011603390000002030",null,1033744923,"LEIDY LORENA CUERVO GONZALEZ","Persona Natural",null,null,null,14536000,null,1,1453600,15989600,13264100,"2021-04-20","2021-04-22","2021-12-23",240,1,24,null,null,null,null,null,null,"X",null,0.82954545454545459]
[151,2021,"FDLBU-CD-001-2166","https://community.secop.gov.co/Public/Tendering/ContractNoticePhases/View?PPI=CO1.PPI.12885876&isFromPublicArea=True&isModal=False","Contratos de prestación de servicios profesionales y de apoyo a la gestión","Contratación directa","Prestación de servicios profesionales y de apoyo a la gestión, o para la ejecución de trabajos artísticos que sólo puedan encomendarse a determinadas personas naturales;"," PRESTAR SERVICIOS DE APOYO A LA GESTIÓN DEL DESARROLLO EN LAS LABORES DE PLANEACIÓN REFERENTES A LA REACTIVACIÓN DE LA ECONOMÍA LOCAL","Inversión","Un Nuevo Contrato Social y Ambiental para la Bogotá del Siglo XXI",6,{"$f":"IF(ISERROR(VLOOKUP(K159,Proposito_programa!$C$2:$E$59,2,FALSE)),\" \",VLOOKUP(K159,Proposito_programa!$C$2:$E$59,2,FALSE))","v":"Sistema Distrital de Cuidado"},{"$f":"IF(ISERROR(VLOOKUP(K159,Proposito_programa!$C$2:$E$59,3,FALSE)),\" \",VLOOKUP(K159,Proposito_programa!$C$2:$E$59,3,FALSE))","v":"Propósito 1: Hacer un nuevo contrato social para incrementar la inclusión social, productiva y política"},"133011601060000002135",null,1018515376,"JUAN CAMILO RAMOS CALDERON","Persona Natural",null,null,null,12719000,null,null,null,12719000,11386533,"2021-04-16","2021-04-23","2021-11-22",210,null,null,null,null,null,null,null,null,"X",null,0.89523806903058412]
[152,2021,"FDLBU-CD-001-2167","https://community.secop.gov.co/Public/Tendering/ContractNoticePhases/View?PPI=CO1.PPI.12890736&isFromPublicArea=True&isModal=False","Contratos de prestación de servicios profesionales y de apoyo a la gestión","Contratación directa","Prestación de servicios profesionales y de apoyo a la gestión, o para la ejecución de trabajos artísticos que sólo puedan encomendarse a determinadas personas naturales;"," PRESTAR SERVICIOS DE APOYO A LA GESTIÓN DEL DESARROLLO EN LAS LABORES DE PLANEACIÓN REFERENTES A LA REACTIVACIÓN DE LA\nECONOMÍA LOCAL","Inversión","Un Nuevo Contrato Social y Ambiental para la Bogotá del Siglo XXI",6,{"$f":"IF(ISERROR(VLOOKUP(K160,Proposito_programa!$C$2:$E$59,2,FALSE)),\" \",VLOOKUP(K160,Proposito_programa!$C$2:$E$59,2,FALSE))","v":"Sistema Distrital de Cuidado"},{"$f":"IF(ISERROR(VLOOKUP(K160,Proposito_programa!$C$2:$E$59,3,FALSE)),\" \",VLOOKUP(K160,Proposito_programa!$C$2:$E$59,3,FALSE))","v":"Propósito 1: Hacer un nuevo contrato social para incrementar la inclusión social, productiva y política"},"133011601060000002135",null,1030546475,"JONATHAN ALEJANDRO RODRIGUEZ NIÑO","Persona Natural",null,null,null,12719000,null,null,null,12719000,11507667,"2021-04-17","2021-04-21","2021-11-20",210,null,null,null,null,null,null,null,null,"X",null,0.90476193096941582]
[153,2021,"FDLBU-CD-001-2168","https://community.secop.gov.co/Public/Tendering/ContractNoticePhases/View?PPI=CO1.PPI.12840318&isFromPublicArea=True&isModal=False","Contratos de prestación de servicios profesionales y de apoyo a la gestión","Contratación directa","Prestación de servicios profesionales y de apoyo a la gestión, o para la ejecución de trabajos artísticos que sólo puedan encomendarse a determinadas personas naturales;","PRESTAR SERVICIOS DE  APOYO A LA GESTIÓN DEL DESARROLLO EN EL ÁREA DE PLANEACIÓN EN LAS ACTIVIDADES ENMARCADAS EN EL CUMPLIMIENTO DE LA META DE ACUERDOS EN COMUNIDAD PARA LA VIGENCIA 2021","Inversión","Un Nuevo Contrato Social y Ambiental para la Bogotá del Siglo XXI",45,{"$f":"IF(ISERROR(VLOOKUP(K161,Proposito_programa!$C$2:$E$59,2,FALSE)),\" \",VLOOKUP(K161,Proposito_programa!$C$2:$E$59,2,FALSE))","v":"Espacio público más seguro y construido colectivamente"},{"$f":"IF(ISERROR(VLOOKUP(K161,Proposito_programa!$C$2:$E$59,3,FALSE)),\" \",VLOOKUP(K161,Proposito_programa!$C$2:$E$59,3,FALSE))","v":"Propósito 3: Inspirar confianza y legitimidad para vivir sin miedo y ser epicentro de cultura ciudadana, paz y reconciliación"},"133011603450000002038",null,52019196,"GLADYS ROCIO GUERRA FORERO","Persona Natural",null,null,null,18168000,null,null,null,18168000,16654000,"2021-04-20","2021-04-21","2021-12-20",240,null,null,null,null,null,null,null,null,"X",null,0.91666666666666663]
[154,2021,"FDLBU-CD-001-2169","https://community.secop.gov.co/Public/Tendering/ContractNoticePhases/View?PPI=CO1.PPI.12654342&isFromPublicArea=True&isModal=False","Contratos de prestación de servicios profesionales y de apoyo a la gestión","Contratación directa","Prestación de servicios profesionales y de apoyo a la gestión, o para la ejecución de trabajos artísticos que sólo puedan encomendarse a determinadas personas naturales;","PRESTAR SERVICIOS DE APOYO A LA GESTIÓN DEL DESARROLLO EN LAS LABORES DE PLANEACIÓN EN LAS ACTIVIDADES CONCERNIENTES AL PROYECTO IMPULSEMOS ECONOMÍA LOCAL ","Inversión","Un Nuevo Contrato Social y Ambiental para la Bogotá del Siglo XXI",6,{"$f":"IF(ISERROR(VLOOKUP(K162,Proposito_programa!$C$2:$E$59,2,FALSE)),\" \",VLOOKUP(K162,Proposito_programa!$C$2:$E$59,2,FALSE))","v":"Sistema Distrital de Cuidado"},{"$f":"IF(ISERROR(VLOOKUP(K162,Proposito_programa!$C$2:$E$59,3,FALSE)),\" \",VLOOKUP(K162,Proposito_programa!$C$2:$E$59,3,FALSE))","v":"Propósito 1: Hacer un nuevo contrato social para incrementar la inclusión social, productiva y política"},"133011601060000002135",null,1133839106,"VIUNYS PAOLA VERGARA SOTO","Persona Natural",null,null,null,18168000,null,1,529900,18697900,16578300,"2021-04-20","2021-04-22","2021-12-21",240,1,7,null,null,null,null,null,null,"X",null,0.88663967611336036]
[155,2021,"FDLBU-CD-001-2170","https://community.secop.gov.co/Public/Tendering/ContractNoticePhases/View?PPI=CO1.PPI.12880908&isFromPublicArea=True&isModal=False","Contratos de prestación de servicios profesionales y de apoyo a la gestión","Contratación directa","Prestación de servicios profesionales y de apoyo a la gestión, o para la ejecución de trabajos artísticos que sólo puedan encomendarse a determinadas personas naturales;","PRESTAR SERVICIOS DE APOYO A LA DE GESTIÓN DEL DESARROLLO EN LAS LABORES DE PLANEACIÓN CON EL FIN DE LOGRAR EL CUMPLIMIENTO DE LAS METAS DEL PLAN DE DESARROLLO LOCAL DE LA VIGENCIA RELATIVAS AL PROYECTO IMPULSEMOS ECONOMÍA LOCA","Inversión","Un Nuevo Contrato Social y Ambiental para la Bogotá del Siglo XXI",6,{"$f":"IF(ISERROR(VLOOKUP(K163,Proposito_programa!$C$2:$E$59,2,FALSE)),\" \",VLOOKUP(K163,Proposito_programa!$C$2:$E$59,2,FALSE))","v":"Sistema Distrital de Cuidado"},{"$f":"IF(ISERROR(VLOOKUP(K163,Proposito_programa!$C$2:$E$59,3,FALSE)),\" \",VLOOKUP(K163,Proposito_programa!$C$2:$E$59,3,FALSE))","v":"Propósito 1: Hacer un nuevo contrato social para incrementar la inclusión social, productiva y política"},"133011601060000002135",null,1030648943,"KARLA ANDREA TARAZONA RAMIREZ  ","Persona Natural",null,null,null,26350000,null,null,null,26350000,22630000,"2021-04-19","2021-04-22","2021-12-31",255,1,5,null,null,null,null,null,null,"X",null,0.85882352941176465]
[156,2021,"FDLBU-CD-001-2171","https://community.secop.gov.co/Public/Tendering/ContractNoticePhases/View?PPI=CO1.PPI.12870252&isFromPublicArea=True&isModal=False\n","Contratos de prestación de servicios profesionales y de apoyo a la gestión","Contratación directa","Prestación de servicios profesionales y de apoyo a la gestión, o para la ejecución de trabajos artísticos que sólo puedan encomendarse a determinadas personas naturales;","PRESTAR SERVICIOS DE APOYO A LA GESTIÓN DEL DESARROLLO EN LABORES DE PLANEACIÓN EN LAS ACTIVIDADES\nRELATIVAS A LA MEMORIA, LA PAZ Y LA RECONCILIACIÓN EN EL MARCO DEL PROYECTO DE INVERSIÓN BARRIOS UNIDOS TERRITORIO DE PAZ","Inversión","Un Nuevo Contrato Social y Ambiental para la Bogotá del Siglo XXI",39,{"$f":"IF(ISERROR(VLOOKUP(K164,Proposito_programa!$C$2:$E$59,2,FALSE)),\" \",VLOOKUP(K164,Proposito_programa!$C$2:$E$59,2,FALSE))","v":"Bogotá territorio de paz y atención integral a las víctimas del conflicto armado"},{"$f":"IF(ISERROR(VLOOKUP(K164,Proposito_programa!$C$2:$E$59,3,FALSE)),\" \",VLOOKUP(K164,Proposito_programa!$C$2:$E$59,3,FALSE))","v":"Propósito 3: Inspirar confianza y legitimidad para vivir sin miedo y ser epicentro de cultura ciudadana, paz y reconciliación"},"133011603390000002030",null,1014234728,"JINNA PAOLA GERENA ROJAS","Persona Natural",null,null,null,14536000,null,1,908500,15444500,12900700,"2021-04-21","2021-04-28","2021-12-27",240,1,18,null,null,null,null,null,null,"X",null,0.83529411764705885]
["OC 66323",2021,"FDLBU-CD-001-2172","https://www.colombiacompra.gov.co/tienda-virtual-del-estado-colombiano/ordenes-compra/66323","Otros","Selección abreviada","Acuerdo marco de precios ","CONTRATAR EL SERVICIO INTEGRAL Y SUMINISTRO DE PRODUCTOS DE ASEO Y CAFETERÍA, INCLUIDA LA MAQUINARIA Y LOS EQUIPOS NECESARIOS PARA EL DESARROLLO DEL MISMO PARA LAS DEPENDENCIAS DE LA ALCALDÍA LOCAL DE BARRIOS UNIDOS","Funcionamiento","Un Nuevo Contrato Social y Ambiental para la Bogotá del Siglo XXI",null,{"$f":"IF(ISERROR(VLOOKUP(K165,Proposito_programa!$C$2:$E$59,2,FALSE)),\" \",VLOOKUP(K165,Proposito_programa!$C$2:$E$59,2,FALSE))","v":" "},{"$f":"IF(ISERROR(VLOOKUP(K165,Proposito_programa!$C$2:$E$59,3,FALSE)),\" \",VLOOKUP(K165,Proposito_programa!$C$2:$E$59,3,FALSE))","v":" "},0,17,901351386,"UT EMINSER -SOLOASEO 2020","Unión Temporal",null,null,null,140991837,null,1,3350000,144341837,109457468,"2021-03-26","2021-04-05","2022-02-04",300,null,null,null,null,null,null,null,null,"X",null,0.75832115119887245]
[157,2021,"FDLBU-CD-001-2173","https://community.secop.gov.co/Public/Tendering/ContractNoticePhases/View?PPI=CO1.PPI.12842500&isFromPublicArea=True&isModal=False","Contratos de prestación de servicios profesionales y de apoyo a la gestión","Contratación directa","Prestación de servicios profesionales y de apoyo a la gestión, o para la ejecución de trabajos artísticos que sólo puedan encomendarse a determinadas personas naturales;","PRESTAR SERVICIOS PROFESIONALES PARA\nAPOYAR AL ÁREA GESTIÓN DEL DESARROLLO ADMINISTRATIVO Y FINANCIERO EN LOS ASUNTOS\nRELATIVOS A LA PLANEACIÓN LOCAL: GARANTIZAR LA IMPLEMENTACIÓN Y SEGUIMIENTO DE\nLOS PROCESOS, PROYECTOS Y PROCEDIMIENTOS DE CONTRATOS SUSCRITOS POR LA\nALCALDÍA LOCAL DE BARRIOS UNIDOS DIRIGIDOS AL CUMPLIMIENTO DE LAS META DE\nPEDAGOGÍA DEL CÓDIGO NACIONAL DE SEGURIDAD Y CONVIVENCIA","Inversión","Un Nuevo Contrato Social y Ambiental para la Bogotá del Siglo XXI",48,{"$f":"IF(ISERROR(VLOOKUP(K166,Proposito_programa!$C$2:$E$59,2,FALSE)),\" \",VLOOKUP(K166,Proposito_programa!$C$2:$E$59,2,FALSE))","v":"Plataforma institucional para la seguridad y justicia"},{"$f":"IF(ISERROR(VLOOKUP(K166,Proposito_programa!$C$2:$E$59,3,FALSE)),\" \",VLOOKUP(K166,Proposito_programa!$C$2:$E$59,3,FALSE))","v":"Propósito 3: Inspirar confianza y legitimidad para vivir sin miedo y ser epicentro de cultura ciudadana, paz y reconciliación"},"133011603480000002153",null,1032456062,"LAURA KATHERIN LAMPREA MARTINEZ","Persona Natural",null,null,null,37145000,null,null,null,37145000,31755333,"2021-04-21","2021-04-23","2021-12-31",255,1,7,null,null,null,null,null,null,"X",null,0.85490195181047246]
[158,2021,"FDLBU-CD-001-2174","https://community.secop.gov.co/Public/Tendering/ContractNoticePhases/View?PPI=CO1.PPI.12910108&isFromPublicArea=True&isModal=False","Contratos de prestación de servicios profesionales y de apoyo a la gestión","Contratación directa","Prestación de servicios profesionales y de apoyo a la gestión, o para la ejecución de trabajos artísticos que sólo puedan encomendarse a determinadas personas naturales;","PRESTAR SERVICIOS DE APOYO A LA GESTIÓN DEL DESARROLLO EN LABORES DE PLANEACIÓN EN LAS ACTIVIDADES RELATIVAS A DEPORTE, RECREACIÓN Y CULTURA","Inversión","Un Nuevo Contrato Social y Ambiental para la Bogotá del Siglo XXI",21,{"$f":"IF(ISERROR(VLOOKUP(K167,Proposito_programa!$C$2:$E$59,2,FALSE)),\" \",VLOOKUP(K167,Proposito_programa!$C$2:$E$59,2,FALSE))","v":"Creación y vida cotidiana: Apropiación ciudadana del arte, la cultura y el patrimonio, para la democracia cultural"},{"$f":"IF(ISERROR(VLOOKUP(K167,Proposito_programa!$C$2:$E$59,3,FALSE)),\" \",VLOOKUP(K167,Proposito_programa!$C$2:$E$59,3,FALSE))","v":"Propósito 1: Hacer un nuevo contrato social para incrementar la inclusión social, productiva y política"},"133011601210000002012",null,80110196,"EDGAR MAURICIO VARGAS LESMES ","Persona Natural",null,null,null,18168000,null,1,1514000,19682000,16275500,"2021-04-22","2021-04-26","2021-12-25",240,1,20,null,null,null,null,null,null,"X",null,0.82692307692307687]
[159,2021,"FDLBU-CD-001-2175","https://community.secop.gov.co/Public/Tendering/ContractNoticePhases/View?PPI=CO1.PPI.12794825&isFromPublicArea=True&isModal=False\n","Contratos de prestación de servicios profesionales y de apoyo a la gestión","Contratación directa","Prestación de servicios profesionales y de apoyo a la gestión, o para la ejecución de trabajos artísticos que sólo puedan encomendarse a determinadas personas naturales;","PRESTAR SERVICIOS PROFESIONALES PARA APOYAR AL ÁREA GESTIÓN DEL DESARROLLO ADMINISTRATIVO Y FINANCIERO EN LOS ASUNTOS RELATIVOS A LA PLANEACIÓN LOCAL: COORDINAR Y GARANTIZAR LA IMPLEMENTACIÓN Y SEGUIMIENTO DE LOS PROCESOS, PROYECTOS Y PROCEDIMIENTOS DE CONTRATOS SUSCRITOS POR LA ALCALDÍA LOCAL DE BARRIOS UNIDOS DIRIGIDOS AL CUMPLIMIENTO DE LAS METAS DE LA LÍNEA DE INVERSIONES AMBIENTALES SOSTENIBLES","Inversión","Un Nuevo Contrato Social y Ambiental para la Bogotá del Siglo XXI",27,{"$f":"IF(ISERROR(VLOOKUP(K168,Proposito_programa!$C$2:$E$59,2,FALSE)),\" \",VLOOKUP(K168,Proposito_programa!$C$2:$E$59,2,FALSE))","v":"Cambio cultural para la gestión de la crisis climática"},{"$f":"IF(ISERROR(VLOOKUP(K168,Proposito_programa!$C$2:$E$59,3,FALSE)),\" \",VLOOKUP(K168,Proposito_programa!$C$2:$E$59,3,FALSE))","v":"Propósito 2 : Cambiar Nuestros Hábitos de Vida para Reverdecer a Bogotá y Adaptarnos y Mitigar la Crisis Climática"},"133011602270000002011",null,1014260138,"DIANA PAOLA LOPEZ DUARTE ","Persona Natural",null,null,null,42750000,null,null,null,42750000,34516667,"2021-04-22","2021-04-23","2021-12-31",270,1,22,null,null,null,null,null,null,"X",null,0.8074074152046784]
[160,2021,"FDLBU-CD-001-2176","https://community.secop.gov.co/Public/Tendering/ContractNoticePhases/View?PPI=CO1.PPI.12922331&isFromPublicArea=True&isModal=False","Contratos de prestación de servicios profesionales y de apoyo a la gestión","Contratación directa","Prestación de servicios profesionales y de apoyo a la gestión, o para la ejecución de trabajos artísticos que sólo puedan encomendarse a determinadas personas naturales;","PRESTAR SERVICIOS PROFESIONALES PARA APOYAR AL ÁREA GESTIÓN DEL DESARROLLO ADMINISTRATIVO Y FINANCIERO EN LOS ASUNTOS RELATIVOS A LA PLANEACIÓN LOCAL: GARANTIZAR LA IMPLEMENTACIÓN Y SEGUIMIENTO DE LOS PROCESOS, PROYECTOS Y PROCEDIMIENTOS DE CONTRATOS SUSCRITOS POR LA ALCALDÍA LOCAL DE BARRIOS UNIDOS DIRIGIDOS AL CUMPLIMIENTO DE LAS METAS DE LA LÍNEA DE ENVERSIONES AMBIENTALES SOSTENIBLES","Inversión","Un Nuevo Contrato Social y Ambiental para la Bogotá del Siglo XXI",24,{"$f":"IF(ISERROR(VLOOKUP(K169,Proposito_programa!$C$2:$E$59,2,FALSE)),\" \",VLOOKUP(K169,Proposito_programa!$C$2:$E$59,2,FALSE))","v":"Bogotá región emprendedora e innovadora"},{"$f":"IF(ISERROR(VLOOKUP(K169,Proposito_programa!$C$2:$E$59,3,FALSE)),\" \",VLOOKUP(K169,Proposito_programa!$C$2:$E$59,3,FALSE))","v":"Propósito 1: Hacer un nuevo contrato social para incrementar la inclusión social, productiva y política"},"133011601240000002073",null,53130506,"ANGELICA MARIA ESPINO","Persona Natural",null,null,null,41515000,null,null,null,41515000,31318333,"2021-04-23","2021-04-26","2021-12-31",285,1,22,null,null,null,null,null,null,"X",null,0.75438595688305432]
[161,2021,"FDLBU-CD-001-2177","https://community.secop.gov.co/Public/Tendering/ContractNoticePhases/View?PPI=CO1.PPI.12985948&isFromPublicArea=True&isModal=False","Contratos de prestación de servicios profesionales y de apoyo a la gestión","Contratación directa","Prestación de servicios profesionales y de apoyo a la gestión, o para la ejecución de trabajos artísticos que sólo puedan encomendarse a determinadas personas naturales;","PRESTAR SERVICIOS DE APOYO ADMINISTRATIVA Y ASISTENCIALMENTE A LAS INSPECCIONES DE POLICÍA DE LA LOCALIDAD","Inversión","Un Nuevo Contrato Social y Ambiental para la Bogotá del Siglo XXI",57,{"$f":"IF(ISERROR(VLOOKUP(K170,Proposito_programa!$C$2:$E$59,2,FALSE)),\" \",VLOOKUP(K170,Proposito_programa!$C$2:$E$59,2,FALSE))","v":"Gestión pública local"},{"$f":"IF(ISERROR(VLOOKUP(K170,Proposito_programa!$C$2:$E$59,3,FALSE)),\" \",VLOOKUP(K170,Proposito_programa!$C$2:$E$59,3,FALSE))","v":"Propósito 5: Construir Bogotá - Región con gobierno abierto, transparente y ciudadanía consciente"},"133011605570000002143",null,79796296,"EDGAR ANDRÉS CORTES TORRES","Persona Natural",null,null,null,15897000,null,1,2498100,18395100,16124100,"2021-04-26","2021-04-28","2021-11-27",210,1,33,null,null,null,null,null,null,"X",null,0.87654320987654322]
[162,2021,"FDLBU-CD-001-2178","https://community.secop.gov.co/Public/Tendering/ContractNoticePhases/View?PPI=CO1.PPI.12949315&isFromPublicArea=True&isModal=False","Contratos de prestación de servicios profesionales y de apoyo a la gestión","Contratación directa","Prestación de servicios profesionales y de apoyo a la gestión, o para la ejecución de trabajos artísticos que sólo puedan encomendarse a determinadas personas naturales;","PRESTAR LOS SERVICIOS PROFESIONALES PARA APOYAR AL ÁREA DE GESTIÓN POLICIVA Y DESPACHO DE LA ALCALDÍA LOCAL, CON EL FIN DE QUE CON SUJECIÓN AL ORDEN DE LLEGADA SE ADELANTEN LOS PROCESOS O PROCEDIMIENTOS CORRESPONDIENTES PARA EL TRÁMITE, AUXILIO Y DEVOLUCIÓN DE LAS COMISIONES QUE EN VIRTUD DEL ARTÍCULO Y SIGUIENTES DEL CÓDIGO GENERAL DEL PROCESO, SEAN DESIGNADAS POR LOS JUECES DE LA REPÚBLICA Y QUE CORRESPONDAN AL ÁMBITO TERRITORIAL DE ESTA ALCALDÍA.","Inversión","Un Nuevo Contrato Social y Ambiental para la Bogotá del Siglo XXI",57,{"$f":"IF(ISERROR(VLOOKUP(K171,Proposito_programa!$C$2:$E$59,2,FALSE)),\" \",VLOOKUP(K171,Proposito_programa!$C$2:$E$59,2,FALSE))","v":"Gestión pública local"},{"$f":"IF(ISERROR(VLOOKUP(K171,Proposito_programa!$C$2:$E$59,3,FALSE)),\" \",VLOOKUP(K171,Proposito_programa!$C$2:$E$59,3,FALSE))","v":"Propósito 5: Construir Bogotá - Región con gobierno abierto, transparente y ciudadanía consciente"},"133011605570000002143",null,1015396314,"FERNADO AUGUSTO GARCIA BEJARANO","Persona Natural",null,null,null,46400000,null,1,3480000,49880000,41180000,"2021-04-27","2021-04-28","2021-12-27",240,1,18,null,null,null,null,null,null,"X",null,0.82558139534883723]
[163,2021,"FDLBU-CD-001-2179","https://community.secop.gov.co/Public/Tendering/ContractNoticePhases/View?PPI=CO1.PPI.12948292&isFromPublicArea=True&isModal=False","Contratos de prestación de servicios profesionales y de apoyo a la gestión","Contratación directa","Prestación de servicios profesionales y de apoyo a la gestión, o para la ejecución de trabajos artísticos que sólo puedan encomendarse a determinadas personas naturales;","PRESTAR SERVICIOS DE APOYO A LA GESTIÓN DEL DESARROLLO EN LAS ACTIVIDADES DE PEDAGOGÍA DEL CÓDIGO\nNACIONAL DE SEGURIDAD Y CONVIVENCIA ","Inversión","Un Nuevo Contrato Social y Ambiental para la Bogotá del Siglo XXI",48,{"$f":"IF(ISERROR(VLOOKUP(K172,Proposito_programa!$C$2:$E$59,2,FALSE)),\" \",VLOOKUP(K172,Proposito_programa!$C$2:$E$59,2,FALSE))","v":"Plataforma institucional para la seguridad y justicia"},{"$f":"IF(ISERROR(VLOOKUP(K172,Proposito_programa!$C$2:$E$59,3,FALSE)),\" \",VLOOKUP(K172,Proposito_programa!$C$2:$E$59,3,FALSE))","v":"Propósito 3: Inspirar confianza y legitimidad para vivir sin miedo y ser epicentro de cultura ciudadana, paz y reconciliación"},"133011603480000002153",null,79470484,"WALTER YAIR GUARIN GONZALEZ","Persona Natural",null,null,null,14536000,null,null,null,14536000,12476733,"2021-04-30","2021-05-05","2021-12-31",240,1,4,null,null,null,null,null,null,"X",null,0.8583333104017612]
[164,2021,"FDLBU-CD-001-2180","https://community.secop.gov.co/Public/Tendering/ContractNoticePhases/View?PPI=CO1.PPI.12955244&isFromPublicArea=True&isModal=False","Contratos de prestación de servicios profesionales y de apoyo a la gestión","Contratación directa","Prestación de servicios profesionales y de apoyo a la gestión, o para la ejecución de trabajos artísticos que sólo puedan encomendarse a determinadas personas naturales;","PRESTAR SERVICIOS PROFESIONALES PARA\nGESTIÓN DE LOS TRÁMITES DEL PROCESO DE COBRO PERSUASIVO DE ACREENCIAS A FAVOR\nDE LA ADMINISTRACIÓN DISTRITAL PARA LOGRAR EL PAGO VOLUNTARIO DE LAS MISMAS, Y\nSEGUIMIENTO AL COBRO COACTIVO","Inversión","Un Nuevo Contrato Social y Ambiental para la Bogotá del Siglo XXI",57,{"$f":"IF(ISERROR(VLOOKUP(K173,Proposito_programa!$C$2:$E$59,2,FALSE)),\" \",VLOOKUP(K173,Proposito_programa!$C$2:$E$59,2,FALSE))","v":"Gestión pública local"},{"$f":"IF(ISERROR(VLOOKUP(K173,Proposito_programa!$C$2:$E$59,3,FALSE)),\" \",VLOOKUP(K173,Proposito_programa!$C$2:$E$59,3,FALSE))","v":"Propósito 5: Construir Bogotá - Región con gobierno abierto, transparente y ciudadanía consciente"},"133011605570000002143",null,1016016305," JHONATAN DUCUARA CAITA ","Persona Natural",null,null,null,38000000,null,null,null,38000000,20741667,"2021-04-29","2021-05-03","2022-01-14",240,1,2,null,"ANA MELISSA ALMARIO PATARROYO","2021-07-01",null,null,null,"X",null,0.54583334210526313]
[166,2021,"FDLBU-CD-001-2181","https://community.secop.gov.co/Public/Tendering/ContractNoticePhases/View?PPI=CO1.PPI.12606749&isFromPublicArea=True&isModal=False","Contratos de prestación de servicios profesionales y de apoyo a la gestión","Contratación directa","Prestación de servicios profesionales y de apoyo a la gestión, o para la ejecución de trabajos artísticos que sólo puedan encomendarse a determinadas personas naturales;","PRESTAR SERVICIOS DE APOYO A LA GESTIÓN DEL DESARROLLO EN LAS LABORES DE PLANEACIÓN EN LAS ACTIVIDADES RELATIVAS A LA PREVENCIÓN DEL EMBARAZO ADOLESCENTE NO DESEADO","Inversión","Un Nuevo Contrato Social y Ambiental para la Bogotá del Siglo XXI",8,{"$f":"IF(ISERROR(VLOOKUP(K174,Proposito_programa!$C$2:$E$59,2,FALSE)),\" \",VLOOKUP(K174,Proposito_programa!$C$2:$E$59,2,FALSE))","v":"Prevención y atención de maternidad temprana"},{"$f":"IF(ISERROR(VLOOKUP(K174,Proposito_programa!$C$2:$E$59,3,FALSE)),\" \",VLOOKUP(K174,Proposito_programa!$C$2:$E$59,3,FALSE))","v":"Propósito 1: Hacer un nuevo contrato social para incrementar la inclusión social, productiva y política"},"133011601080000002151",null,79453631,"CESAR AUGUSTO BARRERA CUBILLOS","Persona Natural",null,null,null,12719000,null,1,1514167,14233167,12416167,"2021-04-30","2021-05-06","2021-12-05",210,1,25,null,null,null,null,null,null,"X",null,0.8723404285216354]
[167,2021,"FDLBU-CD-001-2182","https://community.secop.gov.co/Public/Tendering/ContractNoticePhases/View?PPI=CO1.PPI.13053257&isFromPublicArea=True&isModal=False","Contratos de prestación de servicios profesionales y de apoyo a la gestión","Contratación directa","Prestación de servicios profesionales y de apoyo a la gestión, o para la ejecución de trabajos artísticos que sólo puedan encomendarse a determinadas personas naturales;","PRESTAR SERVICIOS PROFESIONALES PARA APOYAR LA GESTIÓN DEL RIESGO QUE PROMUEVA LAS ACCIONES REQUERIDAS PARA LA PREVENCIÓN Y ATENCIÓN DE EMERGENCIAS O EVENTOS GENERADOS POR LA MATERIALIZACIÓN DE LOS RIESGOS Y RESPONDA DE MANERA OPERATIVA E INMEDIATA ANTE LA OCURRENCIA DE SITUACIONES ADVERSAS EN TEMAS DE EMERGENCIAS EN LA LOCALIDAD PARA EL LOGRO DE LAS METAS DE PLAN DE DESARROLLO LOCAL VIGENTE","Inversión","Un Nuevo Contrato Social y Ambiental para la Bogotá del Siglo XXI",30,{"$f":"IF(ISERROR(VLOOKUP(K175,Proposito_programa!$C$2:$E$59,2,FALSE)),\" \",VLOOKUP(K175,Proposito_programa!$C$2:$E$59,2,FALSE))","v":"Eficiencia en la atención de emergencias"},{"$f":"IF(ISERROR(VLOOKUP(K175,Proposito_programa!$C$2:$E$59,3,FALSE)),\" \",VLOOKUP(K175,Proposito_programa!$C$2:$E$59,3,FALSE))","v":"Propósito 2 : Cambiar Nuestros Hábitos de Vida para Reverdecer a Bogotá y Adaptarnos y Mitigar la Crisis Climática"},"133011602300000002103",null,1010239208,"DIANA SOFIA CATALINA MORENO ESPITIA","Persona Natural",null,null,null,34960000,null,null,null,34960000,28696333,"2021-05-06","2021-05-14","2021-12-31",240,1,13,null,null,null,null,null,null,"X",null,0.82083332379862706]
[168,2021,"FDLBU-CD-001-2183","https://community.secop.gov.co/Public/Tendering/ContractNoticePhases/View?PPI=CO1.PPI.13141221&isFromPublicArea=True&isModal=False\n\n","Contratos de prestación de servicios profesionales y de apoyo a la gestión","Contratación directa","Prestación de servicios profesionales y de apoyo a la gestión, o para la ejecución de trabajos artísticos que sólo puedan encomendarse a determinadas personas naturales;","PRESTAR SERVICIOS DE APOYO A LA GESTIÓN DEL DESARROLLO EN LABORES DE PLANEACIÓN EN LAS ACTIVIDADES RELATIVAS A LOS PROYECTOS AMBIENTALES DE LA VIGENCIA 2021 DE LA LÍNEA DE INVERSIONES AMBIENTALES","Inversión","Un Nuevo Contrato Social y Ambiental para la Bogotá del Siglo XXI",38,{"$f":"IF(ISERROR(VLOOKUP(K176,Proposito_programa!$C$2:$E$59,2,FALSE)),\" \",VLOOKUP(K176,Proposito_programa!$C$2:$E$59,2,FALSE))","v":"Ecoeficiencia, reciclaje, manejo de residuos e inclusión de la población recicladora"},{"$f":"IF(ISERROR(VLOOKUP(K176,Proposito_programa!$C$2:$E$59,3,FALSE)),\" \",VLOOKUP(K176,Proposito_programa!$C$2:$E$59,3,FALSE))","v":"Propósito 2 : Cambiar Nuestros Hábitos de Vida para Reverdecer a Bogotá y Adaptarnos y Mitigar la Crisis Climática"},"133011602380000002082",null,79501810,"CARLOS EDUARDO LÓPEZ BRICEÑO","Persona Natural",null,null,null,14536000,null,null,null,14536000,12113333,"2021-05-07","2021-05-11","2021-12-31",240,1,10,null,null,null,null,null,null,"X",null,0.83333331040176117]
[169,2021,"FDLBU-CD-001-2184","https://community.secop.gov.co/Public/Tendering/ContractNoticePhases/View?PPI=CO1.PPI.13156644&isFromPublicArea=True&isModal=False","Contratos de prestación de servicios profesionales y de apoyo a la gestión","Contratación directa","Prestación de servicios profesionales y de apoyo a la gestión, o para la ejecución de trabajos artísticos que sólo puedan encomendarse a determinadas personas naturales;","PRESTAR SERVICIOS DE APOYO A LA GESTION DEL DESARROLLO EN LAS LABORES DE PLANEACION PARA LAS ACTIVIDADES DEL PROCESO DE PARTICIPACION","Inversión","Un Nuevo Contrato Social y Ambiental para la Bogotá del Siglo XXI",55,{"$f":"IF(ISERROR(VLOOKUP(K177,Proposito_programa!$C$2:$E$59,2,FALSE)),\" \",VLOOKUP(K177,Proposito_programa!$C$2:$E$59,2,FALSE))","v":"Fortalecimiento de cultura ciudadana y su institucionalidad"},{"$f":"IF(ISERROR(VLOOKUP(K177,Proposito_programa!$C$2:$E$59,3,FALSE)),\" \",VLOOKUP(K177,Proposito_programa!$C$2:$E$59,3,FALSE))","v":"Propósito 5: Construir Bogotá - Región con gobierno abierto, transparente y ciudadanía consciente"},"133011605550000002141",null,52451825,"ÁNGELA INÉS BUENAVENTURA BURBANO","Persona Natural",null,null,null,14536000,null,null,null,14536000,11689367,"2021-05-07","2021-05-18","2021-12-31",240,null,null,null,null,null,null,null,null,"X",null,0.80416668959823889]
[170,2021,"FDLBU-CD-001-2185","https://community.secop.gov.co/Public/Tendering/ContractNoticePhases/View?PPI=CO1.PPI.13031818&isFromPublicArea=True&isModal=False","Contratos de prestación de servicios profesionales y de apoyo a la gestión","Contratación directa","Prestación de servicios profesionales y de apoyo a la gestión, o para la ejecución de trabajos artísticos que sólo puedan encomendarse a determinadas personas naturales;","PRESTAR SERVICIOS DE APOYO A LA GESTIÓN\nDEL RIESGO QUE PROMUEVA LAS ACCIONES REQUERIDAS PARA LA PREVENCIÓN Y ATENCIÓN\nDE EMERGENCIAS O EVENTOS GENERADOS POR LA MATERIALIZACIÓN DE LOS RIESGOS Y\nRESPONDA DE MANERA OPERATIVA E INMEDIATA ANTE LA OCURRENCIA DE SITUACIONES\nADVERSAS EN TEMAS DE EMERGENCIAS EN LA LOCALIDAD.","Inversión","Un Nuevo Contrato Social y Ambiental para la Bogotá del Siglo XXI",30,{"$f":"IF(ISERROR(VLOOKUP(K178,Proposito_programa!$C$2:$E$59,2,FALSE)),\" \",VLOOKUP(K178,Proposito_programa!$C$2:$E$59,2,FALSE))","v":"Eficiencia en la atención de emergencias"},{"$f":"IF(ISERROR(VLOOKUP(K178,Proposito_programa!$C$2:$E$59,3,FALSE)),\" \",VLOOKUP(K178,Proposito_programa!$C$2:$E$59,3,FALSE))","v":"Propósito 2 : Cambiar Nuestros Hábitos de Vida para Reverdecer a Bogotá y Adaptarnos y Mitigar la Crisis Climática"},"133011602300000002103",null,1014240273,"CARLOS MAURICIO MONTOYA TORO","Persona Natural",null,null,null,10902000,null,1,2907200,13809200,11992200,"2021-05-11","2021-05-13","2021-11-12",180,1,48,null,null,null,null,null,null,"X",null,0.86842105263157898]
[171,2021,"FDLBU-CD-001-2186","https://community.secop.gov.co/Public/Tendering/ContractNoticePhases/View?PPI=CO1.PPI.13311224&isFromPublicArea=True&isModal=False","Contratos de prestación de servicios profesionales y de apoyo a la gestión","Contratación directa","Prestación de servicios profesionales y de apoyo a la gestión, o para la ejecución de trabajos artísticos que sólo puedan encomendarse a determinadas personas naturales;","PRESTAR SERVICIOS PROFESIONALES PARA APOYAR AL ÁREA GESTIÓN DEL DESARROLLO ADMINISTRATIVO Y FINANCIERO EN LOS ASUNTOS\nRELATIVOS A LA PLANEACIÓN LOCAL: COORDINAR Y GARANTIZAR LA IMPLEMENTACIÓN Y SEGUIMIENTO DE LOS PROCESOS, PROYECTOS Y PROCEDIMIENTOS DE CONTRATOS SUSCRITOS POR LA ALCALDÍA LOCAL DE BARRIOS UNIDOS DIRIGIDOS AL CUMPLIMIENTO DE LAS METAS DE LA LÍNEA DE INVERSIONES AMBIENTALES SOSTENIBLES","Inversión","Un Nuevo Contrato Social y Ambiental para la Bogotá del Siglo XXI",28,{"$f":"IF(ISERROR(VLOOKUP(K179,Proposito_programa!$C$2:$E$59,2,FALSE)),\" \",VLOOKUP(K179,Proposito_programa!$C$2:$E$59,2,FALSE))","v":"Bogotá protectora de sus recursos naturales"},{"$f":"IF(ISERROR(VLOOKUP(K179,Proposito_programa!$C$2:$E$59,3,FALSE)),\" \",VLOOKUP(K179,Proposito_programa!$C$2:$E$59,3,FALSE))","v":"Propósito 2 : Cambiar Nuestros Hábitos de Vida para Reverdecer a Bogotá y Adaptarnos y Mitigar la Crisis Climática"},"133011602280000002009",null,80109199,"JONATHAN ANDRES VILLAFRADEZ LOPEZ","Persona Natural",null,null,null,42750000,null,null,null,{"$f":"+V179+W179+Y179","v":42750000},24858333,"2021-05-18","2021-05-24","2021-12-31",300,null,null,null,null,null,null,null,null,"X",null,0.58148147368421055]
[172,2021,"FDLBU-CD-001-2187","https://community.secop.gov.co/Public/Tendering/ContractNoticePhases/View?PPI=CO1.PPI.13410113&isFromPublicArea=True&isModal=False","Contratos de prestación de servicios profesionales y de apoyo a la gestión","Contratación directa","Prestación de servicios profesionales y de apoyo a la gestión, o para la ejecución de trabajos artísticos que sólo puedan encomendarse a determinadas personas naturales;","PRESTAR SERVICIOS DE APOYO A LA DE GESTIÓN DEL DESARROLLO EN LABORES DE PLANEACIÓN, CON EL FIN DE LOGRAR EL CUMPLIMIENTO DE LAS METAS DEL PLAN DE DESARROLLO LOCAL DE LA VIGENCIA RELATIVAS A LA LÍNEA DE INVERSIONES AMBIENTALES SOSTENIBLES","Inversión","Un Nuevo Contrato Social y Ambiental para la Bogotá del Siglo XXI",27,{"$f":"IF(ISERROR(VLOOKUP(K180,Proposito_programa!$C$2:$E$59,2,FALSE)),\" \",VLOOKUP(K180,Proposito_programa!$C$2:$E$59,2,FALSE))","v":"Cambio cultural para la gestión de la crisis climática"},{"$f":"IF(ISERROR(VLOOKUP(K180,Proposito_programa!$C$2:$E$59,3,FALSE)),\" \",VLOOKUP(K180,Proposito_programa!$C$2:$E$59,3,FALSE))","v":"Propósito 2 : Cambiar Nuestros Hábitos de Vida para Reverdecer a Bogotá y Adaptarnos y Mitigar la Crisis Climática"},"133011602270000002011",null,80224646,"PEDRO MIGUEL LOPEZ VELA","Persona Natural",null,null,null,25600000,null,null,null,25600000,15786667,"2021-05-27","2021-06-03","2021-12-31",240,1,23,null,null,null,null,null,null,"X",null,0.6166666796875]
[173,2021,"FDLBU-CD-001-2188","https://community.secop.gov.co/Public/Tendering/ContractNoticePhases/View?PPI=CO1.PPI.12838922&isFromPublicArea=True&isModal=False\n","Contratos de prestación de servicios","Selección abreviada","Selección abreviada por menor cuantía ","PRESTACIÓN DEL SERVICIO DE VIGILANCIA Y SEGURIDAD PRIVADA CON ARMAS Y MEDIOS TECNOLÓGICOS PARA LAS INSTALACIONES DEL FONDO DE DESARROLLO LOCAL DE BARRIOS UNIDOS\"","Funcionamiento","Un Nuevo Contrato Social y Ambiental para la Bogotá del Siglo XXI",null,{"$f":"IF(ISERROR(VLOOKUP(K181,Proposito_programa!$C$2:$E$59,2,FALSE)),\" \",VLOOKUP(K181,Proposito_programa!$C$2:$E$59,2,FALSE))","v":" "},{"$f":"IF(ISERROR(VLOOKUP(K181,Proposito_programa!$C$2:$E$59,3,FALSE)),\" \",VLOOKUP(K181,Proposito_programa!$C$2:$E$59,3,FALSE))","v":" "},0,4,800248541,"SEGURIDAD DIGITAL LTDA","Persona Jurídica",null,null,null,261897006,null,1,60087944,321984950,218032477,"2021-06-01","2021-06-12","2022-01-03",203,1,45,null,null,null,null,null,"X",null,null,0.67715114324442804]
["OC 69872",2021,"FDLBU-CD-001-2189","https://colombiacompra.gov.co/tienda-virtual-del-estado-colombiano/ordenes-compra/69872","Otros","Selección abreviada","Acuerdo marco de precios ","ADQUIRIR LICENCIAS MICROSOFT OFFICE 365 E1, LICENCIAS MICROSOFT OFFICE 365 PARA LA ALCALDIA LOCAL DE BARRIOS UNIDOS","Funcionamiento","Un Nuevo Contrato Social y Ambiental para la Bogotá del Siglo XXI",null,{"$f":"IF(ISERROR(VLOOKUP(K182,Proposito_programa!$C$2:$E$59,2,FALSE)),\" \",VLOOKUP(K182,Proposito_programa!$C$2:$E$59,2,FALSE))","v":" "},{"$f":"IF(ISERROR(VLOOKUP(K182,Proposito_programa!$C$2:$E$59,3,FALSE)),\" \",VLOOKUP(K182,Proposito_programa!$C$2:$E$59,3,FALSE))","v":" "},0,8,800015853,"COLOMBIANA DE SOFTWARE Y HARDWARECOLSOF -S.A.","Persona Jurídica",null,null,null,38095265,null,null,null,38095265,38095265,"2021-05-27","2021-06-02","2021-08-02",60,null,null,null,null,null,null,null,null,"X",null,1]
[174,2021,"FDLBU-CD-001-2190","https://community.secop.gov.co/Public/Tendering/ContractNoticePhases/View?PPI=CO1.PPI.13481059&isFromPublicArea=True&isModal=False","Contratos de prestación de servicios profesionales y de apoyo a la gestión","Contratación directa","Prestación de servicios profesionales y de apoyo a la gestión, o para la ejecución de trabajos artísticos que sólo puedan encomendarse a determinadas personas naturales;","PRESTAR SERVICIOS DE APOYO A LA \nGESTIÓN DEL DESARROLLO EN LAS ACTIVIDADES DE PEDAGOGÍA DEL CÓDIGO \nNACIONAL DE SEGURIDAD Y CONVIVENCIA","Inversión","Un Nuevo Contrato Social y Ambiental para la Bogotá del Siglo XXI",48,{"$f":"IF(ISERROR(VLOOKUP(K183,Proposito_programa!$C$2:$E$59,2,FALSE)),\" \",VLOOKUP(K183,Proposito_programa!$C$2:$E$59,2,FALSE))","v":"Plataforma institucional para la seguridad y justicia"},{"$f":"IF(ISERROR(VLOOKUP(K183,Proposito_programa!$C$2:$E$59,3,FALSE)),\" \",VLOOKUP(K183,Proposito_programa!$C$2:$E$59,3,FALSE))","v":"Propósito 3: Inspirar confianza y legitimidad para vivir sin miedo y ser epicentro de cultura ciudadana, paz y reconciliación"},"133011603480000002153",null,79593197,"CESAR AUGUSTO BERNAL GAMEZ","Persona Natural",null,null,null,14536000,null,null,null,14536000,10780867,"2021-05-28","2021-06-03","2021-12-31",240,1,15,null,null,null,null,null,null,"X",null,0.74166668959823889]
[175,2021,"FDLBU-CD-001-2191","https://community.secop.gov.co/Public/Tendering/ContractNoticePhases/View?PPI=CO1.PPI.13554977&isFromPublicArea=True&isModal=False\n","Contratos de prestación de servicios profesionales y de apoyo a la gestión",null,"Prestación de servicios profesionales y de apoyo a la gestión, o para la ejecución de trabajos artísticos que sólo puedan encomendarse a determinadas personas naturales;","PRESTAR LOS SERVICIOS TÉCNICOS PARA LA OPERACIÓN, SEGUIMIENTO Y CUMPLIMIENTO DE LOS PROCESOS Y PROCEDIMIENTOS DEL SERVICIO, APOYOS PARA LA SEGURIDAD ECONÓMICA TIPO C, REQUERIDOS PARA EL OPORTUNO Y ADECUADO REGISTRO, CRUCE Y REPORTE DE LOS DATOS EN EL SISTEMA MISIONAL SIRBE, QUE CONTRIBUYAN A LA GARANTÍA DE LOS DERECHOS DE LA POBLACIÓN MAYOR EN EL MARCO DE LA POLÍTICA PÚBLICA SOCIAL PARA EL ENVEJECIMIENTO Y LA VEJEZ      EN EL DISTRITO CAPITAL A CARGO DE LA ALCALDÍA LOCAL Y EL LOGRO DE LAS METAS DEL PLAN","Inversión","Un Nuevo Contrato Social y Ambiental para la Bogotá del Siglo XXI",1,{"$f":"IF(ISERROR(VLOOKUP(K184,Proposito_programa!$C$2:$E$59,2,FALSE)),\" \",VLOOKUP(K184,Proposito_programa!$C$2:$E$59,2,FALSE))","v":"Subsidios y transferencias para la equidad"},{"$f":"IF(ISERROR(VLOOKUP(K184,Proposito_programa!$C$2:$E$59,3,FALSE)),\" \",VLOOKUP(K184,Proposito_programa!$C$2:$E$59,3,FALSE))","v":"Propósito 1: Hacer un nuevo contrato social para incrementar la inclusión social, productiva y política"},"133011601010000002144",null,79502886,"CESAR ALBERTO LEON MARTIN","Persona Natural",null,null,null,21616000,null,null,null,21616000,16984000,"2021-06-11","2021-06-16","2021-12-31",210,1,15,null,null,null,null,null,null,"X",null,0.7857142857142857]
[176,2021,"FDLBU-CD-001-2192","https://community.secop.gov.co/Public/Tendering/ContractNoticePhases/View?PPI=CO1.PPI.13553306&isFromPublicArea=True&isModal=False\n","Contratos de prestación de servicios profesionales y de apoyo a la gestión","Contratación directa","Prestación de servicios profesionales y de apoyo a la gestión, o para la ejecución de trabajos artísticos que sólo puedan encomendarse a determinadas personas naturales;","PRESTAR SERVICIOS DE APOYO A LA GESTIÓN DEL DESARROLLO EN LABORES DE PLANEACIÓN EN LAS ACTIVIDADES RELATIVAS A LOS PROYECTOS AMBIENTALES DE LA VIGENCIA 2021 DE LA LÍNEA DE INVERSIONES AMBIENTALES SOSTENIBLES","Inversión","Un Nuevo Contrato Social y Ambiental para la Bogotá del Siglo XXI",33,{"$f":"IF(ISERROR(VLOOKUP(K185,Proposito_programa!$C$2:$E$59,2,FALSE)),\" \",VLOOKUP(K185,Proposito_programa!$C$2:$E$59,2,FALSE))","v":"Más árboles y más y mejor espacio público"},{"$f":"IF(ISERROR(VLOOKUP(K185,Proposito_programa!$C$2:$E$59,3,FALSE)),\" \",VLOOKUP(K185,Proposito_programa!$C$2:$E$59,3,FALSE))","v":"Propósito 2 : Cambiar Nuestros Hábitos de Vida para Reverdecer a Bogotá y Adaptarnos y Mitigar la Crisis Climática"},"133011602330000002146",null,79881803,"HERNAN DARIO BENAVIDES DEVIA ","Persona Natural",null,null,null,11810500,null,null,null,11810500,9085000,"2021-06-21","2021-07-01","2021-12-31",195,1,20,null,null,null,null,null,null,"X",null,0.76923076923076927]
[177,2021,"FDLBU-CD-001-2193","https://community.secop.gov.co/Public/Tendering/ContractNoticePhases/View?PPI=CO1.PPI.13556199&isFromPublicArea=True&isModal=False\n","Suministro","Contratación mínima cuantia","No aplica","SUMINISTRAR A MONTO AGOTABLE LOS ELEMENTOS DE FERRETERÍA NECESARIOS PARA EL MANTENIMIENTO DE LA PLANTA FÍSICA Y DEMÁS BIENES INMUEBLES DE RESPONSABILIDAD DEL FONDO DE DESARROLLO LOCAL DE BARRIOS UNIDOS","Funcionamiento","Un Nuevo Contrato Social y Ambiental para la Bogotá del Siglo XXI",null,null,null,0,null,900960810,"DIEGO CASTRO INDUSTRIA Y CONSTRUCCIÓN S A S ","Persona Jurídica",null,null,null,25438000,null,null,null,25438000,14559358,"2021-07-01","2021-07-07","2022-07-06",360,null,null,null,null,null,null,null,"X",null,null,0.57234680399402471]
[179,2021,"FDLBU-CD-001-2194","https://www.contratos.gov.co/consultas/detalleProceso.do?numConstancia=21-22-27238&g-recaptcha-response=03AGdBq24CT7EfSqcZi57h-fb6HLapCm2dFIE5W4cs1ZMHwKCkk-kVlob_rGomyhjHnevsRbSb4GBCnkVl07Eacz-R6fexf4DvP-R-utlH8nbVsVoEOtPIMPoopUN0xxvJzaHYMYYBP3HifKU8oCC-us-eVmDcB5Gv1-vcyVPj3tFpaSxFNENeZIlG3P0COZ0jBYeLYobqz7D66hZiOR3CiWzJYXGC0HehZeU8A5xoXybi7qZj4SARov-N0uGFaYlUAtHOBoEADbS6ML1HOToOkpP4X0_fvGgmwb51aZt1BoDcJ_SUM6vakXtWm2ahND4Vi81tXG7tqZr6obktIpPQd9w_AGTsHRJxG5a8Ftv1nKvczINsa3Tt7qa-29IYuB5zSBoUjSx_laIzjDyo4PT_iaUyzlGruyXY6CW69lQYPErVI2d_niUo0VG6K5qH8ZlXDLg7d8s7gW8K-gMjezdfOeBR5LcPdNrHZA","Contratos interadministrativos","Contratación directa","Contratos interadministrativos","AUNAR ESFUERZOS TÉCNICOS, ADMINISTRATIVOS Y FINANCIEROS CON EL FIN DE DESARROLLAR ACCIONES ARTICULADAS ENTRE LAS PARTES ORIENTADAS A FOMENTAR LA GENERACIÓN Y CIRCULACIÓN DE BIENES Y SERVICIOS CULTURALES, ARTÍSTICOS Y PATRIMONIALES, ASÍ COMO AL FORTALECIMIENTO DE LOS AGENTES DE ESTOS SECTORES EN LAS LOCALIDADES DEL DISTRITO CAPITAL DE ACUERDO CON LOS PROYECTOS PRESENTADOS A LOS FONDOS DE DESARROLLO LOCAL QUE FORMAN PARTE DEL CONVENIO EN EL MARCO DEL PROGRAMA “ES CULTURA LOCAL 2021","Inversión","Un Nuevo Contrato Social y Ambiental para la Bogotá del Siglo XXI",21,"Creación y vida cotidiana: Apropiación ciudadana del arte, la cultura y el patrimonio, para la democracia cultural","Propósito 1: Hacer un nuevo contrato social para incrementar la inclusión social, productiva y política","133011601210000002012",null,900413030,"SECRETARÍA DISTRITAL DE CULTURA, RECREACIÓN Y DEPORTE \nY EL INSTITUTO DISTRITAL DE LAS ARTES -IDARTES","Persona Jurídica",null,null,null,449006551,null,null,null,449006551,449006551,"2021-06-30","2021-07-07","2021-12-31",180,null,null,null,null,null,null,null,null,"X",null,7.0349492225539989E-2]
[179,2021,"FDLBU-CD-001-2195","https://www.contratos.gov.co/consultas/detalleProceso.do?numConstancia=21-22-27238&g-recaptcha-response=03AGdBq24CT7EfSqcZi57h-fb6HLapCm2dFIE5W4cs1ZMHwKCkk-kVlob_rGomyhjHnevsRbSb4GBCnkVl07Eacz-R6fexf4DvP-R-utlH8nbVsVoEOtPIMPoopUN0xxvJzaHYMYYBP3HifKU8oCC-us-eVmDcB5Gv1-vcyVPj3tFpaSxFNENeZIlG3P0COZ0jBYeLYobqz7D66hZiOR3CiWzJYXGC0HehZeU8A5xoXybi7qZj4SARov-N0uGFaYlUAtHOBoEADbS6ML1HOToOkpP4X0_fvGgmwb51aZt1BoDcJ_SUM6vakXtWm2ahND4Vi81tXG7tqZr6obktIpPQd9w_AGTsHRJxG5a8Ftv1nKvczINsa3Tt7qa-29IYuB5zSBoUjSx_laIzjDyo4PT_iaUyzlGruyXY6CW69lQYPErVI2d_niUo0VG6K5qH8ZlXDLg7d8s7gW8K-gMjezdfOeBR5LcPdNrHZA","Contratos interadministrativos","Contratación directa","Contratos interadministrativos","AUNAR ESFUERZOS TÉCNICOS, ADMINISTRATIVOS Y FINANCIEROS CON EL FIN DE DESARROLLAR ACCIONES ARTICULADAS ENTRE LAS PARTES ORIENTADAS A FOMENTAR LA GENERACIÓN Y CIRCULACIÓN DE BIENES Y SERVICIOS CULTURALES, ARTÍSTICOS Y PATRIMONIALES, ASÍ COMO AL FORTALECIMIENTO DE LOS AGENTES DE ESTOS SECTORES EN LAS LOCALIDADES DEL DISTRITO CAPITAL DE ACUERDO CON LOS PROYECTOS PRESENTADOS A LOS FONDOS DE DESARROLLO LOCAL QUE FORMAN PARTE DEL CONVENIO EN EL MARCO DEL PROGRAMA “ES CULTURA LOCAL 2021","Inversión","Un Nuevo Contrato Social y Ambiental para la Bogotá del Siglo XXI",6,"Creación y vida cotidiana: Apropiación ciudadana del arte, la cultura y el patrimonio, para la democracia cultural","Propósito 1: Hacer un nuevo contrato social para incrementar la inclusión social, productiva y política","133011601060000002135",null,900413030,"SECRETARÍA DISTRITAL DE CULTURA, RECREACIÓN Y DEPORTE \nY EL INSTITUTO DISTRITAL DE LAS ARTES -IDARTES","Persona Jurídica",null,null,null,413854000,null,null,null,413854000,413854000,"2021-06-30","2021-07-07","2021-12-31",180,null,null,null,null,null,null,null,null,"X",null,7.0349492225539989E-2]
[179,2021,"FDLBU-CD-001-2196","https://www.contratos.gov.co/consultas/detalleProceso.do?numConstancia=21-22-27238&g-recaptcha-response=03AGdBq24CT7EfSqcZi57h-fb6HLapCm2dFIE5W4cs1ZMHwKCkk-kVlob_rGomyhjHnevsRbSb4GBCnkVl07Eacz-R6fexf4DvP-R-utlH8nbVsVoEOtPIMPoopUN0xxvJzaHYMYYBP3HifKU8oCC-us-eVmDcB5Gv1-vcyVPj3tFpaSxFNENeZIlG3P0COZ0jBYeLYobqz7D66hZiOR3CiWzJYXGC0HehZeU8A5xoXybi7qZj4SARov-N0uGFaYlUAtHOBoEADbS6ML1HOToOkpP4X0_fvGgmwb51aZt1BoDcJ_SUM6vakXtWm2ahND4Vi81tXG7tqZr6obktIpPQd9w_AGTsHRJxG5a8Ftv1nKvczINsa3Tt7qa-29IYuB5zSBoUjSx_laIzjDyo4PT_iaUyzlGruyXY6CW69lQYPErVI2d_niUo0VG6K5qH8ZlXDLg7d8s7gW8K-gMjezdfOeBR5LcPdNrHZA","Contratos interadministrativos","Contratación directa","Contratos interadministrativos","AUNAR ESFUERZOS TÉCNICOS, ADMINISTRATIVOS Y FINANCIEROS CON EL FIN DE DESARROLLAR ACCIONES ARTICULADAS ENTRE LAS PARTES ORIENTADAS A FOMENTAR LA GENERACIÓN Y CIRCULACIÓN DE BIENES Y SERVICIOS CULTURALES, ARTÍSTICOS Y PATRIMONIALES, ASÍ COMO AL FORTALECIMIENTO DE LOS AGENTES DE ESTOS SECTORES EN LAS LOCALIDADES DEL DISTRITO CAPITAL DE ACUERDO CON LOS PROYECTOS PRESENTADOS A LOS FONDOS DE DESARROLLO LOCAL QUE FORMAN PARTE DEL CONVENIO EN EL MARCO DEL PROGRAMA “ES CULTURA LOCAL 2021","Inversión","Un Nuevo Contrato Social y Ambiental para la Bogotá del Siglo XXI",24,{"$f":"IF(ISERROR(VLOOKUP(K189,Proposito_programa!$C$2:$E$59,2,FALSE)),\" \",VLOOKUP(K189,Proposito_programa!$C$2:$E$59,2,FALSE))","v":"Bogotá región emprendedora e innovadora"},{"$f":"IF(ISERROR(VLOOKUP(K189,Proposito_programa!$C$2:$E$59,3,FALSE)),\" \",VLOOKUP(K189,Proposito_programa!$C$2:$E$59,3,FALSE))","v":"Propósito 1: Hacer un nuevo contrato social para incrementar la inclusión social, productiva y política"},"133011601240000002017",null,900413030,"SECRETARÍA DISTRITAL DE CULTURA, RECREACIÓN Y DEPORTE \nY EL INSTITUTO DISTRITAL DE LAS ARTES -IDARTES","Persona Jurídica",null,null,null,214393000,null,null,null,214393000,214393000,"2021-06-30","2021-07-07","2021-12-31",180,null,null,null,null,null,null,null,null,"X",null,{"$f":"IF(ISERROR(AA189/Z189),\"-\",(AA189/Z189))","v":1}]
[180,2021,"FDLBU-CD-001-2197","https://www.contratos.gov.co/consultas/detalleProceso.do?numConstancia=21-22-27153&g-recaptcha-response=03AGdBq271XHuseqymZIWtf-csJDfOh3E-qrKsunvwp7TcNShpxRgknO_Hksy61mRTKOrGLyke_XH2E4Ss5vKS6dHBNEsRBCbopxfHIuqoi2nN9ifBaSsXZA3yEzO4rWwd96c2UmmN1zJcQPkDOdP6TWaWYkmddLXx2O0KwXuBIng2a9sQ8IsRzNtaolvLHt0R2jOzG1G2-i2xGCVa5eC6hIgpSM6svpi-v_P_pg6a60wXbJ13IMTxbn0QRmv6NEB7CJ_xwxGSDJ4NIJkoXVvUEN8yYEXaIXsnzWSmVktHi7vU3X-iHybxaBlMYWLc5xE9wOumHspXwgGnD3MsilOPQgbM2Ud7RNbeMI8ie3SsMa6fAQZRW8mjU3fIxeulRRvQPgAUGETk-JfHkDAmbu1hD4eigbXqMQnexcH8tDHtUIBNR4kRkhPOcLtqfUtHr8gFqS6d9elxWaQb80qhYiWg26knKAj3K32Tuw","Contratos interadministrativos","Contratación directa","Contratos interadministrativos","AUNAR ESFUERZOS TÉCNICOS, ADMINISTRATIVOS, JURÍDICOS Y FINANCIEROS ENTRE LA SECRETARÍA DE EDUCACIÓN DEL DISTRITO Y LOS FONDOS DE DESARROLLO LOCAL QUE HACEN PARTE DEL DISTRITO CAPITAL, PARA LA IMPLEMENTACIÓN DE UN NUEVO MODELO INCLUSIVO, EFICIENTE Y FLEXIBLE PARA EL ACCESO Y LA PERMANENCIA DE LAS Y LOS JÓVENES EGRESADOS DE INSTITUCIONES DE EDUCACIÓN MEDIA A PROGRAMAS DE EDUCACIÓN SUPERIOR.","Inversión","Un Nuevo Contrato Social y Ambiental para la Bogotá del Siglo XXI",17,{"$f":"IF(ISERROR(VLOOKUP(K190,Proposito_programa!$C$2:$E$59,2,FALSE)),\" \",VLOOKUP(K190,Proposito_programa!$C$2:$E$59,2,FALSE))","v":"Jóvenes con capacidades: Proyecto de vida para la ciudadanía, la innovación y el trabajo del siglo XXI"},{"$f":"IF(ISERROR(VLOOKUP(K190,Proposito_programa!$C$2:$E$59,3,FALSE)),\" \",VLOOKUP(K190,Proposito_programa!$C$2:$E$59,3,FALSE))","v":"Propósito 1: Hacer un nuevo contrato social para incrementar la inclusión social, productiva y política"},"133011601170000002027",null,899999061,"SECRETARIA DISTRITAL DE EDUCACION ","Persona Jurídica",null,null,null,1746068000,null,null,null,1746068000,1746068000,"2021-06-29","2021-06-30","2027-06-30",2160,null,null,null,null,null,null,null,"X",null,null,1]
[181,2021,"FDLBU-CD-001-2198","https://community.secop.gov.co/Public/Tendering/ContractNoticePhases/View?PPI=CO1.PPI.14135820&isFromPublicArea=True&isModal=False\n","Convenios de cooperacion","Régimen especial","Decreto 92 de 2017","AUNAR ESFUERZOS PARA LA COOPERACIÓN ADMINISTRATIVA, TÉCNICA Y ECONÓMICA, ENTRE EL PROGRAMA PARA LAS NACIONES UNIDAS PARA EL DESARROLLO (PNUD) Y EL FONDO DE DESARROLLO LOCAL DE BARRIOS UNIDOS, CON EL FIN DE IMPLEMENTAR ESTRATEGIAS QUE PROMUEVAN EL FORTALECIMIENTO A LOS EMPRENDIMIENTOS DE LA ECONOMÍA POPULAR DE LA LOCALIDAD DE BARRIOS UNIDOS Y LAS UNIDADES PRODUCTIVAS FAMILIARES Y/O POBLACIONES DEDICADAS A ACTIVIDADES TRADICIONALES QUE PERMITEN GENERAR INGRESOS (AUTOEMPLEO), Y EL FORTALECIMIENTO DE MIPYMES LOCALES, A TRAVÉS DE UN PROCESO DE ACOMPAÑAMIENTO ESPECIALIZADO QUE PERMITA EL MEJORAMIENTO DE LAS COMPETENCIAS DE LOS EMPRESARIOS Y LAS CONDICIONES DE SUS NEGOCIOS Y DE ESTA FORMA APORTAR DE FORMA SIGNIFICATIVA AL CUMPLIMIENTO DE LA AGENDA DE REACTIVACIÓN ECONÓMICA EN LA LOCALIDAD, PARA EL DESARROLLO DE LA RUTA DE EMPRENDIMIENTO LOCAL","Inversión","Un Nuevo Contrato Social y Ambiental para la Bogotá del Siglo XXI",6,{"$f":"IF(ISERROR(VLOOKUP(K191,Proposito_programa!$C$2:$E$59,2,FALSE)),\" \",VLOOKUP(K191,Proposito_programa!$C$2:$E$59,2,FALSE))","v":"Sistema Distrital de Cuidado"},{"$f":"IF(ISERROR(VLOOKUP(K191,Proposito_programa!$C$2:$E$59,3,FALSE)),\" \",VLOOKUP(K191,Proposito_programa!$C$2:$E$59,3,FALSE))","v":"Propósito 1: Hacer un nuevo contrato social para incrementar la inclusión social, productiva y política"},"133011601060000002135",null,800091076,"PROGRAMA DE LAS NACIONES UNIDAS PARA EL DESARROLLO - PNUD","Persona Jurídica",null,null,null,1114009430,null,null,null,1114009430,891207544,"2021-07-08","2021-07-08","2022-06-30",360,null,null,null,null,null,null,null,"X",null,null,0.8]
[182,2021,"FDLBU-CD-001-2199","https://community.secop.gov.co/Public/Tendering/ContractNoticePhases/View?PPI=CO1.PPI.14256737&isFromPublicArea=True&isModal=False","Contratos de prestación de servicios profesionales y de apoyo a la gestión","Contratación directa","Prestación de servicios profesionales y de apoyo a la gestión, o para la ejecución de trabajos artísticos que sólo puedan encomendarse a determinadas personas naturales;","PRESTAR LOS SERVICIOS PROFESIONALES PARA DESARROLLAR LA INICIATIVA DE PRESUPUESTOS PARTICIPATIVOS \"ESCRIBIENDO NUESTRAS HUELLAS\" A TÍTULO DE PROMOTOR DE LA MISMA EN LA LOCALIDAD DE BARRIOS UNIDOS","Inversión","Un Nuevo Contrato Social y Ambiental para la Bogotá del Siglo XXI",39,{"$f":"IF(ISERROR(VLOOKUP(K192,Proposito_programa!$C$2:$E$59,2,FALSE)),\" \",VLOOKUP(K192,Proposito_programa!$C$2:$E$59,2,FALSE))","v":"Bogotá territorio de paz y atención integral a las víctimas del conflicto armado"},{"$f":"IF(ISERROR(VLOOKUP(K192,Proposito_programa!$C$2:$E$59,3,FALSE)),\" \",VLOOKUP(K192,Proposito_programa!$C$2:$E$59,3,FALSE))","v":"Propósito 3: Inspirar confianza y legitimidad para vivir sin miedo y ser epicentro de cultura ciudadana, paz y reconciliación"},"133011603390000002030",null,1093772772,"MANUEL CAMILO QUINTERO DELGADO","Persona Natural",null,null,null,21850000,null,null,null,21850000,16897333,"2021-07-29","2021-08-05","2021-12-31",150,null,null,null,null,null,null,null,null,"X",null,0.77333331807780326]
[183,2021,"FDLBU-CD-001-2200","https://community.secop.gov.co/Public/Tendering/ContractNoticePhases/View?PPI=CO1.PPI.14315845&isFromPublicArea=True&isModal=False","Contratos de prestación de servicios profesionales y de apoyo a la gestión","Contratación directa","Prestación de servicios profesionales y de apoyo a la gestión, o para la ejecución de trabajos artísticos que sólo puedan encomendarse a determinadas personas naturales;","PRESTAR SERVICIOS PROFESIONALES PARA APOYAR AL ÁREA GESTIÓN DEL DESARROLLO ADMINISTRATIVO Y FINANCIERO EN LOS ASUNTOS RELATIVOS A LA PLANEACIÓN LOCAL: GARANTIZAR LA IMPLEMENTACIÓN Y SEGUIMIENTO DE LOS PROCESOS, PROYECTOS Y PROCEDIMIENTOS DE CONTRATOS SUSCRITOS POR LA ALCALDÍA LOCAL DE BARRIOS UNIDOS DIRIGIDOS AL CUMPLIMIENTO DE LA META DE CICLOINFRAESTRUCTURA Y LOS PROCESOS EN CURSO, RELATIVOS A PRIMEROS AUXILIOS DE LA SEDE","Inversión","Un Nuevo Contrato Social y Ambiental para la Bogotá del Siglo XXI",49,{"$f":"IF(ISERROR(VLOOKUP(K193,Proposito_programa!$C$2:$E$59,2,FALSE)),\" \",VLOOKUP(K193,Proposito_programa!$C$2:$E$59,2,FALSE))","v":"Movilidad segura, sostenible y accesible"},{"$f":"IF(ISERROR(VLOOKUP(K193,Proposito_programa!$C$2:$E$59,3,FALSE)),\" \",VLOOKUP(K193,Proposito_programa!$C$2:$E$59,3,FALSE))","v":"Propósito 4: Hacer de Bogotá Región un modelo de movilidad multimodal, incluyente y sostenible"},"133011604490000002022",null,51647398,"SONIA MURCIA NOSSA","Persona Natural",null,null,null,21850000,null,null,null,21850000,17188667,"2021-07-30","2021-08-03","2021-12-31",150,1,2,null,null,null,null,null,null,"X",null,0.7866666819221968]
[184,2021,"FDLBU-CD-001-2201","https://community.secop.gov.co/Public/Tendering/OpportunityDetail/Index?noticeUID=CO1.NTC.2113019&isFromPublicArea=True&isModal=False","Contratos de prestación de servicios","Contratación mínima cuantia","No aplica","CONTRATAR A MONTO AGOTABLE EL SERVICIO DE IMPRESOS, PUBLICACIONES, MATERIAL LITOGRAFICO Y ELEMENTOS DE PUBLICIDAD Y SEÑALIZACIÓN INSTITUCIONAL DE LA ALCALDÍA LOCAL DE BARRIOS UNIDOS","Funcionamiento","Un Nuevo Contrato Social y Ambiental para la Bogotá del Siglo XXI",null,{"$f":"IF(ISERROR(VLOOKUP(K194,Proposito_programa!$C$2:$E$59,2,FALSE)),\" \",VLOOKUP(K194,Proposito_programa!$C$2:$E$59,2,FALSE))","v":" "},{"$f":"IF(ISERROR(VLOOKUP(K194,Proposito_programa!$C$2:$E$59,3,FALSE)),\" \",VLOOKUP(K194,Proposito_programa!$C$2:$E$59,3,FALSE))","v":" "},0,null,900684554,"GRUPO ARKS PREMIER SAS ","Persona Natural",null,null,null,15525000,null,null,null,15525000,10575406,"2021-08-06","2021-08-25","2022-08-24",360,null,null,null,null,null,null,null,"X",null,null,0.68118557165861515]
[186,2021,"FDLBU-CD-001-2202","https://community.secop.gov.co/Public/Tendering/ContractNoticePhases/View?PPI=CO1.PPI.14537919&isFromPublicArea=True&isModal=False","Contratos de prestación de servicios profesionales y de apoyo a la gestión","Contratación directa","Prestación de servicios profesionales y de apoyo a la gestión, o para la ejecución de trabajos artísticos que sólo puedan encomendarse a determinadas personas naturales;","PRESTAR SERVICIOS DE APOYO AL ÁREA GESTIÓN DEL DESARROLLO EN \nLOS ASUNTOS RELATIVOS A LA PLANEACIÓN LOCAL: APOYAR EL SEGUIMIENTO AL ACCESO Y PERMANENCIA EN EDUCACIÓN SUPERIOR EN EL MARCO DE LAS OBLIGACIONES DEL FDLBU OBTENIDAS EN CONVENIO SUSCRITO, ASÍ COMO EL SEGUIMIENTO A LA DOTACIÓN A LA CASA DE LA JUVENTUD NASQUA","Inversión","Un Nuevo Contrato Social y Ambiental para la Bogotá del Siglo XXI",17,{"$f":"IF(ISERROR(VLOOKUP(K195,Proposito_programa!$C$2:$E$59,2,FALSE)),\" \",VLOOKUP(K195,Proposito_programa!$C$2:$E$59,2,FALSE))","v":"Jóvenes con capacidades: Proyecto de vida para la ciudadanía, la innovación y el trabajo del siglo XXI"},{"$f":"IF(ISERROR(VLOOKUP(K195,Proposito_programa!$C$2:$E$59,3,FALSE)),\" \",VLOOKUP(K195,Proposito_programa!$C$2:$E$59,3,FALSE))","v":"Propósito 1: Hacer un nuevo contrato social para incrementar la inclusión social, productiva y política"},"133011601170000002027",null,1018486866,"KEVIN GIOVANI OSPINA MARTINEZ","Persona Natural",null,null,null,9085000,null,null,null,9085000,6117233,"2021-08-11","2021-08-20","2021-12-31",150,1,19,null,null,null,null,null,null,"X",null,0.67333329664281782]
["OC 74168",2021,"FDLBU-CD-001-2203","https://colombiacompra.gov.co/tienda-virtual-del-estado-colombiano/ordenes-compra/74168","Otros","Selección abreviada","Acuerdo marco de precios ","ADQUISICIÓN DE UNA LICENCIA AR-CGIS PARA LA REACTIVACIÓN Y ACTUALIZACIÓN DEL SISTEMA DE GEOREFERENCIA-CION EXISTENTE PARA EL FONDO DE DESARROLLO LOCAL DE BARRIOS UNIDOS","Funcionamiento","Un Nuevo Contrato Social y Ambiental para la Bogotá del Siglo XXI",null,{"$f":"IF(ISERROR(VLOOKUP(K196,Proposito_programa!$C$2:$E$59,2,FALSE)),\" \",VLOOKUP(K196,Proposito_programa!$C$2:$E$59,2,FALSE))","v":" "},{"$f":"IF(ISERROR(VLOOKUP(K196,Proposito_programa!$C$2:$E$59,3,FALSE)),\" \",VLOOKUP(K196,Proposito_programa!$C$2:$E$59,3,FALSE))","v":" "},0,1,830122983,"ESRI COLOMBIA SAS ","Persona Jurídica",null,null,null,8663296,null,null,null,8663296,8663296,"2021-08-11","2021-08-23","2021-10-22",60,null,null,null,null,null,null,null,null,"X",null,1]
[187,2021,"FDLBU-CD-001-2204","https://community.secop.gov.co/Public/Tendering/ContractNoticePhases/View?PPI=CO1.PPI.14688672&isFromPublicArea=True&isModal=False ","Contratos de prestación de servicios profesionales y de apoyo a la gestión","Contratación directa","Prestación de servicios profesionales y de apoyo a la gestión, o para la ejecución de trabajos artísticos que sólo puedan encomendarse a determinadas personas naturales;"," PRESTAR SERVICIOS ASISTENCIALES PARA APOYAR AL AREA GESTION DEL DESARROLLO LOCAL EN LOS ASUNTOS RELACIONADOS CON EL DESARROLLO DE LA GESTION CONTRACTUAL DE LOS PROYECTOS DE INVERSIÓN 2021","Inversión","Un Nuevo Contrato Social y Ambiental para la Bogotá del Siglo XXI",57,{"$f":"IF(ISERROR(VLOOKUP(K197,Proposito_programa!$C$2:$E$59,2,FALSE)),\" \",VLOOKUP(K197,Proposito_programa!$C$2:$E$59,2,FALSE))","v":"Gestión pública local"},{"$f":"IF(ISERROR(VLOOKUP(K197,Proposito_programa!$C$2:$E$59,3,FALSE)),\" \",VLOOKUP(K197,Proposito_programa!$C$2:$E$59,3,FALSE))","v":"Propósito 5: Construir Bogotá - Región con gobierno abierto, transparente y ciudadanía consciente"},"133011605570000002143",null,52181144,"CLAUDIA PATRICIA MORALES","Persona Natural",null,null,null,6800000,null,null," ",6800000,3626667,"2021-08-24","2021-08-26","2021-12-25",120,null,null,null,null,null,null,null,null,"X",null,0.53333338235294114]
[188,2021,"FDLBU-CD-001-2205","https://community.secop.gov.co/Public/Tendering/ContractNoticePhases/View?PPI=CO1.PPI.14684318&isFromPublicArea=True&isModal=False","Contratos de prestación de servicios profesionales y de apoyo a la gestión","Contratación directa","Prestación de servicios profesionales y de apoyo a la gestión, o para la ejecución de trabajos artísticos que sólo puedan encomendarse a determinadas personas naturales;","PRESTAR LOS SERVICIOS PROFESIONALES PARA APOYAR AL ÁREA DE GESTIÓN DEL DESARROLLO EN LOS ASUNTOS RELACIONADOS CON\nLA FORMULACIÓN, SEGUIMIENTO Y EVALUACIÓN DE POLÍTICAS, PLANES, PROGRAMAS Y PROYECTOS DE DESARROLLO LOCAL, PARA EL CUMPLIMIENTO DE LAS METAS DEL PLAN DE DESARROLLO LOCAL DE BARRIOS UNIDOS.","Inversión","Un Nuevo Contrato Social y Ambiental para la Bogotá del Siglo XXI",57,{"$f":"IF(ISERROR(VLOOKUP(K198,Proposito_programa!$C$2:$E$59,2,FALSE)),\" \",VLOOKUP(K198,Proposito_programa!$C$2:$E$59,2,FALSE))","v":"Gestión pública local"},{"$f":"IF(ISERROR(VLOOKUP(K198,Proposito_programa!$C$2:$E$59,3,FALSE)),\" \",VLOOKUP(K198,Proposito_programa!$C$2:$E$59,3,FALSE))","v":"Propósito 5: Construir Bogotá - Región con gobierno abierto, transparente y ciudadanía consciente"},"133011605570000002143",null,52718955,"ÁNGELA MARIA PEREZ MAHECHA ","Persona Natural",null,null,null,13110000,null,null,null,{"$f":"+V198+W198+Y198","v":13110000},9322667,"2021-08-23","2021-08-27","2021-11-26",90,null,null,null,null,null,null,null,null,"X",null,0.71111113653699465]
[189,2021,"FDLBU-CD-001-2206","https://community.secop.gov.co/Public/Tendering/ContractNoticePhases/View?PPI=CO1.PPI.14690234&isFromPublicArea=True&isModal=False","Contratos de prestación de servicios profesionales y de apoyo a la gestión","Contratación directa","Prestación de servicios profesionales y de apoyo a la gestión, o para la ejecución de trabajos artísticos que sólo puedan encomendarse a determinadas personas naturales;","PRESTAR SERVICIOS DE APOYO EN LAS ACTIVIDADES DE SEGURIDAD, PROMOCIÓN DE LA CONVIVENCIA Y DE ATENCIÓN DE MOVILIZACIONES Y AGLOMERACIONES EN EL TERRITORIO.","Inversión","Un Nuevo Contrato Social y Ambiental para la Bogotá del Siglo XXI",43,{"$f":"IF(ISERROR(VLOOKUP(K199,Proposito_programa!$C$2:$E$59,2,FALSE)),\" \",VLOOKUP(K199,Proposito_programa!$C$2:$E$59,2,FALSE))","v":"Cultura ciudadana para la confianza, la convivencia y la participación desde la vida cotidiana"},{"$f":"IF(ISERROR(VLOOKUP(K199,Proposito_programa!$C$2:$E$59,3,FALSE)),\" \",VLOOKUP(K199,Proposito_programa!$C$2:$E$59,3,FALSE))","v":"Propósito 3: Inspirar confianza y legitimidad para vivir sin miedo y ser epicentro de cultura ciudadana, paz y reconciliación"},"133011603430000002149",null,79577831,"JOSE ENRIQUE MENDOZA GALINDO","Persona Natural",null,null,null,9084000,null,null,null,{"$f":"+V199+W199+Y199","v":9084000},6888700,"2021-08-23","2021-08-31","2021-12-30",120,null,null,null,null,null,null,null,null,"X",null,0.7583333333333333]
[190,2021,"FDLBU-CD-001-2207","https://community.secop.gov.co/Public/Tendering/ContractNoticePhases/View?PPI=CO1.PPI.14731016&isFromPublicArea=True&isModal=False","Contratos de prestación de servicios profesionales y de apoyo a la gestión","Contratación directa","Prestación de servicios profesionales y de apoyo a la gestión, o para la ejecución de trabajos artísticos que sólo puedan encomendarse a determinadas personas naturales;","PRESTAR SERVICIOS DE APOYO EN LAS ACTIVIDADES DE SEGURIDAD, PROMOCIÓN DE LA CONVIVENCIA Y DE ATENCIÓN DE MOVILIZACIONES Y AGLOMERACIONES EN EL TERRITORIO.","Inversión","Un Nuevo Contrato Social y Ambiental para la Bogotá del Siglo XXI",43,{"$f":"IF(ISERROR(VLOOKUP(K200,Proposito_programa!$C$2:$E$59,2,FALSE)),\" \",VLOOKUP(K200,Proposito_programa!$C$2:$E$59,2,FALSE))","v":"Cultura ciudadana para la confianza, la convivencia y la participación desde la vida cotidiana"},{"$f":"IF(ISERROR(VLOOKUP(K200,Proposito_programa!$C$2:$E$59,3,FALSE)),\" \",VLOOKUP(K200,Proposito_programa!$C$2:$E$59,3,FALSE))","v":"Propósito 3: Inspirar confianza y legitimidad para vivir sin miedo y ser epicentro de cultura ciudadana, paz y reconciliación"},"133011603430000002149",null,79523967,"JORGE OSWALDO SOLER RINCON","Persona Natural",null,null,null,9084000,null,null,null,{"$f":"+V200+W200+Y200","v":9084000},6813000,"2021-08-27","2021-09-01","2021-12-31",120,null,null,null,null,null,null,null,null,"X",null,0.75]
[191,2021,"FDLBU-CD-001-2208","https://community.secop.gov.co/Public/Tendering/ContractNoticePhases/View?PPI=CO1.PPI.14731228&isFromPublicArea=True&isModal=False","Contratos de prestación de servicios profesionales y de apoyo a la gestión","Contratación directa","Prestación de servicios profesionales y de apoyo a la gestión, o para la ejecución de trabajos artísticos que sólo puedan encomendarse a determinadas personas naturales;","PRESTAR SERVICIOS DE APOYO EN LAS ACTIVIDADES DE SEGURIDAD, PROMOCIÓN DE LA CONVIVENCIA Y DE ATENCIÓN DE MOVILIZACIONES Y AGLOMERACIONES EN EL TERRITORIO.","Inversión","Un Nuevo Contrato Social y Ambiental para la Bogotá del Siglo XXI",48,{"$f":"IF(ISERROR(VLOOKUP(K201,Proposito_programa!$C$2:$E$59,2,FALSE)),\" \",VLOOKUP(K201,Proposito_programa!$C$2:$E$59,2,FALSE))","v":"Plataforma institucional para la seguridad y justicia"},{"$f":"IF(ISERROR(VLOOKUP(K201,Proposito_programa!$C$2:$E$59,3,FALSE)),\" \",VLOOKUP(K201,Proposito_programa!$C$2:$E$59,3,FALSE))","v":"Propósito 3: Inspirar confianza y legitimidad para vivir sin miedo y ser epicentro de cultura ciudadana, paz y reconciliación"},"133011603480000002153",null,1023865895,"KAREN DAYANA RAMIREZ ORTEGON","Persona Natural",null,null,null,9084000,null,null,null,{"$f":"+V201+W201+Y201","v":9084000},6888700,"2021-08-27","2021-08-31","2021-12-30",120,null,null,null,null,null,null,null,null,"X",null,0.7583333333333333]
[192,2021,"FDLBU-CD-001-2209","https://community.secop.gov.co/Public/Tendering/ContractNoticePhases/View?PPI=CO1.PPI.14843790&isFromPublicArea=True&isModal=False","Contratos interadministrativos","Contratación directa","Contratos interadministrativos","PRESTAR LOS SERVICIOS DE INTERNET PARA LA SEDE PRINCIPAL DE LA ALCALDIA LOCAL DE BARRIOS UNIDOS","Funcionamiento","Un Nuevo Contrato Social y Ambiental para la Bogotá del Siglo XXI",null,{"$f":"IF(ISERROR(VLOOKUP(K202,Proposito_programa!$C$2:$E$59,2,FALSE)),\" \",VLOOKUP(K202,Proposito_programa!$C$2:$E$59,2,FALSE))","v":" "},{"$f":"IF(ISERROR(VLOOKUP(K202,Proposito_programa!$C$2:$E$59,3,FALSE)),\" \",VLOOKUP(K202,Proposito_programa!$C$2:$E$59,3,FALSE))","v":" "},0,null,899999115,"EMPRESA DE TELECOMUNICACIONES DE BOGOTA SA ESP - ETB","Persona Jurídica",null,null,null,19259436,null,null,null,{"$f":"+V202+W202+Y202","v":19259436},4386850,"2021-08-26","2021-09-08","2022-09-07",360,null,null,null,null,null,null,null,"X",null,null,0.2277766597111151]
[193,2021,"FDLBU-CD-001-2210","https://community.secop.gov.co/Public/Tendering/ContractNoticePhases/View?PPI=CO1.PPI.14511419&isFromPublicArea=True&isModal=False","Suministro","Contratación mínima cuantia","No aplica","CONTRATAR EL SUMINISTRO DE CAJAS PARA ARCHIVO, CARPETAS DE CONTRATOS YGESTIÓN, ELEMENTOS DE PAPELERÍA Y ÚTILES DE OFICINA, PARA LAS DIFERENTES DEPENDENCIAS DE LA ALCALDÍA LOCAL DE BARRIOS UNIDOS MEDIANTE EL SISTEMA DE PRECIOS UNITARIOS FIJOS","Funcionamiento","Un Nuevo Contrato Social y Ambiental para la Bogotá del Siglo XXI",null,{"$f":"IF(ISERROR(VLOOKUP(K203,Proposito_programa!$C$2:$E$59,2,FALSE)),\" \",VLOOKUP(K203,Proposito_programa!$C$2:$E$59,2,FALSE))","v":" "},{"$f":"IF(ISERROR(VLOOKUP(K203,Proposito_programa!$C$2:$E$59,3,FALSE)),\" \",VLOOKUP(K203,Proposito_programa!$C$2:$E$59,3,FALSE))","v":" "},0,null,830113914,"INSTITUCIONAL STAR SERVICES LTDA","Persona Jurídica",null,null,null,24840000,null,null," ",24840000,4580557,"2021-08-31","2021-09-08","2022-09-07",360,null,null,null,null,null,null,null,"X",null,null,0.18440245571658614]
[194,2021,"FDLBU-CD-001-2211","https://community.secop.gov.co/Public/Tendering/ContractNoticePhases/View?PPI=CO1.PPI.14437322&isFromPublicArea=True&isModal=False","Seguros","Selección abreviada","Selección abreviada por menor cuantía ","CONTRATAR LOS SEGUROS QUE AMPAREN LOS INTERESES PATRIMONIALES ACTUALES Y FUTUROS, ASÍ COMO LOS BIENES DE PROPIEDAD DEL FONDO DE DESARROLLO LOCAL DE BARRIOS UNIDOS, QUE ESTÉN BAJO SU RESPONSABILIDAD Y CUSTODIA Y AQUELLOS QUE SEAN ADQUIRIDOS PARA DESARROLLAR LAS FUNCIONES INHERENTES A SU ACTIVIDAD Y LA EXPEDICIÓN DE CUALQUIER OTRA PÓLIZA DE SEGUROS QUE REQUIERA LA ENTIDAD EN EL DESARROLLO DE SU ACTIVIDAD","Funcionamiento","Un Nuevo Contrato Social y Ambiental para la Bogotá del Siglo XXI",null,{"$f":"IF(ISERROR(VLOOKUP(K204,Proposito_programa!$C$2:$E$59,2,FALSE)),\" \",VLOOKUP(K204,Proposito_programa!$C$2:$E$59,2,FALSE))","v":" "},{"$f":"IF(ISERROR(VLOOKUP(K204,Proposito_programa!$C$2:$E$59,3,FALSE)),\" \",VLOOKUP(K204,Proposito_programa!$C$2:$E$59,3,FALSE))","v":" "},0,3,860002400,"LA PREVISORA S.A. COMPAÑÍA DE SEGUROS","Persona Jurídica",null,null,null,99452055,null,null," ",99452055,98452056,"2021-09-03","2021-09-09","2022-10-11",397,null,null,null,null,null,null,null,"X",null,null,0.98994491365713866]
[2590,2021,"FDLBU-CD-001-2212","https://www.contratos.gov.co/consultas/detalleProceso.do?numConstancia=21-22-28671&g-recaptcha-response=03AGdBq26nscdmApbKIuBvMsgHmsU3TwrEOIAEC3Yh7Xqan4tNJlGuzMMMQAC0COpyeJKO8cz-C3TIMHQFnLVBx5Bg-k9gvYaYha5U2PykVe3zToGeXixFVR8JXbGPZvo2BCscesSU37nvYAYcWx1lOnNctzxuKSs1s5BgF6YcxjXycYJ6hg4w7lZzLxZgX8Pdbsx-c8kItRDRvyZ8-5xTA8Mk_8G8Xozh-rmkq9nNdETrpSotjiKCOLvbzBOigIIKGu09qUI1oK4VO5vK9YYPCmmybHERVVGEiTtB_gUksQbs9HLH3219yGqOTGQcSofLkFNublWq4Y6SrpxPhT-RCA2TxkkkSVhU4jTcEQB438jXHSX1VUeTv4Q8pf7zo01hKCbTUYyydhilnAEHc3KaB_7TbvksvPPxAFb4whJ5Ho40uDQikPtL8Eg_lp8Wu3wKkhBjggYVmx3nH0Z8diuWSEC51aAJCIha1A","Contratos interadministrativos","Contratación directa","Contratos interadministrativos","AUNAR ESFUERZOS, TÉCNICOS, ADMINISTRATIVOS Y FINANCIEROS ENTRE EL IDRD Y LOS FONDOS DE DESARROLLO LOCAL PARA LA EJECUCIÓN DE LAS LÍNEAS DE INVERSIÓN; FORMACIÓN Y EVENTOS RECREODEPORTIVOS","Inversión","Un Nuevo Contrato Social y Ambiental para la Bogotá del Siglo XXI",20,{"$f":"IF(ISERROR(VLOOKUP(K205,Proposito_programa!$C$2:$E$59,2,FALSE)),\" \",VLOOKUP(K205,Proposito_programa!$C$2:$E$59,2,FALSE))","v":"Bogotá, referente en cultura, deporte, recreación y actividad física, con parques para el desarrollo y la salud"},{"$f":"IF(ISERROR(VLOOKUP(K205,Proposito_programa!$C$2:$E$59,3,FALSE)),\" \",VLOOKUP(K205,Proposito_programa!$C$2:$E$59,3,FALSE))","v":"Propósito 1: Hacer un nuevo contrato social para incrementar la inclusión social, productiva y política"},"133011601200000002044",null,860061099,"INSTITUTO DE RECREACIÓN Y DEPORTE -IDRD","Persona Jurídica",null,null,null,220760520,null,null,null,{"$f":"+V205+W205+Y205","v":220760520},176608416,"2021-08-31","2021-09-02","2021-12-31",89,null,null,null,null,null,null,null,null,"X",null,0.8]
[195,2021,"FDLBU-CD-001-2213","https://community.secop.gov.co/Public/Tendering/ContractNoticePhases/View?PPI=CO1.PPI.14951982&isFromPublicArea=True&isModal=False","Convenios de cooperacion","Régimen especial","Decreto 92 de 2017","AUNAR ESFUERZOS TÉCNICOS, JURÍDICOS, ADMINISTRATIVOS Y FINANCIEROS ENTRE LA ORGANIZACIÓN DE ESTADOS IBEROAMERICANOS Y EL FONDO DE DESARROLLO LOCAL DE BARRIOS UNIDOS PARA FORTALECER LA CONSTRUCCIÓN DE LA CIUDADANÍA Y DESARROLLO DE CAPACIDADES PARA EL EJERCICIO DE LOS DERECHOS DE LAS MUJERES; ASÍ COMO, ACTIVIDADES ENCAMINADAS A LA PREVENCIÓN DEL FEMINICIDIO Y LAS VIOLENCIAS CONTRA LAS MUJERES EN LA LOCALIDAD DE BARRIOS UNIDOS EN EL MARCO DEL PROYECTO 2057 “YULIANA SAMBONÍ”.","Inversión","Un Nuevo Contrato Social y Ambiental para la Bogotá del Siglo XXI",40,{"$f":"IF(ISERROR(VLOOKUP(K206,Proposito_programa!$C$2:$E$59,2,FALSE)),\" \",VLOOKUP(K206,Proposito_programa!$C$2:$E$59,2,FALSE))","v":"Más mujeres viven una vida libre de violencias, se sienten seguras y acceden con confianza al sistema de justicia"},{"$f":"IF(ISERROR(VLOOKUP(K206,Proposito_programa!$C$2:$E$59,3,FALSE)),\" \",VLOOKUP(K206,Proposito_programa!$C$2:$E$59,3,FALSE))","v":"Propósito 3: Inspirar confianza y legitimidad para vivir sin miedo y ser epicentro de cultura ciudadana, paz y reconciliación"},"133011603400000002057",null,860403137,"ORGANIZACIÓN DE ESTADOS IBEROAMERICANOS - OEI ","Persona Jurídica",null,null,null,448836500,null,null,null,448836500,269301900,"2021-09-10","2021-09-10","2022-03-09",180,null,null,null,null,null,null,null,"X",null,null,0.6]
[196,2021,"FDLBU-CD-001-2214","https://community.secop.gov.co/Public/Tendering/ContractNoticePhases/View?PPI=CO1.PPI.14984577&isFromPublicArea=True&isModal=False","Convenios de cooperacion","Régimen especial","Decreto 92 de 2017","AUNAR ESFUERZOS TÉCNICOS, JURÍDICOS, ADMINISTRATIVOS Y FINANCIEROS PARA FORTALECER LA PARTICIPACIÓN CIUDADANA MEDIANTE EL APOYO A INICIATIVAS DE INSTANCIAS DE PARTICIPACIÓN, ORGANIZACIONES COMUNITARIAS, COMUNALES Y EXPRESIONES SOCIALES EN LA LOCALIDAD DE BARRIOS UNIDOS EN EL MARCO DEL PROYECTO “DIÁLOGOS PARA CRECER Y PARTICIPAR”","Inversión","Un Nuevo Contrato Social y Ambiental para la Bogotá del Siglo XXI",55,{"$f":"IF(ISERROR(VLOOKUP(K207,Proposito_programa!$C$2:$E$59,2,FALSE)),\" \",VLOOKUP(K207,Proposito_programa!$C$2:$E$59,2,FALSE))","v":"Fortalecimiento de cultura ciudadana y su institucionalidad"},{"$f":"IF(ISERROR(VLOOKUP(K207,Proposito_programa!$C$2:$E$59,3,FALSE)),\" \",VLOOKUP(K207,Proposito_programa!$C$2:$E$59,3,FALSE))","v":"Propósito 5: Construir Bogotá - Región con gobierno abierto, transparente y ciudadanía consciente"},"133011605550000002141",null,860403137,"ORGANIZACIÓN DE ESTADOS IBEROAMERICANOS - OEI ","Persona Jurídica",null,null,null,543000000,null,null,null,543000000,325800000,"2021-09-10","2021-09-22","2022-03-21",180,null,null,null,null,null,null,null,"X",null,null,0.6]
[197,2021,"FDLBU-CD-001-2215","https://community.secop.gov.co/Public/Tendering/ContractNoticePhases/View?PPI=CO1.PPI.15071729&isFromPublicArea=True&isModal=False","Contratos de prestación de servicios profesionales y de apoyo a la gestión","Contratación directa","Prestación de servicios profesionales y de apoyo a la gestión, o para la ejecución de trabajos artísticos que sólo puedan encomendarse a determinadas personas naturales;","PRESTAR LOS SERVICIOS PROFESIONALES PARA APOYAR AL ÁREA DE GESTIÓN DEL DESARROLLO EN LOS ASUNTOS RELACIONADOS CON LA FORMULACIÓN, SEGUIMIENTO Y EVALUACIÓN DE POLÍTICAS, PLANES, PROGRAMAS Y PROYECTOS DE DESARROLLO LOCAL, PARA EL CUMPLIMIENTO DE LA META DE PREVENCIÓN DEL EMBARAZO ADOLESCENTE NO DESEADO, EN BARRIOS UNIDOS","Inversión","Un Nuevo Contrato Social y Ambiental para la Bogotá del Siglo XXI",8,{"$f":"IF(ISERROR(VLOOKUP(K208,Proposito_programa!$C$2:$E$59,2,FALSE)),\" \",VLOOKUP(K208,Proposito_programa!$C$2:$E$59,2,FALSE))","v":"Prevención y atención de maternidad temprana"},{"$f":"IF(ISERROR(VLOOKUP(K208,Proposito_programa!$C$2:$E$59,3,FALSE)),\" \",VLOOKUP(K208,Proposito_programa!$C$2:$E$59,3,FALSE))","v":"Propósito 1: Hacer un nuevo contrato social para incrementar la inclusión social, productiva y política"},"133011601080000002151",null,52788470,"GINA PAOLA BARRERA CONDA","Persona Natural",null,null,null,13110000,null,null,null,13110000,10196667,"2021-09-16","2021-09-21","2021-12-20",90,null,null,null,null,null,null,null,null,"X",null,0.7777778032036613]
[198,2021,"FDLBU-CD-001-2216","https://community.secop.gov.co/Public/Tendering/ContractNoticePhases/View?PPI=CO1.PPI.15111237&isFromPublicArea=True&isModal=False","Contratos de prestación de servicios profesionales y de apoyo a la gestión","Contratación directa","Prestación de servicios profesionales y de apoyo a la gestión, o para la ejecución de trabajos artísticos que sólo puedan encomendarse a determinadas personas naturales;","PRESTAR SERVICIOS ASISTENCIALES AL ÁREA GESTIÓN DEL DESARROLLO EN LOS ASUNTOS RELATIVOS A LA PLANEACIÓN LOCAL: APOYAR LA CONSECIÓN DE LA META DEL PROYECTO 2008 EN LOS COMPONENTES DE ADOPCIÓN Y EDUCACION.","Inversión","Un Nuevo Contrato Social y Ambiental para la Bogotá del Siglo XXI",34,{"$f":"IF(ISERROR(VLOOKUP(K209,Proposito_programa!$C$2:$E$59,2,FALSE)),\" \",VLOOKUP(K209,Proposito_programa!$C$2:$E$59,2,FALSE))","v":"Bogotá protectora de los animales"},{"$f":"IF(ISERROR(VLOOKUP(K209,Proposito_programa!$C$2:$E$59,3,FALSE)),\" \",VLOOKUP(K209,Proposito_programa!$C$2:$E$59,3,FALSE))","v":"Propósito 2 : Cambiar Nuestros Hábitos de Vida para Reverdecer a Bogotá y Adaptarnos y Mitigar la Crisis Climática"},"133011602340000002008",null,1091664708,"ANDREA PAOLA VILA CLARO","Persona Natural",null,null,null,5430000,null,1,844667,6274667,3861333,"2021-09-21","2021-09-27","2021-12-26",90,1,14,null,null,null,null,null,null,"X",null,0.61538452956945766]
[199,2021,"FDLBU-CD-001-2217","https://community.secop.gov.co/Public/Tendering/ContractNoticePhases/View?PPI=CO1.PPI.15111661&isFromPublicArea=True&isModal=False","Contratos de prestación de servicios profesionales y de apoyo a la gestión","Contratación directa","Prestación de servicios profesionales y de apoyo a la gestión, o para la ejecución de trabajos artísticos que sólo puedan encomendarse a determinadas personas naturales;","PRESTAR SERVICIOS ASISTENCIALES AL ÁREA GESTIÓN DEL DESARROLLO EN LOS ASUNTOS RELATIVOS A LA PLANEACIÓN LOCAL: APOYAR LA CONSECIÓN DE LA META DEL PROYECTO 2008 EN LOS COMPONENTES DE ADOPCIÓN Y EDUCACION.","Inversión","Un Nuevo Contrato Social y Ambiental para la Bogotá del Siglo XXI",34,{"$f":"IF(ISERROR(VLOOKUP(K210,Proposito_programa!$C$2:$E$59,2,FALSE)),\" \",VLOOKUP(K210,Proposito_programa!$C$2:$E$59,2,FALSE))","v":"Bogotá protectora de los animales"},{"$f":"IF(ISERROR(VLOOKUP(K210,Proposito_programa!$C$2:$E$59,3,FALSE)),\" \",VLOOKUP(K210,Proposito_programa!$C$2:$E$59,3,FALSE))","v":"Propósito 2 : Cambiar Nuestros Hábitos de Vida para Reverdecer a Bogotá y Adaptarnos y Mitigar la Crisis Climática"},"133011602340000002008",null,80204260,"CAMILO ANDRES CHAIN REY","Persona Natural",null,null,null,5430000,null,1,844667,6274667,3861333,"2021-09-21","2021-09-27","2021-12-26",90,1,14,null,null,null,null,null,null,"X",null,0.61538452956945766]
[200,2021,"FDLBU-CD-001-2218","https://community.secop.gov.co/Public/Tendering/ContractNoticePhases/View?PPI=CO1.PPI.15112810&isFromPublicArea=True&isModal=False","Contratos de prestación de servicios profesionales y de apoyo a la gestión","Contratación directa","Prestación de servicios profesionales y de apoyo a la gestión, o para la ejecución de trabajos artísticos que sólo puedan encomendarse a determinadas personas naturales;","PRESTAR SERVICIOS ASISTENCIALES AL ÁREA GESTIÓN DEL DESARROLLO EN LOS ASUNTOS RELATIVOS A LA PLANEACIÓN LOCAL: APOYAR LA CONSECIÓN DE LA META DEL PROYECTO 2008 EN LOS COMPONENTES DE ADOPCIÓN Y EDUCACION.","Inversión","Un Nuevo Contrato Social y Ambiental para la Bogotá del Siglo XXI",34,{"$f":"IF(ISERROR(VLOOKUP(K211,Proposito_programa!$C$2:$E$59,2,FALSE)),\" \",VLOOKUP(K211,Proposito_programa!$C$2:$E$59,2,FALSE))","v":"Bogotá protectora de los animales"},{"$f":"IF(ISERROR(VLOOKUP(K211,Proposito_programa!$C$2:$E$59,3,FALSE)),\" \",VLOOKUP(K211,Proposito_programa!$C$2:$E$59,3,FALSE))","v":"Propósito 2 : Cambiar Nuestros Hábitos de Vida para Reverdecer a Bogotá y Adaptarnos y Mitigar la Crisis Climática"},"133011602340000002008",null,1015428289,"ELIANA ORTIZ GARCIA","Persona Natural",null,null,null,5430000,null,1,1025667,{"$f":"+V211+W211+Y211","v":6455667},4042333,"2021-09-20","2021-09-24","2021-12-23",90,1,17,null,null,null,null,null,null,"X",null,{"$f":"IF(ISERROR(AA211/Z211),\"-\",(AA211/Z211))","v":0.62616814033313672}]
[201,2021,"FDLBU-CD-001-2219","https://community.secop.gov.co/Public/Tendering/ContractNoticePhases/View?PPI=CO1.PPI.15115510&isFromPublicArea=True&isModal=False","Contratos de prestación de servicios profesionales y de apoyo a la gestión","Contratación directa","Prestación de servicios profesionales y de apoyo a la gestión, o para la ejecución de trabajos artísticos que sólo puedan encomendarse a determinadas personas naturales;","PRESTAR SERVICIOS ASISTENCIALES AL ÁREA GESTIÓN DEL DESARROLLO EN LOS ASUNTOS RELATIVOS A LA PLANEACIÓN LOCAL: APOYAR LA CONSECIÓN DE LA META DEL PROYECTO 2008 EN LOS COMPONENTES DE ADOPCIÓN Y EDUCACION.","Inversión","Un Nuevo Contrato Social y Ambiental para la Bogotá del Siglo XXI",34,{"$f":"IF(ISERROR(VLOOKUP(K212,Proposito_programa!$C$2:$E$59,2,FALSE)),\" \",VLOOKUP(K212,Proposito_programa!$C$2:$E$59,2,FALSE))","v":"Bogotá protectora de los animales"},{"$f":"IF(ISERROR(VLOOKUP(K212,Proposito_programa!$C$2:$E$59,3,FALSE)),\" \",VLOOKUP(K212,Proposito_programa!$C$2:$E$59,3,FALSE))","v":"Propósito 2 : Cambiar Nuestros Hábitos de Vida para Reverdecer a Bogotá y Adaptarnos y Mitigar la Crisis Climática"},"133011602340000002008",null,52182562,"GIZZELD AMPARO RODRIGUEZ RAMOS","Persona Natural",null,null,null,5430000,null,1,784333,6214333,3801000,"2021-09-21","2021-09-28","2021-12-27",90,1,13,null,null,null,null,null,null,"X",null,0.61165051824548189]
[202,2021,"FDLBU-CD-001-2220","https://community.secop.gov.co/Public/Tendering/ContractNoticePhases/View?PPI=CO1.PPI.15115536&isFromPublicArea=True&isModal=False","Contratos de prestación de servicios profesionales y de apoyo a la gestión","Contratación directa","Prestación de servicios profesionales y de apoyo a la gestión, o para la ejecución de trabajos artísticos que sólo puedan encomendarse a determinadas personas naturales;","PRESTAR SERVICIOS ASISTENCIALES AL ÁREA GESTIÓN DEL DESARROLLO EN LOS ASUNTOS RELATIVOS A LA PLANEACIÓN LOCAL: APOYAR LA CONSECIÓN DE LA META DEL PROYECTO 2008 EN LOS COMPONENTES DE ADOPCIÓN Y EDUCACION.","Inversión","Un Nuevo Contrato Social y Ambiental para la Bogotá del Siglo XXI",34,{"$f":"IF(ISERROR(VLOOKUP(K213,Proposito_programa!$C$2:$E$59,2,FALSE)),\" \",VLOOKUP(K213,Proposito_programa!$C$2:$E$59,2,FALSE))","v":"Bogotá protectora de los animales"},{"$f":"IF(ISERROR(VLOOKUP(K213,Proposito_programa!$C$2:$E$59,3,FALSE)),\" \",VLOOKUP(K213,Proposito_programa!$C$2:$E$59,3,FALSE))","v":"Propósito 2 : Cambiar Nuestros Hábitos de Vida para Reverdecer a Bogotá y Adaptarnos y Mitigar la Crisis Climática"},"133011602340000002008",null,52346897,"MARIA FERNANDA PUENTES CORTES","Persona Natural",null,null,null,5430000,null,1,784333,6214333,3801000,"2021-09-21","2021-09-28","2021-12-27",90,1,13,null,null,null,null,null,null,"X",null,0.61165051824548189]
[203,2021,"FDLBU-CD-001-2221","https://community.secop.gov.co/Public/Tendering/ContractNoticePhases/View?PPI=CO1.PPI.15115801&isFromPublicArea=True&isModal=False","Contratos de prestación de servicios profesionales y de apoyo a la gestión","Contratación directa","Prestación de servicios profesionales y de apoyo a la gestión, o para la ejecución de trabajos artísticos que sólo puedan encomendarse a determinadas personas naturales;","PRESTAR SERVICIOS ASISTENCIALES AL ÁREA GESTIÓN DEL DESARROLLO EN LOS ASUNTOS RELATIVOS A LA PLANEACIÓN LOCAL: APOYAR LA CONSECIÓN DE LA META DEL PROYECTO 2008 EN LOS COMPONENTES DE ADOPCIÓN Y EDUCACION.","Inversión","Un Nuevo Contrato Social y Ambiental para la Bogotá del Siglo XXI",34,{"$f":"IF(ISERROR(VLOOKUP(K214,Proposito_programa!$C$2:$E$59,2,FALSE)),\" \",VLOOKUP(K214,Proposito_programa!$C$2:$E$59,2,FALSE))","v":"Bogotá protectora de los animales"},{"$f":"IF(ISERROR(VLOOKUP(K214,Proposito_programa!$C$2:$E$59,3,FALSE)),\" \",VLOOKUP(K214,Proposito_programa!$C$2:$E$59,3,FALSE))","v":"Propósito 2 : Cambiar Nuestros Hábitos de Vida para Reverdecer a Bogotá y Adaptarnos y Mitigar la Crisis Climática"},"133011602340000002008",null,1032433997,"MARTHA JEANNETH PULIDO AREVALO","Persona Natural",null,null,null,5430000,null,1,1025667,6455667,4042333,"2021-09-21","2021-09-24","2021-12-23",90,1,17,null,null,null,null,null,null,"X",null,0.62616814033313672]
[204,2021,"FDLBU-CD-001-2222","https://community.secop.gov.co/Public/Tendering/ContractNoticePhases/View?PPI=CO1.PPI.15161615&isFromPublicArea=True&isModal=False","Contratos de prestación de servicios profesionales y de apoyo a la gestión","Contratación directa","Prestación de servicios profesionales y de apoyo a la gestión, o para la ejecución de trabajos artísticos que sólo puedan encomendarse a determinadas personas naturales;"," PRESTAR SERVICIOS DE APOYO AL ÁREA GESTIÓN DEL DESARROLLO EN LOS ASUNTOS RELATIVOS A LA PLANEACIÓN LOCAL: APOYAR EL SEGUIMIENTO AL ACCESO Y PERMANENCIA EN EDUCACIÓN SUPERIOR EN EL MARCO DE LAS OBLIGACIONES DEL FDLBU OBTENIDAS EN CONVENIO SUSCRITO, ASÍ COMO EL SEGUIMIENTO A LA DOTACIÓN A LA CASA DE LA JUVENTUD NASQUA\n","Inversión","Un Nuevo Contrato Social y Ambiental para la Bogotá del Siglo XXI",17,{"$f":"IF(ISERROR(VLOOKUP(K215,Proposito_programa!$C$2:$E$59,2,FALSE)),\" \",VLOOKUP(K215,Proposito_programa!$C$2:$E$59,2,FALSE))","v":"Jóvenes con capacidades: Proyecto de vida para la ciudadanía, la innovación y el trabajo del siglo XXI"},{"$f":"IF(ISERROR(VLOOKUP(K215,Proposito_programa!$C$2:$E$59,3,FALSE)),\" \",VLOOKUP(K215,Proposito_programa!$C$2:$E$59,3,FALSE))","v":"Propósito 1: Hacer un nuevo contrato social para incrementar la inclusión social, productiva y política"},"133011601170000002027",null,1015403868,"CINDY LICCETTE TORRES RICAURTE","Persona Natural",null,null,null,9085000,null,null," ",9085000,3876267,"2021-09-22","2021-09-27","2021-12-31",150,1,22,null,null,null,null,null,null,"X",null,0.42666670335718215]
[205,2021,"FDLBU-CD-001-2223","https://community.secop.gov.co/Public/Tendering/ContractNoticePhases/View?PPI=CO1.PPI.15038862&isFromPublicArea=True&isModal=False","Seguros","Contratación mínima cuantia","No aplica","“CONTRATAR EL SEGURO DE VIDA PARA LOS EDILES DEL FONDO DE DESARROLLO LOCAL DE BARRIOS UNIDOS”. ","Funcionamiento","Un Nuevo Contrato Social y Ambiental para la Bogotá del Siglo XXI",null,{"$f":"IF(ISERROR(VLOOKUP(K216,Proposito_programa!$C$2:$E$59,2,FALSE)),\" \",VLOOKUP(K216,Proposito_programa!$C$2:$E$59,2,FALSE))","v":" "},{"$f":"IF(ISERROR(VLOOKUP(K216,Proposito_programa!$C$2:$E$59,3,FALSE)),\" \",VLOOKUP(K216,Proposito_programa!$C$2:$E$59,3,FALSE))","v":" "},0,null,860009174,"SEGUROS DE VIDA DEL ESTADO S.A. ","Persona Jurídica",null,null,null,4584153,null,null,null,4584153,4584153,"2021-09-22","2021-09-25","2022-07-25",304,null,null,null,null,null,null,null,"X",null,null,1]
[206,2021,"FDLBU-CD-001-2224","https://community.secop.gov.co/Public/Tendering/ContractNoticePhases/View?PPI=CO1.PPI.14893443&isFromPublicArea=True&isModal=False","Contratos de prestación de servicios","Selección abreviada","Selección abreviada por menor cuantía ","PRESTAR LOS SERVICIOS EN LA ATENCIÓN EN URGENCIAS, BRIGADAS VETERINARIAS Y JORNADAS DE ESTERILIZACIÓN DE ANIMALES EN CONDICIÓN DE ABANDONO Y/O VULNERABILIDAD EN LA LOCALIDAD DE BARRIOS UNIDOS, PARA MEJORAR SUS CONDICIONES DE VIDA, ENCARGÁNDOSE DE DISPONER LA LOGÍSTICA, SUMINISTROS Y PERSONAL NECESARIOS","Inversión","Un Nuevo Contrato Social y Ambiental para la Bogotá del Siglo XXI",34,{"$f":"IF(ISERROR(VLOOKUP(K217,Proposito_programa!$C$2:$E$59,2,FALSE)),\" \",VLOOKUP(K217,Proposito_programa!$C$2:$E$59,2,FALSE))","v":"Bogotá protectora de los animales"},{"$f":"IF(ISERROR(VLOOKUP(K217,Proposito_programa!$C$2:$E$59,3,FALSE)),\" \",VLOOKUP(K217,Proposito_programa!$C$2:$E$59,3,FALSE))","v":"Propósito 2 : Cambiar Nuestros Hábitos de Vida para Reverdecer a Bogotá y Adaptarnos y Mitigar la Crisis Climática"},"133011602340000002008",1,901039835,"IMPECOS S.A.S.","Persona Jurídica",null,null,null,200825000,null,null,null,200825000,0,"2021-10-07","2021-10-08","2022-03-07",150,null,null,null,null,null,null,null,"X",null,null,0]
[207,2021,"FDLBU-CD-001-2225","https://community.secop.gov.co/Public/Tendering/ContractNoticePhases/View?PPI=CO1.PPI.15265016&isFromPublicArea=True&isModal=False","Contratos de prestación de servicios profesionales y de apoyo a la gestión","Contratación directa","Prestación de servicios profesionales y de apoyo a la gestión, o para la ejecución de trabajos artísticos que sólo puedan encomendarse a determinadas personas naturales;","PRESTAR SERVICIOS DE APOYO EN LAS ACTIVIDADES DE SEGURIDAD, PROMOCIÓN DE LA CONVIVENCIA Y DE ATENCIÓN DE MOVILIZACIONES Y AGLOMERACIONES EN EL TERRITORIO\n","Inversión","Un Nuevo Contrato Social y Ambiental para la Bogotá del Siglo XXI",43,{"$f":"IF(ISERROR(VLOOKUP(K218,Proposito_programa!$C$2:$E$59,2,FALSE)),\" \",VLOOKUP(K218,Proposito_programa!$C$2:$E$59,2,FALSE))","v":"Cultura ciudadana para la confianza, la convivencia y la participación desde la vida cotidiana"},{"$f":"IF(ISERROR(VLOOKUP(K218,Proposito_programa!$C$2:$E$59,3,FALSE)),\" \",VLOOKUP(K218,Proposito_programa!$C$2:$E$59,3,FALSE))","v":"Propósito 3: Inspirar confianza y legitimidad para vivir sin miedo y ser epicentro de cultura ciudadana, paz y reconciliación"},"133011603430000002149",null,1015413136,"RAUL ALEJANDRO PARDO MORALES","Persona Natural",null,null,null,5677500,null,null,null,5677500,3709300,"2021-10-11","2021-10-12","2021-12-27",45,null,null,null,null,null,null,null,null,"X",null,0.65333333333333332]
[208,2021,"FDLBU-CD-001-2226","https://community.secop.gov.co/Public/Tendering/ContractNoticePhases/View?PPI=CO1.PPI.15265068&isFromPublicArea=True&isModal=False\n","Contratos de prestación de servicios profesionales y de apoyo a la gestión","Contratación directa","Prestación de servicios profesionales y de apoyo a la gestión, o para la ejecución de trabajos artísticos que sólo puedan encomendarse a determinadas personas naturales;","PRESTAR SERVICIOS DE APOYO EN LAS ACTIVIDADES DE SEGURIDAD, PROMOCIÓN DE LA CONVIVENCIA Y DE ATENCIÓN DE MOVILIZACIONES Y AGLOMERACIONES EN EL TERRITORIO\n","Inversión","Un Nuevo Contrato Social y Ambiental para la Bogotá del Siglo XXI",43,{"$f":"IF(ISERROR(VLOOKUP(K219,Proposito_programa!$C$2:$E$59,2,FALSE)),\" \",VLOOKUP(K219,Proposito_programa!$C$2:$E$59,2,FALSE))","v":"Cultura ciudadana para la confianza, la convivencia y la participación desde la vida cotidiana"},{"$f":"IF(ISERROR(VLOOKUP(K219,Proposito_programa!$C$2:$E$59,3,FALSE)),\" \",VLOOKUP(K219,Proposito_programa!$C$2:$E$59,3,FALSE))","v":"Propósito 3: Inspirar confianza y legitimidad para vivir sin miedo y ser epicentro de cultura ciudadana, paz y reconciliación"},"133011603430000002149",null,79331423,"ELIAS CUBILLOS PARDO","Persona Natural",null,null,null,5677500,null,null,null,5677500,3557900,"2021-10-11","2021-10-14","2021-12-29",45,null,null,null,null,null,null,null,null,"X",null,0.62666666666666671]
[209,2021,"FDLBU-CD-001-2227","https://community.secop.gov.co/Public/Tendering/ContractNoticePhases/View?PPI=CO1.PPI.15357484&isFromPublicArea=True&isModal=False","Contratos de prestación de servicios profesionales y de apoyo a la gestión","Contratación directa","Prestación de servicios profesionales y de apoyo a la gestión, o para la ejecución de trabajos artísticos que sólo puedan encomendarse a determinadas personas naturales;","PRESTAR SERVICIOS PROFESIONALES A LA GESTIÓN DEL DESARROLLO EN LABORES DE PLANEACIÓN EN LAS ACTIVIDADES RELATIVAS A LOS PROYECTOS AMBIENTALES DE LA VIGENCIA 2021 DE LA LÍNEA DE INVERSIONES AMBIENTALES SOSTENIBLES\n","Inversión","Un Nuevo Contrato Social y Ambiental para la Bogotá del Siglo XXI",38,{"$f":"IF(ISERROR(VLOOKUP(K220,Proposito_programa!$C$2:$E$59,2,FALSE)),\" \",VLOOKUP(K220,Proposito_programa!$C$2:$E$59,2,FALSE))","v":"Ecoeficiencia, reciclaje, manejo de residuos e inclusión de la población recicladora"},{"$f":"IF(ISERROR(VLOOKUP(K220,Proposito_programa!$C$2:$E$59,3,FALSE)),\" \",VLOOKUP(K220,Proposito_programa!$C$2:$E$59,3,FALSE))","v":"Propósito 2 : Cambiar Nuestros Hábitos de Vida para Reverdecer a Bogotá y Adaptarnos y Mitigar la Crisis Climática"},"133011602380000002082",null,32294897,"YAJAIRA CUESTA MACHUCA","Persona Natural",null,null,null,18300000,null,null,null,18300000,10776667,"2021-10-08","2021-10-08","2021-12-31",90,1,7,null,null,null,null,null,null,"X",null,0.58888890710382513]
[210,2021,"FDLBU-CD-001-2228","https://community.secop.gov.co/Public/Tendering/ContractNoticePhases/View?PPI=CO1.PPI.15375565&isFromPublicArea=True&isModal=False","Contratos de prestación de servicios profesionales y de apoyo a la gestión","Contratación directa","Prestación de servicios profesionales y de apoyo a la gestión, o para la ejecución de trabajos artísticos que sólo puedan encomendarse a determinadas personas naturales;","PRESTAR SERVICIOS PROFESIONALES PARA APOYAR AL ÁREA GESTIÓN DEL DESARROLLO ADMINISTRATIVO Y FINANCIERO EN LOS ASUNTOS RELATIVOS A LA PLANEACIÓN LOCAL: COORDINAR Y GARANTIZAR LA IMPLEMENTACIÓN Y SEGUIMIENTO DE LOS PROCESOS, PROYECTOS Y PROCEDIMIENTOS DE CONTRATOS SUSCRITOS POR LA ALCALDÍA LOCAL DE BARRIOS UNIDOS DIRIGIDOS AL CUMPLIMIENTO DE LAS METAS DE PARTICIPACIÓN DÍALOGOS PARA CRECER Y PARTICIPAR","Inversión","Un Nuevo Contrato Social y Ambiental para la Bogotá del Siglo XXI",55,{"$f":"IF(ISERROR(VLOOKUP(K221,Proposito_programa!$C$2:$E$59,2,FALSE)),\" \",VLOOKUP(K221,Proposito_programa!$C$2:$E$59,2,FALSE))","v":"Fortalecimiento de cultura ciudadana y su institucionalidad"},{"$f":"IF(ISERROR(VLOOKUP(K221,Proposito_programa!$C$2:$E$59,3,FALSE)),\" \",VLOOKUP(K221,Proposito_programa!$C$2:$E$59,3,FALSE))","v":"Propósito 5: Construir Bogotá - Región con gobierno abierto, transparente y ciudadanía consciente"},"133011605550000002141",null,1032441171,"ALEJANDRO LOPEZ VELASQUEZ","Persona Natural",null,null,null,11137500,null,1,3267000,14404500,6979500,"2021-10-08","2021-10-14","2021-12-28",75,1,22,null,null,null,null,null,null,"X",null,0.4845360824742268]
[211,2021,"FDLBU-CD-001-2229","https://community.secop.gov.co/Public/Tendering/ContractNoticePhases/View?PPI=CO1.PPI.15375953&isFromPublicArea=True&isModal=False","Contratos de prestación de servicios profesionales y de apoyo a la gestión","Contratación directa","Prestación de servicios profesionales y de apoyo a la gestión, o para la ejecución de trabajos artísticos que sólo puedan encomendarse a determinadas personas naturales;","PRESTAR SERVICIOS PROFESIONALES PARA APOYAR AL ÁREA GESTIÓN DEL DESARROLLO ADMINISTRATIVO Y FINANCIERO EN LOS ASUNTOS RELATIVOS A LA PLANEACIÓN LOCAL: COORDINAR Y GARANTIZAR LA IMPLEMENTACIÓN Y SEGUIMIENTO DE LOS PROCESOS, PROYECTOS Y PROCEDIMIENTOS DE CONTRATOS SUSCRITOS POR LA ALCALDÍA LOCAL DE BARRIOS UNIDOS DIRIGIDOS AL CUMPLIMIENTO DE LAS METAS DE PARTICIPACIÓN DÍALOGOS PARA CRECER Y PARTICIPAR","Inversión","Un Nuevo Contrato Social y Ambiental para la Bogotá del Siglo XXI",55,{"$f":"IF(ISERROR(VLOOKUP(K222,Proposito_programa!$C$2:$E$59,2,FALSE)),\" \",VLOOKUP(K222,Proposito_programa!$C$2:$E$59,2,FALSE))","v":"Fortalecimiento de cultura ciudadana y su institucionalidad"},{"$f":"IF(ISERROR(VLOOKUP(K222,Proposito_programa!$C$2:$E$59,3,FALSE)),\" \",VLOOKUP(K222,Proposito_programa!$C$2:$E$59,3,FALSE))","v":"Propósito 5: Construir Bogotá - Región con gobierno abierto, transparente y ciudadanía consciente"},"133011605550000002141",null,53125543,"JENNY VIVIANA POVEDA CORREDOR","Persona Natural",null,null,null,13575000,null,1,3982000,17557000,8507000,"2021-10-12","2021-10-14","2021-12-28",75,1,22,null,null,null,null,null,null,"X",null,0.4845360824742268]
[212,2021,"FDLBU-CD-001-2230","https://community.secop.gov.co/Public/Tendering/ContractNoticePhases/View?PPI=CO1.PPI.10844316&isFromPublicArea=True&isModal=False","Obra pública","Licitación pública","No aplica","REALIZAR LOS ESTUDIOS Y DISEÑOS; Y EJECUTAR LAS OBRAS DE  PRIMEROS AUXILIOS Y DE MANTENIMIENTO DE LA SEDE UBICADA EN LA CALLE 74 A No. 63 04, EN BOGOTÁ, BIEN DE INTERÉS CULTURAL; DE CONFORMIDAD CON EL ANEXO TÉCNICO DEL P RESENTE PROCESO","Inversión","Un Nuevo Contrato Social y Ambiental para la Bogotá del Siglo XXI",57,{"$f":"IF(ISERROR(VLOOKUP(K223,Proposito_programa!$C$2:$E$59,2,FALSE)),\" \",VLOOKUP(K223,Proposito_programa!$C$2:$E$59,2,FALSE))","v":"Gestión pública local"},{"$f":"IF(ISERROR(VLOOKUP(K223,Proposito_programa!$C$2:$E$59,3,FALSE)),\" \",VLOOKUP(K223,Proposito_programa!$C$2:$E$59,3,FALSE))","v":"Propósito 5: Construir Bogotá - Región con gobierno abierto, transparente y ciudadanía consciente"},"133011605570000002143",2,901531798,"CONSORCIO MO BARRIOS\nUNIDOS 2021","Consorcio","MARTINEZ OSPINA SAS",900105523,0.5,759294359.98000002,null,null,null,759294359.98000002,0,"2021-10-21","2022-01-18","2022-09-17",240,null,null,null,null,null,null,null,"X",null,null,0]
[213,2021,"FDLBU-CD-001-2231","http://community.secop.gov.co/Public/Tendering/ContractNoticePhases/View?PPI=CO1.PPI.15453775&isFromPublicArea=True&isModal=False","Contratos de prestación de servicios profesionales y de apoyo a la gestión","Contratación directa","Prestación de servicios profesionales y de apoyo a la gestión, o para la ejecución de trabajos artísticos que sólo puedan encomendarse a determinadas personas naturales;","PRESTAR SERVICIOS DE APOYO A LA GESTIÓN DEL DESARROLLO EN LABORES DE PLANEACIÓN EN LAS ACTIVIDADES RELATIVAS A LOS PROYECTOS AMBIENTALES DE LA VIGENCIA 2021 DE LA LÍNEA DE INVERSIONES AMBIENTALES SOSTENIBLES","Inversión","Un Nuevo Contrato Social y Ambiental para la Bogotá del Siglo XXI",38,{"$f":"IF(ISERROR(VLOOKUP(K224,Proposito_programa!$C$2:$E$59,2,FALSE)),\" \",VLOOKUP(K224,Proposito_programa!$C$2:$E$59,2,FALSE))","v":"Ecoeficiencia, reciclaje, manejo de residuos e inclusión de la población recicladora"},{"$f":"IF(ISERROR(VLOOKUP(K224,Proposito_programa!$C$2:$E$59,3,FALSE)),\" \",VLOOKUP(K224,Proposito_programa!$C$2:$E$59,3,FALSE))","v":"Propósito 2 : Cambiar Nuestros Hábitos de Vida para Reverdecer a Bogotá y Adaptarnos y Mitigar la Crisis Climática"},"133011602380000002082",null,80051381,"FREDY EPIMENIO AYURE SANCHEZ","Persona Natural",null,null,null,5451000,null,null,null,5451000,2786067,"2021-10-13","2021-10-15","2021-12-31",90,1,15,null,null,null,null,null,null,"X",null,0.51111117226197023]
[214,2021,"FDLBU-CD-001-2232","http://community.secop.gov.co/Public/Tendering/ContractNoticePhases/View?PPI=CO1.PPI.15454073&isFromPublicArea=True&isModal=False","Contratos de prestación de servicios profesionales y de apoyo a la gestión","Contratación directa","Prestación de servicios profesionales y de apoyo a la gestión, o para la ejecución de trabajos artísticos que sólo puedan encomendarse a determinadas personas naturales;","PRESTAR SERVICIOS DE APOYO A LA GESTIÓN DEL DESARROLLO EN LABORES DE PLANEACIÓN EN LAS ACTIVIDADES RELATIVAS A LOS PROYECTOS AMBIENTALES DE LA VIGENCIA 2021 DE LA LÍNEA DE INVERSIONES AMBIENTALES SOSTENIBLES","Inversión","Un Nuevo Contrato Social y Ambiental para la Bogotá del Siglo XXI",38,{"$f":"IF(ISERROR(VLOOKUP(K225,Proposito_programa!$C$2:$E$59,2,FALSE)),\" \",VLOOKUP(K225,Proposito_programa!$C$2:$E$59,2,FALSE))","v":"Ecoeficiencia, reciclaje, manejo de residuos e inclusión de la población recicladora"},{"$f":"IF(ISERROR(VLOOKUP(K225,Proposito_programa!$C$2:$E$59,3,FALSE)),\" \",VLOOKUP(K225,Proposito_programa!$C$2:$E$59,3,FALSE))","v":"Propósito 2 : Cambiar Nuestros Hábitos de Vida para Reverdecer a Bogotá y Adaptarnos y Mitigar la Crisis Climática"},"133011602380000002082",null,79326352,"JOSE ANTONIO ALVARADO MORALES","Persona Natural",null,null,null,5451000,null,null,null,5451000,2786067,"2021-10-13","2021-10-15","2021-12-31",90,1,15,null,null,null,null,null,null,"X",null,0.51111117226197023]
[215,2021,"FDLBU-CD-001-2233","http://community.secop.gov.co/Public/Tendering/ContractNoticePhases/View?PPI=CO1.PPI.15454603&isFromPublicArea=True&isModal=False","Contratos de prestación de servicios profesionales y de apoyo a la gestión","Contratación directa","Prestación de servicios profesionales y de apoyo a la gestión, o para la ejecución de trabajos artísticos que sólo puedan encomendarse a determinadas personas naturales;","PRESTAR SERVICIOS DE APOYO A LA GESTIÓN DEL DESARROLLO EN LABORES DE PLANEACIÓN EN LAS ACTIVIDADES RELATIVAS A LOS PROYECTOS AMBIENTALES DE LA VIGENCIA 2021 DE LA LÍNEA DE INVERSIONES AMBIENTALES SOSTENIBLES","Inversión","Un Nuevo Contrato Social y Ambiental para la Bogotá del Siglo XXI",38,{"$f":"IF(ISERROR(VLOOKUP(K226,Proposito_programa!$C$2:$E$59,2,FALSE)),\" \",VLOOKUP(K226,Proposito_programa!$C$2:$E$59,2,FALSE))","v":"Ecoeficiencia, reciclaje, manejo de residuos e inclusión de la población recicladora"},{"$f":"IF(ISERROR(VLOOKUP(K226,Proposito_programa!$C$2:$E$59,3,FALSE)),\" \",VLOOKUP(K226,Proposito_programa!$C$2:$E$59,3,FALSE))","v":"Propósito 2 : Cambiar Nuestros Hábitos de Vida para Reverdecer a Bogotá y Adaptarnos y Mitigar la Crisis Climática"},"133011602380000002082",null,79722413,"WILSON EMILIO FERNANDEZ NIÑO","Persona Natural",null,null,null,5451000,null,null,null,5451000,2543800,"2021-10-15","2021-10-19","2021-12-31",90,1,15,null,null,null,null,null,null,"X",null,0.46666666666666667]
[216,2021,"FDLBU-CD-001-2234","http://community.secop.gov.co/Public/Tendering/ContractNoticePhases/View?PPI=CO1.PPI.15538616&isFromPublicArea=True&isModal=False","Contratos de prestación de servicios profesionales y de apoyo a la gestión","Contratación directa","Prestación de servicios profesionales y de apoyo a la gestión, o para la ejecución de trabajos artísticos que sólo puedan encomendarse a determinadas personas naturales;","PRESTAR SERVICIOS DE APOYO A LA GESTIÓN DEL DESARROLLO EN LABORES DE PLANEACIÓN EN LAS ACTIVIDADES RELATIVAS A LOS PROYECTOS AMBIENTALES DE LA VIGENCIA 2021 DE LA LÍNEA DE INVERSIONES AMBIENTALES SOSTENIBLES","Inversión","Un Nuevo Contrato Social y Ambiental para la Bogotá del Siglo XXI",38,{"$f":"IF(ISERROR(VLOOKUP(K227,Proposito_programa!$C$2:$E$59,2,FALSE)),\" \",VLOOKUP(K227,Proposito_programa!$C$2:$E$59,2,FALSE))","v":"Ecoeficiencia, reciclaje, manejo de residuos e inclusión de la población recicladora"},{"$f":"IF(ISERROR(VLOOKUP(K227,Proposito_programa!$C$2:$E$59,3,FALSE)),\" \",VLOOKUP(K227,Proposito_programa!$C$2:$E$59,3,FALSE))","v":"Propósito 2 : Cambiar Nuestros Hábitos de Vida para Reverdecer a Bogotá y Adaptarnos y Mitigar la Crisis Climática"},"133011602380000002082",null,80171855,"DIEGO ARMANDO POSADA GRIJALBA","Persona Natural",null,null,null,5451000,null,null,null,5451000,2422667,"2021-10-20","2021-10-21","2021-12-31",90,1,15,null,null,null,null,null,null,"X",null,0.44444450559530363]
[217,2021,"FDLBU-CD-001-2235","http://community.secop.gov.co/Public/Tendering/ContractNoticePhases/View?PPI=CO1.PPI.15538660&isFromPublicArea=True&isModal=False","Contratos de prestación de servicios profesionales y de apoyo a la gestión","Contratación directa","Prestación de servicios profesionales y de apoyo a la gestión, o para la ejecución de trabajos artísticos que sólo puedan encomendarse a determinadas personas naturales;","PRESTAR SERVICIOS DE APOYO A LA GESTIÓN DEL DESARROLLO EN LABORES DE PLANEACIÓN EN LAS ACTIVIDADES RELATIVAS A LOS PROYECTOS AMBIENTALES DE LA VIGENCIA 2021 DE LA LÍNEA DE INVERSIONES AMBIENTALES SOSTENIBLES","Inversión","Un Nuevo Contrato Social y Ambiental para la Bogotá del Siglo XXI",38,{"$f":"IF(ISERROR(VLOOKUP(K228,Proposito_programa!$C$2:$E$59,2,FALSE)),\" \",VLOOKUP(K228,Proposito_programa!$C$2:$E$59,2,FALSE))","v":"Ecoeficiencia, reciclaje, manejo de residuos e inclusión de la población recicladora"},{"$f":"IF(ISERROR(VLOOKUP(K228,Proposito_programa!$C$2:$E$59,3,FALSE)),\" \",VLOOKUP(K228,Proposito_programa!$C$2:$E$59,3,FALSE))","v":"Propósito 2 : Cambiar Nuestros Hábitos de Vida para Reverdecer a Bogotá y Adaptarnos y Mitigar la Crisis Climática"},"133011602380000002082",null,1015407651,"FRANK ROBERTH SOLANO GARCIA","Persona Natural",null,null,null,5451000,null,null,null,5451000,1756433,"2021-10-20","2021-11-02","2021-12-31",90,null,15,null,null,null,null,null,null,"X",null,0.32222216107136303]
[218,2021,"FDLBU-CD-001-2236","https://community.secop.gov.co/Public/Tendering/ContractNoticePhases/View?PPI=CO1.PPI.14930270&isFromPublicArea=True&isModal=False","Compraventa de bienes muebles","Selección abreviada","Subasta inversa ","COMPRAVENTA DE MATERIALES, INSUMOS, INSTRUMENTOS, ELEMENTOS Y EQUIPOS PARA LA DOTACIÓN DE LA CASA DE JUVENTUD NASQUA CON EL FIN DE GARANTIZAR ESPACIOS PARA EL DESARROLLO DE LIBRE PERSONALIDAD Y DE LOS PROCESOS JUVENILES QUE TIENEN LUGAR EN LA LOCALIDAD DE BARRIOS UNIDOS - Lote 1 – Arte Urbano","Inversión","Un Nuevo Contrato Social y Ambiental para la Bogotá del Siglo XXI",17,{"$f":"IF(ISERROR(VLOOKUP(K229,Proposito_programa!$C$2:$E$59,2,FALSE)),\" \",VLOOKUP(K229,Proposito_programa!$C$2:$E$59,2,FALSE))","v":"Jóvenes con capacidades: Proyecto de vida para la ciudadanía, la innovación y el trabajo del siglo XXI"},{"$f":"IF(ISERROR(VLOOKUP(K229,Proposito_programa!$C$2:$E$59,3,FALSE)),\" \",VLOOKUP(K229,Proposito_programa!$C$2:$E$59,3,FALSE))","v":"Propósito 1: Hacer un nuevo contrato social para incrementar la inclusión social, productiva y política"},"133011601170000002027",8,901142692,"COMERCIALIZADORA E&T S.A.S.","Persona Jurídica",null,null,null,62409356,null,null,null,62409356,0,"2021-10-28","2021-11-08","2022-02-07",90,null,null,null,null,null,null,null,null,"X",null,0]
[219,2021,"FDLBU-CD-001-2237","https://community.secop.gov.co/Public/Tendering/ContractNoticePhases/View?PPI=CO1.PPI.14930270&isFromPublicArea=True&isModal=False","Compraventa de bienes muebles","Selección abreviada","Subasta inversa ","COMPRAVENTA DE MATERIALES, INSUMOS, INSTRUMENTOS, ELEMENTOS Y EQUIPOS PARA LA DOTACIÓN DE LA CASA DE JUVENTUD NASQUA CON EL FIN DE GARANTIZAR ESPACIOS PARA EL DESARROLLO DE LIBRE PERSONALIDAD Y DE LOS PROCESOS JUVENILES QUE TIENEN LUGAR EN LA LOCALIDAD DE BARRIOS UNIDOS - Lote 2 – Artes Escénicas","Inversión","Un Nuevo Contrato Social y Ambiental para la Bogotá del Siglo XXI",17,{"$f":"IF(ISERROR(VLOOKUP(K230,Proposito_programa!$C$2:$E$59,2,FALSE)),\" \",VLOOKUP(K230,Proposito_programa!$C$2:$E$59,2,FALSE))","v":"Jóvenes con capacidades: Proyecto de vida para la ciudadanía, la innovación y el trabajo del siglo XXI"},{"$f":"IF(ISERROR(VLOOKUP(K230,Proposito_programa!$C$2:$E$59,3,FALSE)),\" \",VLOOKUP(K230,Proposito_programa!$C$2:$E$59,3,FALSE))","v":"Propósito 1: Hacer un nuevo contrato social para incrementar la inclusión social, productiva y política"},"133011601170000002027",8,1049626374,"DARIO ERNESTO GALINDO MENDOZA\nEstablecimiento D & G CONSULTORIA - DISEÑOS Y SUMINISTROS","Persona Natural",null,null,null,5800000,null,null,null,5800000,0,"2021-10-26","2021-11-08","2022-02-07",90,null,null,null,null,null,null,null,null,"X",null,0]
[220,2021,"FDLBU-CD-001-2238","https://community.secop.gov.co/Public/Tendering/ContractNoticePhases/View?PPI=CO1.PPI.14930270&isFromPublicArea=True&isModal=False","Compraventa de bienes muebles","Selección abreviada","Subasta inversa ","COMPRAVENTA DE MATERIALES, INSUMOS, INSTRUMENTOS, ELEMENTOS Y EQUIPOS PARA LA DOTACIÓN DE LA CASA DE JUVENTUD NASQUA CON EL FIN DE GARANTIZAR ESPACIOS PARA EL DESARROLLO DE LIBRE PERSONALIDAD Y DE LOS PROCESOS JUVENILES QUE TIENEN LUGAR EN LA LOCALIDAD DE BARRIOS UNIDOS - Lote 3 – Tecnología","Inversión","Un Nuevo Contrato Social y Ambiental para la Bogotá del Siglo XXI",17,{"$f":"IF(ISERROR(VLOOKUP(K231,Proposito_programa!$C$2:$E$59,2,FALSE)),\" \",VLOOKUP(K231,Proposito_programa!$C$2:$E$59,2,FALSE))","v":"Jóvenes con capacidades: Proyecto de vida para la ciudadanía, la innovación y el trabajo del siglo XXI"},{"$f":"IF(ISERROR(VLOOKUP(K231,Proposito_programa!$C$2:$E$59,3,FALSE)),\" \",VLOOKUP(K231,Proposito_programa!$C$2:$E$59,3,FALSE))","v":"Propósito 1: Hacer un nuevo contrato social para incrementar la inclusión social, productiva y política"},"133011601170000002027",8,23216872,"YINA PAOLA LOMBANA TOUS\nEstablecimiento YL DOTACIONES / DISTRIBUCIONES Y L","Persona Jurídica",null,null,null,119500000,null,null,null,119500000,0,"2021-10-26","2021-11-08","2022-02-07",90,1,60,null,null,null,null,null,"X",null,null,0]
[221,2021,"FDLBU-CD-001-2239","https://community.secop.gov.co/Public/Tendering/ContractNoticePhases/View?PPI=CO1.PPI.14930270&isFromPublicArea=True&isModal=False","Compraventa de bienes muebles","Selección abreviada","Subasta inversa ","COMPRAVENTA DE MATERIALES, INSUMOS, INSTRUMENTOS, ELEMENTOS Y EQUIPOS PARA LA DOTACIÓN DE LA CASA DE JUVENTUD NASQUA CON EL FIN DE GARANTIZAR ESPACIOS PARA EL DESARROLLO DE LIBRE PERSONALIDAD Y DE LOS PROCESOS JUVENILES QUE TIENEN LUGAR EN LA LOCALIDAD DE BARRIOS UNIDOS - Lote 4 – Deportivos","Inversión","Un Nuevo Contrato Social y Ambiental para la Bogotá del Siglo XXI",17,{"$f":"IF(ISERROR(VLOOKUP(K232,Proposito_programa!$C$2:$E$59,2,FALSE)),\" \",VLOOKUP(K232,Proposito_programa!$C$2:$E$59,2,FALSE))","v":"Jóvenes con capacidades: Proyecto de vida para la ciudadanía, la innovación y el trabajo del siglo XXI"},{"$f":"IF(ISERROR(VLOOKUP(K232,Proposito_programa!$C$2:$E$59,3,FALSE)),\" \",VLOOKUP(K232,Proposito_programa!$C$2:$E$59,3,FALSE))","v":"Propósito 1: Hacer un nuevo contrato social para incrementar la inclusión social, productiva y política"},"133011601170000002027",8,23216872,"YINA PAOLA LOMBANA TOUS\nEstablecimiento YL DOTACIONES / DISTRIBUCIONES Y L","Persona Jurídica",null,null,null,20900000,null,null,null,20900000,0,"2021-10-26","2021-11-08","2022-02-07",90,null,null,null,null,null,null,null,"X",null,null,0]
[222,2021,"FDLBU-CD-001-2240","https://community.secop.gov.co/Public/Tendering/ContractNoticePhases/View?PPI=CO1.PPI.14930270&isFromPublicArea=True&isModal=False","Compraventa de bienes muebles","Selección abreviada","Subasta inversa ","COMPRAVENTA DE MATERIALES, INSUMOS, INSTRUMENTOS, ELEMENTOS Y EQUIPOS PARA LA DOTACIÓN DE LA CASA DE JUVENTUD NASQUA CON EL FIN DE GARANTIZAR ESPACIOS PARA EL DESARROLLO DE LIBRE PERSONALIDAD Y DE LOS PROCESOS JUVENILES QUE TIENEN LUGAR EN LA LOCALIDAD DE BARRIOS UNIDOS - Lote 4 – Deportivos","Inversión","Un Nuevo Contrato Social y Ambiental para la Bogotá del Siglo XXI",17,{"$f":"IF(ISERROR(VLOOKUP(K233,Proposito_programa!$C$2:$E$59,2,FALSE)),\" \",VLOOKUP(K233,Proposito_programa!$C$2:$E$59,2,FALSE))","v":"Jóvenes con capacidades: Proyecto de vida para la ciudadanía, la innovación y el trabajo del siglo XXI"},{"$f":"IF(ISERROR(VLOOKUP(K233,Proposito_programa!$C$2:$E$59,3,FALSE)),\" \",VLOOKUP(K233,Proposito_programa!$C$2:$E$59,3,FALSE))","v":"Propósito 1: Hacer un nuevo contrato social para incrementar la inclusión social, productiva y política"},"133011601170000002027",8,23216872,"YINA PAOLA LOMBANA TOUS\nEstablecimiento YL DOTACIONES / DISTRIBUCIONES Y L","Persona Jurídica",null,null,null,138000000,null,null,null,138000000,0,"2021-10-26","2021-11-08","2022-02-07",90,1,60,null,null,null,null,null,"X",null,null,0]
[223,2021,"FDLBU-CD-001-2241","https://community.secop.gov.co/Public/Tendering/ContractNoticePhases/View?PPI=CO1.PPI.14930270&isFromPublicArea=True&isModal=False","Compraventa de bienes muebles","Selección abreviada","Subasta inversa ","COMPRAVENTA DE MATERIALES, INSUMOS, INSTRUMENTOS, ELEMENTOS Y EQUIPOS PARA LA DOTACIÓN DE LA CASA DE JUVENTUD NASQUA CON EL FIN DE GARANTIZAR ESPACIOS PARA EL DESARROLLO DE LIBRE PERSONALIDAD Y DE LOS PROCESOS JUVENILES QUE TIENEN LUGAR EN LA LOCALIDAD DE BARRIOS UNIDOS - Lote 6 – Mobiliario","Inversión","Un Nuevo Contrato Social y Ambiental para la Bogotá del Siglo XXI",17,{"$f":"IF(ISERROR(VLOOKUP(K234,Proposito_programa!$C$2:$E$59,2,FALSE)),\" \",VLOOKUP(K234,Proposito_programa!$C$2:$E$59,2,FALSE))","v":"Jóvenes con capacidades: Proyecto de vida para la ciudadanía, la innovación y el trabajo del siglo XXI"},{"$f":"IF(ISERROR(VLOOKUP(K234,Proposito_programa!$C$2:$E$59,3,FALSE)),\" \",VLOOKUP(K234,Proposito_programa!$C$2:$E$59,3,FALSE))","v":"Propósito 1: Hacer un nuevo contrato social para incrementar la inclusión social, productiva y política"},"133011601170000002027",8,900159399,"GRUPO COVINPRO S.A.S.","Persona Jurídica",null,null,null,14454000,null,null,null,14454000,0,"2021-10-29","2021-11-10","2022-02-09",90,1,60,null,null,null,null,null,"X",null,null,0]
[224,2021,"FDLBU-CD-001-2242","https://community.secop.gov.co/Public/Tendering/ContractNoticePhases/View?PPI=CO1.PPI.15379056&isFromPublicArea=True&isModal=False","Compraventa de bienes muebles","Contratación mínima cuantia","No aplica","LA ADQUISICIÓN DE UN (1) DESFIBRILADOR EXTERNO AUTOMÁTICO (DEA) PARA LA ALCALDÍA LOCAL DE BARRIOS UNIDOS","Inversión","Un Nuevo Contrato Social y Ambiental para la Bogotá del Siglo XXI",57,{"$f":"IF(ISERROR(VLOOKUP(K235,Proposito_programa!$C$2:$E$59,2,FALSE)),\" \",VLOOKUP(K235,Proposito_programa!$C$2:$E$59,2,FALSE))","v":"Gestión pública local"},{"$f":"IF(ISERROR(VLOOKUP(K235,Proposito_programa!$C$2:$E$59,3,FALSE)),\" \",VLOOKUP(K235,Proposito_programa!$C$2:$E$59,3,FALSE))","v":"Propósito 5: Construir Bogotá - Región con gobierno abierto, transparente y ciudadanía consciente"},"133011605570000002143",null,860526809,"LAS ELECTROMEDICINA SAS ","Persona Jurídica",null,null,null,4900000,null,null,null,4900000,0,"2021-10-20","2021-10-25","2021-11-24",30,1,30,null,null,null,null,null,null,"X",null,0]
[225,2021,"FDLBU-CD-001-2243","https://community.secop.gov.co/Public/Tendering/ContractNoticePhases/View?PPI=CO1.PPI.14968339&isFromPublicArea=True&isModal=False \n","Contratos de prestación de servicios","Selección abreviada","Selección abreviada por menor cuantía ","PRESTAR LOS SERVICIOS DE APOYO LOGÍSTICO Y SUMINISTRO DE LOS MATERIALES NECESARIOS A MONTO AGOTABLE, PARA DESARROLLAR LAS ACTIVIDADES CULTURALES, RECREATIVAS, DEPORTIVAS Y DE MERCADOS CAMPESINOS TEMPORALES DE LA LOCALIDAD DE BARRIOS UNIDOS EN EL MARCO DEL PROYECTO 2038 “ACUERDOS EN COMUNIDAD” PARA EL APROVECHAMIENTO DEL ESPACIO PÚBLICO","Inversión","Un Nuevo Contrato Social y Ambiental para la Bogotá del Siglo XXI",45,{"$f":"IF(ISERROR(VLOOKUP(K236,Proposito_programa!$C$2:$E$59,2,FALSE)),\" \",VLOOKUP(K236,Proposito_programa!$C$2:$E$59,2,FALSE))","v":"Espacio público más seguro y construido colectivamente"},{"$f":"IF(ISERROR(VLOOKUP(K236,Proposito_programa!$C$2:$E$59,3,FALSE)),\" \",VLOOKUP(K236,Proposito_programa!$C$2:$E$59,3,FALSE))","v":"Propósito 3: Inspirar confianza y legitimidad para vivir sin miedo y ser epicentro de cultura ciudadana, paz y reconciliación"},"133011603450000002038",25,900332118,"FUNDACION SOCIAL COLOMBIA ACTIVA – FUNACTIVA","Persona Jurídica",null,null,null,130707933,null,null,null,130707933,65433318,"2021-10-26","2021-10-28","2022-02-27",120,null,null,null,null,null,null,null,null,"X",null,0.50060709016031946]
[226,2021,"FDLBU-CD-001-2244","https://community.secop.gov.co/Public/Tendering/ContractNoticePhases/View?PPI=CO1.PPI.15614781&isFromPublicArea=True&isModal=False","Contratos de prestación de servicios profesionales y de apoyo a la gestión","Contratación directa","Prestación de servicios profesionales y de apoyo a la gestión, o para la ejecución de trabajos artísticos que sólo puedan encomendarse a determinadas personas naturales;","PRESTAR SERVICIOS DE APOYO A LA GESTIÓN DEL DESARROLLO EN LABORES DE PLANEACIÓN EN LAS ACTIVIDADES RELATIVAS A LOS PROYECTOS AMBIENTALES DE LA VIGENCIA 2021 DE LA LÍNEA DE INVERSIONES AMBIENTALES SOSTENIBLES","Inversión","Un Nuevo Contrato Social y Ambiental para la Bogotá del Siglo XXI",38,{"$f":"IF(ISERROR(VLOOKUP(K237,Proposito_programa!$C$2:$E$59,2,FALSE)),\" \",VLOOKUP(K237,Proposito_programa!$C$2:$E$59,2,FALSE))","v":"Ecoeficiencia, reciclaje, manejo de residuos e inclusión de la población recicladora"},{"$f":"IF(ISERROR(VLOOKUP(K237,Proposito_programa!$C$2:$E$59,3,FALSE)),\" \",VLOOKUP(K237,Proposito_programa!$C$2:$E$59,3,FALSE))","v":"Propósito 2 : Cambiar Nuestros Hábitos de Vida para Reverdecer a Bogotá y Adaptarnos y Mitigar la Crisis Climática"},"133011602380000002082",null,1001204948,"KAREN VALENTINA CASTRO ROSARIO","Persona Natural",null,null,null,5451000,null,null,null,5451000,1998700,"2021-10-22","2021-10-28","2021-12-31",90,1,15,null,null,null,null,null,null,"X",null,0.36666666666666664]
[227,2021,"FDLBU-CD-001-2245","https://community.secop.gov.co/Public/Tendering/ContractNoticePhases/View?PPI=CO1.PPI.15615014&isFromPublicArea=True&isModal=False","Contratos de prestación de servicios profesionales y de apoyo a la gestión","Contratación directa","Prestación de servicios profesionales y de apoyo a la gestión, o para la ejecución de trabajos artísticos que sólo puedan encomendarse a determinadas personas naturales;","PRESTAR SERVICIOS DE APOYO A LA GESTIÓN DEL DESARROLLO EN LABORES DE PLANEACIÓN EN LAS ACTIVIDADES RELATIVAS A LOS PROYECTOS AMBIENTALES DE LA VIGENCIA 2021 DE LA LÍNEA DE INVERSIONES AMBIENTALES SOSTENIBLES","Inversión","Un Nuevo Contrato Social y Ambiental para la Bogotá del Siglo XXI",38,{"$f":"IF(ISERROR(VLOOKUP(K238,Proposito_programa!$C$2:$E$59,2,FALSE)),\" \",VLOOKUP(K238,Proposito_programa!$C$2:$E$59,2,FALSE))","v":"Ecoeficiencia, reciclaje, manejo de residuos e inclusión de la población recicladora"},{"$f":"IF(ISERROR(VLOOKUP(K238,Proposito_programa!$C$2:$E$59,3,FALSE)),\" \",VLOOKUP(K238,Proposito_programa!$C$2:$E$59,3,FALSE))","v":"Propósito 2 : Cambiar Nuestros Hábitos de Vida para Reverdecer a Bogotá y Adaptarnos y Mitigar la Crisis Climática"},"133011602380000002082",null,52536170,"YINED EMILIA MUÑOZ ROJAS","Persona Natural",null,null,null,5451000,null,null,null,5451000,1998700,"2021-10-22","2021-10-28","2021-12-31",90,1,15,null,null,null,null,null,null,"X",null,0.36666666666666664]
[228,2021,"FDLBU-CD-001-2246","https://community.secop.gov.co/Public/Tendering/ContractNoticePhases/View?PPI=CO1.PPI.15778602&isFromPublicArea=True&isModal=False","Contratos de prestación de servicios profesionales y de apoyo a la gestión","Contratación directa","Prestación de servicios profesionales y de apoyo a la gestión, o para la ejecución de trabajos artísticos que sólo puedan encomendarse a determinadas personas naturales;","PRESTAR SERVICIOS DE APOYO A LA GESTIÓN DEL DESARROLLO EN LABORES DE PLANEACIÓN EN LAS ACTIVIDADES RELATIVAS A LOS PROYECTOS AMBIENTALES DE LA VIGENCIA 2021 DE LA LÍNEA DE INVERSIONES AMBIENTALES SOSTENIBLES","Inversión","Un Nuevo Contrato Social y Ambiental para la Bogotá del Siglo XXI",38,{"$f":"IF(ISERROR(VLOOKUP(K239,Proposito_programa!$C$2:$E$59,2,FALSE)),\" \",VLOOKUP(K239,Proposito_programa!$C$2:$E$59,2,FALSE))","v":"Ecoeficiencia, reciclaje, manejo de residuos e inclusión de la población recicladora"},{"$f":"IF(ISERROR(VLOOKUP(K239,Proposito_programa!$C$2:$E$59,3,FALSE)),\" \",VLOOKUP(K239,Proposito_programa!$C$2:$E$59,3,FALSE))","v":"Propósito 2 : Cambiar Nuestros Hábitos de Vida para Reverdecer a Bogotá y Adaptarnos y Mitigar la Crisis Climática"},"133011602380000002082",null,39618869,"LUZ MYRIAM CRISTANCHO MORA","Persona Natural",null,null,null,5451000,null,null,null,5451000,1574733,"2021-11-03","2021-11-05","2021-12-31",90,1,15,null,null,null,null,null,null,"X",null,0.28888882773802971]
[229,2021,"FDLBU-CD-001-2247","https://community.secop.gov.co/Public/Tendering/ContractNoticePhases/View?PPI=CO1.PPI.15664215&isFromPublicArea=True&isModal=False","Contratos de prestación de servicios","Contratación mínima cuantia","No aplica","REALIZAR LA MEDICIÓN POSTERIOR A TODOS LOS BIENES MUEBLES E INMUEBLES PROPIEDAD DEL FONDO DE DESARROLLO LOCAL DE BARRIOS UNIDOS REGISTRADOS EN LA CUENTA CONTABLE 16 PROPIEDAD PLANTA Y EQUIPO Y BIENES EN COMODATO, ASI COMO EL CÁLCULO DE DETERIORO A LOS BIENES MUEBLES E INMUEBLES REGISTRADOS EN LA MISMA CUENTA CUYO VALOR SEA IGUAL O SUPERIOR A TREINTA Y CINCO (35) SMMLV, TAL COMO LO EXPRESAN LAS NORMAS INTERNACIONALES, CONTABLES, SECTOR PUBLICO -NICSP Y EL MANUAL DE POLÍTICAS DE OPERACIÓN CONTABLE DE LA SECRETARIA DISTRITAL DE GOBIERNO Y FONDOS DE DESARROLLO LOCAL, DE ACUERDO CON LOS ESTUDIOS PREVIOS Y LA PROPUESTA PRESENTADA","Inversión","Un Nuevo Contrato Social y Ambiental para la Bogotá del Siglo XXI",57,{"$f":"IF(ISERROR(VLOOKUP(K240,Proposito_programa!$C$2:$E$59,2,FALSE)),\" \",VLOOKUP(K240,Proposito_programa!$C$2:$E$59,2,FALSE))","v":"Gestión pública local"},{"$f":"IF(ISERROR(VLOOKUP(K240,Proposito_programa!$C$2:$E$59,3,FALSE)),\" \",VLOOKUP(K240,Proposito_programa!$C$2:$E$59,3,FALSE))","v":"Propósito 5: Construir Bogotá - Región con gobierno abierto, transparente y ciudadanía consciente"},"133011605570000002143",null,19214464,"LUIS EDUARDO CARVAJALINO SANCHEZ","Persona Natural",null,null,null,7245000,null,null,null,7245000,0,"2021-11-08","2021-11-11","2022-01-10",60,null,null,null,null,null,null,null,null,"X",null,0]
["OC 78880",2021,"FDLBU-CD-001-2248","https://colombiacompra.gov.co/tienda-virtual-del-estado-colombiano/ordenes-compra/76880","Otros","Selección abreviada","Acuerdo marco de precios ","CONTRATAR EL ARRENDAMIENTO DE ESCANER CON DESTINO A LAS DIFERENTES DEPENDENCIAS DEL FONDO DE DESARROLLO DEBARRIOS UNIDOS","Funcionamiento","Un Nuevo Contrato Social y Ambiental para la Bogotá del Siglo XXI",null,{"$f":"IF(ISERROR(VLOOKUP(K241,Proposito_programa!$C$2:$E$59,2,FALSE)),\" \",VLOOKUP(K241,Proposito_programa!$C$2:$E$59,2,FALSE))","v":" "},{"$f":"IF(ISERROR(VLOOKUP(K241,Proposito_programa!$C$2:$E$59,3,FALSE)),\" \",VLOOKUP(K241,Proposito_programa!$C$2:$E$59,3,FALSE))","v":" "},0,2,830053669,"SOLUTION COPY LTDA","Persona Jurídica",null,null,null,14924956,null,null,null,14924956,0,"2021-11-03","2021-12-01","2022-11-30",360,null,null,null,null,null,null,null,"X",null,null,0]
[230,2021,"FDLBU-CD-001-2249","https://community.secop.gov.co/Public/Tendering/ContractNoticePhases/View?PPI=CO1.PPI.15333002&isFromPublicArea=True&isModal=False","Compraventa de bienes muebles","Selección abreviada","Subasta inversa ","ADQUISICIÓN DE INSUMOS TECNOLÓGICOS PARA LA DOTACIÓN DE AULAS DE\nEDUCACIÓN INICIAL EN INSTITUCIONES EDUCATIVAS DISTRITALES DE BARRIOS UNIDOS","Inversión","Un Nuevo Contrato Social y Ambiental para la Bogotá del Siglo XXI",12,{"$f":"IF(ISERROR(VLOOKUP(K242,Proposito_programa!$C$2:$E$59,2,FALSE)),\" \",VLOOKUP(K242,Proposito_programa!$C$2:$E$59,2,FALSE))","v":"Educación inicial: Bases sólidas para la vida."},{"$f":"IF(ISERROR(VLOOKUP(K242,Proposito_programa!$C$2:$E$59,3,FALSE)),\" \",VLOOKUP(K242,Proposito_programa!$C$2:$E$59,3,FALSE))","v":"Propósito 1: Hacer un nuevo contrato social para incrementar la inclusión social, productiva y política"},"133011601120000002026",8,900442893,"CLARYICON S.A.S.","Persona Jurídica",null,null,null,240000000,null,null,null,240000000,0,"2021-11-09","2021-11-19","2022-02-18",90,null,null,null,null,null,null,null,"X",null,null,0]
[231,2021,"FDLBU-CD-001-2250","https://community.secop.gov.co/Public/Tendering/ContractNoticePhases/View?PPI=CO1.PPI.15837362&isFromPublicArea=True&isModal=False","Contratos de prestación de servicios profesionales y de apoyo a la gestión","Contratación directa","Prestación de servicios profesionales y de apoyo a la gestión, o para la ejecución de trabajos artísticos que sólo puedan encomendarse a determinadas personas naturales;","PRESTAR SERVICIOS ASISTENCIALES AL ÁREA GESTIÓN DEL DESARROLLO EN LOS ASUNTOS RELATIVOS A LA PLANEACIÓN LOCAL: APOYAR LA CONSECIÓN DE LA META DEL PROYECTO 2008 EN LOS COMPONENTES DE ADOPCIÓN Y EDUCACION.","Inversión","Un Nuevo Contrato Social y Ambiental para la Bogotá del Siglo XXI",34,{"$f":"IF(ISERROR(VLOOKUP(K243,Proposito_programa!$C$2:$E$59,2,FALSE)),\" \",VLOOKUP(K243,Proposito_programa!$C$2:$E$59,2,FALSE))","v":"Bogotá protectora de los animales"},{"$f":"IF(ISERROR(VLOOKUP(K243,Proposito_programa!$C$2:$E$59,3,FALSE)),\" \",VLOOKUP(K243,Proposito_programa!$C$2:$E$59,3,FALSE))","v":"Propósito 2 : Cambiar Nuestros Hábitos de Vida para Reverdecer a Bogotá y Adaptarnos y Mitigar la Crisis Climática"},"133011602340000002008",null,53074962,"DEISY CORDOBA BOHORQUEZ","Persona Natural",null,null,null,5430000,null,null,null,5430000,0,"2021-11-08","2021-11-25","2021-12-31",90,null,null,null,null,null,null,null,null,"X",null,0]
[232,2021,"FDLBU-CD-001-2251","https://community.secop.gov.co/Public/Tendering/ContractNoticePhases/View?PPI=CO1.PPI.15891812&isFromPublicArea=True&isModal=False","Contratos interadministrativos","Contratación directa","Contratos interadministrativos","AUNAR ESFUERZOS TÉCNICOS, ADMINISTRATIVOS Y FINANCIEROS PARA REALIZAR ACTIVIDADES DE RESTAURACIÓN ECOLÓGICA, CONCERNIENTES EN LA INTERVENCIÓN DE 7.500 METROS CUADRADOS, COMO TAMBIÉN LA CONSTRUCCIÓN DE 750 METROS CUADRADOS DE JARDINES POLINIZADORES EN LA LOCALIDAD DE BARRIOS UNIDOS, CON LA PARTICIPACIÓN DE LA POBLACIÓN BENEFICIADA Y VINCULADA EN LAS DIFERENTES ESTRATEGIAS PEDAGÓGICAS DEL INSTITUTO DISTRITAL PARA LA PROTECCIÓN DE LA NIÑEZ Y LA JUVENTUD- IDIPRON","Inversión","Un Nuevo Contrato Social y Ambiental para la Bogotá del Siglo XXI",28,{"$f":"IF(ISERROR(VLOOKUP(K244,Proposito_programa!$C$2:$E$59,2,FALSE)),\" \",VLOOKUP(K244,Proposito_programa!$C$2:$E$59,2,FALSE))","v":"Bogotá protectora de sus recursos naturales"},{"$f":"IF(ISERROR(VLOOKUP(K244,Proposito_programa!$C$2:$E$59,3,FALSE)),\" \",VLOOKUP(K244,Proposito_programa!$C$2:$E$59,3,FALSE))","v":"Propósito 2 : Cambiar Nuestros Hábitos de Vida para Reverdecer a Bogotá y Adaptarnos y Mitigar la Crisis Climática"},"133011602280000002009",null,899999333,"IDIPRON","Persona Jurídica",null,null,null,229491000,null,null,null,229491000,0,"2021-11-11","2021-11-10","2022-06-09",210,null,null,null,null,null,null,null,"X",null,null,0]
[232,2021,"FDLBU-CD-001-2252","https://community.secop.gov.co/Public/Tendering/ContractNoticePhases/View?PPI=CO1.PPI.15891812&isFromPublicArea=True&isModal=False","Contratos interadministrativos","Contratación directa","Contratos interadministrativos","AUNAR ESFUERZOS TÉCNICOS, ADMINISTRATIVOS Y FINANCIEROS PARA REALIZAR ACTIVIDADES DE RESTAURACIÓN ECOLÓGICA, CONCERNIENTES EN LA INTERVENCIÓN DE 7.500 METROS CUADRADOS, COMO TAMBIÉN LA CONSTRUCCIÓN DE 750 METROS CUADRADOS DE JARDINES POLINIZADORES EN LA LOCALIDAD DE BARRIOS UNIDOS, CON LA PARTICIPACIÓN DE LA POBLACIÓN BENEFICIADA Y VINCULADA EN LAS DIFERENTES ESTRATEGIAS PEDAGÓGICAS DEL INSTITUTO DISTRITAL PARA LA PROTECCIÓN DE LA NIÑEZ Y LA JUVENTUD- IDIPRON","Inversión","Un Nuevo Contrato Social y Ambiental para la Bogotá del Siglo XXI",27,"Cambio cultural para la gestión de la crisis climática","Propósito 2 : Cambiar Nuestros Hábitos de Vida para Reverdecer a Bogotá y Adaptarnos y Mitigar la Crisis Climática","133011602270000002011",null,899999333,"IDIPRON","Persona Jurídica",null,null,null,115976000,null,null,null,115976000,0,"2021-11-11","2021-11-10","2022-06-09",210,null,null,null,null,null,null,null,"X",null,null,0]
[233,2021,"FDLBU-CD-001-2253","https://community.secop.gov.co/Public/Tendering/ContractNoticePhases/View?PPI=CO1.PPI.15889307&isFromPublicArea=True&isModal=False","Contratos interadministrativos","Contratación directa","Contratos interadministrativos","DESARROLLAR ASPECTOS TÉCNICOS, FINANCIEROS Y ADMINISTRATIVOS PARA REALIZAR LA IMPLEMENTACIÓN DE PROCESOS COMUNITARIOS DE EDUCACIÓN AMBIENTAL PROCEDA EN EL MARCO DEL PROYECTO DE INVERSIÓN 2011","Inversión","Un Nuevo Contrato Social y Ambiental para la Bogotá del Siglo XXI",27,{"$f":"IF(ISERROR(VLOOKUP(K246,Proposito_programa!$C$2:$E$59,2,FALSE)),\" \",VLOOKUP(K246,Proposito_programa!$C$2:$E$59,2,FALSE))","v":"Cambio cultural para la gestión de la crisis climática"},{"$f":"IF(ISERROR(VLOOKUP(K246,Proposito_programa!$C$2:$E$59,3,FALSE)),\" \",VLOOKUP(K246,Proposito_programa!$C$2:$E$59,3,FALSE))","v":"Propósito 2 : Cambiar Nuestros Hábitos de Vida para Reverdecer a Bogotá y Adaptarnos y Mitigar la Crisis Climática"},"133011602270000002011",null,899999063,"UNIVERSIDAD NACIONAL DE COLOMBIA","Persona Jurídica",null,null,null,251741072,null,null,null,251741072,0,"2021-11-10","2021-11-12","2022-03-11",120,null,null,null,null,null,null,null,"X",null,null,0]
[234,2021,"FDLBU-CD-001-2254","https://community.secop.gov.co/Public/Tendering/OpportunityDetail/Index?noticeUID=CO1.NTC.2381480&isFromPublicArea=True&isModal=False","Contratos interadministrativos","Contratación directa","Contratos interadministrativos","AUNAR ESFUERZOS ENTRE LA SUBRED INTEGRADA DE SERVICIOS DE SALUD NORTE Y EL FONDO DE DESARROLLO LOCAL DE BARRIOS UNIDOS PARA EL OTORGAMIENTO DE DISPOSITIVOS DE ASISTENCIA PERSONAL - AYUDAS TÉCNICAS, NO INCLUIDAS O NO CUBIERTAS EN EL PLAN DE BENEFICIOS DE SALUD -PBS-, COMO ACCIÓN QUE FACILITA EL MEJORAMIENTO DE LA CALIDAD DE VIDA Y LA PROMOCIÓN DEL BIENESTAR PARA LAS PERSONAS CON DISCAPACIDAD, RESIDENTES EN LA LOCALIDAD DE BARRIOS UNIDOS, EN EL DESARROLLO DE LA POLÍTICA\nPÚBLICA DISTRITAL","Inversión","Un Nuevo Contrato Social y Ambiental para la Bogotá del Siglo XXI",6,{"$f":"IF(ISERROR(VLOOKUP(K247,Proposito_programa!$C$2:$E$59,2,FALSE)),\" \",VLOOKUP(K247,Proposito_programa!$C$2:$E$59,2,FALSE))","v":"Sistema Distrital de Cuidado"},{"$f":"IF(ISERROR(VLOOKUP(K247,Proposito_programa!$C$2:$E$59,3,FALSE)),\" \",VLOOKUP(K247,Proposito_programa!$C$2:$E$59,3,FALSE))","v":"Propósito 1: Hacer un nuevo contrato social para incrementar la inclusión social, productiva y política"},"133011601060000002062",null,900971006,"SUBRED INTEGRADA DE SERVICIOS DE SALUD NORTE ESE - SRN","Persona Jurídica",null,null,null,299593140,null,null,null,299593140,0,"2021-11-12","2021-12-02","2022-09-01",270,null,null,null,null,null,null,null,"X",null,null,0]
[235,2021,"FDLBU-CD-001-2255","https://community.secop.gov.co/Public/Tendering/ContractNoticePhases/View?PPI=CO1.PPI.15905533&isFromPublicArea=True&isModal=False","Contratos de prestación de servicios profesionales y de apoyo a la gestión","Contratación directa","Prestación de servicios profesionales y de apoyo a la gestión, o para la ejecución de trabajos artísticos que sólo puedan encomendarse a determinadas personas naturales;","PRESTAR SERVICIOS DE APOYO A LA GESTIÓN DEL DESARROLLO EN LABORES DE PLANEACIÓN EN LAS ACTIVIDADES RELATIVAS A LOS PROYECTOS AMBIENTALES DE LA VIGENCIA 2021 DE LA LÍNEA DE INVERSIONES AMBIENTALES SOSTENIBLES","Inversión","Un Nuevo Contrato Social y Ambiental para la Bogotá del Siglo XXI",38,{"$f":"IF(ISERROR(VLOOKUP(K248,Proposito_programa!$C$2:$E$59,2,FALSE)),\" \",VLOOKUP(K248,Proposito_programa!$C$2:$E$59,2,FALSE))","v":"Ecoeficiencia, reciclaje, manejo de residuos e inclusión de la población recicladora"},{"$f":"IF(ISERROR(VLOOKUP(K248,Proposito_programa!$C$2:$E$59,3,FALSE)),\" \",VLOOKUP(K248,Proposito_programa!$C$2:$E$59,3,FALSE))","v":"Propósito 2 : Cambiar Nuestros Hábitos de Vida para Reverdecer a Bogotá y Adaptarnos y Mitigar la Crisis Climática"},"133011602380000002082",null,1010141188,"JOZNAYTH BAZLUT LOPEZ BOHORQUEZ","Persona Natural",null,null,null,5451000,null,null,null,5451000,787367,"2021-11-10","2021-11-18","2021-12-31",90,1,15,null,null,null,null,null,null,"X",null,0.14444450559530361]
[236,2021,"FDLBU-CD-001-2256","https://community.secop.gov.co/Public/Tendering/ContractNoticePhases/View?PPI=CO1.PPI.15905490&isFromPublicArea=True&isModal=False","Contratos de prestación de servicios profesionales y de apoyo a la gestión","Contratación directa","Prestación de servicios profesionales y de apoyo a la gestión, o para la ejecución de trabajos artísticos que sólo puedan encomendarse a determinadas personas naturales;","PRESTAR SERVICIOS DE APOYO A LA GESTIÓN DEL DESARROLLO EN LABORES DE PLANEACIÓN EN LAS ACTIVIDADES RELATIVAS A LOS PROYECTOS AMBIENTALES DE LA VIGENCIA 2021 DE LA LÍNEA DE INVERSIONES AMBIENTALES SOSTENIBLES","Inversión","Un Nuevo Contrato Social y Ambiental para la Bogotá del Siglo XXI",38,{"$f":"IF(ISERROR(VLOOKUP(K249,Proposito_programa!$C$2:$E$59,2,FALSE)),\" \",VLOOKUP(K249,Proposito_programa!$C$2:$E$59,2,FALSE))","v":"Ecoeficiencia, reciclaje, manejo de residuos e inclusión de la población recicladora"},{"$f":"IF(ISERROR(VLOOKUP(K249,Proposito_programa!$C$2:$E$59,3,FALSE)),\" \",VLOOKUP(K249,Proposito_programa!$C$2:$E$59,3,FALSE))","v":"Propósito 2 : Cambiar Nuestros Hábitos de Vida para Reverdecer a Bogotá y Adaptarnos y Mitigar la Crisis Climática"},"133011602380000002082",null,1001279490,"SARA ANGELY JIMENEZ ORDOÑEZ","Persona Natural",null,null,null,5451000,null,null,null,5451000,787367,"2021-11-11","2021-11-18","2021-12-31",90,1,15,null,null,null,null,null,null,"X",null,0.14444450559530361]
[237,2021,"FDLBU-CD-001-2257","https://community.secop.gov.co/Public/Tendering/ContractNoticePhases/View?PPI=CO1.PPI.15947309&isFromPublicArea=True&isModal=False","Contratos de prestación de servicios profesionales y de apoyo a la gestión","Contratación directa","Prestación de servicios profesionales y de apoyo a la gestión, o para la ejecución de trabajos artísticos que sólo puedan encomendarse a determinadas personas naturales;","PRESTAR SERVICIOS PROFESIONALES AL AREA DE GESTIÓN DEL DESARROLLO LOCAL EN ACTIVIDADES PROPIAS DE PLANEACIÓN, CON EL FIN DE LOGRAR EL CUMPLIMIENTO DE LAS METAS DEL PLAN DE DESARROLLO LOCAL DE LA VIGENCIA RELATIVAS A DEPORTE, RECREACIÓN Y CULTURA PARA EL DESARROLLO SOCIAL.","Inversión","Un Nuevo Contrato Social y Ambiental para la Bogotá del Siglo XXI",20,{"$f":"IF(ISERROR(VLOOKUP(K250,Proposito_programa!$C$2:$E$59,2,FALSE)),\" \",VLOOKUP(K250,Proposito_programa!$C$2:$E$59,2,FALSE))","v":"Bogotá, referente en cultura, deporte, recreación y actividad física, con parques para el desarrollo y la salud"},{"$f":"IF(ISERROR(VLOOKUP(K250,Proposito_programa!$C$2:$E$59,3,FALSE)),\" \",VLOOKUP(K250,Proposito_programa!$C$2:$E$59,3,FALSE))","v":"Propósito 1: Hacer un nuevo contrato social para incrementar la inclusión social, productiva y política"},"133011601200000002044",null,20775082,"ISBELIA MARITZA MONTAÑO PEÑA","Persona Natural",null,null,null,8740000,null,null,null,8740000,2039333,"2021-11-12","2021-11-17","2021-12-31",60,null,null,null,null,null,null,null,null,"X",null,0.23333329519450802]
[238,2021,"FDLBU-CD-001-2258","https://community.secop.gov.co/Public/Tendering/ContractNoticePhases/View?PPI=CO1.PPI.16007985&isFromPublicArea=True&isModal=False","Contratos de prestación de servicios profesionales y de apoyo a la gestión","Contratación directa","Prestación de servicios profesionales y de apoyo a la gestión, o para la ejecución de trabajos artísticos que sólo puedan encomendarse a determinadas personas naturales;","PRESTAR SERVICIOS DE APOYO A LA GESTIÓN DEL DESARROLLO EN LABORES DE PLANEACIÓN EN LAS ACTIVIDADES RELATIVAS A LOS PROYECTOS AMBIENTALES DE LA VIGENCIA 2021 DE LA LÍNEA DE INVERSIONES AMBIENTALES SOSTENIBLES","Inversión","Un Nuevo Contrato Social y Ambiental para la Bogotá del Siglo XXI",38,{"$f":"IF(ISERROR(VLOOKUP(K251,Proposito_programa!$C$2:$E$59,2,FALSE)),\" \",VLOOKUP(K251,Proposito_programa!$C$2:$E$59,2,FALSE))","v":"Ecoeficiencia, reciclaje, manejo de residuos e inclusión de la población recicladora"},{"$f":"IF(ISERROR(VLOOKUP(K251,Proposito_programa!$C$2:$E$59,3,FALSE)),\" \",VLOOKUP(K251,Proposito_programa!$C$2:$E$59,3,FALSE))","v":"Propósito 2 : Cambiar Nuestros Hábitos de Vida para Reverdecer a Bogotá y Adaptarnos y Mitigar la Crisis Climática"},"133011602380000002082",null,1000503616,"LUCAS MATEUS JIMENEZ ORDOÑEZ","Persona Natural",null,null,null,5451000,null,null,null,5451000,484533,"2021-11-18","2021-11-23","2021-12-31",90,1,15,null,null,null,null,null,null,"X",null,8.8888827738029724E-2]
[239,2021,"FDLBU-CD-001-2259","https://community.secop.gov.co/Public/Tendering/ContractNoticePhases/View?PPI=CO1.PPI.16008277&isFromPublicArea=True&isModal=False","Contratos de prestación de servicios profesionales y de apoyo a la gestión","Contratación directa","Prestación de servicios profesionales y de apoyo a la gestión, o para la ejecución de trabajos artísticos que sólo puedan encomendarse a determinadas personas naturales;","PRESTAR SERVICIOS DE APOYO A LA GESTIÓN DEL DESARROLLO EN LABORES DE PLANEACIÓN EN LAS ACTIVIDADES RELATIVAS A LOS PROYECTOS AMBIENTALES DE LA VIGENCIA 2021 DE LA LÍNEA DE INVERSIONES AMBIENTALES SOSTENIBLES","Inversión","Un Nuevo Contrato Social y Ambiental para la Bogotá del Siglo XXI",38,{"$f":"IF(ISERROR(VLOOKUP(K252,Proposito_programa!$C$2:$E$59,2,FALSE)),\" \",VLOOKUP(K252,Proposito_programa!$C$2:$E$59,2,FALSE))","v":"Ecoeficiencia, reciclaje, manejo de residuos e inclusión de la población recicladora"},{"$f":"IF(ISERROR(VLOOKUP(K252,Proposito_programa!$C$2:$E$59,3,FALSE)),\" \",VLOOKUP(K252,Proposito_programa!$C$2:$E$59,3,FALSE))","v":"Propósito 2 : Cambiar Nuestros Hábitos de Vida para Reverdecer a Bogotá y Adaptarnos y Mitigar la Crisis Climática"},"133011602380000002082",null,79922928,"YESID FABIAN CUBIDES FRANCO","Persona Natural",null,null,null,5451000,null,null,null,5451000,0,"2021-11-18","2021-11-25","2021-12-31",90,1,15,null,null,null,null,null,null,"X",null,0]
[240,2021,"FDLBU-CD-001-2260","https://community.secop.gov.co/Public/Tendering/ContractNoticePhases/View?PPI=CO1.PPI.16009755&isFromPublicArea=True&isModal=False","Contratos de prestación de servicios profesionales y de apoyo a la gestión","Contratación directa","Prestación de servicios profesionales y de apoyo a la gestión, o para la ejecución de trabajos artísticos que sólo puedan encomendarse a determinadas personas naturales;","PRESTAR SERVICIOS PROFESIONALES AL AREA DE GESTIÓN DEL DESARROLLO LOCAL EN ACTIVIDADES PROPIAS DE PLANEACIÓN, CON EL FIN DE LOGRAR EL CUMPLIMIENTO DE LAS METAS DEL PLAN DE DESARROLLO LOCAL DE LA VIGENCIA RELATIVAS A DEPORTE, RECREACIÓN Y CULTURA PARA EL DESARROLLO SOCIAL.","Inversión","Un Nuevo Contrato Social y Ambiental para la Bogotá del Siglo XXI",20,{"$f":"IF(ISERROR(VLOOKUP(K253,Proposito_programa!$C$2:$E$59,2,FALSE)),\" \",VLOOKUP(K253,Proposito_programa!$C$2:$E$59,2,FALSE))","v":"Bogotá, referente en cultura, deporte, recreación y actividad física, con parques para el desarrollo y la salud"},{"$f":"IF(ISERROR(VLOOKUP(K253,Proposito_programa!$C$2:$E$59,3,FALSE)),\" \",VLOOKUP(K253,Proposito_programa!$C$2:$E$59,3,FALSE))","v":"Propósito 1: Hacer un nuevo contrato social para incrementar la inclusión social, productiva y política"},"133011601200000002044",null,1014220585,"JAIRO ACOSTA RODRIGUEZ","Persona Natural",null,null,null,8740000,null,null,null,8740000,1748000,"2021-11-18","2021-11-19","2021-12-31",60,1,18,null,null,null,null,null,null,"X",null,0.2]
[241,2021,"FDLBU-CD-001-2261","https://community.secop.gov.co/Public/Tendering/ContractNoticePhases/View?PPI=CO1.PPI.15809308&isFromPublicArea=True&isModal=False ","Contratos de prestación de servicios","Contratación mínima cuantia","No aplica","PRESTAR EL SERVICIO DE MANTENIMIENTO PREVENTIVO Y CORRECTIVO INCLUIDA MANO DE OBRA, SUMINISTRO DE REPUESTOS Y ACCESORIOS A MONTO AGOTABLE, PARA LOS VEHICULOS DEL FONDO DE DESARROLLO LOCAL DE BARRIOS UNIDOS O LOS QUE LLEGARE A SER RESPONSABLE DURANTE LA VIGENCIA DEL CONTRATO","Funcionamiento","Un Nuevo Contrato Social y Ambiental para la Bogotá del Siglo XXI",null,{"$f":"IF(ISERROR(VLOOKUP(K254,Proposito_programa!$C$2:$E$59,2,FALSE)),\" \",VLOOKUP(K254,Proposito_programa!$C$2:$E$59,2,FALSE))","v":" "},{"$f":"IF(ISERROR(VLOOKUP(K254,Proposito_programa!$C$2:$E$59,3,FALSE)),\" \",VLOOKUP(K254,Proposito_programa!$C$2:$E$59,3,FALSE))","v":" "},0,null,830134871,"TECNICENTRO AUTOMOTRIZ JJ LTDA","Persona Jurídica",null,null,null,20746736,null,null,null,20746736,0,"2021-11-24","2021-11-26","2022-09-25",300,null,null,null,null,null,null,null,"X",null,null,0]
[242,2021,"FDLBU-CD-001-2262","https://community.secop.gov.co/Public/Tendering/ContractNoticePhases/View?PPI=CO1.PPI.16098782&isFromPublicArea=True&isModal=False","Contratos de prestación de servicios profesionales y de apoyo a la gestión","Contratación directa","Prestación de servicios profesionales y de apoyo a la gestión, o para la ejecución de trabajos artísticos que sólo puedan encomendarse a determinadas personas naturales;","PRESTAR SERVICIOS DE APOYO A LA GESTIÓN DEL DESARROLLO EN LABORES DE PLANEACIÓN EN LAS ACTIVIDADES RELATIVAS A LOS PROYECTOS AMBIENTALES DE LA VIGENCIA 2021 DE LA LÍNEA DE INVERSIONES AMBIENTALES SOSTENIBLES","Inversión","Un Nuevo Contrato Social y Ambiental para la Bogotá del Siglo XXI",38,{"$f":"IF(ISERROR(VLOOKUP(K255,Proposito_programa!$C$2:$E$59,2,FALSE)),\" \",VLOOKUP(K255,Proposito_programa!$C$2:$E$59,2,FALSE))","v":"Ecoeficiencia, reciclaje, manejo de residuos e inclusión de la población recicladora"},{"$f":"IF(ISERROR(VLOOKUP(K255,Proposito_programa!$C$2:$E$59,3,FALSE)),\" \",VLOOKUP(K255,Proposito_programa!$C$2:$E$59,3,FALSE))","v":"Propósito 2 : Cambiar Nuestros Hábitos de Vida para Reverdecer a Bogotá y Adaptarnos y Mitigar la Crisis Climática"},"133011602380000002082",null,1147688049,"BRAYAN CAMILO PIÑA ROBLEDO","Persona Natural",null,null,null,5451000,null,null,null,5451000,0,"2021-11-25","2021-11-29","2021-12-31",90,1,15,null,null,null,null,null,null,"X",null,0]
[243,2021,"FDLBU-CD-001-2263","https://community.secop.gov.co/Public/Tendering/ContractNoticePhases/View?PPI=CO1.PPI.16097982&isFromPublicArea=True&isModal=False","Contratos de prestación de servicios profesionales y de apoyo a la gestión","Contratación directa","Prestación de servicios profesionales y de apoyo a la gestión, o para la ejecución de trabajos artísticos que sólo puedan encomendarse a determinadas personas naturales;","PRESTAR SERVICIOS DE APOYO A LA GESTIÓN DEL DESARROLLO EN LABORES DE PLANEACIÓN EN LAS ACTIVIDADES RELATIVAS A LOS PROYECTOS AMBIENTALES DE LA VIGENCIA 2021 DE LA LÍNEA DE INVERSIONES AMBIENTALES SOSTENIBLES","Inversión","Un Nuevo Contrato Social y Ambiental para la Bogotá del Siglo XXI",38,{"$f":"IF(ISERROR(VLOOKUP(K256,Proposito_programa!$C$2:$E$59,2,FALSE)),\" \",VLOOKUP(K256,Proposito_programa!$C$2:$E$59,2,FALSE))","v":"Ecoeficiencia, reciclaje, manejo de residuos e inclusión de la población recicladora"},{"$f":"IF(ISERROR(VLOOKUP(K256,Proposito_programa!$C$2:$E$59,3,FALSE)),\" \",VLOOKUP(K256,Proposito_programa!$C$2:$E$59,3,FALSE))","v":"Propósito 2 : Cambiar Nuestros Hábitos de Vida para Reverdecer a Bogotá y Adaptarnos y Mitigar la Crisis Climática"},"133011602380000002082",null,1007296447,"LEIDI DANIELA MUÑOZ ROJAS","Persona Natural",null,null,null,5451000,null,null,null,5451000,0,"2021-11-25","2021-11-26","2021-12-31",90,1,15,null,null,null,null,null,null,"X",null,0]
[244,2021,"FDLBU-CD-001-2264","https://community.secop.gov.co/Public/Tendering/ContractNoticePhases/View?PPI=CO1.PPI.16098800&isFromPublicArea=True&isModal=False","Contratos de prestación de servicios profesionales y de apoyo a la gestión","Contratación directa","Prestación de servicios profesionales y de apoyo a la gestión, o para la ejecución de trabajos artísticos que sólo puedan encomendarse a determinadas personas naturales;","PRESTAR SERVICIOS DE APOYO EN EL ÁREA DE GESTIÓN DEL DESARROLLO LOCAL EN LAS ACTIVIDADES DE PLANEACIÓN ENMARCADAS EN EL CUMPLIMIENTO DE LA META DEL PROYECTO DEPORTE Y RECREACIÓN PARA EL DESARROLLO SOCIAL","Inversión","Un Nuevo Contrato Social y Ambiental para la Bogotá del Siglo XXI",20,{"$f":"IF(ISERROR(VLOOKUP(K257,Proposito_programa!$C$2:$E$59,2,FALSE)),\" \",VLOOKUP(K257,Proposito_programa!$C$2:$E$59,2,FALSE))","v":"Bogotá, referente en cultura, deporte, recreación y actividad física, con parques para el desarrollo y la salud"},{"$f":"IF(ISERROR(VLOOKUP(K257,Proposito_programa!$C$2:$E$59,3,FALSE)),\" \",VLOOKUP(K257,Proposito_programa!$C$2:$E$59,3,FALSE))","v":"Propósito 1: Hacer un nuevo contrato social para incrementar la inclusión social, productiva y política"},"133011601200000002044",null,79698325,"LUIS ALFONSO DIAZ MARTIN","Persona Natural",null,null,null,4542000,null,null,null,4542000,0,"2021-11-25","2021-11-30","2021-12-31",60,null,null,null,null,null,null,null,null,"X",null,0]
[245,2021,"FDLBU-CD-001-2265","http://https://community.secop.gov.co/Public/Tendering/ContractNoticePhases/View?PPI=CO1.PPI.16133372&isFromPublicArea=True&isModal=False","Contratos de prestación de servicios profesionales y de apoyo a la gestión","Contratación directa","Prestación de servicios profesionales y de apoyo a la gestión, o para la ejecución de trabajos artísticos que sólo puedan encomendarse a determinadas personas naturales;","PRESTAR SERVICIOS DE APOYO EN EL ÁREA DE GESTIÓN DEL DESARROLLO LOCAL EN LAS ACTIVIDADES DE PLANEACIÓN ENMARCADAS EN EL CUMPLIMIENTO DE LA META DEL PROYECTO DEPORTE Y RECREACIÓN PARA EL DESARROLLO SOCIAL","Inversión","Un Nuevo Contrato Social y Ambiental para la Bogotá del Siglo XXI",20,{"$f":"IF(ISERROR(VLOOKUP(K258,Proposito_programa!$C$2:$E$59,2,FALSE)),\" \",VLOOKUP(K258,Proposito_programa!$C$2:$E$59,2,FALSE))","v":"Bogotá, referente en cultura, deporte, recreación y actividad física, con parques para el desarrollo y la salud"},{"$f":"IF(ISERROR(VLOOKUP(K258,Proposito_programa!$C$2:$E$59,3,FALSE)),\" \",VLOOKUP(K258,Proposito_programa!$C$2:$E$59,3,FALSE))","v":"Propósito 1: Hacer un nuevo contrato social para incrementar la inclusión social, productiva y política"},"133011601200000002044",null,1012402193,"BRIGITT PAOLA CARDENAS SOTO","Persona Natural",null,null,null,4542000,null,null,null,4542000,0,"2021-11-25","2021-11-30","2021-12-31",60,null,null,null,null,null,null,null,null,"X",null,0]
[246,2021,"FDLBU-CD-001-2266","https://community.secop.gov.co/Public/Tendering/ContractNoticePhases/View?PPI=CO1.PPI.16147030&isFromPublicArea=True&isModal=False","Contratos de prestación de servicios profesionales y de apoyo a la gestión","Contratación directa","Prestación de servicios profesionales y de apoyo a la gestión, o para la ejecución de trabajos artísticos que sólo puedan encomendarse a determinadas personas naturales;","PRESTAR SUS SERVICIOS PROFESIONALES PARA APOYAR TÉCNICAMENTE LAS DISTINTAS ETAPAS DE LOS PROCESOS DE COMPETENCIA DE LAS INSPECCIONES DE POLICÍA DE LA LOCALIDAD, SEGÚN REPARTO.","Inversión","Un Nuevo Contrato Social y Ambiental para la Bogotá del Siglo XXI",57,{"$f":"IF(ISERROR(VLOOKUP(K259,Proposito_programa!$C$2:$E$59,2,FALSE)),\" \",VLOOKUP(K259,Proposito_programa!$C$2:$E$59,2,FALSE))","v":"Gestión pública local"},{"$f":"IF(ISERROR(VLOOKUP(K259,Proposito_programa!$C$2:$E$59,3,FALSE)),\" \",VLOOKUP(K259,Proposito_programa!$C$2:$E$59,3,FALSE))","v":"Propósito 5: Construir Bogotá - Región con gobierno abierto, transparente y ciudadanía consciente"},"133011605570000002143",null,1013598280,"TATIANA GOMEZ NISPERUZA","Persona Natural",null,null,null,7495500,null,null,null,7495500,0,"2021-11-26","2021-11-30","2021-12-31",45,null,null,null,null,null,null,null,null,"X",null,0]
[247,2021,"FDLBU-CD-001-2267","https://community.secop.gov.co/Public/Tendering/ContractNoticePhases/View?PPI=CO1.PPI.16163040&isFromPublicArea=True&isModal=False","Contratos de prestación de servicios profesionales y de apoyo a la gestión","Contratación directa","Prestación de servicios profesionales y de apoyo a la gestión, o para la ejecución de trabajos artísticos que sólo puedan encomendarse a determinadas personas naturales;","PRESTAR SERVICIOS DE APOYO A LA GESTIÓN DEL DESARROLLO EN LABORES DE PLANEACIÓN EN LAS ACTIVIDADES RELATIVAS A LOS PROYECTOS AMBIENTALES DE LA VIGENCIA 2021 DE LA LÍNEA DE INVERSIONES AMBIENTALES SOSTENIBLES","Inversión","Un Nuevo Contrato Social y Ambiental para la Bogotá del Siglo XXI",38,{"$f":"IF(ISERROR(VLOOKUP(K260,Proposito_programa!$C$2:$E$59,2,FALSE)),\" \",VLOOKUP(K260,Proposito_programa!$C$2:$E$59,2,FALSE))","v":"Ecoeficiencia, reciclaje, manejo de residuos e inclusión de la población recicladora"},{"$f":"IF(ISERROR(VLOOKUP(K260,Proposito_programa!$C$2:$E$59,3,FALSE)),\" \",VLOOKUP(K260,Proposito_programa!$C$2:$E$59,3,FALSE))","v":"Propósito 2 : Cambiar Nuestros Hábitos de Vida para Reverdecer a Bogotá y Adaptarnos y Mitigar la Crisis Climática"},"133011602380000002082",null,1019195118,"CRISTIAN CAMILO BLANCO DUARTE","Persona Natural",null,null,null,10902000,null,null,null,10902000,0,"2021-11-26","2021-12-01","2021-12-31",90,1,15,null,null,null,null,null,null,"X",null,0]
["OC80896",2021,"FDLBU-CD-001-2268","https://colombiacompra.gov.co/tienda-virtual-del-estado-colombiano/ordenes-compra/?number_order=80896&state=&entity=&tool=&date_to&date_from","Otros","Selección abreviada","Acuerdo marco de precios ","ADQUIRIR EQUIPOS DE CONECTIVIDAD PARA LA RED DEDATOS DE LA ALCALDIA LOCAL DE BARRIOS UNIDOS DE CONFORMIDAD CONLAS ESPECIFICACIONES TÉCNI CAS DEFINIDAS","Funcionamiento","Un Nuevo Contrato Social y Ambiental para la Bogotá del Siglo XXI",null,{"$f":"IF(ISERROR(VLOOKUP(K261,Proposito_programa!$C$2:$E$59,2,FALSE)),\" \",VLOOKUP(K261,Proposito_programa!$C$2:$E$59,2,FALSE))","v":" "},{"$f":"IF(ISERROR(VLOOKUP(K261,Proposito_programa!$C$2:$E$59,3,FALSE)),\" \",VLOOKUP(K261,Proposito_programa!$C$2:$E$59,3,FALSE))","v":" "},0,0,830037946,"PANAMERICANA LIBRERÍA Y PAPELERÍA S.A.","Persona Jurídica",null,null,null,16358930,null,null,null,16358930,0,"2021-11-26","2021-11-26","2022-01-26",60,1,60,null,null,null,null,null,"X",null,null,0]
[248,2021,"FDLBU-CD-001-2269","https://community.secop.gov.co/Public/Tendering/ContractNoticePhases/View?PPI=CO1.PPI.15764071&isFromPublicArea=True&isModal=False","Interventoría","Concurso de méritos","No aplica","EJECUTAR LA INTERVENTORÍA TÉCNICA, ADMINISTRATIVA, LEGAL, FINANCIERA, SOCIAL, AMBIENTAL Y DE SEGURIDAD Y SALUD EN EL TRABAJO AL CONTRATO DE OBRA CUYO OBJETO ES: REALIZAR LOS ESTUDIOS Y DISEÑOS; Y EJECUTAR LAS OBRAS DE PRIMEROS AUXILIOS Y DE MANTENIMIENTO DE LA SEDE UBICADA EN LA CALLE 74 A No. 63 – 04, EN BOGOTÁ, BIEN DE INTERÉS CULTURAL","Inversión","Un Nuevo Contrato Social y Ambiental para la Bogotá del Siglo XXI",57,{"$f":"IF(ISERROR(VLOOKUP(K262,Proposito_programa!$C$2:$E$59,2,FALSE)),\" \",VLOOKUP(K262,Proposito_programa!$C$2:$E$59,2,FALSE))","v":"Gestión pública local"},{"$f":"IF(ISERROR(VLOOKUP(K262,Proposito_programa!$C$2:$E$59,3,FALSE)),\" \",VLOOKUP(K262,Proposito_programa!$C$2:$E$59,3,FALSE))","v":"Propósito 5: Construir Bogotá - Región con gobierno abierto, transparente y ciudadanía consciente"},"133011605570000002143",3,900283049,"IA INGENIERIA Y ARQUITECTURA DE COLOMBIA SAS ","Persona Jurídica",null,null,null,97032855,null,null,null,97032855,0,"2021-12-01","2022-01-18","2022-09-17",240,null,null,null,null,null,null,null,"X",null,null,0]
[249,2021,"FDLBU-CD-001-2270","https://community.secop.gov.co/Public/Tendering/ContractNoticePhases/View?PPI=CO1.PPI.16219873&isFromPublicArea=True&isModal=False","Contratos de prestación de servicios profesionales y de apoyo a la gestión","Contratación directa","Prestación de servicios profesionales y de apoyo a la gestión, o para la ejecución de trabajos artísticos que sólo puedan encomendarse a determinadas personas naturales;","PRESTAR SERVICIOS DE APOYO ADMINISTRATIVA Y ASISTENCIALMENTE A LAS INSPECCIONES DE POLICÍA DE LA LOCALIDAD","Inversión","Un Nuevo Contrato Social y Ambiental para la Bogotá del Siglo XXI",57,"Gestión pública local","Propósito 5: Construir Bogotá - Región con gobierno abierto, transparente y ciudadanía consciente","133011605570000002143",null,"1110453482","ADRIANA FENID CASTIBLANCO GOMEZ","Persona Natural",null,null,null,3406500,null,null,null,3406500,0,"2021-12-06","faltaron requisitos de ejecucion","faltaron requisitos de ejecucion",45]
[250,2021,"FDLBU-CD-001-2271","https://community.secop.gov.co/Public/Tendering/ContractNoticePhases/View?PPI=CO1.PPI.16220129&isFromPublicArea=True&isModal=False","Contratos de prestación de servicios profesionales y de apoyo a la gestión","Contratación directa","Prestación de servicios profesionales y de apoyo a la gestión, o para la ejecución de trabajos artísticos que sólo puedan encomendarse a determinadas personas naturales;","PRESTAR SERVICIOS DE APOYO ADMINISTRATIVA Y ASISTENCIALMENTE A LAS INSPECCIONES DE POLICÍA DE LA LOCALIDAD","Inversión","Un Nuevo Contrato Social y Ambiental para la Bogotá del Siglo XXI",57,{"$f":"IF(ISERROR(VLOOKUP(K264,Proposito_programa!$C$2:$E$59,2,FALSE)),\" \",VLOOKUP(K264,Proposito_programa!$C$2:$E$59,2,FALSE))","v":"Gestión pública local"},{"$f":"IF(ISERROR(VLOOKUP(K264,Proposito_programa!$C$2:$E$59,3,FALSE)),\" \",VLOOKUP(K264,Proposito_programa!$C$2:$E$59,3,FALSE))","v":"Propósito 5: Construir Bogotá - Región con gobierno abierto, transparente y ciudadanía consciente"},"133011605570000002143",null,30204485,"CARMEN HOLANDA SOTOMONTE GUERRERO","Persona Natural",null,null,null,3406500,null,null,null,3406500,0,"2021-12-02","2021-12-13","2021-12-31",45,null,null,null,null,null,null,null,null,"X",null,0]
[251,2021,"FDLBU-CD-001-2272","https://community.secop.gov.co/Public/Tendering/ContractNoticePhases/View?PPI=CO1.PPI.16220161&isFromPublicArea=True&isModal=False","Contratos de prestación de servicios profesionales y de apoyo a la gestión","Contratación directa","Prestación de servicios profesionales y de apoyo a la gestión, o para la ejecución de trabajos artísticos que sólo puedan encomendarse a determinadas personas naturales;","PRESTAR SERVICIOS DE APOYO ADMINISTRATIVA Y ASISTENCIALMENTE A LAS INSPECCIONES DE POLICÍA DE LA LOCALIDAD","Inversión","Un Nuevo Contrato Social y Ambiental para la Bogotá del Siglo XXI",57,{"$f":"IF(ISERROR(VLOOKUP(K265,Proposito_programa!$C$2:$E$59,2,FALSE)),\" \",VLOOKUP(K265,Proposito_programa!$C$2:$E$59,2,FALSE))","v":"Gestión pública local"},{"$f":"IF(ISERROR(VLOOKUP(K265,Proposito_programa!$C$2:$E$59,3,FALSE)),\" \",VLOOKUP(K265,Proposito_programa!$C$2:$E$59,3,FALSE))","v":"Propósito 5: Construir Bogotá - Región con gobierno abierto, transparente y ciudadanía consciente"},"133011605570000002143",null,1033782585,"NATALY ALEXANDRA RAMIREZ RODRIGUEZ","Persona Natural",null,null,null,3406500,null,null,null,3406500,0,"2021-12-02","2021-12-03","2021-12-31",45,null,null,null,null,null,null,null,null,"X",null,0]
[252,2021,"FDLBU-CD-001-2273","https://community.secop.gov.co/Public/Tendering/ContractNoticePhases/View?PPI=CO1.PPI.16220176&isFromPublicArea=True&isModal=False","Contratos de prestación de servicios profesionales y de apoyo a la gestión","Contratación directa","Prestación de servicios profesionales y de apoyo a la gestión, o para la ejecución de trabajos artísticos que sólo puedan encomendarse a determinadas personas naturales;","PRESTAR SERVICIOS DE APOYO ADMINISTRATIVA Y ASISTENCIALMENTE A LAS INSPECCIONES DE POLICÍA DE LA LOCALIDAD","Inversión","Un Nuevo Contrato Social y Ambiental para la Bogotá del Siglo XXI",57,{"$f":"IF(ISERROR(VLOOKUP(K266,Proposito_programa!$C$2:$E$59,2,FALSE)),\" \",VLOOKUP(K266,Proposito_programa!$C$2:$E$59,2,FALSE))","v":"Gestión pública local"},{"$f":"IF(ISERROR(VLOOKUP(K266,Proposito_programa!$C$2:$E$59,3,FALSE)),\" \",VLOOKUP(K266,Proposito_programa!$C$2:$E$59,3,FALSE))","v":"Propósito 5: Construir Bogotá - Región con gobierno abierto, transparente y ciudadanía consciente"},"133011605570000002143",null,1015427264,"PAULA LORENA LEGUIZAMON MELO","Persona Natural",null,null,null,3406500,null,null,null,3406500,0,"2021-12-02","2021-12-02","2021-12-31",45,null,null,null,null,null,null,null,null,"X",null,0]
[253,2021,"FDLBU-CD-001-2274","https://community.secop.gov.co/Public/Tendering/ContractNoticePhases/View?PPI=CO1.PPI.16239491&isFromPublicArea=True&isModal=False","Contratos de prestación de servicios profesionales y de apoyo a la gestión","Contratación directa","Prestación de servicios profesionales y de apoyo a la gestión, o para la ejecución de trabajos artísticos que sólo puedan encomendarse a determinadas personas naturales;","PRESTAR SERVICIOS DE APOYO A LA GESTIÓN DOCUMENTAL DE LA ALCALDÍA LOCAL, ACOMPAÑANDO AL EQUIPO JURÍDICO DE DEPURACIÓN EN LAS LABORES OPERATIVAS QUE GENERA EL PROCESO DE IMPULSO DE LAS ACTUACIONES ADMINISTRATIVAS EXISTENTES EN LA ALCALDÍA LOCAL DE BARRIOS UNIDOS","Inversión","Un Nuevo Contrato Social y Ambiental para la Bogotá del Siglo XXI",57,{"$f":"IF(ISERROR(VLOOKUP(K267,Proposito_programa!$C$2:$E$59,2,FALSE)),\" \",VLOOKUP(K267,Proposito_programa!$C$2:$E$59,2,FALSE))","v":"Gestión pública local"},{"$f":"IF(ISERROR(VLOOKUP(K267,Proposito_programa!$C$2:$E$59,3,FALSE)),\" \",VLOOKUP(K267,Proposito_programa!$C$2:$E$59,3,FALSE))","v":"Propósito 5: Construir Bogotá - Región con gobierno abierto, transparente y ciudadanía consciente"},"133011605570000002143",null,1022953015,"ELIANA GRISEL CADENA CANO","Persona Natural",null,null,null,3406500,null,null,null,3406500,0,"2021-12-03","2021-12-06","2021-12-31",45,1,20,null,null,null,null,null,null,"X",null,0]
[254,2021,"FDLBU-CD-001-2275","https://community.secop.gov.co/Public/Tendering/ContractNoticePhases/View?PPI=CO1.PPI.16244048&isFromPublicArea=True&isModal=False","Contratos de prestación de servicios profesionales y de apoyo a la gestión","Contratación directa","Prestación de servicios profesionales y de apoyo a la gestión, o para la ejecución de trabajos artísticos que sólo puedan encomendarse a determinadas personas naturales;","PRESTAR SUS SERVICIOS PROFESIONALES PARA APOYAR JURÍDICAMENTE LA EJECUCIÓN DE LAS ACCIONES REQUERIDAS PARA EL TRÁMITE E IMPULSO PROCESAL DE LAS ACTUACIONES CONTRAVENCIONALES Y/O QUERELLAS QUE CURSEN EN LAS INSPECCIONES DE LA POLICÍA DE LA LOCALIDAD","Inversión","Un Nuevo Contrato Social y Ambiental para la Bogotá del Siglo XXI",57,{"$f":"IF(ISERROR(VLOOKUP(K268,Proposito_programa!$C$2:$E$59,2,FALSE)),\" \",VLOOKUP(K268,Proposito_programa!$C$2:$E$59,2,FALSE))","v":"Gestión pública local"},{"$f":"IF(ISERROR(VLOOKUP(K268,Proposito_programa!$C$2:$E$59,3,FALSE)),\" \",VLOOKUP(K268,Proposito_programa!$C$2:$E$59,3,FALSE))","v":"Propósito 5: Construir Bogotá - Región con gobierno abierto, transparente y ciudadanía consciente"},"133011605570000002143",null,51994040,"CONSUELO CHAVARRO PULIDO","Persona Natural",null,null,null,7126500,null,null,null,7126500,0,"2021-12-03","2021-12-06","2021-12-31",45,null,null,null,null,null,null,null,null,"X",null,0]
[255,2021,"FDLBU-CD-001-2276","https://community.secop.gov.co/Public/Tendering/ContractNoticePhases/View?PPI=CO1.PPI.16244062&isFromPublicArea=True&isModal=False","Contratos de prestación de servicios profesionales y de apoyo a la gestión","Contratación directa","Prestación de servicios profesionales y de apoyo a la gestión, o para la ejecución de trabajos artísticos que sólo puedan encomendarse a determinadas personas naturales;","PRESTAR SUS SERVICIOS PROFESIONALES PARA APOYAR JURÍDICAMENTE LA EJECUCIÓN DE LAS ACCIONES REQUERIDAS PARA EL TRÁMITE E IMPULSO PROCESAL DE LAS ACTUACIONES CONTRAVENCIONALES Y/O QUERELLAS QUE CURSEN EN LAS INSPECCIONES DE LA POLICÍA DE LA LOCALIDAD","Inversión","Un Nuevo Contrato Social y Ambiental para la Bogotá del Siglo XXI",57,{"$f":"IF(ISERROR(VLOOKUP(K269,Proposito_programa!$C$2:$E$59,2,FALSE)),\" \",VLOOKUP(K269,Proposito_programa!$C$2:$E$59,2,FALSE))","v":"Gestión pública local"},{"$f":"IF(ISERROR(VLOOKUP(K269,Proposito_programa!$C$2:$E$59,3,FALSE)),\" \",VLOOKUP(K269,Proposito_programa!$C$2:$E$59,3,FALSE))","v":"Propósito 5: Construir Bogotá - Región con gobierno abierto, transparente y ciudadanía consciente"},"133011605570000002143",null,80900825,"EDGAR ANDRES GIRALDO BRICEÑO","Persona Natural",null,null,null,7126500,null,null,null,7126500,0,"2021-12-03","2021-12-06","2021-12-31",45,1,20,null,null,null,null,null,null,"X",null,0]
[256,2021,"FDLBU-CD-001-2277","https://community.secop.gov.co/Public/Tendering/ContractNoticePhases/View?PPI=CO1.PPI.16244067&isFromPublicArea=True&isModal=False","Contratos de prestación de servicios profesionales y de apoyo a la gestión","Contratación directa","Prestación de servicios profesionales y de apoyo a la gestión, o para la ejecución de trabajos artísticos que sólo puedan encomendarse a determinadas personas naturales;","PRESTAR SUS SERVICIOS PROFESIONALES PARA APOYAR JURÍDICAMENTE LA EJECUCIÓN DE LAS ACCIONES REQUERIDAS PARA EL TRÁMITE E IMPULSO PROCESAL DE LAS ACTUACIONES CONTRAVENCIONALES Y/O QUERELLAS QUE CURSEN EN LAS INSPECCIONES DE LA POLICÍA DE LA LOCALIDAD","Inversión","Un Nuevo Contrato Social y Ambiental para la Bogotá del Siglo XXI",57,{"$f":"IF(ISERROR(VLOOKUP(K270,Proposito_programa!$C$2:$E$59,2,FALSE)),\" \",VLOOKUP(K270,Proposito_programa!$C$2:$E$59,2,FALSE))","v":"Gestión pública local"},{"$f":"IF(ISERROR(VLOOKUP(K270,Proposito_programa!$C$2:$E$59,3,FALSE)),\" \",VLOOKUP(K270,Proposito_programa!$C$2:$E$59,3,FALSE))","v":"Propósito 5: Construir Bogotá - Región con gobierno abierto, transparente y ciudadanía consciente"},"133011605570000002143",null,1014217624,"JUAN DAVID ARIZA HERRERA","Persona Natural",null,null,null,7126500,null,null,null,7126500,0,"2021-12-03","2021-12-06","2021-12-31",45,null,null,null,null,null,null,null,null,"X",null,0]
[257,2021,"FDLBU-CD-001-2278","https://community.secop.gov.co/Public/Tendering/ContractNoticePhases/View?PPI=CO1.PPI.16244333&isFromPublicArea=True&isModal=False","Contratos de prestación de servicios profesionales y de apoyo a la gestión","Contratación directa","Prestación de servicios profesionales y de apoyo a la gestión, o para la ejecución de trabajos artísticos que sólo puedan encomendarse a determinadas personas naturales;","PRESTAR SUS SERVICIOS PROFESIONALES PARA APOYAR JURÍDICAMENTE LA EJECUCIÓN DE LAS ACCIONES REQUERIDAS PARA EL TRÁMITE E IMPULSO PROCESAL DE LAS ACTUACIONES CONTRAVENCIONALES Y/O QUERELLAS QUE CURSEN EN LAS INSPECCIONES DE LA POLICÍA DE LA LOCALIDAD","Inversión","Un Nuevo Contrato Social y Ambiental para la Bogotá del Siglo XXI",57,{"$f":"IF(ISERROR(VLOOKUP(K271,Proposito_programa!$C$2:$E$59,2,FALSE)),\" \",VLOOKUP(K271,Proposito_programa!$C$2:$E$59,2,FALSE))","v":"Gestión pública local"},{"$f":"IF(ISERROR(VLOOKUP(K271,Proposito_programa!$C$2:$E$59,3,FALSE)),\" \",VLOOKUP(K271,Proposito_programa!$C$2:$E$59,3,FALSE))","v":"Propósito 5: Construir Bogotá - Región con gobierno abierto, transparente y ciudadanía consciente"},"133011605570000002143",null,93121368,"JOSE VICENTE BRIÑEZ","Persona Natural",null,null,null,7126500,null,null,null,7126500,0,"2021-12-03","2021-12-06","2021-12-31",45,1,20,null,null,null,null,null,null,"X",null,0]
[258,2021,"FDLBU-CD-001-2279","https://community.secop.gov.co/Public/Tendering/ContractNoticePhases/View?PPI=CO1.PPI.16243447&isFromPublicArea=True&isModal=False","Contratos de prestación de servicios profesionales y de apoyo a la gestión","Contratación directa","Prestación de servicios profesionales y de apoyo a la gestión, o para la ejecución de trabajos artísticos que sólo puedan encomendarse a determinadas personas naturales;","PRESTAR SUS SERVICIOS PROFESIONALES PARA APOYAR JURÍDICAMENTE LA EJECUCIÓN DE LAS ACCIONES REQUERIDAS PARA LA DEPURACIÓN DE LAS ACTUACIONES ADMINISTRATIVAS QUE CURSAN EN LA ALCALDÍA LOCAL","Inversión","Un Nuevo Contrato Social y Ambiental para la Bogotá del Siglo XXI",57,{"$f":"IF(ISERROR(VLOOKUP(K272,Proposito_programa!$C$2:$E$59,2,FALSE)),\" \",VLOOKUP(K272,Proposito_programa!$C$2:$E$59,2,FALSE))","v":"Gestión pública local"},{"$f":"IF(ISERROR(VLOOKUP(K272,Proposito_programa!$C$2:$E$59,3,FALSE)),\" \",VLOOKUP(K272,Proposito_programa!$C$2:$E$59,3,FALSE))","v":"Propósito 5: Construir Bogotá - Región con gobierno abierto, transparente y ciudadanía consciente"},"133011605570000002143",null,53159645,"DIANA PAOLA GONZALEZ MURILLO ","Persona Natural",null,null,null,7126500,null,null,null,7126500,0,"2021-12-06","2021-12-13","2021-12-31",45,1,20,null,null,null,null,null,null,"X",null,0]
[259,2021,"FDLBU-CD-001-2280","https://community.secop.gov.co/Public/Tendering/ContractNoticePhases/View?PPI=CO1.PPI.16243471&isFromPublicArea=True&isModal=False","Contratos de prestación de servicios profesionales y de apoyo a la gestión","Contratación directa","Prestación de servicios profesionales y de apoyo a la gestión, o para la ejecución de trabajos artísticos que sólo puedan encomendarse a determinadas personas naturales;","PRESTAR SUS SERVICIOS PROFESIONALES PARA APOYAR JURÍDICAMENTE LA EJECUCIÓN DE LAS ACCIONES REQUERIDAS PARA LA DEPURACIÓN DE LAS ACTUACIONES ADMINISTRATIVAS QUE CURSAN EN LA ALCALDÍA LOCAL","Inversión","Un Nuevo Contrato Social y Ambiental para la Bogotá del Siglo XXI",57,{"$f":"IF(ISERROR(VLOOKUP(K273,Proposito_programa!$C$2:$E$59,2,FALSE)),\" \",VLOOKUP(K273,Proposito_programa!$C$2:$E$59,2,FALSE))","v":"Gestión pública local"},{"$f":"IF(ISERROR(VLOOKUP(K273,Proposito_programa!$C$2:$E$59,3,FALSE)),\" \",VLOOKUP(K273,Proposito_programa!$C$2:$E$59,3,FALSE))","v":"Propósito 5: Construir Bogotá - Región con gobierno abierto, transparente y ciudadanía consciente"},"133011605570000002143",null,1094247295,"JOHN EMMANUEL GOMEZ PORTILLA ","Persona Natural",null,null,null,7126500,null,null,null,7126500,0,"2021-12-03","2021-12-09","2021-12-31",45,1,20,null,null,null,null,null,null,"X",null,0]
[260,2021,"FDLBU-CD-001-2281","https://community.secop.gov.co/Public/Tendering/ContractNoticePhases/View?PPI=CO1.PPI.16243284&isFromPublicArea=True&isModal=False","Contratos de prestación de servicios profesionales y de apoyo a la gestión","Contratación directa","Prestación de servicios profesionales y de apoyo a la gestión, o para la ejecución de trabajos artísticos que sólo puedan encomendarse a determinadas personas naturales;","PRESTAR SUS SERVICIOS PROFESIONALES PARA APOYAR JURÍDICAMENTE LA EJECUCIÓN DE LAS ACCIONES REQUERIDAS PARA LA DEPURACIÓN DE LAS ACTUACIONES ADMINISTRATIVAS QUE CURSAN EN LA ALCALDÍA LOCAL","Inversión","Un Nuevo Contrato Social y Ambiental para la Bogotá del Siglo XXI",57,{"$f":"IF(ISERROR(VLOOKUP(K274,Proposito_programa!$C$2:$E$59,2,FALSE)),\" \",VLOOKUP(K274,Proposito_programa!$C$2:$E$59,2,FALSE))","v":"Gestión pública local"},{"$f":"IF(ISERROR(VLOOKUP(K274,Proposito_programa!$C$2:$E$59,3,FALSE)),\" \",VLOOKUP(K274,Proposito_programa!$C$2:$E$59,3,FALSE))","v":"Propósito 5: Construir Bogotá - Región con gobierno abierto, transparente y ciudadanía consciente"},"133011605570000002143",null,52731958,"MERLY JOHANA GARCIA LOPEZ","Persona Natural",null,null,null,7126500,null,null,null,7126500,0,"2021-12-03","2021-12-07","2021-12-31",45,1,20,null,null,null,null,null,null,"X",null,0]
[261,2021,"FDLBU-CD-001-2282"," https://community.secop.gov.co/Public/Tendering/ContractNoticePhases/View?PPI=CO1.PPI.16243293&isFromPublicArea=True&isModal=False","Contratos de prestación de servicios profesionales y de apoyo a la gestión","Contratación directa","Prestación de servicios profesionales y de apoyo a la gestión, o para la ejecución de trabajos artísticos que sólo puedan encomendarse a determinadas personas naturales;","PRESTAR SUS SERVICIOS PROFESIONALES PARA APOYAR JURÍDICAMENTE LA EJECUCIÓN DE LAS ACCIONES REQUERIDAS PARA LA DEPURACIÓN DE LAS ACTUACIONES ADMINISTRATIVAS QUE CURSAN EN LA ALCALDÍA LOCAL","Inversión","Un Nuevo Contrato Social y Ambiental para la Bogotá del Siglo XXI",57,{"$f":"IF(ISERROR(VLOOKUP(K275,Proposito_programa!$C$2:$E$59,2,FALSE)),\" \",VLOOKUP(K275,Proposito_programa!$C$2:$E$59,2,FALSE))","v":"Gestión pública local"},{"$f":"IF(ISERROR(VLOOKUP(K275,Proposito_programa!$C$2:$E$59,3,FALSE)),\" \",VLOOKUP(K275,Proposito_programa!$C$2:$E$59,3,FALSE))","v":"Propósito 5: Construir Bogotá - Región con gobierno abierto, transparente y ciudadanía consciente"},"133011605570000002143",null,35195802,"ADRIANA LILIANA CARDENAS VILLALOBOS","Persona Natural",null,null,null,7126500,null,null,null,7126500,0,"2021-12-03","2021-12-06","2021-12-31",45,1,20,null,null,null,null,null,null,"X",null,0]
[262,2021,"FDLBU-CD-001-2283","https://community.secop.gov.co/Public/Tendering/ContractNoticePhases/View?PPI=CO1.PPI.16296978&isFromPublicArea=True&isModal=False","Contratos de prestación de servicios profesionales y de apoyo a la gestión","Contratación directa","Prestación de servicios profesionales y de apoyo a la gestión, o para la ejecución de trabajos artísticos que sólo puedan encomendarse a determinadas personas naturales;","PRESTAR SERVICIOS DE APOYO ADMINISTRATIVA Y ASISTENCIALMENTE A LAS INSPECCIONES DE POLICÍA DE LA LOCALIDAD","Inversión","Un Nuevo Contrato Social y Ambiental para la Bogotá del Siglo XXI",57,{"$f":"IF(ISERROR(VLOOKUP(K276,Proposito_programa!$C$2:$E$59,2,FALSE)),\" \",VLOOKUP(K276,Proposito_programa!$C$2:$E$59,2,FALSE))","v":"Gestión pública local"},{"$f":"IF(ISERROR(VLOOKUP(K276,Proposito_programa!$C$2:$E$59,3,FALSE)),\" \",VLOOKUP(K276,Proposito_programa!$C$2:$E$59,3,FALSE))","v":"Propósito 5: Construir Bogotá - Región con gobierno abierto, transparente y ciudadanía consciente"},"133011605570000002143",null,52350012,"LUISA ALEJANDRA PÉREZ PALACIO","Persona Natural",null,null,null,3406500,null,null,null,3406500,0,"2021-12-13","15/12/2021","2021-12-31",45,null,null,null,null,null,null,null,null,"X",null,0]
[263,2021,"FDLBU-CD-001-2284","https://community.secop.gov.co/Public/Tendering/ContractNoticePhases/View?PPI=CO1.PPI.16297522&isFromPublicArea=True&isModal=False","Contratos de prestación de servicios profesionales y de apoyo a la gestión","Contratación directa","Prestación de servicios profesionales y de apoyo a la gestión, o para la ejecución de trabajos artísticos que sólo puedan encomendarse a determinadas personas naturales;","PRESTAR SUS SERVICIOS PROFESIONALES PARA APOYAR JURÍDICAMENTE LA EJECUCIÓN DE LAS ACCIONES REQUERIDAS PARA LA DEPURACIÓN DE LAS ACTUACIONES ADMINISTRATIVAS QUE CURSAN EN LA ALCALDÍA LOCAL","Inversión","Un Nuevo Contrato Social y Ambiental para la Bogotá del Siglo XXI",57,{"$f":"IF(ISERROR(VLOOKUP(K277,Proposito_programa!$C$2:$E$59,2,FALSE)),\" \",VLOOKUP(K277,Proposito_programa!$C$2:$E$59,2,FALSE))","v":"Gestión pública local"},{"$f":"IF(ISERROR(VLOOKUP(K277,Proposito_programa!$C$2:$E$59,3,FALSE)),\" \",VLOOKUP(K277,Proposito_programa!$C$2:$E$59,3,FALSE))","v":"Propósito 5: Construir Bogotá - Región con gobierno abierto, transparente y ciudadanía consciente"},"133011605570000002143",null,52089587,"MARIA YACQUELINE CARDENAS VILLALOBOS","Persona Natural",null,null,null,7126500,null,null,null,{"$f":"+V277+W277+Y277","v":7126500},0,"2021-12-10","2021-12-13","2021-12-31",45,null,null,null,null,null,null,null,null,"X",null,{"$f":"IF(ISERROR(AA277/Z277),\"-\",(AA277/Z277))","v":0}]
[264,2021,"FDLBU-CD-001-2285","https://community.secop.gov.co/Public/Tendering/ContractNoticePhases/View?PPI=CO1.PPI.16297548&isFromPublicArea=True&isModal=False","Contratos de prestación de servicios profesionales y de apoyo a la gestión","Contratación directa","Prestación de servicios profesionales y de apoyo a la gestión, o para la ejecución de trabajos artísticos que sólo puedan encomendarse a determinadas personas naturales;","PRESTAR SERVICIOS DE APOYO EN EL ÁREA DE GESTIÓN DEL DESARROLLO LOCAL EN LAS ACTIVIDADES DE PLANEACIÓN ENMARCADAS EN EL CUMPLIMIENTO DE LA META DEL PROYECTO DEPORTE Y RECREACIÓN PARA EL DESARROLLO SOCIAL","Inversión","Un Nuevo Contrato Social y Ambiental para la Bogotá del Siglo XXI",20,{"$f":"IF(ISERROR(VLOOKUP(K278,Proposito_programa!$C$2:$E$59,2,FALSE)),\" \",VLOOKUP(K278,Proposito_programa!$C$2:$E$59,2,FALSE))","v":"Bogotá, referente en cultura, deporte, recreación y actividad física, con parques para el desarrollo y la salud"},{"$f":"IF(ISERROR(VLOOKUP(K278,Proposito_programa!$C$2:$E$59,3,FALSE)),\" \",VLOOKUP(K278,Proposito_programa!$C$2:$E$59,3,FALSE))","v":"Propósito 1: Hacer un nuevo contrato social para incrementar la inclusión social, productiva y política"},"133011601200000002044",null,11809786,"JOSE VIRGILIO MENA MENA ","Persona Natural",null,null,null,4542000,null,null,null,4542000,0,"2021-12-07","2021-12-13","2021-12-31",60,1,42,null,null,null,null,null,"X",null,null,0]
[265,2021,"FDLBU-CD-001-2286","https://community.secop.gov.co/Public/Tendering/ContractNoticePhases/View?PPI=CO1.PPI.16297570&isFromPublicArea=True&isModal=False","Contratos de prestación de servicios profesionales y de apoyo a la gestión","Contratación directa","Prestación de servicios profesionales y de apoyo a la gestión, o para la ejecución de trabajos artísticos que sólo puedan encomendarse a determinadas personas naturales;","PRESTAR SERVICIOS DE APOYO EN EL ÁREA DE GESTIÓN DEL DESARROLLO LOCAL EN LAS ACTIVIDADES DE PLANEACIÓN ENMARCADAS EN EL CUMPLIMIENTO DE LA META DEL PROYECTO DEPORTE Y RECREACIÓN PARA EL DESARROLLO SOCIAL","Inversión","Un Nuevo Contrato Social y Ambiental para la Bogotá del Siglo XXI",20,{"$f":"IF(ISERROR(VLOOKUP(K279,Proposito_programa!$C$2:$E$59,2,FALSE)),\" \",VLOOKUP(K279,Proposito_programa!$C$2:$E$59,2,FALSE))","v":"Bogotá, referente en cultura, deporte, recreación y actividad física, con parques para el desarrollo y la salud"},{"$f":"IF(ISERROR(VLOOKUP(K279,Proposito_programa!$C$2:$E$59,3,FALSE)),\" \",VLOOKUP(K279,Proposito_programa!$C$2:$E$59,3,FALSE))","v":"Propósito 1: Hacer un nuevo contrato social para incrementar la inclusión social, productiva y política"},"133011601200000002044",null,41958344,"KAREN ALEJANDRA PAZOS SOLARTE","Persona Natural",null,null,null,4542000,null,null,null,4542000,0,"2021-12-07","2021-12-13","2021-12-31",60,null,null,null,null,null,null,null,null,"X",null,0]
[266,2021,"FDLBU-CD-001-2287","https://community.secop.gov.co/Public/Tendering/OpportunityDetail/Index?noticeUID=CO1.NTC.2420031&isFromPublicArea=True&isModal=False","Contratos de prestación de servicios","Selección abreviada","Selección abreviada por menor cuantía ","PRESTAR SERVICIOS PARA REALIZAR EVENTOS ARTISTICOS Y CULTURALES A TRAVES DE PROCESOS DE APROPIACION QUE PERMITAN FORTALECER LA REACTIVACION ECONOMICA EN LA LOCALIDAD DE BARRIOS UNIOS EN EL MARCO DEL PROYECTO 2012","Inversión","Un Nuevo Contrato Social y Ambiental para la Bogotá del Siglo XXI",21,{"$f":"IF(ISERROR(VLOOKUP(K280,Proposito_programa!$C$2:$E$59,2,FALSE)),\" \",VLOOKUP(K280,Proposito_programa!$C$2:$E$59,2,FALSE))","v":"Creación y vida cotidiana: Apropiación ciudadana del arte, la cultura y el patrimonio, para la democracia cultural"},{"$f":"IF(ISERROR(VLOOKUP(K280,Proposito_programa!$C$2:$E$59,3,FALSE)),\" \",VLOOKUP(K280,Proposito_programa!$C$2:$E$59,3,FALSE))","v":"Propósito 1: Hacer un nuevo contrato social para incrementar la inclusión social, productiva y política"},"133011601210000002012",18,900360948,"CORPORACIÓN COLECTIVO DIGERATI","Persona Jurídica",null,null,null,89771722,null,null,null,89771722,0,"2021-12-14","2021-12-27","2022-02-26",60,null,null,null,null,null,null,null,"X",null,null,0]
[267,2021,"FDLBU-CD-001-2288","https://community.secop.gov.co/Public/Tendering/ContractNoticePhases/View?PPI=CO1.PPI.16381959&isFromPublicArea=True&isModal=False","Contratos de prestación de servicios profesionales y de apoyo a la gestión","Contratación directa","Prestación de servicios profesionales y de apoyo a la gestión, o para la ejecución de trabajos artísticos que sólo puedan encomendarse a determinadas personas naturales;","PRESTAR SERVICIOS DE APOYO EN EL ÁREA DE GESTIÓN DEL DESARROLLO LOCAL EN LAS ACTIVIDADES DE PLANEACIÓN ENMARCADAS EN EL CUMPLIMIENTO DE LA META DEL PROYECTO DEPORTE Y RECREACIÓN PARA EL DESARROLLO SOCIAL","Inversión","Un Nuevo Contrato Social y Ambiental para la Bogotá del Siglo XXI",20,{"$f":"IF(ISERROR(VLOOKUP(K281,Proposito_programa!$C$2:$E$59,2,FALSE)),\" \",VLOOKUP(K281,Proposito_programa!$C$2:$E$59,2,FALSE))","v":"Bogotá, referente en cultura, deporte, recreación y actividad física, con parques para el desarrollo y la salud"},{"$f":"IF(ISERROR(VLOOKUP(K281,Proposito_programa!$C$2:$E$59,3,FALSE)),\" \",VLOOKUP(K281,Proposito_programa!$C$2:$E$59,3,FALSE))","v":"Propósito 1: Hacer un nuevo contrato social para incrementar la inclusión social, productiva y política"},"133011601200000002044",null,1013674757,"FABIAN CAMILO PARRA DAZA","Persona Natural",null,null,null,4542000,null,null,null,4542000,0,"2021-12-16","2021-12-21","2021-12-31",60,1,15,null,null,null,null,null,null,"X",null,0]
[268,2021,"FDLBU-CD-001-2289","https://community.secop.gov.co/Public/Tendering/ContractNoticePhases/View?PPI=CO1.PPI.16382000&isFromPublicArea=True&isModal=False","Contratos de prestación de servicios profesionales y de apoyo a la gestión","Contratación directa","Prestación de servicios profesionales y de apoyo a la gestión, o para la ejecución de trabajos artísticos que sólo puedan encomendarse a determinadas personas naturales;","PRESTAR SERVICIOS DE APOYO EN EL ÁREA DE GESTIÓN DEL DESARROLLO LOCAL EN LAS ACTIVIDADES DE PLANEACIÓN ENMARCADAS EN EL CUMPLIMIENTO DE LA META DEL PROYECTO DEPORTE Y RECREACIÓN PARA EL DESARROLLO SOCIAL","Inversión","Un Nuevo Contrato Social y Ambiental para la Bogotá del Siglo XXI",20,{"$f":"IF(ISERROR(VLOOKUP(K282,Proposito_programa!$C$2:$E$59,2,FALSE)),\" \",VLOOKUP(K282,Proposito_programa!$C$2:$E$59,2,FALSE))","v":"Bogotá, referente en cultura, deporte, recreación y actividad física, con parques para el desarrollo y la salud"},{"$f":"IF(ISERROR(VLOOKUP(K282,Proposito_programa!$C$2:$E$59,3,FALSE)),\" \",VLOOKUP(K282,Proposito_programa!$C$2:$E$59,3,FALSE))","v":"Propósito 1: Hacer un nuevo contrato social para incrementar la inclusión social, productiva y política"},"133011601200000002044",null,1014261420,"SANTIAGO MARTINEZ MONTOYA","Persona Natural",null,null,null,4542000,null,null,null,4542000,0,"2021-12-17","2021-12-22","2021-12-31",60,1,15,null,null,null,null,null,null,"X",null,0]
["OC82571",2021,"FDLBU-CD-001-2290","https://colombiacompra.gov.co/tienda-virtual-del-estado-colombiano/ordenes-compra/82571","Otros","Selección abreviada","Acuerdo marco de precios "," GARANTIZAR EL SUMINISTRO DE COMBUSTIBLE PARA LOS VEHÍCULOS QUE CONFORMAN EL PARQUE AUTOMOTOR DE PROPIEDAD Y/O AL SERVICIO LA ALCALDÍA LOCAL DE BARRIOS UNIDOS. ","Funcionamiento","Un Nuevo Contrato Social y Ambiental para la Bogotá del Siglo XXI",null,{"$f":"IF(ISERROR(VLOOKUP(K283,Proposito_programa!$C$2:$E$59,2,FALSE)),\" \",VLOOKUP(K283,Proposito_programa!$C$2:$E$59,2,FALSE))","v":" "},{"$f":"IF(ISERROR(VLOOKUP(K283,Proposito_programa!$C$2:$E$59,3,FALSE)),\" \",VLOOKUP(K283,Proposito_programa!$C$2:$E$59,3,FALSE))","v":" "},0,1,830095213,"ORGANIZACION TERPEL S.A.","Persona Jurídica",null,null,null,20018000,null,null,null,20018000,0,"2021-12-14","2021-12-30","2022-12-30",360,null,null,null,null,null,null,null,"X",null,null,0]
[269,2021,"FDLBU-CD-001-2291","https://community.secop.gov.co/Public/Tendering/ContractNoticePhases/View?PPI=CO1.PPI.15978405&isFromPublicArea=True&isModal=False","Contratos de prestación de servicios","Selección abreviada","Selección abreviada por menor cuantía ","DESARROLLAR ACCIONES DE CAPACITACIÓN, ASISTENCIA TÉCNICA, FORTALECIMIENTOY/O APOYO, IMPLEMENTACIÓN Y CONFORMACIÓN DE LA RED DE AGRICULTURA URBANA EN LA LOCALIDAD DE BARRIOS UNIDOS, DE CONFORMIDAD CON EL PROYECTO 2073 REVERDECER EL URBANISMO","Inversión","Un Nuevo Contrato Social y Ambiental para la Bogotá del Siglo XXI",24,{"$f":"IF(ISERROR(VLOOKUP(K284,Proposito_programa!$C$2:$E$59,2,FALSE)),\" \",VLOOKUP(K284,Proposito_programa!$C$2:$E$59,2,FALSE))","v":"Bogotá región emprendedora e innovadora"},{"$f":"IF(ISERROR(VLOOKUP(K284,Proposito_programa!$C$2:$E$59,3,FALSE)),\" \",VLOOKUP(K284,Proposito_programa!$C$2:$E$59,3,FALSE))","v":"Propósito 1: Hacer un nuevo contrato social para incrementar la inclusión social, productiva y política"},"133011601240000002073",4,830053439,"CORPORACION LEXCOM","Persona Jurídica",null,null,null,114620000,null,null,null,114620000,0,"2021-12-29","2021-12-29","2022-04-28",120,null,null,null,null,null,null,null,"X",null,null,0]
[270,2021,"FDLBU-CD-001-2292","https://community.secop.gov.co/Public/Tendering/ContractNoticePhases/View?PPI=CO1.PPI.16011894&isFromPublicArea=True&isModal=False","Contratos de prestación de servicios","Selección abreviada","Selección abreviada por menor cuantía ","REALIZAR LAS ACTIVIDADES NECESARIAS PARA LA ORIENTACIÓN FAMILIAR, LA PROMOCIÓN Y PREVENCIÓN DE LA VIOLENCIA INTRAFAMILIAR Y SEXUAL EN LA LOCALIDAD DE BARRIOS UNIDOS EN EL MARCO DEL PROYECTO 2053 DE BUEN TRATO.","Inversión","Un Nuevo Contrato Social y Ambiental para la Bogotá del Siglo XXI",6,{"$f":"IF(ISERROR(VLOOKUP(K285,Proposito_programa!$C$2:$E$59,2,FALSE)),\" \",VLOOKUP(K285,Proposito_programa!$C$2:$E$59,2,FALSE))","v":"Sistema Distrital de Cuidado"},{"$f":"IF(ISERROR(VLOOKUP(K285,Proposito_programa!$C$2:$E$59,3,FALSE)),\" \",VLOOKUP(K285,Proposito_programa!$C$2:$E$59,3,FALSE))","v":"Propósito 1: Hacer un nuevo contrato social para incrementar la inclusión social, productiva y política"},"133011601060000002053",2,830123782,"FUNDACION XIXA","Persona Jurídica",null,null,null,180626797,null,null,null,180626797,0,"2021-12-29","2021-12-29","2022-03-28",90,null,null,null,null,null,null,null,"X",null,null,0]
[271,2021,"FDLBU-CD-001-2293","https://community.secop.gov.co/Public/Tendering/ContractNoticePhases/View?PPI=CO1.PPI.16047246&isFromPublicArea=True&isModal=False","Contratos de prestación de servicios","Selección abreviada","Selección abreviada por menor cuantía ","PRESTAR LOS SERVICIOS DE OPERADOR LOGÍSTICO Y SUMINISTRO DE LOS INSUMOS NECESARIOS PARA EL DESARROLLO DE LAS ACTIVIDADES EN EL MARCO DEL PROYECTO 2030 “BARRIOS UNIDOS TERRITORIO DE PAZ”","Inversión","Un Nuevo Contrato Social y Ambiental para la Bogotá del Siglo XXI",39,{"$f":"IF(ISERROR(VLOOKUP(K286,Proposito_programa!$C$2:$E$59,2,FALSE)),\" \",VLOOKUP(K286,Proposito_programa!$C$2:$E$59,2,FALSE))","v":"Bogotá territorio de paz y atención integral a las víctimas del conflicto armado"},{"$f":"IF(ISERROR(VLOOKUP(K286,Proposito_programa!$C$2:$E$59,3,FALSE)),\" \",VLOOKUP(K286,Proposito_programa!$C$2:$E$59,3,FALSE))","v":"Propósito 3: Inspirar confianza y legitimidad para vivir sin miedo y ser epicentro de cultura ciudadana, paz y reconciliación"},"133011603390000002030",8,80222117,"MIGUEL ANGEL VALLEJO BURGOS","Persona Natural",null,null,null,136082906,null,null,null,136082906,0,"2021-12-23","2021-12-30","2022-03-29",90,null,null,null,null,null,null,null,"X",null,null,0]
[272,2021,"FDLBU-CD-001-2294","https://community.secop.gov.co/Public/Tendering/ContractNoticePhases/View?PPI=CO1.PPI.15806806&isFromPublicArea=True&isModal=False","Contratos de prestación de servicios","Licitación pública","No aplica","PRESTAR LOS SERVICIOS PROFESIONALES Y DE APOYO LOGÍSTICO PARA FOMENTAR ACTIVIDADES ALTERNATIVAS EN SALUD,  Y ACCIONES DE RECONOCIMIENTO, FORMACIÓN, SENSIBILIZACIÓN Y RESPIRO DESDE LOS ENFOQUES DEL BUEN VIVIR, SOCIAL Y DE DERECHOS, QUE FAVOREZCAN EL DESARROLLO DE LA INDEPENDENCIA, Y EL BIENESTAR FISICO Y EMOCIONAL, Y LA  INTEGRACIÓN SOCIAL DE LAS  PERSONAS CON DISCAPACIDAD, CUIDADORAS Y CUIDADORES, E IMPULSAR LA CREACIÓN Y FORTALECIMIENTO DE DISPOSITIVOS DE BASE COMUNITARIA EN RESPUESTA AL CONSUMO DE SPA”, En La Localidad De Barrios Unidos en el Marco Del Proyecto 2062 Sistema Local Del Cuidado","Inversión","Un Nuevo Contrato Social y Ambiental para la Bogotá del Siglo XXI",6,{"$f":"IF(ISERROR(VLOOKUP(K287,Proposito_programa!$C$2:$E$59,2,FALSE)),\" \",VLOOKUP(K287,Proposito_programa!$C$2:$E$59,2,FALSE))","v":"Sistema Distrital de Cuidado"},{"$f":"IF(ISERROR(VLOOKUP(K287,Proposito_programa!$C$2:$E$59,3,FALSE)),\" \",VLOOKUP(K287,Proposito_programa!$C$2:$E$59,3,FALSE))","v":"Propósito 1: Hacer un nuevo contrato social para incrementar la inclusión social, productiva y política"},"133011601060000002062",4,830135007,"PRISMA PROMOCIÓN Y PREVENCIÓN EN SALUD MENTAL","Persona Jurídica",null,null,null,660820000,null,null,null,660820000,0,"2021-12-28","2022-01-18","2022-07-17",180,null,null,null,null,null,null,null,"X",null,null,0]
[273,2021,"FDLBU-CD-001-2295","https://community.secop.gov.co/Public/Tendering/OpportunityDetail/Index?noticeUID=CO1.NTC.2462273&isFromPublicArea=True&isModal=False","Contratos de prestación de servicios","Contratación mínima cuantia","No aplica","PRESTAR EL SERVICIO DE REVISIÓN, MANTENIMIENTO Y RECARGA DE LOS EXTINTORES DEL FONDO DE DESARROLLO LOCAL BARRIOS UNIDOS","Funcionamiento","Un Nuevo Contrato Social y Ambiental para la Bogotá del Siglo XXI",null,{"$f":"IF(ISERROR(VLOOKUP(K288,Proposito_programa!$C$2:$E$59,2,FALSE)),\" \",VLOOKUP(K288,Proposito_programa!$C$2:$E$59,2,FALSE))","v":" "},{"$f":"IF(ISERROR(VLOOKUP(K288,Proposito_programa!$C$2:$E$59,3,FALSE)),\" \",VLOOKUP(K288,Proposito_programa!$C$2:$E$59,3,FALSE))","v":" "},0,null,900529261,"MANPOWER COMPAÑÍA INTEGRAL DE SERVICIOS S.A.S. – MANPOWER CIS S.A.S","Persona Jurídica",null,null,null,1396655,null,null,null,1396655,0,"2021-12-30","2022-01-03","2022-02-02",30,null,null,null,null,null,null,null,null,"X",null,0]
[274,2021,"FDLBU-CD-001-2296","https://community.secop.gov.co/Public/Tendering/ContractNoticePhases/View?PPI=CO1.PPI.15837641&isFromPublicArea=True&isModal=False  ","Obra pública","Licitación pública","No aplica","CONTRATAR POR EL SISTEMA DE PRECIOS UNITARIOS FIJOS SIN FÓRMULA DE REAJUSTE Y A MONTO AGOTABLE LAS OBRAS Y ACTIVIDADES NECESARIAS PARA LA CONSERVACIÓN DE LA CICLOINFRAESTRUCTURA DE LA LOCALIDAD DE BARRIOS UNIDOS, EN BOGOTÁ D.C.","Inversión","Un Nuevo Contrato Social y Ambiental para la Bogotá del Siglo XXI",49,{"$f":"IF(ISERROR(VLOOKUP(K289,Proposito_programa!$C$2:$E$59,2,FALSE)),\" \",VLOOKUP(K289,Proposito_programa!$C$2:$E$59,2,FALSE))","v":"Movilidad segura, sostenible y accesible"},{"$f":"IF(ISERROR(VLOOKUP(K289,Proposito_programa!$C$2:$E$59,3,FALSE)),\" \",VLOOKUP(K289,Proposito_programa!$C$2:$E$59,3,FALSE))","v":"Propósito 4: Hacer de Bogotá Región un modelo de movilidad multimodal, incluyente y sostenible"},"133011604490000002022",4,901535909,"CONSORCIO CCA SEÑALIZACIÓN","Consorcio","HERMES MAURICIO GARCIA BELTRAN",79574741,0.4,790423297,null,null,null,790423297,0,"2021-12-29",null,null,150,null,null,null,null,null,null,"X",null,null,null,0]
[275,2021,"FDLBU-CD-001-2297","https://community.secop.gov.co/Public/Tendering/ContractNoticePhases/View?PPI=CO1.PPI.16040478&isFromPublicArea=True&isModal=False","Interventoría","Concurso de méritos","No aplica","EJECUTAR LA INTERVENTORÍA TÉCNICA, ADMINISTRATIVA, LEGAL, FINANCIERA, SOCIAL, AMBIENTAL Y DE SEGURIDAD Y SALUD EN EL TRABAJO AL CONTRATO DE OBRA CUYO OBJETO ES: CONTRATAR POR EL SISTEMA DE PRECIOS UNITARIOS FIJOS SIN FÓRMULA DE REAJUSTE Y A MONTO AGOTABLE LAS OBRAS Y ACTIVIDADES NECESARIAS PARA LA CONSERVACIÓN DE LA CICLOINFRAESTRUCTURA DE LA LOCALIDAD DE BARRIOS UNIDOS, EN BOGOTÁ D.C","Inversión","Un Nuevo Contrato Social y Ambiental para la Bogotá del Siglo XXI",49,{"$f":"IF(ISERROR(VLOOKUP(K290,Proposito_programa!$C$2:$E$59,2,FALSE)),\" \",VLOOKUP(K290,Proposito_programa!$C$2:$E$59,2,FALSE))","v":"Movilidad segura, sostenible y accesible"},{"$f":"IF(ISERROR(VLOOKUP(K290,Proposito_programa!$C$2:$E$59,3,FALSE)),\" \",VLOOKUP(K290,Proposito_programa!$C$2:$E$59,3,FALSE))","v":"Propósito 4: Hacer de Bogotá Región un modelo de movilidad multimodal, incluyente y sostenible"},"133011604490000002022",3,830028126,"R&M CONSTRUCCIONES E INTERVENTORIAS S.A.S","Persona Jurídica",null,null,null,82931242,null,null,null,{"$f":"+V290+W290+Y290","v":82931242},0,"2021-12-29",null,null,150,null,null,null,null,null,null,"X",null,null,null,0]
[276,2021,"FDLBU-CD-001-2298","https://community.secop.gov.co/Public/Tendering/OpportunityDetail/Index?noticeUID=CO1.NTC.2466829&isFromPublicArea=True&isModal=False","Compraventa de bienes muebles","Contratación mínima cuantia","No aplica","ADQUISICIÓN DE CHAQUETAS INSTITUCIONALES DISTINTIVAS PARA LA ALCALDÍA LOCAL DE BARRIOS UNIDOS, DE ACUERDO CON LAS ESPECIFICACIONES TÉCNICAS DEFINIDAS POR LA ENTIDAD","Funcionamiento","Un Nuevo Contrato Social y Ambiental para la Bogotá del Siglo XXI",null,{"$f":"IF(ISERROR(VLOOKUP(K291,Proposito_programa!$C$2:$E$59,2,FALSE)),\" \",VLOOKUP(K291,Proposito_programa!$C$2:$E$59,2,FALSE))","v":" "},{"$f":"IF(ISERROR(VLOOKUP(K291,Proposito_programa!$C$2:$E$59,3,FALSE)),\" \",VLOOKUP(K291,Proposito_programa!$C$2:$E$59,3,FALSE))","v":" "},0,null,900990752,"PROYECTOS INSTITUCIONALES DE COLOMBIA SAS. - PROINCOL JK SAS","Persona Jurídica",null,null,null,6280820,null,null,null,{"$f":"+V291+W291+Y291","v":6280820},0,"2021-12-30","2022-01-03","2022-02-17",45,null,null,null,null,null,null,null,"X",null,null,0]
[277,2021,"FDLBU-CD-001-2299","https://community.secop.gov.co/Public/Tendering/OpportunityDetail/Index?noticeUID=CO1.NTC.2425721&isFromPublicArea=True&isModal=False","Obra pública","Licitación pública","No aplica","EJECUTAR A PRECIOS UNITARIOS SIN FORMULA DE REAJUSTE EL MANTENIMIENTO PREVENTIVO Y/O CORRECTIVO Y ADECUACIÓN DE LA CASA DE LA CULTURA","Inversión","Un Nuevo Contrato Social y Ambiental para la Bogotá del Siglo XXI",21,{"$f":"IF(ISERROR(VLOOKUP(K292,Proposito_programa!$C$2:$E$59,2,FALSE)),\" \",VLOOKUP(K292,Proposito_programa!$C$2:$E$59,2,FALSE))","v":"Creación y vida cotidiana: Apropiación ciudadana del arte, la cultura y el patrimonio, para la democracia cultural"},{"$f":"IF(ISERROR(VLOOKUP(K292,Proposito_programa!$C$2:$E$59,3,FALSE)),\" \",VLOOKUP(K292,Proposito_programa!$C$2:$E$59,3,FALSE))","v":"Propósito 1: Hacer un nuevo contrato social para incrementar la inclusión social, productiva y política"},"133011601210000002012",5,901319735,"BRACO COMPANY SAS ZOMAC","Persona Jurídica",null,null,null,479898602,null,null,null,{"$f":"+V292+W292+Y292","v":479898602},0,"2021-12-30",null,null,80,null,null,null,null,null,null,"X",null,null,null,0]
[278,2021,"FDLBU-CD-001-2300","https://community.secop.gov.co/Public/Tendering/ContractNoticePhases/View?PPI=CO1.PPI.15893276&isFromPublicArea=True&isModal=False","Contratos de prestación de servicios","Licitación pública","No aplica","PRESTAR LOS SERVICIOS PARA DESARROLLAR LAS ACTIVIDADES DE MANTENIMIENTO Y PLANTACIÓN DE ARBOLADO URBANO EN LA LOCALIDAD DE BARRIOS UNIDOS, EN EL MARCO DEL PROYECTO 2146 ‘VERDE PARA BARRIOS UNIDOS’\n","Inversión","Un Nuevo Contrato Social y Ambiental para la Bogotá del Siglo XXI",33,{"$f":"IF(ISERROR(VLOOKUP(K293,Proposito_programa!$C$2:$E$59,2,FALSE)),\" \",VLOOKUP(K293,Proposito_programa!$C$2:$E$59,2,FALSE))","v":"Más árboles y más y mejor espacio público"},{"$f":"IF(ISERROR(VLOOKUP(K293,Proposito_programa!$C$2:$E$59,3,FALSE)),\" \",VLOOKUP(K293,Proposito_programa!$C$2:$E$59,3,FALSE))","v":"Propósito 2 : Cambiar Nuestros Hábitos de Vida para Reverdecer a Bogotá y Adaptarnos y Mitigar la Crisis Climática"},"133011602330000002146",15,830032102,"ECOFLORA S.A.S.","Persona Jurídica",null,null,null,283465805,null,null,null,{"$f":"+V293+W293+Y293","v":283465805},0,"2021-12-30","2022-01-12","2022-05-11",120,null,null,null,null,null,null,null,"X",null,null,0]
[null,2021,null,null,"Otros gastos","Otros gastos","No aplica","SERVICIOS PUBLICOS","Funcionamiento","Un Nuevo Contrato Social y Ambiental para la Bogotá del Siglo XXI",null,null,null,null,null,null,"CODENSA, ACUEDUCTO, BOGOTA LIMPIA","Persona Jurídica",null,null,null,61518035,-448703,null,null,61069332,58163172]
[null,2021,null,null,"Otros gastos","Otros gastos","No aplica","HONORARIOS EDILES LOCALIDAD","Funcionamiento","Un Nuevo Contrato Social y Ambiental para la Bogotá del Siglo XXI",null,null,null,null,null,null,"HONORARIOS EDILES LOCALIDAD",null,null,null,null,826136064,-2,null,null,826136062,826136062]
[null,2021,null,null,"Otros gastos","Otros gastos","No aplica","SALUD EDILES DE LA LOCALIDAD","Funcionamiento","Un Nuevo Contrato Social y Ambiental para la Bogotá del Siglo XXI",null,null,null,null,null,null,"SALUD EDILES LOCALIDAD",null,null,null,null,104693000,-1423400,null,null,103269600,103269600]
[null,2021,null,null,"Otros gastos","Otros gastos","No aplica","OBLIGACIONES POR PAGAR FUNCIONAMIENTO","Funcionamiento","Un Nuevo Contrato Social y Ambiental para la Bogotá del Siglo XXI",null,null,null,null,null,null,"OBLIGACIONES POR PAGAR AÑOS ANTERIORES",null,null,null,null,469512668,-30656175,null,null,438856493,427461968]
[104,2020,"FDLBU-MC-111-2020","https://community.secop.gov.co/Public/Tendering/ContractNoticePhases/View?PPI=CO1.PPI.6784390&isFromPublicArea=True&isModal=False","Contratos de prestación de servicios","Contratación mínima cuantia","No aplica","ADICION Y PRORROGA 01 CONTRATO 104 DE 2020: “CONTRATAR EL SERVICIO DE MANTENIMIENTO PREVENTIVO Y CORRECTIVO, SUMINISTRO DE REPUESTOS E INSUMOS, PARA LOS VEHICULOS DE EL FONDO DE DESARROLLO LOCAL DE BARRIOS UNIDOS O A LOS QUE LLEGARE A SER RESPONSABLE DURANTE LA VIGENCIA DEL CONTRATO.”","Funcionamiento","Un Nuevo Contrato Social y Ambiental para la Bogotá del Siglo XXI",null,null,null,0,null,"800250589","CENTRO CAR 19 LIMITADA","Persona Jurídica",null,null,null,null,null,null,8233264,8233264,7782012]
[159,2020,"FDLBU-SAMC-148-2020","https://community.secop.gov.co/Public/Tendering/ContractNoticePhases/View?PPI=CO1.PPI.8427241&isFromPublicArea=True&isModal=False","Seguros","Selección abreviada","No aplica","Adición y prórroga al contrato de seguros 159 de 2020 con objeto “Contratar los seguros que amparen los intereses patrimoniales actuales y futuros, así como los bienes de propiedad del fondo de desarrollo local de barrios unidos, que estén bajo su responsabilidad y custodia y aquellos que sean adquiridos para desarrollar las funciones inherentes a su actividad, así como la expedición de cualquier otra póliza de seguros que requiera la entidad en el desarrollo de su actividad”","Funcionamiento","Un Nuevo Contrato Social y Ambiental para la Bogotá del Siglo XXI",null,null,null,0,null,"860002400","LA PREVISORA S A COMPAÑIA DE SEGUROS","Persona Jurídica",null,null,null,null,null,null,6022459,6022459,6022459]
[219,2020,"FDLBU-SASI-222-2020","https://community.secop.gov.co/Public/Tendering/ContractNoticePhases/View?PPI=CO1.PPI.9306015&isFromPublicArea=True&isModal=False","Contratos de prestación de servicios","Selección abreviada","No aplica","ADICION Y PRORROGA 01 AL CONTRATO 219 DE 2020: PRESTACIÓN DEL SERVICIO DE VIGILANCIA Y SEGURIDAD PRIVADA PARA LAS INSTALACIONES DEL FONDO DE DESARROLLO LOCAL DE BARRIOS UNIDOS.","Funcionamiento","Un Nuevo Contrato Social y Ambiental para la Bogotá del Siglo XXI",null,null,null,0,null,"901411081","UNION TEMPORAL SK","Persona Jurídica",null,null,null,null,null,null,115524542,115524542,115221636]
[225,2019,"FDLBU-CD-147-2019","https://www.contratos.gov.co/consultas/detalleProceso.do?numConstancia=19-12-10065412","Contratos de prestación de servicios","Contratación directa","No aplica","ADICION Y PRORRGA CONTRATAR EL SERVICIO DE MENSAJERIA ESPECIALIZADA Y/O EXPRESA PARA LA ALCALDIA LOCAL DE BARRIOS UNIDOS.","Funcionamiento","Un Nuevo Contrato Social y Ambiental para la Bogotá del Siglo XXI",null,null,null,0,null,"900062917","SERVICIOS POSTALES NACIONALES S A","Persona Jurídica",null,null,null,null,null,null,38778551,38778551,0]
[226,2020,"FDLBU-MC-240-2020","https://community.secop.gov.co/Public/Tendering/ContractNoticePhases/View?PPI=CO1.PPI.10472087&isFromPublicArea=True&isModal=False","Seguros","Contratación mínima cuantia","No aplica","ADICION Y PRORROGA 01 AL CONTRATO 226 DE 2020: CONTRATAR EL SEGURO DE VIDA PARA LOS EDILES DEL FONDO DE DESARROLLO LOCAL DE BARRIOS UNIDOS.","Funcionamiento","Un Nuevo Contrato Social y Ambiental para la Bogotá del Siglo XXI",null,null,null,0,null,"860011153","POSITIVA COMPAÑIA DE SEGUROS SA","Persona Jurídica",null,null,null,null,null,null,1130097,1130097,1130097]
["OC58931",2020,"OC58931","https://www.colombiacompra.gov.co/tienda-virtual-del-estado-colombiano/ordenes-compra/58931","Otros","Selección abreviada","Acuerdo marco de precios ","ADICION 01 AL ORDEN DE COMPRA 58931: CONTRATAR EL ARRENDAMIENTO DE IMPRESORAS MULTIFUNCIONALES CON DESTINO ALAS DIFERENTES DEPENDENCIAS DEL FONDO DE DESARROLLO DE BARRIOS UNIDOS.","Funcionamiento","Un Nuevo Contrato Social y Ambiental para la Bogotá del Siglo XXI",null,null,null,0,null,"830044858","PC COM S A","Persona Jurídica",null,null,null,null,null,null,5665530,5665530,663665]
[null,2021,null,null,"Otros gastos","Otros gastos","No aplica","ASEGURAR LOS RECURSOS PARA EL PAGO DEL BONO DE SUBSIDIO C HASTA EL MES DE JUNIO DEL 2021 CUYA COBERTURA ES COBIJADA A TRAVÉS DE LA RESOLUCIÓN 042 DEL 6 DE JULIO DE 2020 EN LA CUAL SE AMPLIA EL PLAZO DE EJECUCIÓN DEL CONVENIO MARCO DE ASOCIACIÓN No. 4002. SEGUN RESOLUCION 008 DE 2021: Por medio de la cual se ordena el gasto y pago correspondiente al Proyecto 2144 \" Gobierno Solidario\". Componente: SUBSIDIO TIPO C, ADULTO MAYOR \" Vigencia 2021","Inversión","Un Nuevo Contrato Social y Ambiental para la Bogotá del Siglo XXI",1,{"$f":"IF(ISERROR(VLOOKUP(K304,Proposito_programa!$C$2:$E$59,2,FALSE)),\" \",VLOOKUP(K304,Proposito_programa!$C$2:$E$59,2,FALSE))","v":"Subsidios y transferencias para la equidad"},{"$f":"IF(ISERROR(VLOOKUP(K304,Proposito_programa!$C$2:$E$59,3,FALSE)),\" \",VLOOKUP(K304,Proposito_programa!$C$2:$E$59,3,FALSE))","v":"Propósito 1: Hacer un nuevo contrato social para incrementar la inclusión social, productiva y política"},"133011601010000002144",null,"860066942","CAJA DE COMPENSACION FAMILIAR COMPENSAR","Persona Jurídica",null,null,null,405625000,null,null,null,405625000,403750000]
[null,2021,null,null,"Otros gastos","Otros gastos","No aplica","ASEGURAR LOS RECURSOS PARA EL PAGO DE LOS COSTOS OPERATIVOS HASTA EL MES DE JUNIO DEL 2021 CUYA COBERTURA ES COBIJADA A TRAVÉS DE LA RESOLUCIÓN 043 DEL 6 DE JULIO DE 2020 EN LA CUAL SE AMPLIA EL PLAZO DE EJECUCIÓN DEL CONVENIO MARCO DE ASOCIACIÓN No. 4002. SEGUN RESOLUCION 009 DE 2021:  Por medio de la cual se ordena el gasto y pago de las COSTOS OPERATIVOS correspondientes a los que se causen en el desarrollo del Convenio MARCO DE ASOCIACION No. 4002 del 19 de diciembre de 2011, celebrado entre la SECRETARIA DE INTEGRACION SOCIAL - SDIS, EL FONDO DE DESARROLLO LOCAL BARRIOS UNIDOS y la caja de compensación familiar COMPENSAR en el marco del proyecto 2144 \" Gobierno Solidario\". Componente: SUBSIDIO TIPO C, ADULTO MAYOR \" Vigencia 2021”","Inversión","Un Nuevo Contrato Social y Ambiental para la Bogotá del Siglo XXI",1,{"$f":"IF(ISERROR(VLOOKUP(K305,Proposito_programa!$C$2:$E$59,2,FALSE)),\" \",VLOOKUP(K305,Proposito_programa!$C$2:$E$59,2,FALSE))","v":"Subsidios y transferencias para la equidad"},{"$f":"IF(ISERROR(VLOOKUP(K305,Proposito_programa!$C$2:$E$59,3,FALSE)),\" \",VLOOKUP(K305,Proposito_programa!$C$2:$E$59,3,FALSE))","v":"Propósito 1: Hacer un nuevo contrato social para incrementar la inclusión social, productiva y política"},"133011601010000002144",null,"860066942","CAJA DE COMPENSACION FAMILIAR COMPENSAR","Persona Jurídica",null,null,null,6000000,null,null,null,6000000,5240357]
[null,2021,null,null,"Otros gastos","Otros gastos","No aplica","Por el cual se autoriza la transferencia de recursos del Fondo de Desarrollo Local de Barrios Unidos con destino al Sistema Distrital Bogotá Solidaria a través de la Dirección Distrital de Tesorería - Secretaria de Hacienda Distrital. Para entregar apoyos que contribuyan al ingreso mínimo garantizado a los hogares pobres de la localidad. SEGUN RESOLUCION 012 DE 22 DE FEBRERO DE 2021.","Inversión","Un Nuevo Contrato Social y Ambiental para la Bogotá del Siglo XXI",1,{"$f":"IF(ISERROR(VLOOKUP(K306,Proposito_programa!$C$2:$E$59,2,FALSE)),\" \",VLOOKUP(K306,Proposito_programa!$C$2:$E$59,2,FALSE))","v":"Subsidios y transferencias para la equidad"},{"$f":"IF(ISERROR(VLOOKUP(K306,Proposito_programa!$C$2:$E$59,3,FALSE)),\" \",VLOOKUP(K306,Proposito_programa!$C$2:$E$59,3,FALSE))","v":"Propósito 1: Hacer un nuevo contrato social para incrementar la inclusión social, productiva y política"},"133011601010000002144",null,"899999061","FONDO DE DESARROLLO LOCAL DE BARRIOS UNI DOS","Persona Jurídica",null,null,null,2577120000,null,null,null,2577120000,2577120000]
[null,2021,null,null,"Otros gastos","Otros gastos","No aplica","Por el cual se autoriza la transferencia de recursos del Fondo de Desarrollo Local de Barrios Unidos con destino al Sistema Distrital Bogotá Solidaria a través de la Dirección Distrital de Tesorería - Secretaria de Hacienda Distrital. Para entregar apoyos que contribuyan al ingreso mínimo garantizado a los hogares pobres de la localidad. Según resolución 028 de 2021.","Inversión","Un Nuevo Contrato Social y Ambiental para la Bogotá del Siglo XXI",1,{"$f":"IF(ISERROR(VLOOKUP(K307,Proposito_programa!$C$2:$E$59,2,FALSE)),\" \",VLOOKUP(K307,Proposito_programa!$C$2:$E$59,2,FALSE))","v":"Subsidios y transferencias para la equidad"},{"$f":"IF(ISERROR(VLOOKUP(K307,Proposito_programa!$C$2:$E$59,3,FALSE)),\" \",VLOOKUP(K307,Proposito_programa!$C$2:$E$59,3,FALSE))","v":"Propósito 1: Hacer un nuevo contrato social para incrementar la inclusión social, productiva y política"},"133011601010000002144",null,"899999061","FONDO DE DESARROLLO LOCAL DE BARRIOS UNI DOS","Persona Jurídica",null,null,null,595366076,null,null,null,595366076,595366076]
[null,2021,null,null,"Otros gastos","Otros gastos","No aplica","Cubrir el pago mensual del subsidio C a 649 adultos mayores, durante los meses de julio a diciembre (6 meses). Segun Resolución 075 de 2021.","Inversión","Un Nuevo Contrato Social y Ambiental para la Bogotá del Siglo XXI",1,{"$f":"IF(ISERROR(VLOOKUP(K308,Proposito_programa!$C$2:$E$59,2,FALSE)),\" \",VLOOKUP(K308,Proposito_programa!$C$2:$E$59,2,FALSE))","v":"Subsidios y transferencias para la equidad"},{"$f":"IF(ISERROR(VLOOKUP(K308,Proposito_programa!$C$2:$E$59,3,FALSE)),\" \",VLOOKUP(K308,Proposito_programa!$C$2:$E$59,3,FALSE))","v":"Propósito 1: Hacer un nuevo contrato social para incrementar la inclusión social, productiva y política"},"133011601010000002144",null,"860066942","CAJA DE COMPENSACION FAMILIAR COMPENSAR","Persona Jurídica",null,null,null,502975000,null,null,null,502975000,501045000]
[null,2021,null,null,"Otros gastos","Otros gastos","No aplica","Cubrir el pago mensual de Costos Operativos para el funcionamiento del subsidio C, durante los meses de julio a diciembre (6 meses). Segun resolución 076 de 2021.","Inversión","Un Nuevo Contrato Social y Ambiental para la Bogotá del Siglo XXI",1,{"$f":"IF(ISERROR(VLOOKUP(K309,Proposito_programa!$C$2:$E$59,2,FALSE)),\" \",VLOOKUP(K309,Proposito_programa!$C$2:$E$59,2,FALSE))","v":"Subsidios y transferencias para la equidad"},{"$f":"IF(ISERROR(VLOOKUP(K309,Proposito_programa!$C$2:$E$59,3,FALSE)),\" \",VLOOKUP(K309,Proposito_programa!$C$2:$E$59,3,FALSE))","v":"Propósito 1: Hacer un nuevo contrato social para incrementar la inclusión social, productiva y política"},"133011601010000002144",null,"860066942","CAJA DE COMPENSACION FAMILIAR COMPENSAR","Persona Jurídica",null,null,null,7200000,null,null,null,7200000,4246346]
[null,2021,null,null,"Otros gastos","Otros gastos","No aplica","CDP PARA PAGO ARL DE CONTRATISTAS CON RIESGO CUATRO Y CINCO. CORRESPONDIENTE A LA VIGENCIA 2021. SEGUN PLANILLA 48596621.","Inversión","Un Nuevo Contrato Social y Ambiental para la Bogotá del Siglo XXI",57,{"$f":"IF(ISERROR(VLOOKUP(K310,Proposito_programa!$C$2:$E$59,2,FALSE)),\" \",VLOOKUP(K310,Proposito_programa!$C$2:$E$59,2,FALSE))","v":"Gestión pública local"},{"$f":"IF(ISERROR(VLOOKUP(K310,Proposito_programa!$C$2:$E$59,3,FALSE)),\" \",VLOOKUP(K310,Proposito_programa!$C$2:$E$59,3,FALSE))","v":"Propósito 5: Construir Bogotá - Región con gobierno abierto, transparente y ciudadanía consciente"},"133011605570000002143",null,"860011153","POSITIVA COMPAÑIA DE SEGUROS SA","Persona Jurídica",null,null,null,44571241,null,null,null,44571241,37275413]
[null,2021,null,null,"Otros gastos","Otros gastos","No aplica","CDP PARA PAGO ARL DE CONTRATISTAS CON RIESGO CUATRO Y CINCO. CORRESPONDIENTE A LA VIGENCIA 2021. SEGUN PLANILLA 48596621.","Inversión","Un Nuevo Contrato Social y Ambiental para la Bogotá del Siglo XXI",43,{"$f":"IF(ISERROR(VLOOKUP(K311,Proposito_programa!$C$2:$E$59,2,FALSE)),\" \",VLOOKUP(K311,Proposito_programa!$C$2:$E$59,2,FALSE))","v":"Cultura ciudadana para la confianza, la convivencia y la participación desde la vida cotidiana"},{"$f":"IF(ISERROR(VLOOKUP(K311,Proposito_programa!$C$2:$E$59,3,FALSE)),\" \",VLOOKUP(K311,Proposito_programa!$C$2:$E$59,3,FALSE))","v":"Propósito 3: Inspirar confianza y legitimidad para vivir sin miedo y ser epicentro de cultura ciudadana, paz y reconciliación"},"133011603430000002149",null,"860011153","POSITIVA COMPAÑIA DE SEGUROS SA","Persona Jurídica",null,null,null,4328858,null,null,null,4328858,3940148]
[null,2021,null,null,"Otros gastos","Otros gastos","No aplica","CDP PARA PAGO ARL DE CONTRATISTAS CON RIESGO CUATRO Y CINCO. CORRESPONDIENTE A LA VIGENCIA 2021. SEGUN PLANILLA 48596621.","Inversión","Un Nuevo Contrato Social y Ambiental para la Bogotá del Siglo XXI",48,{"$f":"IF(ISERROR(VLOOKUP(K312,Proposito_programa!$C$2:$E$59,2,FALSE)),\" \",VLOOKUP(K312,Proposito_programa!$C$2:$E$59,2,FALSE))","v":"Plataforma institucional para la seguridad y justicia"},{"$f":"IF(ISERROR(VLOOKUP(K312,Proposito_programa!$C$2:$E$59,3,FALSE)),\" \",VLOOKUP(K312,Proposito_programa!$C$2:$E$59,3,FALSE))","v":"Propósito 3: Inspirar confianza y legitimidad para vivir sin miedo y ser epicentro de cultura ciudadana, paz y reconciliación"},"133011603480000002153",null,"860011153","POSITIVA COMPAÑIA DE SEGUROS SA","Persona Jurídica",null,null,null,3234788,null,null,null,3234788,1791586]
[null,2021,null,null,"Otros gastos","Otros gastos","No aplica","CDP PARA PAGO ARL DE CONTRATISTAS CON RIESGO CUATRO Y CINCO. CORRESPONDIENTE A LA VIGENCIA 2021. SEGUN PLANILLA 48596621.","Inversión","Un Nuevo Contrato Social y Ambiental para la Bogotá del Siglo XXI",49,{"$f":"IF(ISERROR(VLOOKUP(K313,Proposito_programa!$C$2:$E$59,2,FALSE)),\" \",VLOOKUP(K313,Proposito_programa!$C$2:$E$59,2,FALSE))","v":"Movilidad segura, sostenible y accesible"},{"$f":"IF(ISERROR(VLOOKUP(K313,Proposito_programa!$C$2:$E$59,3,FALSE)),\" \",VLOOKUP(K313,Proposito_programa!$C$2:$E$59,3,FALSE))","v":"Propósito 4: Hacer de Bogotá Región un modelo de movilidad multimodal, incluyente y sostenible"},"133011604490000002022",null,"860011153","POSITIVA COMPAÑIA DE SEGUROS SA","Persona Jurídica",null,null,null,2357753,null,null,null,2357753,2057753]
[null,null,null,null,null,null,null,null,null,null,null,null,null,null,null,null,null,null,null,null,null,null,null,null,null,null,{"$f":"SUBTOTAL(9,AA14:AA313)","v":15760471903}]
[null,null,null,null,null,null,null,null,null,null,null,null,null,null,null,null,null,null,null,null,null,null,null,null,null,null,13703234346]
[null,null,null,null,null,null,null,null,null,null,null,null,null,null,null,null,null,null,null,null,null,null,null,null,null,null,{"$f":"AA315-AA314","v":-2057237557}]

{"sheet":"Observaciones y revisión BOGDAT","index":1,"n_rows":117,"n_cols":9,"rows_kept":117,"cut":false,"hidden":false,"merged":[[0,0,0,1],[8,2,8,4],[8,5,8,8]]}
["OBSERVACIONES"]
[1,"Contratos con valor final en \"cero\" deben ser eliminados."]
[2,"la columna de \"afectación\" no debe tener celdas vacias"]
[3,"Numeros de proyectos deben ir con los 7ultimos digitos"]
[4,"se debe diligenciar numero de proponentes"]
[]
[]
[]
[null,null,"BOGDATA",null,null,"SUMATORIA FORMATO"]
[null,null,"DISPONIBLE","COMPROMETIDO","GIROS ACUMULADOS","COMPROMETIDO","DIFERENCIA","GIROS ACUMULADOS","DIFERENCIA"]
["131","GASTOS DE FUNCIONAMIENTO",2610512668,2386596019,2057237557,781910089,{"$f":"+D11-F11","v":1604685930},747201751,{"$f":"+E11-H11","v":1310035806}]
["13301","DIRECTA",22394138000,20847240668,13703234346,17723230020,{"$f":"+D12-F12","v":3124010648},8671208939,{"$f":"+E12-H12","v":5032025407}]
["1330116","Un Nuevo Contrato Social y Ambiental para la Bogotá del Siglo XXI",22394138000,20847240668,13703234346,null,20847240668,null,{"$f":"+E13-H13","v":13703234346}]
["133011601","Hacer un nuevo contrato social con igualdad de oportunidades para la inclusión social, productiva y política",12579866076,11635208027,8731355791,7486529919,4148678108,3694596749,{"$f":"+E14-H14","v":5036759042}]
["13301160101","Subsidios y transferencias para la equidad",4159602076,4159602076,4134778779,null,4159602076,null,{"$f":"+E15-H15","v":4134778779}]
["133011601010000002144","Gobierno solidario",4159602076,4159602076,4134778779,null,4159602076,null,4134778779]
["13301160106","Sistema Distrital del Cuidado",3238231000,3077486034,1644883979,null,3077486034,null,1644883979]
["133011601060000002053","Buen trato",315226000,219956797,32338000,null,219956797,null,32338000]
["133011601060000002062","Sistema Local de Cuidado",1089918000,1055958640,79838367,null,1055958640,null,79838367]
["133011601060000002135","Impulsemos Economía Local",1833087000,1801570597,1532707612,null,1801570597,null,1532707612]
["13301160108","Prevención y atención de maternidad temprana",214927000,130953566,112460800,null,130953566,null,112460800]
["133011601080000002151","Educación para decidir",214927000,130953566,112460800,null,130953566,null,112460800]
["13301160112","Educación inicial: Bases sólidas para la vida",429854000,281515000,34960000,null,281515000,null,34960000]
["133011601120000002026","Primeros pasos",429854000,281515000,34960000,null,281515000,null,34960000]
["13301160117","Jóvenes con capacidades: Proyecto de vida para la ciudadanía, la innovación y el trabajo del siglo XXI",2181653000,2125301356,1756061500,null,2125301356,null,1756061500]
["133011601170000002027","Nasqua",2181653000,2125301356,1756061500,null,2125301356,null,1756061500]
["13301160120","Bogotá, referente en cultura, deporte, recreación y actividad física, con parques para el desarrollo y la salud",279883000,265492520,180395749,null,265492520,null,180395749]
["133011601200000002044","Deporte y recreación para el desarrollo social",279883000,265492520,180395749,null,265492520,null,180395749]
["13301160121","Creación y vida cotidiana: Apropiación ciudadana del arte, la cultura y el patrimonio, para la democracia cultural",1495891000,1165468875,571486384,null,1165468875,null,571486384]
["133011601210000002012","Cultura para el desarrollo social",1495891000,1165468875,571486384,null,1165468875,null,571486384]
["13301160124","Bogotá región emprendedora e innovadora",579825000,429388600,296328600,null,429388600,null,296328600]
["133011601240000002017","Emprendimiento cultural para el desarrollo social",257912000,253723000,247750667,null,253723000,null,247750667]
["133011601240000002073","Reverdecer el urbanismo",321913000,175665600,48577933,null,175665600,null,48577933]
["133011602","Cambiar nuestros hábitos de vida para reverdecer a Bogotá y adaptarnos y mitigar la crisis climática",1827462000,1578891144,334262933,1549821144,29070000,326103267,8159666]
["13301160227","Cambio cultural para la gestión de la crisis climática",453735000,436067072,50303334,null,436067072,null,50303334]
["133011602270000002011","Aprendamos para cuidar la naturaleza",453735000,436067072,50303334,null,436067072,null,50303334]
["13301160228","Bogotá protectora de sus recursos naturales",272241000,272241000,24858333,null,272241000,null,24858333]
["133011602280000002009","Respeta y conéctate con la naturaleza",272241000,272241000,24858333,null,272241000,null,24858333]
["13301160230","Eficiencia en la atención de emergencias",101254000,96149200,82698800,null,96149200,null,82698800]
["133011602300000002103","Acciones efectivas para prevenir",101254000,96149200,82698800,null,96149200,null,82698800]
["13301160233","Más árboles y más y mejor espacio público",342928000,295276305,9085000,null,295276305,null,9085000]
["133011602330000002146","Verde para Barrios Unidos",342928000,295276305,9085000,null,295276305,null,9085000]
["13301160234","Bogotá protectora de los animales",323913000,289155334,61136999,null,289155334,null,61136999]
["133011602340000002008","Nirvana",323913000,289155334,61136999,null,289155334,null,61136999]
["13301160238","Ecoeficiencia, reciclaje, manejo de residuos e inclusión de la población recicladora",333391000,190002233,106180467,null,190002233,null,106180467]
["133011602380000002082","Barrios Unidos contra el cabio climático",333391000,190002233,106180467,null,190002233,null,106180467]
["133011603","Inspirar confianza y legitimidad para vivir sin miedo y ser epicentro de cultura ciudadana, paz y reconciliación",1843596000,1636374985,1129102152,2067887339,-431512354,1175188067,-46085915]
["13301160339","Bogotá territorio de paz y atención integral a las víctimas del conflicto armado",467108000,273670006,113398233,null,273670006,null,113398233]
["133011603390000002030","Barrios Unidos territorio de paz",467108000,273670006,113398233,null,273670006,null,113398233]
["13301160340","Más mujeres viven una vida libre de violencias, se sienten seguras y acceden con confianza al sistema de justicia",554989000,554989000,363413433,null,554989000,null,363413433]
["133011603400000002057","Yuliana Samboni",554989000,554989000,363413433,null,554989000,null,363413433]
["13301160343","Cultura ciudadana para la confianza, la convivencia y la participación desde la vida cotidiana",160479000,159806858,143379648,null,159806858,null,143379648]
["133011603430000002149","Por una localidad segura y resiliente",160479000,159806858,143379648,null,159806858,null,143379648]
["13301160345","Espacio público más seguro y construido colectivamente",541616000,541578333,420692619,null,541578333,null,420692619]
["133011603450000002038","Acuerdos en comunidad",541616000,541578333,420692619,null,541578333,null,420692619]
["13301160348","Plataforma institucional para la seguridad y justicia",119404000,106330788,88218219,null,106330788,null,88218219]
["133011603480000002153","Instituciones fuertes y efectivas",119404000,106330788,88218219,null,106330788,null,88218219]
["133011604","Hacer de Bogotá Región un modelo de movilidad multimodal, incluyente y sostenible",1196892000,1145502292,211913219,1117507206,27995086,191210133,20703086]
["13301160449","Movilidad segura, sostenible y accesible",1196892000,1145502292,211913219,null,1145502292,null,211913219]
["133011604490000002022","Mejores vías para una mejor calidad de vida",1196892000,1145502292,211913219,null,1145502292,null,211913219]
["133011605","Construir Bogotá Región con gobierno abierto, transparente y ciudadanía consciente",4946321924,4851264220,3296600251,null,4851264220,null,3296600251]
["13301160555","Fortalecimiento de Cultura Ciudadana y su institucionalidad",682035000,657198000,408703333,null,657198000,null,408703333]
["133011605550000002141","Diálogos para crecer y participar",682035000,657198000,408703333,null,657198000,null,408703333]
["13301160557","Gestión Pública Local",4264286924,4194066220,2887896918,null,4194066220,null,2887896918]
["133011605570000002143","Gobierno abierto y transparente",4264286924,4194066220,2887896918,null,4194066220,null,2887896918]
["13306","OBLIGACIONES POR PAGAR",13674536211,13376226555,9892065274,null,13376226555,null,9892065274]
["1330615","Bogotá Mejor para todos",10618923594,10387214619,6903053338,null,10387214619,null,6903053338]
["133061501","Pilar Igualdad de calidad de vida",1827715709,1719199881,1666818674,null,1719199881,null,1666818674]
["13306150102","Desarrollo Integral desde la gestación hasta la adolescencia",470439810,468041251,468041251,null,468041251,null,468041251]
["133061501020000001533","1533 - Protección y promoción de la primera infancia",470439810,468041251,468041251,null,468041251,null,468041251]
["13306150103","Igualdad y autonomía para una Bogotá incluyente",315844722,296349263,296349263,null,296349263,null,296349263]
["133061501030000001556","1556 - Apoyo dirigido a la población vulnerable adulto mayor y con condición de discapacidad de la localidad",315844722,296349263,296349263,null,296349263,null,296349263]
["13306150111","Mejores oportunidades para el desarrollo a través de la cultura, la recreación y el deporte",1041431177,954809367,902428160,null,954809367,null,902428160]
["133061501110000000791","0791 - PGI: Cultura ciudadana, deporte y arte para un mejor futuro",1041431177,954809367,902428160,null,954809367,null,902428160]
["133061502","Pilar Democracia urbana",5721490634,5720331601,2679107569,null,5720331601,null,2679107569]
["13306150217","Espacio público, derecho de todos",1444793006,1444793006,1302800706,null,{"$f":"+D76-F76","v":1444793006},null,1302800706]
["133061502170000001558","1558 - PGI: Mejor espacio público para todos",1444793006,1444793006,1302800706,null,1444793006,null,1302800706]
["13306150218","Mejor movilidad para todos",4276697628,4275538595,1376306863,null,4275538595,null,1376306863]
["133061502180000001561","1561 - PGI: Construyendo futuro",4276697628,4275538595,1376306863,null,4275538595,null,{"$f":"+E79-H79","v":1376306863}]
["133061503","Pilar Construcción de comunidad y cultura ciudadana",347756979,307175515,87521270,null,307175515,null,87521270]
["13306150319","Seguridad y convivencia para todos",347756979,307175515,87521270,null,307175515,null,87521270]
["133061503190000001563","1563 - PGI: Seguridad y convivencia mejor para todos",347756979,307175515,87521270,null,307175515,null,87521270]
["133061506","Eje transversal Sostenibilidad ambiental basada en la eficiencia energética",12270000,12270000,12270000,null,12270000,null,12270000]
["13306150638","Recuperación y manejo de la Estructura Ecológica Principal",12270000,12270000,12270000,null,12270000,null,12270000]
["133061506380000001532","1532 - Una sociedad que cuida y recupera el medio ambiente",12270000,12270000,12270000,null,12270000,null,12270000]
["133061507","Eje transversal Gobierno legítimo, fortalecimiento local y eficiencia",2709690272,2628237622,2457335825,null,2628237622,null,2457335825]
["13306150745","Gobernanza e influencia local, regional e internacional",2709690272,2628237622,2457335825,null,2628237622,null,2457335825]
["133061507450000001559","1559 - Eficiencia y Eficacia Administrativa de la mano de la Comunidad",849162840,780041173,780041173,null,780041173,null,780041173]
["133061507450000001562","1562 - Gobierno legitimo y eficiente",1860527432,1848196449,1677294652,null,1848196449,null,1677294652]
["1330690","Obligaciones por pagar vigencias anteriores",3055612617,2989011936,2989011936,null,2989011936,null,2989011936]
["1459 - Una Suba mejor a través de la cultura, la recreación y el deporte",907125764,907125764,91690729]
["Pilar Democracia urbana",11921432123,11872575456,4150087293]
["Infraestructura para el desarrollo del hábitat",0,0,0]
["1466 - SUBA APROVECHA INTEGRALMENTELOS LOS RESIDUOS",0,0,0]
["Recuperación, incorporación, vida urbana y control de la ilegalidad",71997511,71997511,57598007]
["1461 - Suba mejora integralmente sus barrios",71997511,71997511,57598007]
["Espacio público, derecho de todos",2031644404,2024291404,1680704094]
["1465 - Parques en la ciudad del espacio público",2031644404,2024291404,1680704094]
["Mejor movilidad para todos",9817790208,9776286541,2411785192]
["1506 - Hacia una movilidad sostenible",9817790208,9776286541,2411785192]
["Pilar Construcción de comunidad y cultura ciudadana",2108268729,2104172397,1827326853]
["Seguridad y convivencia para todos",2108268729,2104172397,1827326853]
["1469 - Suba segura y mejor para todos",2108268729,2104172397,1827326853]
["Eje Transversal Desarrollo económico basado en conocimiento",229582146,226625178,226625178]
["Bogotá una ciudad digital",229582146,226625178,226625178]
["1504 - Conexión clave para la información",229582146,226625178,226625178]
["Eje transversal Sostenibilidad ambiental basada en la eficiencia energética",2937850925,2927754258,2782207832]
["Recuperación y manejo de la Estructura Ecológica Principal",2937850925,2927754258,2782207832]
["1472 - Más arboles y mejor calidad del aire en Suba",2937850925,2927754258,2782207832]
["Desarrollo rural sostenible",0,0,0]
["1476 - Suba promueve el desarrollo rural sostenible",0,0,0]
["Eje transversal Gobierno legítimo, fortalecimiento local y eficiencia",8639644132,8390235551,7307652590]
["Gobernanza e influencia local, regional e internacional",8639644132,8390235551,7307652590]
["1478 - Fortalecimiento institucional en Suba",2530811876,2394211010,2264969343]
["1481 - Suba comprometida con la Inspección la vigilancia y el control",473511811,376517478,303233666]
["1483 - Suba se expresa y decide",5635320445,5619507063,4739449581]
["Obligaciones por pagar vigencias anteriores",42974308442,42139458441,28040624670]

{"sheet":"2. PAA","index":2,"n_rows":13,"n_cols":7,"rows_kept":13,"cut":false,"hidden":false,"merged":[[9,1,9,6],[6,2,6,3],[6,5,6,6],[2,1,2,7],[3,1,3,7],[4,1,4,7],[5,2,5,3],[5,5,5,6]]}
[]
[]
[null,"PLAN ANUAL DE ADQUISIONES"]
[null,2021]
[]
[null,"Entidad","Alcaldía Local de Barrios Unidos",null,"Sector","Gobierno"]
[null,"Responsable diligenciamiento","Mateo Sánchez",null,"Número contacto y correo electrónico","3123551784 mateo.sanchez@gobiernobogota.gov.co"]
[]
[]
[null,"A continuación registre la información del Plan Anual de Adquisiciones vigencia 2021,  diligencie el presupuesto total,  el presupuesto programado y contratado del 1 de septiembre al 31 de diciembre de 2021, igualmente la fecha de la primera y ultima públicación del PAA en SECOP, y el número de modificaciones realizadas."]
[]
[null,"Presupuesto Total PAA","Presupuesto programado\nSeptiembre 1 a 31 de diciembre de 2021","Presupuesto contratado\nSeptiembre 1 a 31 de diciembre de 2021","Fecha Primera Publicación\nD/M/A","Última fecha de modificación\nD/M/A","Número modificaciones"]
[null,22884043173,6492351446,5465200729,"2021-01-28","2021-12-21",32]

{"sheet":"3. CONSOLIDADO","index":3,"n_rows":48,"n_cols":20,"rows_kept":48,"cut":false,"hidden":false,"merged":[[16,2,16,16],[17,17,17,19],[19,2,21,2],[19,3,21,3],[11,9,11,10],[17,2,17,16],[11,15,11,16],[19,4,19,17],[19,18,20,19],[20,4,20,5],[20,6,20,7],[20,8,20,9],[20,10,20,11],[20,12,20,13],[20,14,20,15],[20,16,20,17],[11,21,11,22],[1,4,1,18],[2,4,2,18],[7,2,8,16],[10,2,12,2],[10,3,12,3],[10,4,10,8],[10,9,10,16],[11,4,11,5],[11,6,11,8],[11,19,11,20],[11,11,11,12],[11,13,11,14],[11,17,11,18],[9,2,9,16],[4,2,5,16],[26,2,26,11],[49,2,51,5],[28,2,30,2],[29,3,29,4],[29,5,29,6],[29,7,29,8],[28,3,28,8]]}
[]
[null,null,null,null,"GESTIÓN CONTRACTUAL "]
[null,null,null,null,"Período de Evaluación: Septiembre 1 a 31 de diciembre de 2021"]
[]
[null,null,"La información consolidada que registra en esta hoja debe coincidir con la información que reporta en las hojas 1 \"INFORMACION ACUMULADA\" y 2 \"INFORMACION II CUATRIMESTRE\". En relación con las adiciones a contratos de años anteriores con cargo al periodo a reportar deben registrarse en filas independientes en los numerales 1 (información general, naturaleza jurídica) y 2 (modalidad). Ej. vigencia =2019; No. Contratos Adicionados:3; Número de adiciones: 4"]
[]
[]
[null,null,"1. Diligenciar en Información General el total de contratos que la entidad suscribió del 1 de septiembre al 31 de diciembre de 2021 y el valor total de ellos, igual el número de contratos que presentaron adiciones, el número de adiciones y el valor total de ellas. Respecto a la Naturaleza jurídica del contratista, diligenciar el número total de contratos suscritos y su valor por: personas naturales, jurídicas, consorcios y uniones temporales"]
[]
[]
[null,null,"Entidad","Vigencia","Información General",null,null,null,null,"Naturaleza jurídica del contratista"]
[null,null,null,null,"Contratos Suscritos",null,"Adiciones",null,null,"Contratos suscritos con personas naturales",null,"Contratos suscritos con personas jurídicas",null,"Contratos suscritos con uniones temporales",null,"Contratos suscritos con consorcios"]
[null,null,null,null,"Número Contratos","Valor Total","Número Contratos Adicionados","Número de Adiciones","Valor Total","Número Contratos y/o adiciones","Valor Total","Número Contratos y/o adiciones","Valor Total","Número Contratos y/o adiciones","Valor Total","Número Contratos y/o adiciones","Valor Total"]
[null,null,"Fondo de Desarrollo local barrios Unidos ",2021,87,8127844891.9799995,8,8,12558334,52,329736000,35,7798108891.9799995,0,0,2,1549717657]
[]
[]
[]
[null,null,"2. Registrar el número y valor total de los contratos y/o adiciones que se suscribieron del 1 de septiembre al 31 de diciembre de 2021 por cada modalidad. Igualmente en la tipología de contratos de prestación de servicios profesionales y de apoyo a la gestión."]
[]
[null,null,"Entidad","Vigencia","Modalidad",null,null,null,null,null,null,null,null,null,null,null,null,null,"Contratos realizados mediante la tipología de contratos de prestación de servicios profesionales y de apoyo a la gestión"]
[null,null,null,null,"Concurso de méritos",null,"Contratación directa",null,"Contratación mínima cuantia",null,"Selección abreviada",null,"Licitación pública",null,"Régimen privado",null,"Régimen especial"]
[null,null,null,null,"Número Contratos","Valor Total","Número Contratos","Valor Total","Número Contratos","Valor Total","Número Contratos","Valor Total","Número Contratos","Valor Total","Número Contratos","Valor Total","Número Contratos","Valor Total","Número Contratos","Valor Total"]
[null,null,"Fondo de Desarrollo local barrios Unidos ",2021,2,179964097,57,3324373712,6,45153364,17,1604451655,5,2973902063.98,0,0,2,2097836500,52,329736000]
[]
[]
[]
[null,null,"3. Detalle cada uno de los procesos de selección adelantados en el cuatrimestre por la entidad de acuerdo a cada modalidad de selección (licitación pública, selección abreviada o concurso de méritos), y diligencie el número de proponentes que se presentaron en cada uno de ellos"]
[]
[null,null,"Entidad","Proponentes (que se presentaron a los proceso de selección)"]
[null,null,null,"Concurso de méritos",null,"Selección abreviada",null,"Licitación pública"]
[null,null,null,"Número del proceso contractual en SECOP","Número de proponentes","Número del proceso contractual en SECOP","Número de proponentes","Número del proceso contractual en SECOP","Número de proponentes"]
[null,null,"Fondo de Desarrollo local barrios Unidos ","FDLBU-CMA-245-2021",3,"FDLBUSAMC-203-2021\t",3,"FDLBU-LP-266-2020",2]
[null,null,"Fondo de Desarrollo local barrios Unidos ","FDLBU-CMA-265-2021",3,"FDLBUSAMC-216-2021",1,"FDLBULP-246-2021",4]
[null,null,null,null,null,"FDLBUSASI-212-2021",8,"FDLBULP-249-2021",4]
[null,null,null,null,null,"FDLBUSASI-212-2021",8,"FDLBULP-251-2021",5]
[null,null,null,null,null,"FDLBUSASI-212-2021",8,"FDLBULP-250-2021",15]
[null,null,null,null,null,"FDLBUSASI-212-2021",8]
[null,null,null,null,null,"FDLBUSASI-212-2021",8]
[null,null,null,null,null,"FDLBUSASI-212-2021",8]
[null,null,null,null,null,"FDLBUSAMC-215-2021",25]
[null,null,null,null,null,"OC78880",2]
[null,null,null,null,null,"FDLBUSASI-230-2021",8]
[null,null,null,null,null,"OC80896",0]
[null,null,null,null,null,"FDLBUSAMC-257-2021",18]
[null,null,null,null,null,"OC82571",1]
[null,null,null,null,null,"FDLBU-SAMC-259-2021",4]
[null,null,null,null,null,"FDLBU-SAMC-263-2021",2]
[null,null,null,null,null,"FDLBUSAMC-266-2021",8]

{"sheet":"4. INSTRUCTIVO","index":4,"n_rows":105,"n_cols":4,"rows_kept":105,"cut":false,"hidden":false,"merged":[[76,1,77,1],[76,2,77,2],[71,1,71,3],[103,1,103,3],[85,1,85,3],[86,1,87,1],[86,2,87,2],[100,1,100,3],[94,1,94,3],[72,1,74,1],[72,2,74,2],[79,2,82,2],[79,1,82,1],[57,1,60,1],[59,2,60,2],[63,1,68,1],[8,1,8,3],[12,1,12,3],[23,1,23,3],[52,1,54,1],[52,2,54,2],[33,2,34,2],[29,2,30,2],[27,1,28,1],[24,1,25,1],[24,2,25,2],[29,1,51,1],[10,1,10,3],[1,1,1,3],[2,1,2,3],[9,1,9,3],[3,1,3,3],[4,1,4,3],[5,1,5,3],[7,1,7,3],[6,1,6,3]]}
[]
[null,"INSTRUCTIVO FORMATO"]
[null,"Recomendamos leer cuidadosamente y poner en práctica las instrucciones que se explican en este instructivo. De la calidad de la información que se registre, depende en gran medida la calidad del informe de rendición de cuentas de la Gestión Contractual que presenta el Alcalde Mayor, consolidado por la Veeduría Distrital.\nEn este formato se deberán relacionar:\nHoja 1. \"INFORMACION ACUMULADA\", diligenciar en esta hoja la totalidad de la información contractual desde el 1 de enero al 31 de diciembre de 2021.\nHoja 2. “PLAN ANUAL DE ADQUISICIONES – PAA”, se pide información sobre el Plan Anual de Adquisiciones y sus modificaciones, por lo cual se deberá precisar el presupuesto total del plan; el programado del 1 de septiembre al 31 de diciembre de 2021; el efectivamente contratado en este período; la primera fecha de publicación del PAA; la última fecha de modificación y el número total de modificaciones realizadas durante este mismo período. \nHoja 3. “CONSOLIDADO”, se pide totalizar la información reportada en la hoja 1, sólo respecto a los contratos y adiciones suscritas entre el 1 de septiembre y el 31 de diciembre de 2021, por lo cual debe coincidir. Es así que en el numeral 1, se debe diligenciar el total de contratos suscritos por la entidad entre el 1 de septiembre y el 31 de diciembre de 2021, periodo de evaluación y su valor; el número total de contratos adicionados, el número total de adiciones y su valor; el número total de contratos celebrados con personas naturales, jurídicas, uniones temporales y consorcios, y su valor; en el numeral 2, se debe registrar en el periodo mencionado, el número total de contratos celebrados según la modalidad de selección y el valor total por cada modalidad; igualmente, es necesario precisar que se deberán relacionar los contratos celebrados mediante la tipología de prestación de servicios profesionales y de apoyo a la gestión y el valor total de ellos. En el numeral 3, se deberá indicar en las modalidades de licitación pública, concurso de méritos y selección abreviada, el número de procesos de selección en los que se presentaron 1 o más proponentes.\nHoja 4.“INSTRUCTIVO”, se dan las instrucciones para el diligenciamiento de la información, explicando paso a paso cada uno de los datos de la base y la manera de diligenciarla para efectos de que la información reportada sea veraz y no presente inconsistencias."]
[null,"La base en Excel a diligenciar NO debe modificarse, debe utilizar versión Excel 2010 o posteriores, la versión 2007 no habilita los macros. El formato está controlado y algunas celdas tienen opciones de selección y solo se debe escoger una de ellas.  El nombre de las hojas no se debe modificar o renombrar debido a que tiene macros. No incluya columnas con otro tipo de información que la Veeduría Distrital no está solicitando o que cambie el formato de celda establecido. Debe diliigencar la totalidad de las celdas, no combinarlas, registrar la información contractual en filas independientes. Las celdas donde se requieren relacionar valores, deben diligenciarse sin puntos, tildes, comas, ni caracteres especiales."]
[null,"Para insertar una o varias filas, en el encabezado del formato, se encuentra un botón denominado \"Insertar Filas\" en el cual se debe hacer click  y digite el número de filas a insertar. Si usted no sigue este procedimiento las filas que inserte no tomarán el formato de las filas anteriores. Se recomienda que antes de iniciar el registro de información inserte las filas que requiera, sin embargo, en cualquier momento que necesite puede hacer este paso"]
[null,"Si requiere insertar una o varias filas realícelo después de la fila A14 para que tomen el formato de las filas anteriores."]
[null,"Si necesita pegar información debe hacerlo por secciones debido a que hay columnas formuladas que están protegidas que no permiten realizar esta opción. Utilice la opción de pegado especial valores para no borrar las listas desplegables ni los formatos de las columnas. Si al pegar quedan textos en rojo,  verifique y ajuste la información, el dato que adiciono no se encuentra en la lista desplegable o no corresponde con el criterio definido en el columna."]
[null,"En primer lugar, diligencie toda la información correspondiente a los contratos suscritos con cargo la vigencia 2021."]
[null,"Una vez incluidos todos los contratos  de la vigencia 2021, a continuación diligencie el formato completo con la información correspondiente a las adiciones efectuadas con cargo a la vigencia 2021 de contratos suscritos en vigencias anteriores. La información general del contrato como: modalidad de selección, tipología contractual, objeto, entre otros, debe corresponder a la información del contrato adicionado o modificado. Respecto al valor, sólo se diligencia el valor en la columna adición, es decir, la columna de valor inicial debe quedar en blanco. No olvide registrar el número de adiciones realizadas en la columna correspondiente."]
[null,"La información que se registre en esta base de datos debe coincidir con los reportes en BOGDATA  y adicionalmente con SECOP.  Es así que la sumatoria del valor final de los contratos y adiciones, por eje/pilar/propósito, programa y proyecto registrada por la Entidad, debe coincidir con la ejecución presupuestal de la entidad, reporte de BOGDATA con corte a 31 de diciembre de 2021, es decir, se debe verificar su coincidencia por rubro con el total del compromiso acumulado; igualmente respecto al valor acumulado de los giros."]
[null,"En caso de haber realizado apropiaciones presupuestales en la vigencia a través de resoluciones, caja menor, honorarios ediles, servicios públicos, debe relacionar dicha información en una sola fila al final de la base, indicando de que se trata la apropiación y número de proyecto si hay lugar a ello. En el tipo de contrato se registra con la opción \"Otros gastos\"."]
[]
[null,"ENCABEZADO DEL FORMATO"]
[null,1,"Entidad","Indique el nombre completo de la Entidad."]
[null,2,"Sector","Seleccione el sector al cual pertenece la Entidad."]
[null,3,"Presupuesto Disponible Inversión Directa","Indique el valor total del presupuesto disponible de inversión directa, de acuerdo con el Informe de ejecución presupuestal de la entidad (BOGDATA), a 31 de diciembre de 2021."]
[null,4,"Presupuesto Comprometido de Inversión Directa ","Escriba el valor total del presupuesto comprometido de inversión directa, de acuerdo con el Informe de ejecución presupuestal de la entidad (BOGDATA), a 31 de diciembre de 2021."]
[null,5,"Presupuesto Disponible Funcionamiento","Indique el valor total del presupuesto de funcionamiento disponible, de acuerdo con el con el Informe de ejecución presupuestal de la entidad (BOGDATA), a 31 de diciembre de 2021."]
[null,6,"Presupuesto Comprometido funcionamiento ","Escriba el monto del presupuesto de funcionamiento, comprometido mediante contratos, de acuerdo con el Informe de ejecución presupuestal de la entidad (BOGDATA), a 31 de diciembre de 2021."]
[null,7,"Presupuesto Disponible Operación","Coloque el monto del presupuesto de operación disponible, de acuerdo con el Informe de ejecución presupuestal de la entidad (BOGDATA), a 31 de diciembre de 2021. Los gastos de operación corresponden solamente a aquellas entidades de régimen de contratación  privado."]
[null,8,"Presupuesto Comprometido operación mediante contratos","Escriba el monto del presupuesto de operación comprometido mediante contratos a 31 de diciembre de 2021."]
[null,9,"Nombre de quien diligencia el formato","Indique el nombre completo, cargo, número de teléfono con extensión y correo electrónico del profesional que diligencia el formato y que posteriormente realizará los ajustes y aclaraciones a que haya lugar por solicitud de la Veeduría Distrital."]
[]
[null,"1- INFORMACIÓN GENERAL"]
[null,1,"Número de Contrato","En estricto orden consecutivo registre el número del contrato, sin incluir los contratos que fueron anulados, ni comodatos."]
[null,null,null,"Una vez terminado el registro de los contratos celebrados con cargo a la vigencia 2021, en las siguientes filas registre la información correspondiente a las adiciones efectuadas con cargo a la vigencia 2021 de contratos suscritos en vigencias anteriores, especificando el año de suscripción en la columna dos."]
[null,2,"Año","Registre el año de celebración del contrato."]
[null,3,"Número de proceso en el SECOP","Relacione el número de proceso de selección con el cual se encuentra publicado el contrato en el SECOP, mas no el link o enlace. Ejemplo IDU-CMA-DTDP-240-2021"]
[null,null,"Link proceso SECOP","Registre el enlace del proceso en SECOP. Ejemplo  https://community.secop.gov.co/Public/xxxxxx"]
[null,4,"Tipo de Contrato","En esta columna seleccione de la lista, el tipo de contrato que corresponde al contrato suscrito. El formato no permite incluir tipo de contratos diferentes a los señaladas en la lista desplegable.  Se debe escoger de las tipologías contractuales que se relacionan a continuación:  "]
[null,null,null,"Para las adiciones a contratos suscritos en la vigencia 2021 y adiciones a contratos sucritos de años anteriores se debe diligenciar la tipología del contrato adicionado o modificado"]
[null,null,"Obra ","Son contratos de obra los que celebren las entidades estatales para la construcción, mantenimiento, instalación y, en general, para la realización de cualquier otro trabajo material sobre bienes inmuebles, cualquiera que sea la modalidad de ejecución y pago. Numeral 1 del artículo 32 de la Ley 80 de 1993"]
[null,null,"Consultoría","Aquellos que celebran las entidades estatales, referidos a los estudios necesarios para la ejecución de proyectos de inversión, de diagnósticos, prefactibilidad o factibilidad para programas o proyectos específicos, así como  las asesorías técnicas de coordinación, control y supervisión. Numeral 2 del artículo 32 de la Ley 80 de 1993"]
[null,null,"Interventoría","Son también  contratos de consultoría los que tienen por objeto la Interventoría, asesoría, gerencia de obras o de proyectos, dirección, programación y la ejecución de diseños, planos, anteproyectos y proyectos. Numeral 2 del artículo 32 de la Ley 80 de 1993"]
[null,null,null,"El contrato de Interventoría tiene por objeto la  supervisión, seguimiento y vigilancia a la ejecución material de un contrato principal"]
[null,null,"Contrato de Prestación de servicios","Son contratos de prestación de servicios los que celebren las entidades estatales para desarrollar actividades relacionadas con la administración o funcionamiento de la entidad. Numeral 3 del artículo 32 de la Ley 80 de 1993"]
[null,null,"Contrato de Prestación de servicios profesionales y de apoyo a la gestión","Corresponden a aquellos de naturaleza intelectual diferentes a los de consultoría que se derivan del cumplimiento de las funciones de la entidad estatal; así como los relacionados con actividades operativas, logísticas, o asistenciales. Art. 2.2.1.2.1.4.9. del Decreto 1082 de 2015"]
[null,null,"Compraventa de bienes muebles","Son aquellos contratos donde se transfiere el dominio de un bien mueble (aquellos susceptibles de ser trasladadas de un lugar a otro sin alterar ni su forma ni su esencia, tal es el caso del mobiliario y equipo de oficina, maquinaria, automóviles, etc.), cuya ejecución se agota de manera instantánea. Artículo 660, Código Civil"]
[null,null,"Compraventa de bienes inmuebles","Son aquellos contratos donde se transfiere el dominio de un bien inmueble (todos aquellos bienes considerados bienes raíces, por tener de común la circunstancia de estar íntimamente ligados al suelo, unidos de modo inseparable, física o jurídicamente, al terreno). Artículo 656, Código Civil"]
[null,null,"Arrendamiento de bienes muebles","Es un contrato que tiene por objeto, conceder el uso y goce de un bien mueble a cambio de un precio determinado. Artículo 1974, Código Civil"]
[null,null,"Arrendamiento de bienes inmuebles","Es un contrato que tiene por objeto, conceder el uso y goce de un bien inmueble a cambio de un precio determinado. Artículo 2.2.1.2.1.4.11 del Decreto 1082 de 2015"]
[null,null,"Seguros","El seguro es un contrato, en virtud del cual una persona jurídica llamada asegurador, asume, a cambio de una prima, un riesgo que le es trasladado por una persona natural o jurídica llamado tomador y en el cual éste tiene un interés asegurable, con el fin de indemnizarlo, en el evento de que ocurra la realización del riesgo amparado, de conformidad con el Título V, del Libro Cuarto del Código de Comercio"]
[null,null,"Suministro","El suministro es el contrato por el cual una parte se obliga, a cambio de una contraprestación, a cumplir en favor de otra, en forma independiente, prestaciones periódicas o continuadas de cosas o servicios. Artículo 968, Código de Comercio"]
[null,null,"Empréstitos","Son contratos de empréstito los que tienen por objeto proveer a la entidad estatal contratante de recursos en moneda nacional o extranjera con plazo para su pago. Artículo 7, Decreto 2681 de 1993"]
[null,null,"Fiducia mercantil o encargo fiduciario","Son contratos que tienen por objeto la administración o el manejo de los recursos vinculados a los contratos que tales entidades celebren. Numeral 5 del artículo 32 de la Ley 80 de 1993"]
[null,null,"Concesión","Este contrato tiene por objeto otorgar a una persona llamada concesionario la prestación, operación, explotación, organización o gestión, total o parcial, de un servicio público, o la construcción, explotación o conservación total o parcial, de una obra o bien destinados al servicio o uso público, así como todas aquellas actividades necesarias para la adecuada prestación o funcionamiento de la obra o servicio por cuenta y riesgo del concesionario, y bajo la vigilancia y control de la entidad concedente, a cambio de una remuneración que puede consistir en derechos, tarifas, tasas, valorización, o en la participación que se le otorgue en la explotación del bien, obra o servicio, o en una suma periódica, única o porcentual, y en general, en cualquier otra modalidad de contraprestación que las partes acuerden. Numeral 4 del artículo 32 de la Ley 80 de 1993"]
[null,null,"Convenios de cooperación","Son aquellos mediante los cuales se formaliza la asistencia, ayuda, auxilio, soporte o colaboración entre entidades de una misma nación, de distintos países o por parte de organizaciones internacionales de naturaleza pública o privada a favor de entidades públicas. Artículo 20 de la Ley 1150 de 2007"]
[null,null,"Convenios/Contratos interadministrativos","El convenio interadministrativo es el negocio jurídico en el cual están presentes dos entidades públicas en desarrollo de relaciones interadministrativas cuyo objeto es coordinar, cooperar, colaborar o distribuir competencias en la realización de funciones administrativas de interés común a los sujetos negociales. Artículo 95 de la Ley 489 de 1998"]
[null,null,"Convenios de Apoyo y/o Convenios de Asociación","Los contratos que en desarrollo de lo dispuesto en el segundo inciso del artículo 355 de la Constitución Política celebren la Nación, los Departamentos, Distritos y Municipios con entidades privadas sin ánimo de lucro y de reconocida idoneidad, con el propósito de impulsar programas y actividades de interés público. Reglamentado mediante Decreto 92 de 2017"]
[null,null,"Asociaciones Público Privadas","Los contratos con personas naturales o jurídicas que se celebran en desarrollo de lo dispuesto en la Ley 1508 de 2012"]
[null,null,"Otros","Los demás tipos de contratos que no se encuentren definidos en las anteriores tipologías"]
[null,null,"Otros gastos","Incluye los gastos no contractuales, estos se registran al final de la base, no cuentan con número de contrato, tipo, proceso o modalidad.  Estos gastos en los que no media un acuerdo de voluntades, en caso de ser del rubro de inversiòn, se deben discriminar por programa y proyecto. En el caso de ser del rubro de funcionamiento no requieren ser discriminados sino totalizados en una sola fila."]
[null,5,"Modalidad de Selección","Al ubicarse en la celda, se despliega una lista de modalidades de selección, de las cuales debe seleccionar la indicada"]
[null,null,null,"Para las adiciones a contratos suscritos en vigencias anteriores se debe diligenciar la modalidad de selección del contrato adicionado o modificado"]
[null,null,null,"La modalidad régimen especial se refiere a todos los contratos realizados en cumplimiento del Decreto 92 de 2017, convenios de asociación con ESAL. Régimen privado es para todas aquellas entidades que no se rigen por el Estatuto General de Contratación Pública (Ley 80 de 1993 y normas complementarias), caso en el que todos sus contratos deben ser identificados con esta modalidad"]
[null,6,"Procedimiento o causal","Esta columna solo se habilita y debe ser diligenciada, para las modalidades de selección abreviada y contratación directa. Al ubicarse en la celda, se despliega una lista de procedimientos o causales, de las cuales debe seleccionar la indicada. El formato no permite incluir procedimientos o causales diferentes a las señaladas en la lista desplegable.  "]
[null,7,"Objeto","Registre el objeto del contrato"]
[null,8,"Afectación ","Registre la afectación según la clasificación de cuentas del presupuesto de gastos. Funcionamiento, Inversión y Operación, esta última aplica únicamente para entidades de régimen privado. La celda solamente permite registrar estas tres opciones."]
[null,null,"Planes de Desarrollo Distrital","Seleccionar el PDD de acuerdo con los diferentes contratos suscritos, automáticamente en la columna K se activan  los números de programa de acuerdo al PDD."]
[null,null,"Número Programa","Si en la columna anterior “Afectación”,  indicó funcionamiento u operación deje en blanco el número de programa, es decir esta columna solamente aplica para gastos de Inversión."]
[null,null,null,"Identifíquelo de acuerdo con el código presupuestal del Plan de Desarrollo  \"Un Nuevo Contrato Social y Ambiental para la Bogotá del Siglo XXI\". Si un mismo contrato afecta más de un código presupuestal discrimine el contrato por cada código que afecte en filas separadas. Si se registra el número del programa, automáticamente en la columna L y M se despliega el nombre del programa y el  propósito según corresponda. "]
[null,9,"Número Proyecto","Indique el código presupuestal con el que se identifica el proyecto. Si un mismo contrato afecta más de un proyecto, discriminar el contrato por cada proyecto que afecte en filas separadas."]
[null,10,"Número de proponentes","Diligencie el número de proponentes que participaron en el proceso de selección adelantado que dio como resultado el contrato que se está diligenciando"]
[null,11,"Número de Identificación del contratista","Indicar el número de identificación del contratista persona natural o jurídica o contratistas plurales (uniones temporales y consorcios) con quien se suscribió el contrato, sin comas, tildes, puntos ni caracteres especiales, y si es NIT sin dígito de verificación"]
[null,null,"Nombre del Contratista","Indicar el nombre del contratista, persona natural o jurídica  o contratistas plurales (uniones temporales y consorcios) en mayúscula sostenida, sin comas, tildes, puntos ni caracteres especiales. Si se trata de personas jurídicas, diligenciar razón social y tipo societario, sin comas, tildes, puntos ni caracteres especiales. Si se trata de personas naturales diligenciar primero los nombres seguidos de los apellidos en la misma columna (nombre 1, nombre 2, apellido 1 y apellido 2)"]
[null,null,"Naturaleza Jurídica","Seleccione la naturaleza jurídica que corresponde al contratista, según las opciones"]
[null,null,"Número  de Identificación de los integrantes del Consorcio o U.T.\n(NIT sin digito de verificación)","Diligenciar este numeral sólo en los casos en que el contratista sea un Consorcio o Union Temporal, relacione en filas independientes (si son varios integrantes puede insertar filas adicionales), cada uno de los números de identificación de los integrantes de los consorcios o uniones temporales sin comas, tildes, puntos ni caracteres especiales, y si es NIT sin dígito de verificación. "]
[null,null,"Nombre del Integrante del Consorcio o U.T.","Diligenciar este numeral sólo en los casos en que el contratista sea un Consorcio o Union Temporal, relacione en filas independientes cada uno de los nombres de los integrantes de los consorcios o uniones temporales, si es persona jurídica la Razón social, es decir el nombre legal de la Empresa; si es persona natural relacione los nombres seguidos de los apellidos en mayúscula sostenida, sin comas, tildes, puntos ni caracteres especiales. Igualmente en el nombre relacione el Tipo societario de cada uno de ellos, entre los cuales se encuentra Sociedades por Acciones Simplificadas (SAS), Sociedad de Responsabilidad Limitada (LTDA), Sociedad en Comandita simple (SCS), Sociedad en Comandita por Acciones (SCA), Sociedad Colectiva, a manera de ejemplo: SOCIEDAD 1 LTDA"]
[null,null,"% Participación","Registre el porcentaje de participación de cada integrante del consorcio o unión temporal, registre sólo números, sin caracteres especiales"]
[]
[]
[null,"2- INFORMACIÓN FINANCIERA"]
[null,12,"Valor Inicial ","Registre el valor inicial del contrato con cargo al segundo cuatrimestre de la vigencia 2021. Esta columna sólo debe contener información numérica"]
[null,null,null,"En el caso de adiciones a contratos de años anteriores, no diligencie esta columna, registrar el valor en la columna 15 \"Valor Total Adiciones\".\nEn caso de adiciones a contratos suscritos en el primer cuatrimestre del 2021, no diligencie esta columna, registrar el valor en la columna 15 \"Valor Total Adiciones\""]
[null,null,null,"Excluya las reservas de apropiación y cuentas por pagar"]
[null,13,"Valor total reducciones (En valor negativo)","Registre el valor de la reducción del contrato en caso de haberse realizado, en negativo, durante la vigencia 2021"]
[null,14,"Número de adiciones ","Diligencie esta columna solo en el caso de adiciones al valor inicial que aumenten el valor del contrato con cargo a la vigencia."]
[null,null,null,"Registre en esta celda el número de adiciones que se realizaron al contrato"]
[null,15,"Valor total de adiciones","Registre el valor total de las adiciones que se realizaron al contrato,  el formato de celda no permite guiones, comas o texto. Esta columna solo debe contener información numérica."]
[null,16,"Valor Final","Esta columna se encuentra formulada por favor no modifique ni quite la fórmula; la fórmula suma las columnas valor inicial, valor de reducciones y valor de adiciones"]
[null,null,null,"La sumatoria de la columna 16 (valor final) para los contratos de Inversión Directa, de funcionamiento y/o operación, cuando aplique, deberán coincidir con el valor del rubro registrado en el encabezado 4, Presupuesto comprometido de inversión según BOGDATA, con el encabezado 6, Presupuesto Comprometido Funcionamiento según BOGDATA y con el encabezado 8, Presupuesto Comprometido Operación mediante contratos, respectivamente. A la vez, estos valores deben coincidir con los informes de ejecución presupuestal del BOGDATA.  "]
[null,null,null,"Si los valores no coinciden debe especificarse al final del formato en qué está representada la diferencia Otros gastos(discriminando los conceptos por Programa y Proyecto de inversión, si es el caso), con sus respectivos valores."]
[null,null,null,"Las bases donde dichos valores no coincidan serán devueltas por la Veeduría Distrital a cada entidad para los respectivos ajustes."]
[null,17,"Giros","Registre el valor total de los giros que se realizaron al contrato,  el formato de celda no permite guiones, comas o texto. Esta columna solo debe contener información numérica."]
[]
[null,"3- PLAZOS"]
[null,18,"Fecha de suscripción","Relacionar la fecha en que se suscribió el contrato original. La celda solo admite el formato Día/Mes/Año, por ejemplo: 17/02/2021"]
[null,null,null,"Para las adiciones a contratos de años anteriores se debe registrar en esta columna la fecha de suscripción de la adición en la vigencia 2021"]
[null,19,"Fecha de inicio","Indicar la fecha de inicio del contrato. Para las adiciones a contratos de años anteriores se debe diligenciar la fecha de inicio de la adición en la vigencia 2021. La celda solo admite el formato Día/Mes/Año así  13/03/2021."]
[null,20,"Fecha de terminación","Indicar la fecha efectiva de terminación del contrato. La celda solo admite el formato Día/Mes/Año así  15/02/2021."]
[null,21,"Plazo en días","Esta columna contiene el plazo inicial del contrato con el número total de días a ejecutar (sólo número de días, no mes, no texto). "]
[null,22,"Número de prórrogas","Registre en esta celda el número de prórrogas que se realizaron al contrato en la vigencia 2021."]
[null,23,"Prórroga en días","En caso de presentarse este evento, indicar en días, el tiempo por el cual se prorrogó el contrato a partir de la fecha inicial de terminación (sólo número de días, no mes, no texto)."]
[]
[null,"4- CESIÓN"]
[null,24,"Número  de Identificación del cesionario\n(NIT con digito de verificación)","Indicar el número de identificación del cesionario persona natural o jurídica con quien se suscribió la cesión, con digito de verificación (DV), el formato de celda no permite guiones o comas, solo números. Si hay más de una cesión adicione una fila y registre número de contrato, año, número proceso contractual SECOP y demás información que corresponda."]
[null,25,"Nombre cesionario","Indicar el nombre del cesionario, persona natural o jurídica."]
[null,26,"Fecha cesión","Relacionar la fecha en que se suscribió la cesión del contrato. La celda solo admite el formato Día/Mes/Año así  17/02/2021."]
[null,27,"Valor cesión","Registre el valor correspondiente a la cesión con cargo a la vigencia 2021, el formato de celda no permite guiones, comas o texto. Esta columna solo debe contener información numérica."]
[]
[null,"5- ESTADO A 31 DE DICIEMBRE DE 2021"]
[null,28,"Estado","Marque con una X en la respectiva columna si el contrato se encuentra a 31 de diciembre de 2021 Celebrado o por Iniciar, En Ejecución, Terminado o Liquidado."]
[]
[null,"5- PORCENTAJE DE AVANCE Y/O CUMPLIMIENTO"]
[null,29,"% Avance y/o cumplimiento","Indica el porcentaje de avance o de cumplimiento en términos presupuestales a 31 de diciembre de 2021, es decir lo efectivamente pagado al contratista. Si no se ha iniciado la ejecución, el % de avance es 0%. La celda se encuentra formulada y protegida. Es la relación entre el valor de los giros y el valor final del contrato. Si el porcentaje de avance no coincide, se debe revisar los valores que se registraron en estas columnas.  Este porcentaje no debe ser superior al 100%"]

{"sheet":"Proposito_programa","index":5,"n_rows":59,"n_cols":5,"rows_kept":59,"cut":false,"hidden":false,"merged":[]}
[]
[null,"PDD","No. Programa","Programa","Propósito"]
["Acuerdo 761 2020","Un Nuevo Contrato Social y Ambiental para la Bogotá del Siglo XXI",1,"Subsidios y transferencias para la equidad","Propósito 1: Hacer un nuevo contrato social para incrementar la inclusión social, productiva y política"]
["Pag. 51","Un Nuevo Contrato Social y Ambiental para la Bogotá del Siglo XXI",{"$f":"+C3+1","v":2},"Igualdad de oportunidades y desarrollo de capacidades para las mujeres","Propósito 1: Hacer un nuevo contrato social para incrementar la inclusión social, productiva y política"]
[null,"Un Nuevo Contrato Social y Ambiental para la Bogotá del Siglo XXI",{"$f":"+C4+1","v":3},"Movilidad social integral","Propósito 1: Hacer un nuevo contrato social para incrementar la inclusión social, productiva y política"]
[null,"Un Nuevo Contrato Social y Ambiental para la Bogotá del Siglo XXI",4,"Prevención de la exclusión por razones étnicas, religiosas, sociales, políticas y de orientación sexual","Propósito 1: Hacer un nuevo contrato social para incrementar la inclusión social, productiva y política"]
[null,"Un Nuevo Contrato Social y Ambiental para la Bogotá del Siglo XXI",5,"Promoción de la igualdad, el desarrollo de capacidades y el reconocimiento de las mujeres","Propósito 1: Hacer un nuevo contrato social para incrementar la inclusión social, productiva y política"]
[null,"Un Nuevo Contrato Social y Ambiental para la Bogotá del Siglo XXI",6,"Sistema Distrital de Cuidado","Propósito 1: Hacer un nuevo contrato social para incrementar la inclusión social, productiva y política"]
[null,"Un Nuevo Contrato Social y Ambiental para la Bogotá del Siglo XXI",7,"Mejora de la gestión de instituciones de salud","Propósito 1: Hacer un nuevo contrato social para incrementar la inclusión social, productiva y política"]
[null,"Un Nuevo Contrato Social y Ambiental para la Bogotá del Siglo XXI",8,"Prevención y atención de maternidad temprana","Propósito 1: Hacer un nuevo contrato social para incrementar la inclusión social, productiva y política"]
[null,"Un Nuevo Contrato Social y Ambiental para la Bogotá del Siglo XXI",9,"Prevención y cambios para mejorar la salud de la población","Propósito 1: Hacer un nuevo contrato social para incrementar la inclusión social, productiva y política"]
[null,"Un Nuevo Contrato Social y Ambiental para la Bogotá del Siglo XXI",10,"Salud para la vida y el bienestar","Propósito 1: Hacer un nuevo contrato social para incrementar la inclusión social, productiva y política"]
[null,"Un Nuevo Contrato Social y Ambiental para la Bogotá del Siglo XXI",11,"Salud y bienestar para niñas y niños","Propósito 1: Hacer un nuevo contrato social para incrementar la inclusión social, productiva y política"]
[null,"Un Nuevo Contrato Social y Ambiental para la Bogotá del Siglo XXI",12,"Educación inicial: Bases sólidas para la vida.","Propósito 1: Hacer un nuevo contrato social para incrementar la inclusión social, productiva y política"]
[null,"Un Nuevo Contrato Social y Ambiental para la Bogotá del Siglo XXI",13,"Educación para todos y todas: acceso y permanencia con equidad y énfasis en educación rural","Propósito 1: Hacer un nuevo contrato social para incrementar la inclusión social, productiva y política"]
[null,"Un Nuevo Contrato Social y Ambiental para la Bogotá del Siglo XXI",14,"Formación integral: más y mejor tiempo en los colegios","Propósito 1: Hacer un nuevo contrato social para incrementar la inclusión social, productiva y política"]
[null,"Un Nuevo Contrato Social y Ambiental para la Bogotá del Siglo XXI",15,"Plan Distrital de Lectura, Escritura y Oralidad: \"Leer para la vida\"","Propósito 1: Hacer un nuevo contrato social para incrementar la inclusión social, productiva y política"]
[null,"Un Nuevo Contrato Social y Ambiental para la Bogotá del Siglo XXI",16,"Transformación pedagógica y mejoramiento de la gestión educativa. Es con los maestros y maestras.","Propósito 1: Hacer un nuevo contrato social para incrementar la inclusión social, productiva y política"]
[null,"Un Nuevo Contrato Social y Ambiental para la Bogotá del Siglo XXI",17,"Jóvenes con capacidades: Proyecto de vida para la ciudadanía, la innovación y el trabajo del siglo XXI","Propósito 1: Hacer un nuevo contrato social para incrementar la inclusión social, productiva y política"]
[null,"Un Nuevo Contrato Social y Ambiental para la Bogotá del Siglo XXI",18,"Cierre de brechas para la inclusión productiva urbano rural","Propósito 1: Hacer un nuevo contrato social para incrementar la inclusión social, productiva y política"]
[null,"Un Nuevo Contrato Social y Ambiental para la Bogotá del Siglo XXI",19,"Vivienda y entornos dignos en el territorio urbano y rural","Propósito 1: Hacer un nuevo contrato social para incrementar la inclusión social, productiva y política"]
[null,"Un Nuevo Contrato Social y Ambiental para la Bogotá del Siglo XXI",20,"Bogotá, referente en cultura, deporte, recreación y actividad física, con parques para el desarrollo y la salud","Propósito 1: Hacer un nuevo contrato social para incrementar la inclusión social, productiva y política"]
[null,"Un Nuevo Contrato Social y Ambiental para la Bogotá del Siglo XXI",21,"Creación y vida cotidiana: Apropiación ciudadana del arte, la cultura y el patrimonio, para la democracia cultural","Propósito 1: Hacer un nuevo contrato social para incrementar la inclusión social, productiva y política"]
[null,"Un Nuevo Contrato Social y Ambiental para la Bogotá del Siglo XXI",22,"Transformación cultural para la conciencia ambiental y el cuidado de la fauna doméstica","Propósito 1: Hacer un nuevo contrato social para incrementar la inclusión social, productiva y política"]
[null,"Un Nuevo Contrato Social y Ambiental para la Bogotá del Siglo XXI",23,"Bogotá rural","Propósito 1: Hacer un nuevo contrato social para incrementar la inclusión social, productiva y política"]
[null,"Un Nuevo Contrato Social y Ambiental para la Bogotá del Siglo XXI",24,"Bogotá región emprendedora e innovadora","Propósito 1: Hacer un nuevo contrato social para incrementar la inclusión social, productiva y política"]
[null,"Un Nuevo Contrato Social y Ambiental para la Bogotá del Siglo XXI",25,"Bogotá región productiva y competitiva","Propósito 1: Hacer un nuevo contrato social para incrementar la inclusión social, productiva y política"]
[null,"Un Nuevo Contrato Social y Ambiental para la Bogotá del Siglo XXI",26,"Bogotá - región, el mejor destino para visitar","Propósito 1: Hacer un nuevo contrato social para incrementar la inclusión social, productiva y política"]
[null,"Un Nuevo Contrato Social y Ambiental para la Bogotá del Siglo XXI",27,"Cambio cultural para la gestión de la crisis climática","Propósito 2 : Cambiar Nuestros Hábitos de Vida para Reverdecer a Bogotá y Adaptarnos y Mitigar la Crisis Climática"]
[null,"Un Nuevo Contrato Social y Ambiental para la Bogotá del Siglo XXI",{"$f":"+C29+1","v":28},"Bogotá protectora de sus recursos naturales","Propósito 2 : Cambiar Nuestros Hábitos de Vida para Reverdecer a Bogotá y Adaptarnos y Mitigar la Crisis Climática"]
[null,"Un Nuevo Contrato Social y Ambiental para la Bogotá del Siglo XXI",{"$f":"+C30+1","v":29},"Asentamientos y entornos protectores","Propósito 2 : Cambiar Nuestros Hábitos de Vida para Reverdecer a Bogotá y Adaptarnos y Mitigar la Crisis Climática"]
[null,"Un Nuevo Contrato Social y Ambiental para la Bogotá del Siglo XXI",30,"Eficiencia en la atención de emergencias","Propósito 2 : Cambiar Nuestros Hábitos de Vida para Reverdecer a Bogotá y Adaptarnos y Mitigar la Crisis Climática"]
[null,"Un Nuevo Contrato Social y Ambiental para la Bogotá del Siglo XXI",31," Protección y valoración del patrimonio tangible e intangible en Bogotá y la región","Propósito 2 : Cambiar Nuestros Hábitos de Vida para Reverdecer a Bogotá y Adaptarnos y Mitigar la Crisis Climática"]
[null,"Un Nuevo Contrato Social y Ambiental para la Bogotá del Siglo XXI",32,"Revitalización urbana para la competitividad","Propósito 2 : Cambiar Nuestros Hábitos de Vida para Reverdecer a Bogotá y Adaptarnos y Mitigar la Crisis Climática"]
[null,"Un Nuevo Contrato Social y Ambiental para la Bogotá del Siglo XXI",33,"Más árboles y más y mejor espacio público","Propósito 2 : Cambiar Nuestros Hábitos de Vida para Reverdecer a Bogotá y Adaptarnos y Mitigar la Crisis Climática"]
[null,"Un Nuevo Contrato Social y Ambiental para la Bogotá del Siglo XXI",34,"Bogotá protectora de los animales","Propósito 2 : Cambiar Nuestros Hábitos de Vida para Reverdecer a Bogotá y Adaptarnos y Mitigar la Crisis Climática"]
[null,"Un Nuevo Contrato Social y Ambiental para la Bogotá del Siglo XXI",35,"Manejo y prevención de contaminación","Propósito 2 : Cambiar Nuestros Hábitos de Vida para Reverdecer a Bogotá y Adaptarnos y Mitigar la Crisis Climática"]
[null,"Un Nuevo Contrato Social y Ambiental para la Bogotá del Siglo XXI",36,"Manejo y saneamiento de los cuerpos de agua","Propósito 2 : Cambiar Nuestros Hábitos de Vida para Reverdecer a Bogotá y Adaptarnos y Mitigar la Crisis Climática"]
[null,"Un Nuevo Contrato Social y Ambiental para la Bogotá del Siglo XXI",37,"Provisión y mejoramiento de servicios públicos","Propósito 2 : Cambiar Nuestros Hábitos de Vida para Reverdecer a Bogotá y Adaptarnos y Mitigar la Crisis Climática"]
[null,"Un Nuevo Contrato Social y Ambiental para la Bogotá del Siglo XXI",38,"Ecoeficiencia, reciclaje, manejo de residuos e inclusión de la población recicladora","Propósito 2 : Cambiar Nuestros Hábitos de Vida para Reverdecer a Bogotá y Adaptarnos y Mitigar la Crisis Climática"]
[null,"Un Nuevo Contrato Social y Ambiental para la Bogotá del Siglo XXI",39,"Bogotá territorio de paz y atención integral a las víctimas del conflicto armado","Propósito 3: Inspirar confianza y legitimidad para vivir sin miedo y ser epicentro de cultura ciudadana, paz y reconciliación"]
[null,"Un Nuevo Contrato Social y Ambiental para la Bogotá del Siglo XXI",{"$f":"+C41+1","v":40},"Más mujeres viven una vida libre de violencias, se sienten seguras y acceden con confianza al sistema de justicia","Propósito 3: Inspirar confianza y legitimidad para vivir sin miedo y ser epicentro de cultura ciudadana, paz y reconciliación"]
[null,"Un Nuevo Contrato Social y Ambiental para la Bogotá del Siglo XXI",{"$f":"+C42+1","v":41},"Sin machismo ni violencias contra las mujeres, las niñas y los niños","Propósito 3: Inspirar confianza y legitimidad para vivir sin miedo y ser epicentro de cultura ciudadana, paz y reconciliación"]
[null,"Un Nuevo Contrato Social y Ambiental para la Bogotá del Siglo XXI",42,"Conciencia y cultura ciudadana para la seguridad, la convivencia y la construcción de confianza","Propósito 3: Inspirar confianza y legitimidad para vivir sin miedo y ser epicentro de cultura ciudadana, paz y reconciliación"]
[null,"Un Nuevo Contrato Social y Ambiental para la Bogotá del Siglo XXI",43,"Cultura ciudadana para la confianza, la convivencia y la participación desde la vida cotidiana","Propósito 3: Inspirar confianza y legitimidad para vivir sin miedo y ser epicentro de cultura ciudadana, paz y reconciliación"]
[null,"Un Nuevo Contrato Social y Ambiental para la Bogotá del Siglo XXI",44,"Autoconciencia, respeto y cuidado en el espacio público","Propósito 3: Inspirar confianza y legitimidad para vivir sin miedo y ser epicentro de cultura ciudadana, paz y reconciliación"]
[null,"Un Nuevo Contrato Social y Ambiental para la Bogotá del Siglo XXI",45,"Espacio público más seguro y construido colectivamente","Propósito 3: Inspirar confianza y legitimidad para vivir sin miedo y ser epicentro de cultura ciudadana, paz y reconciliación"]
[null,"Un Nuevo Contrato Social y Ambiental para la Bogotá del Siglo XXI",46,"Atención a jóvenes y adultos infractores con impacto en su proyecto de vida","Propósito 3: Inspirar confianza y legitimidad para vivir sin miedo y ser epicentro de cultura ciudadana, paz y reconciliación"]
[null,"Un Nuevo Contrato Social y Ambiental para la Bogotá del Siglo XXI",47,"Calidad de Vida y Derechos de la Población privada de la libertad","Propósito 3: Inspirar confianza y legitimidad para vivir sin miedo y ser epicentro de cultura ciudadana, paz y reconciliación"]
[null,"Un Nuevo Contrato Social y Ambiental para la Bogotá del Siglo XXI",48,"Plataforma institucional para la seguridad y justicia","Propósito 3: Inspirar confianza y legitimidad para vivir sin miedo y ser epicentro de cultura ciudadana, paz y reconciliación"]
[null,"Un Nuevo Contrato Social y Ambiental para la Bogotá del Siglo XXI",49,"Movilidad segura, sostenible y accesible","Propósito 4: Hacer de Bogotá Región un modelo de movilidad multimodal, incluyente y sostenible"]
[null,"Un Nuevo Contrato Social y Ambiental para la Bogotá del Siglo XXI",{"$f":"+C51+1","v":50},"Red de metros","Propósito 4: Hacer de Bogotá Región un modelo de movilidad multimodal, incluyente y sostenible"]
[null,"Un Nuevo Contrato Social y Ambiental para la Bogotá del Siglo XXI",51,"Gobierno Abierto","Propósito 5: Construir Bogotá - Región con gobierno abierto, transparente y ciudadanía consciente"]
[null,"Un Nuevo Contrato Social y Ambiental para la Bogotá del Siglo XXI",{"$f":"+C53+1","v":52},"Integración regional, distrital y local","Propósito 5: Construir Bogotá - Región con gobierno abierto, transparente y ciudadanía consciente"]
[null,"Un Nuevo Contrato Social y Ambiental para la Bogotá del Siglo XXI",53,"Información para la toma de decisiones","Propósito 5: Construir Bogotá - Región con gobierno abierto, transparente y ciudadanía consciente"]
[null,"Un Nuevo Contrato Social y Ambiental para la Bogotá del Siglo XXI",54,"Transformación digital y gestión de TIC para un territorio inteligente","Propósito 5: Construir Bogotá - Región con gobierno abierto, transparente y ciudadanía consciente"]
[null,"Un Nuevo Contrato Social y Ambiental para la Bogotá del Siglo XXI",55,"Fortalecimiento de cultura ciudadana y su institucionalidad","Propósito 5: Construir Bogotá - Región con gobierno abierto, transparente y ciudadanía consciente"]
[null,"Un Nuevo Contrato Social y Ambiental para la Bogotá del Siglo XXI",56,"Gestión pública efectiva","Propósito 5: Construir Bogotá - Región con gobierno abierto, transparente y ciudadanía consciente"]
[null,"Un Nuevo Contrato Social y Ambiental para la Bogotá del Siglo XXI",57,"Gestión pública local","Propósito 5: Construir Bogotá - Región con gobierno abierto, transparente y ciudadanía consciente"]

{"sheet":"Tipo","index":6,"n_rows":40,"n_cols":5,"rows_kept":40,"cut":false,"hidden":true,"merged":[]}
[null,"Tipo","Modalidad de Selección","afectacion","Naturaleza Jurídica"]
[1,"Obra pública","Concurso de méritos","Funcionamiento","Persona Natural"]
[2,"Consultoría","Contratación directa","Inversión","Persona Jurídica"]
[3,"Interventoría","Contratación mínima cuantia","Operación","Unión Temporal"]
[4,"Contratos de prestación de servicios","Selección abreviada",null,"Consorcio"]
[5,"Contratos de prestación de servicios profesionales y de apoyo a la gestión","Licitación pública"]
[6,"Compraventa de bienes muebles","Régimen privado"]
[7,"Compraventa de bienes inmuebles","Régimen especial"]
[8,"Arrendamiento de bienes muebles"]
[9,"Arrendamiento de bienes inmuebles"]
[10,"Seguros","Selección abreviada"]
[11,"Suministro","Subasta inversa "]
[12,"Empréstitos","Bolsas de productos"]
[13,"Fiducia mercantil o encargo fiduciario","Acuerdo marco de precios "]
[14,"Concesión ","Selección abreviada por menor cuantía "]
[15,"Convenios de cooperacion"]
[16,"Contratos interadministrativos","contratacion directa"]
[17,"Convenios de apoyo y/o convenios de asociación ","Urgencia manifiesta"]
[18,"Asociaciones público privadas","Contratación de empréstitos"]
[19,"Otros","Contratos interadministrativos"]
[20,"Otros gastos","Contratación de bienes y servicios en el sector Defensa y en el Departamento Administrativo de Seguridad, DAS"]
[null,"SECTOR","Contratos para el desarrollo de actividades científicas y tecnológicas"]
[1,"Gestión Pública","Contratos de encargo fiduciario que celebren las entidades territoriales cuando inician el Acuerdo de Reestructuración de Pasivos"]
[{"$f":"+A23+1","v":2},"Gobierno","Cuando no exista pluralidad de oferentes en el mercado"]
[{"$f":"+A24+1","v":3},"Hacienda","Prestación de servicios profesionales y de apoyo a la gestión, o para la ejecución de trabajos artísticos que sólo puedan encomendarse a determinadas personas naturales;"]
[4,"Planeación","El arrendamiento o adquisición de inmuebles"]
[5,"Desarrollo Económico, Industria y Turismo","Contratación de bienes y servicios de la Dirección Nacional de Inteligencia (DNI)"]
[6,"Educación"]
[7,"Salud"]
[8,"Integración Social","Decreto 92 de 2017"]
[9,"Cultura, Recreación y Deporte","No aplica"]
[10,"Ambiente"]
[11,"Movilidad","SECOP I"]
[12,"Hábitat","SECOP II"]
[13,"Mujeres"]
[14,"Seguridad, Convivencia y Justicia","Bogotá Mejor para Todos"]
[15,"Gestión Juridíca","Un Nuevo Contrato Social y Ambiental para la Bogotá del Siglo XXI"]
[16,"descentralizado territorialmente"]
[]
[null,"16 - AL"]

{"sheet":"Eje_Pilar_Prop1","index":7,"n_rows":104,"n_cols":5,"rows_kept":104,"cut":false,"hidden":true,"merged":[]}
[]
[null,"PDD","No. Programa","Programa","Pilar /Eje / propósito"]
[null,"Bogotá Mejor para Todos",1,"Prevención y atención de la maternidad y la paternidad tempranas","Pilar 1 Igualdad de Calidad de Vida"]
[null,"Bogotá Mejor para Todos",2,"Desarrollo integral desde la gestación hasta la adolescencia","Pilar 1 Igualdad de Calidad de Vida"]
[null,"Bogotá Mejor para Todos",3,"Igualdad y autonomía para una Bogotá incluyente","Pilar 1 Igualdad de Calidad de Vida"]
[null,"Bogotá Mejor para Todos",4,"Familias protegidas y adaptadas al cambio climático","Pilar 1 Igualdad de Calidad de Vida"]
[null,"Bogotá Mejor para Todos",5,"Desarrollo integral para la felicidad y el ejercicio de la ciudadanía","Pilar 1 Igualdad de Calidad de Vida"]
[null,"Bogotá Mejor para Todos",6,"Calidad educativa para todos","Pilar 1 Igualdad de Calidad de Vida"]
[null,"Bogotá Mejor para Todos",7,"Inclusión educativa para la equidad","Pilar 1 Igualdad de Calidad de Vida"]
[null,"Bogotá Mejor para Todos",8,"Acceso con calidad a la educación superior","Pilar 1 Igualdad de Calidad de Vida"]
[null,"Bogotá Mejor para Todos",9,"Atención integral y eficiente en salud","Pilar 1 Igualdad de Calidad de Vida"]
[null,"Bogotá Mejor para Todos",10,"Modernización de la infraestructura física y tecnológica en salud","Pilar 1 Igualdad de Calidad de Vida"]
[null,"Bogotá Mejor para Todos",11,"Mejores oportunidades para el desarrollo a través de la cultura, la recreación y el deporte","Pilar 1 Igualdad de Calidad de Vida"]
[null,"Bogotá Mejor para Todos",12,"Mujeres protagonistas, activas y empoderadas en el cierre de brechas de género","Pilar 1 Igualdad de Calidad de Vida"]
[null,"Bogotá Mejor para Todos",13,"Infraestructura para el desarrollo del hábitat","Pilar 2 Democracía Urbana"]
[null,"Bogotá Mejor para Todos",14,"Intervenciones integrales del hábitat","Pilar 2 Democracía Urbana"]
[null,"Bogotá Mejor para Todos",15,"Recuperación, incorporación, vida urbana y control de la ilegalidad","Pilar 2 Democracía Urbana"]
[null,"Bogotá Mejor para Todos",16,"Integración social para una ciudad de oportunidades","Pilar 2 Democracía Urbana"]
[null,"Bogotá Mejor para Todos",17,"Espacio público, derecho de todos","Pilar 2 Democracía Urbana"]
[null,"Bogotá Mejor para Todos",18,"Mejor movilidad para todos","Pilar 2 Democracía Urbana"]
[null,"Bogotá Mejor para Todos",19,"Seguridad y convivencia para todos","Pilar 3 Construcción de Comunidad y Cultura Ciudadana"]
[null,"Bogotá Mejor para Todos",20,"Fortalecimiento del Sistema de Protección Integral a Mujeres Víctimas de Violencia - SOFIA","Pilar 3 Construcción de Comunidad y Cultura Ciudadana"]
[null,"Bogotá Mejor para Todos",21,"Justicia para todos: consolidación del Sistema Distrital de Justicia","Pilar 3 Construcción de Comunidad y Cultura Ciudadana"]
[null,"Bogotá Mejor para Todos",22,"Bogotá vive los derechos humanos","Pilar 3 Construcción de Comunidad y Cultura Ciudadana"]
[null,"Bogotá Mejor para Todos",23,"Bogotá mejor para las víctimas, la paz y la reconciliación","Pilar 3 Construcción de Comunidad y Cultura Ciudadana"]
[null,"Bogotá Mejor para Todos",24,"Equipo por la educación para el reencuentro, la reconciliación y la paz","Pilar 3 Construcción de Comunidad y Cultura Ciudadana"]
[null,"Bogotá Mejor para Todos",25,"Cambio cultural y construcción del tejido social para la vida","Pilar 3 Construcción de Comunidad y Cultura Ciudadana"]
[null,"Bogotá Mejor para Todos",26,"Información relevante e integral para la planeación territorial","Eje Transversal 1 Nuevo Ordenamiento Territorial"]
[null,"Bogotá Mejor para Todos",27,"Proyectos urbanos integrales con visión de ciudad","Eje Transversal 1 Nuevo Ordenamiento Territorial"]
[null,"Bogotá Mejor para Todos",28,"Suelo para reducir el déficit habitacional de suelo urbanizable, vivienda y soportes urbanos","Eje Transversal 1 Nuevo Ordenamiento Territorial"]
[null,"Bogotá Mejor para Todos",29,"Articulación regional y planeación integral del transporte","Eje Transversal 1 Nuevo Ordenamiento Territorial"]
[null,"Bogotá Mejor para Todos",30,"Financiación para el Desarrollo Territorial","Eje Transversal 1 Nuevo Ordenamiento Territorial"]
[null,"Bogotá Mejor para Todos",31,"Fundamentar el desarrollo económico en la generación y uso del conocimiento para mejorar la competitividad de la Ciudad Región","Eje Transversal 2 Desarrollo Económico basado en el conocimiento"]
[null,"Bogotá Mejor para Todos",32,"Generar alternativas de ingreso y empleo de mejor calidad","Eje Transversal 2 Desarrollo Económico basado en el conocimiento"]
[null,"Bogotá Mejor para Todos",33,"Elevar la eficiencia de los mercados de la ciudad","Eje Transversal 2 Desarrollo Económico basado en el conocimiento"]
[null,"Bogotá Mejor para Todos",34,"Mejorar y fortalecer el recaudo tributario de la ciudad e impulsar el uso de mecanismos de vinculación de capital privado","Eje Transversal 2 Desarrollo Económico basado en el conocimiento"]
[null,"Bogotá Mejor para Todos",35,"Bogotá, ciudad inteligente","Eje Transversal 2 Desarrollo Económico basado en el conocimiento"]
[null,"Bogotá Mejor para Todos",36,"Bogotá, una ciudad digital","Eje Transversal 2 Desarrollo Económico basado en el conocimiento"]
[null,"Bogotá Mejor para Todos",37,"Consolidar el turismo como factor de desarrollo, confianza y felicidad para Bogotá Región","Eje Transversal 2 Desarrollo Económico basado en el conocimiento"]
[null,"Bogotá Mejor para Todos",38,"Recuperación y manejo de la Estructura Ecológica Principal","Eje Transversal 3 Sostenibilidad Ambiental basada en la eficiencia energética"]
[null,"Bogotá Mejor para Todos",39,"Ambiente sano para la equidad y disfrute del ciudadano","Eje Transversal 3 Sostenibilidad Ambiental basada en la eficiencia energética"]
[null,"Bogotá Mejor para Todos",40,"Gestión de la huella ambiental urbana","Eje Transversal 3 Sostenibilidad Ambiental basada en la eficiencia energética"]
[null,"Bogotá Mejor para Todos",41,"Desarrollo rural sostenible","Eje Transversal 3 Sostenibilidad Ambiental basada en la eficiencia energética"]
[null,"Bogotá Mejor para Todos",42,"Transparencia, gestión pública y servicio a la ciudadanía","Eje Transversal 4 Gobierno Legitimo, Fortalecimiento Local y Eficiencia"]
[null,"Bogotá Mejor para Todos",43,"Modernización institucional","Eje Transversal 4 Gobierno Legitimo, Fortalecimiento Local y Eficiencia"]
[null,"Bogotá Mejor para Todos",44,"Gobierno y ciudadanía digital","Eje Transversal 4 Gobierno Legitimo, Fortalecimiento Local y Eficiencia"]
[null,"Bogotá Mejor para Todos",45,"Gobernanza e influencia local, regional e internacional","Eje Transversal 4 Gobierno Legitimo, Fortalecimiento Local y Eficiencia"]
["Acuerdo 761 2020","Un Nuevo Contrato Social y Ambiental para la Bogotá del Siglo XXI","1.","Subsidios y transferencias para la equidad","Propósito 1: Hacer un nuevo contrato social para incrementar la inclusión social, productiva y política"]
["Pag. 51","Un Nuevo Contrato Social y Ambiental para la Bogotá del Siglo XXI","2.","Igualdad de oportunidades y desarrollo de capacidades para las mujeres","Propósito 1: Hacer un nuevo contrato social para incrementar la inclusión social, productiva y política"]
[null,"Un Nuevo Contrato Social y Ambiental para la Bogotá del Siglo XXI","3.","Movilidad social integral","Propósito 1: Hacer un nuevo contrato social para incrementar la inclusión social, productiva y política"]
[null,"Un Nuevo Contrato Social y Ambiental para la Bogotá del Siglo XXI","4.","Prevención de la exclusión por razones étnicas, religiosas, sociales, políticas y de orientación sexual","Propósito 1: Hacer un nuevo contrato social para incrementar la inclusión social, productiva y política"]
[null,"Un Nuevo Contrato Social y Ambiental para la Bogotá del Siglo XXI","5.","Promoción de la igualdad, el desarrollo de capacidades y el reconocimiento de las mujeres","Propósito 1: Hacer un nuevo contrato social para incrementar la inclusión social, productiva y política"]
[null,"Un Nuevo Contrato Social y Ambiental para la Bogotá del Siglo XXI","6.","Sistema Distrital de Cuidado","Propósito 1: Hacer un nuevo contrato social para incrementar la inclusión social, productiva y política"]
[null,"Un Nuevo Contrato Social y Ambiental para la Bogotá del Siglo XXI","7.","Mejora de la gestión de instituciones de salud","Propósito 1: Hacer un nuevo contrato social para incrementar la inclusión social, productiva y política"]
[null,"Un Nuevo Contrato Social y Ambiental para la Bogotá del Siglo XXI","8.","Prevención y atención de maternidad temprana","Propósito 1: Hacer un nuevo contrato social para incrementar la inclusión social, productiva y política"]
[null,"Un Nuevo Contrato Social y Ambiental para la Bogotá del Siglo XXI","9.","Prevención y cambios para mejorar la salud de la población","Propósito 1: Hacer un nuevo contrato social para incrementar la inclusión social, productiva y política"]
[null,"Un Nuevo Contrato Social y Ambiental para la Bogotá del Siglo XXI","10.","Salud para la vida y el bienestar","Propósito 1: Hacer un nuevo contrato social para incrementar la inclusión social, productiva y política"]
[null,"Un Nuevo Contrato Social y Ambiental para la Bogotá del Siglo XXI","11.","Salud y bienestar para niñas y niños","Propósito 1: Hacer un nuevo contrato social para incrementar la inclusión social, productiva y política"]
[null,"Un Nuevo Contrato Social y Ambiental para la Bogotá del Siglo XXI","12.","Educación inicial: Bases sólidas para la vida.","Propósito 1: Hacer un nuevo contrato social para incrementar la inclusión social, productiva y política"]
[null,"Un Nuevo Contrato Social y Ambiental para la Bogotá del Siglo XXI","13.","Educación para todos y todas: acceso y permanencia con equidad y énfasis en educación rural","Propósito 1: Hacer un nuevo contrato social para incrementar la inclusión social, productiva y política"]
[null,"Un Nuevo Contrato Social y Ambiental para la Bogotá del Siglo XXI","14.","Formación integral: más y mejor tiempo en los colegios","Propósito 1: Hacer un nuevo contrato social para incrementar la inclusión social, productiva y política"]
[null,"Un Nuevo Contrato Social y Ambiental para la Bogotá del Siglo XXI","15.","Plan Distrital de Lectura, Escritura y Oralidad: \"Leer para la vida\"","Propósito 1: Hacer un nuevo contrato social para incrementar la inclusión social, productiva y política"]
[null,"Un Nuevo Contrato Social y Ambiental para la Bogotá del Siglo XXI","16.","Transformación pedagógica y mejoramiento de la gestión educativa. Es con los maestros y maestras.","Propósito 1: Hacer un nuevo contrato social para incrementar la inclusión social, productiva y política"]
[null,"Un Nuevo Contrato Social y Ambiental para la Bogotá del Siglo XXI","17.","Jóvenes con capacidades: Proyecto de vida para la ciudadanía, la innovación y el trabajo del siglo XXI","Propósito 1: Hacer un nuevo contrato social para incrementar la inclusión social, productiva y política"]
[null,"Un Nuevo Contrato Social y Ambiental para la Bogotá del Siglo XXI","18.","Cierre de brechas para la inclusión productiva urbano rural","Propósito 1: Hacer un nuevo contrato social para incrementar la inclusión social, productiva y política"]
[null,"Un Nuevo Contrato Social y Ambiental para la Bogotá del Siglo XXI","19.","Vivienda y entornos dignos en el territorio urbano y rural","Propósito 1: Hacer un nuevo contrato social para incrementar la inclusión social, productiva y política"]
[null,"Un Nuevo Contrato Social y Ambiental para la Bogotá del Siglo XXI","20.","Bogotá, referente en cultura, deporte, recreación y actividad física, con parques para el desarrollo y la salud","Propósito 1: Hacer un nuevo contrato social para incrementar la inclusión social, productiva y política"]
[null,"Un Nuevo Contrato Social y Ambiental para la Bogotá del Siglo XXI","21.","Creación y vida cotidiana: Apropiación ciudadana del arte, la cultura y el patrimonio, para la democracia cultural","Propósito 1: Hacer un nuevo contrato social para incrementar la inclusión social, productiva y política"]
[null,"Un Nuevo Contrato Social y Ambiental para la Bogotá del Siglo XXI","22.","Transformación cultural para la conciencia ambiental y el cuidado de la fauna doméstica","Propósito 1: Hacer un nuevo contrato social para incrementar la inclusión social, productiva y política"]
[null,"Un Nuevo Contrato Social y Ambiental para la Bogotá del Siglo XXI","23.","Bogotá rural","Propósito 1: Hacer un nuevo contrato social para incrementar la inclusión social, productiva y política"]
[null,"Un Nuevo Contrato Social y Ambiental para la Bogotá del Siglo XXI","24.","Bogotá región emprendedora e innovadora","Propósito 1: Hacer un nuevo contrato social para incrementar la inclusión social, productiva y política"]
[null,"Un Nuevo Contrato Social y Ambiental para la Bogotá del Siglo XXI","25.","Bogotá región productiva y competitiva","Propósito 1: Hacer un nuevo contrato social para incrementar la inclusión social, productiva y política"]
[null,"Un Nuevo Contrato Social y Ambiental para la Bogotá del Siglo XXI","26.","Bogotá - región, el mejor destino para visitar","Propósito 1: Hacer un nuevo contrato social para incrementar la inclusión social, productiva y política"]
[null,"Un Nuevo Contrato Social y Ambiental para la Bogotá del Siglo XXI","27.","Cambio cultural para la gestión de la crisis climática","Propósito 2 : Cambiar Nuestros Hábitos de Vida para Reverdecer a Bogotá y Adaptarnos y Mitigar la Crisis Climática"]
[null,"Un Nuevo Contrato Social y Ambiental para la Bogotá del Siglo XXI","28.","Bogotá protectora de sus recursos naturales","Propósito 2 : Cambiar Nuestros Hábitos de Vida para Reverdecer a Bogotá y Adaptarnos y Mitigar la Crisis Climática"]
[null,"Un Nuevo Contrato Social y Ambiental para la Bogotá del Siglo XXI","29.","Asentamientos y entornos protectores","Propósito 2 : Cambiar Nuestros Hábitos de Vida para Reverdecer a Bogotá y Adaptarnos y Mitigar la Crisis Climática"]
[null,"Un Nuevo Contrato Social y Ambiental para la Bogotá del Siglo XXI","30.","Eficiencia en la atención de emergencias","Propósito 2 : Cambiar Nuestros Hábitos de Vida para Reverdecer a Bogotá y Adaptarnos y Mitigar la Crisis Climática"]
[null,"Un Nuevo Contrato Social y Ambiental para la Bogotá del Siglo XXI","31."," Protección y valoración del patrimonio tangible e intangible en Bogotá y la región","Propósito 2 : Cambiar Nuestros Hábitos de Vida para Reverdecer a Bogotá y Adaptarnos y Mitigar la Crisis Climática"]
[null,"Un Nuevo Contrato Social y Ambiental para la Bogotá del Siglo XXI","32.","Revitalización urbana para la competitividad","Propósito 2 : Cambiar Nuestros Hábitos de Vida para Reverdecer a Bogotá y Adaptarnos y Mitigar la Crisis Climática"]
[null,"Un Nuevo Contrato Social y Ambiental para la Bogotá del Siglo XXI","33.","Más árboles y más y mejor espacio público","Propósito 2 : Cambiar Nuestros Hábitos de Vida para Reverdecer a Bogotá y Adaptarnos y Mitigar la Crisis Climática"]
[null,"Un Nuevo Contrato Social y Ambiental para la Bogotá del Siglo XXI","34.","Bogotá protectora de los animales","Propósito 2 : Cambiar Nuestros Hábitos de Vida para Reverdecer a Bogotá y Adaptarnos y Mitigar la Crisis Climática"]
[null,"Un Nuevo Contrato Social y Ambiental para la Bogotá del Siglo XXI","35.","Manejo y prevención de contaminación","Propósito 2 : Cambiar Nuestros Hábitos de Vida para Reverdecer a Bogotá y Adaptarnos y Mitigar la Crisis Climática"]
[null,"Un Nuevo Contrato Social y Ambiental para la Bogotá del Siglo XXI","36.","Manejo y saneamiento de los cuerpos de agua","Propósito 2 : Cambiar Nuestros Hábitos de Vida para Reverdecer a Bogotá y Adaptarnos y Mitigar la Crisis Climática"]
[null,"Un Nuevo Contrato Social y Ambiental para la Bogotá del Siglo XXI","37.","Provisión y mejoramiento de servicios públicos","Propósito 2 : Cambiar Nuestros Hábitos de Vida para Reverdecer a Bogotá y Adaptarnos y Mitigar la Crisis Climática"]
[null,"Un Nuevo Contrato Social y Ambiental para la Bogotá del Siglo XXI","38.","Ecoeficiencia, reciclaje, manejo de residuos e inclusión de la población recicladora","Propósito 2 : Cambiar Nuestros Hábitos de Vida para Reverdecer a Bogotá y Adaptarnos y Mitigar la Crisis Climática"]
[null,"Un Nuevo Contrato Social y Ambiental para la Bogotá del Siglo XXI","39.","Bogotá territorio de paz y atención integral a las víctimas del conflicto armado","Propósito 3: Inspirar confianza y legitimidad para vivir sin miedo y ser epicentro de cultura ciudadana, paz y reconciliación"]
[null,"Un Nuevo Contrato Social y Ambiental para la Bogotá del Siglo XXI","40.","Más mujeres viven una vida libre de violencias, se sienten seguras y acceden con confianza al sistema de justicia","Propósito 3: Inspirar confianza y legitimidad para vivir sin miedo y ser epicentro de cultura ciudadana, paz y reconciliación"]
[null,"Un Nuevo Contrato Social y Ambiental para la Bogotá del Siglo XXI","41.","Sin machismo ni violencias contra las mujeres, las niñas y los niños","Propósito 3: Inspirar confianza y legitimidad para vivir sin miedo y ser epicentro de cultura ciudadana, paz y reconciliación"]
[null,"Un Nuevo Contrato Social y Ambiental para la Bogotá del Siglo XXI","42.","Conciencia y cultura ciudadana para la seguridad, la convivencia y la construcción de confianza","Propósito 3: Inspirar confianza y legitimidad para vivir sin miedo y ser epicentro de cultura ciudadana, paz y reconciliación"]
[null,"Un Nuevo Contrato Social y Ambiental para la Bogotá del Siglo XXI","43.","Cultura ciudadana para la confianza, la convivencia y la participación desde la vida cotidiana","Propósito 3: Inspirar confianza y legitimidad para vivir sin miedo y ser epicentro de cultura ciudadana, paz y reconciliación"]
[null,"Un Nuevo Contrato Social y Ambiental para la Bogotá del Siglo XXI","44.","Autoconciencia, respeto y cuidado en el espacio público","Propósito 3: Inspirar confianza y legitimidad para vivir sin miedo y ser epicentro de cultura ciudadana, paz y reconciliación"]
[null,"Un Nuevo Contrato Social y Ambiental para la Bogotá del Siglo XXI","45.","Espacio público más seguro y construido colectivamente","Propósito 3: Inspirar confianza y legitimidad para vivir sin miedo y ser epicentro de cultura ciudadana, paz y reconciliación"]
[null,"Un Nuevo Contrato Social y Ambiental para la Bogotá del Siglo XXI","46.","Atención a jóvenes y adultos infractores con impacto en su proyecto de vida","Propósito 3: Inspirar confianza y legitimidad para vivir sin miedo y ser epicentro de cultura ciudadana, paz y reconciliación"]
[null,"Un Nuevo Contrato Social y Ambiental para la Bogotá del Siglo XXI","47.","Calidad de Vida y Derechos de la Población privada de la libertad","Propósito 3: Inspirar confianza y legitimidad para vivir sin miedo y ser epicentro de cultura ciudadana, paz y reconciliación"]
[null,"Un Nuevo Contrato Social y Ambiental para la Bogotá del Siglo XXI","48.","Plataforma institucional para la seguridad y justicia","Propósito 3: Inspirar confianza y legitimidad para vivir sin miedo y ser epicentro de cultura ciudadana, paz y reconciliación"]
[null,"Un Nuevo Contrato Social y Ambiental para la Bogotá del Siglo XXI","49.","Movilidad segura, sostenible y accesible","Propósito 4: Hacer de Bogotá Región un modelo de movilidad multimodal, incluyente y sostenible"]
[null,"Un Nuevo Contrato Social y Ambiental para la Bogotá del Siglo XXI","50.","Red de metros","Propósito 4: Hacer de Bogotá Región un modelo de movilidad multimodal, incluyente y sostenible"]
[null,"Un Nuevo Contrato Social y Ambiental para la Bogotá del Siglo XXI","51.","Gobierno Abierto","Propósito 5: Construir Bogotá - Región con gobierno abierto, transparente y ciudadanía consciente"]
[null,"Un Nuevo Contrato Social y Ambiental para la Bogotá del Siglo XXI","52.","Integración regional, distrital y local","Propósito 5: Construir Bogotá - Región con gobierno abierto, transparente y ciudadanía consciente"]
[null,"Un Nuevo Contrato Social y Ambiental para la Bogotá del Siglo XXI","53.","Información para la toma de decisiones","Propósito 5: Construir Bogotá - Región con gobierno abierto, transparente y ciudadanía consciente"]
[null,"Un Nuevo Contrato Social y Ambiental para la Bogotá del Siglo XXI","54.","Transformación digital y gestión de TIC para un territorio inteligente","Propósito 5: Construir Bogotá - Región con gobierno abierto, transparente y ciudadanía consciente"]
[null,"Un Nuevo Contrato Social y Ambiental para la Bogotá del Siglo XXI","55.","Fortalecimiento de cultura ciudadana y su institucionalidad","Propósito 5: Construir Bogotá - Región con gobierno abierto, transparente y ciudadanía consciente"]
[null,"Un Nuevo Contrato Social y Ambiental para la Bogotá del Siglo XXI","56.","Gestión pública efectiva","Propósito 5: Construir Bogotá - Región con gobierno abierto, transparente y ciudadanía consciente"]
[null,"Un Nuevo Contrato Social y Ambiental para la Bogotá del Siglo XXI","57.","Gestión pública local","Propósito 5: Construir Bogotá - Región con gobierno abierto, transparente y ciudadanía consciente"]